Workbook

Sheet Planeación
A1: 2023-2
K9: OFICINA DE PLANEACIÓN
C15: Informe de Perdidos y Retirados
C16: por cursos y departamentos académicos
C17: =CONCATENATE(IF(RIGHT(A1,1)="1","I","II")," SEMESTRE DE ",LEFT(A1,4)) -> II SEMESTRE DE 2023
C26: INFORMACIÓN Y ESTADÍSTICA
C28: Elaborado: 14 de febrero 2023

Sheet BD_Depurada
A1: CRN_KEY | B1: CODASG | C1: Nombre Asg | D1: Grp | E1: SEM | F1: Mat Inicial | G1: totalm | H1: totalp | I1: totalr | J1: repi | K1: %perdidos | L1: %retirados | M1: %repitencia | N1: STVDEPT_CODE | O1: Departamento | P1: CEDULA | Q1: NOMBRE | R1: DED | S1: Nivel
A2: 1307 | B2: ARQ4014 | C2: HISTORIA Y TEORIA - SIGLO XIX | D2: 1 | E2: 202330 | F2: 23 | G2: 17 | H2: 0 | I2: 6 | J2: 6 | K2: =+BD_DEP[[#This Row],[totalp]]/BD_DEP[[#This Row],[Mat Inicial]] -> 0 | L2: =+BD_DEP[[#This Row],[totalr]]/BD_DEP[[#This Row],[Mat Inicial]] -> 0.2608695652 | M2: =+BD_DEP[[#This Row],[repi]]/BD_DEP[[#This Row],[Mat Inicial]] -> 0.2608695652 | N2: 47 | O2: Dpto. Arquitectura y Urbanismo | P2: 52888105 | Q2: ROJAS BERNAL CLAUDIA | R2: TC | S2: PR
A3: 1308 | B3: ARQ4014 | C3: HISTORIA Y TEORIA - SIGLO XIX | D3: 2 | E3: 202330 | F3: 38 | G3: 37 | H3: 0 | I3: 1 | J3: 1 | K3: =+BD_DEP[[#This Row],[totalp]]/BD_DEP[[#This Row],[Mat Inicial]] -> 0 | L3: =+BD_DEP[[#This Row],[totalr]]/BD_DEP[[#This Row],[Mat Inicial]] -> 0.02631578947 | M3: =+BD_DEP[[#This Row],[repi]]/BD_DEP[[#This Row],[Mat Inicial]] -> 0.02631578947 | N3: 47 | O3: Dpto. Arquitectura y Urbanismo | P3: 52888105 | Q3: ROJAS BERNAL CLAUDIA | R3: TC | S3: PR
A4: 1310 | B4: ARQ4017 | C4: HISTORIA Y TEORIA PENSAM CLASI | D4: 1 | E4: 202330 | F4: 24 | G4: 20 | H4: 1 | I4: 4 | J4: 5 | K4: =+BD_DEP[[#This Row],[totalp]]/BD_DEP[[#This Row],[Mat Inicial]] -> 0.04166666667 | L4: =+BD_DEP[[#This Row],[totalr]]/BD_DEP[[#This Row],[Mat Inicial]] -> 0.1666666667 | M4: =+BD_DEP[[#This Row],[repi]]/BD_DEP[[#This Row],[Mat Inicial]] -> 0.2083333333 | N4: 47 | O4: Dpto. Arquitectura y Urbanismo | P4: 1140868697 | Q4: Meza Nuñez Alessandra | R4: TC | S4: PR
A5: 1302 | B5: ARQ4011 | C5: HISTORIA Y TEORIA VANGUARDIAS | D5: 1 | E5: 202330 | F5: 29 | G5: 27 | H5: 1 | I5: 2 | J5: 3 | K5: =+BD_DEP[[#This Row],[totalp]]/BD_DEP[[#This Row],[Mat Inicial]] -> 0.03448275862 | L5: =+BD_DEP[[#This Row],[totalr]]/BD_DEP[[#This Row],[Mat Inicial]] -> 0.06896551724 | M5: =+BD_DEP[[#This Row],[repi]]/BD_DEP[[#This Row],[Mat Inicial]] -> 0.1034482759 | N5: 47 | O5: Dpto. Arquitectura y Urbanismo | P5: 1140864916 | Q5: Castilla Riasco Martha | R5: TC | S5: PR
A6: 1328 | B6: ARQ4028 | C6: PROYECTO DE GRADO I | D6: 1 | E6: 202330 | F6: 15 | G6: 15 | H6: 1 | I6: 0 | J6: 1 | K6: =+BD_DEP[[#This Row],[totalp]]/BD_DEP[[#This Row],[Mat Inicial]] -> 0.06666666667 | L6: =+BD_DEP[[#This Row],[totalr]]/BD_DEP[[#This Row],[Mat Inicial]] -> 0 | M6: =+BD_DEP[[#This Row],[repi]]/BD_DEP[[#This Row],[Mat Inicial]] -> 0.06666666667 | N6: 47 | O6: Dpto. Arquitectura y Urbanismo | P6: 80423166 | Q6: Vargas Tovar Yalmar | R6: TC | S6: PR
A7: 1354 | B7: ARQ4095 | C7: T.ARQUITEC II: HAB Y VIVIENDA | D7: 4 | E7: 202330 | F7: 13 | G7: 12 | H7: 2 | I7: 1 | J7: 3 | K7: =+BD_DEP[[#This Row],[totalp]]/BD_DEP[[#This Row],[Mat Inicial]] -> 0.1538461538 | L7: =+BD_DEP[[#This Row],[totalr]]/BD_DEP[[#This Row],[Mat Inicial]] -> 0.07692307692 | M7: =+BD_DEP[[#This Row],[repi]]/BD_DEP[[#This Row],[Mat Inicial]] -> 0.2307692308 | N7: 47 | O7: Dpto. Arquitectura y Urbanismo | P7: 79547723 | Q7: NIÑO SOTO ALEXANDER | R7: TC | S7: PR
A8: 1351 | B8: ARQ4095 | C8: T.ARQUITEC II: HAB Y VIVIENDA | D8: 1 | E8: 202330 | F8: 10 | G8: 10 | H8: 0 | I8: 0 | J8: 0 | K8: =+BD_DEP[[#This Row],[totalp]]/BD_DEP[[#This Row],[Mat Inicial]] -> 0 | L8: =+BD_DEP[[#This Row],[totalr]]/BD_DEP[[#This Row],[Mat Inicial]] -> 0 | M8: =+BD_DEP[[#This Row],[repi]]/BD_DEP[[#This Row],[Mat Inicial]] -> 0 | N8: 47 | O8: Dpto. Arquitectura y Urbanismo | P8: 80136735 | Q8: BUENO RIVERO CARLOS | R8: TC | S8: PR
A9: 1350 | B9: ARQ4090 | C9: T.ARQUITEC III: EQUIPAMIENTOS | D9: 2 | E9: 202330 | F9: 12 | G9: 11 | H9: 1 | I9: 1 | J9: 2 | K9: =+BD_DEP[[#This Row],[totalp]]/BD_DEP[[#This Row],[Mat Inicial]] -> 0.08333333333 | L9: =+BD_DEP[[#This Row],[totalr]]/BD_DEP[[#This Row],[Mat Inicial]] -> 0.08333333333 | M9: =+BD_DEP[[#This Row],[repi]]/BD_DEP[[#This Row],[Mat Inicial]] -> 0.1666666667 | N9: 47 | O9: Dpto. Arquitectura y Urbanismo | P9: 1140868697 | Q9: Meza Nuñez Alessandra | R9: TC | S9: PR
A10: 1356 | B10: ARQ4100 | C10: T.ARQUITECTURA I: ARQ BASICAS | D10: 2 | E10: 202330 | F10: 17 | G10: 17 | H10: 3 | I10: 0 | J10: 3 | K10: =+BD_DEP[[#This Row],[totalp]]/BD_DEP[[#This Row],[Mat Inicial]] -> 0.1764705882 | L10: =+BD_DEP[[#This Row],[totalr]]/BD_DEP[[#This Row],[Mat Inicial]] -> 0 | M10: =+BD_DEP[[#This Row],[repi]]/BD_DEP[[#This Row],[Mat Inicial]] -> 0.1764705882 | N10: 47 | O10: Dpto. Arquitectura y Urbanismo | P10: 1140868697 | Q10: Meza Nuñez Alessandra | R10: TC | S10: PR
A11: 1347 | B11: ARQ4085 | C11: T.CIUDAD I: ESPAC PUB DIS URBA | D11: 2 | E11: 202330 | F11: 15 | G11: 13 | H11: 0 | I11: 2 | J11: 2 | K11: =+BD_DEP[[#This Row],[totalp]]/BD_DEP[[#This Row],[Mat Inicial]] -> 0 | L11: =+BD_DEP[[#This Row],[totalr]]/BD_DEP[[#This Row],[Mat Inicial]] -> 0.1333333333 | M11: =+BD_DEP[[#This Row],[repi]]/BD_DEP[[#This Row],[Mat Inicial]] -> 0.1333333333 | N11: 47 | O11: Dpto. Arquitectura y Urbanismo | P11: 52888105 | Q11: ROJAS BERNAL CLAUDIA | R11: TC | S11: PR
A12: 1348 | B12: ARQ4085 | C12: T.CIUDAD I: ESPAC PUB DIS URBA | D12: 3 | E12: 202330 | F12: 14 | G12: 14 | H12: 0 | I12: 0 | J12: 0 | K12: =+BD_DEP[[#This Row],[totalp]]/BD_DEP[[#This Row],[Mat Inicial]] -> 0 | L12: =+BD_DEP[[#This Row],[totalr]]/BD_DEP[[#This Row],[Mat Inicial]] -> 0 | M12: =+BD_DEP[[#This Row],[repi]]/BD_DEP[[#This Row],[Mat Inicial]] -> 0 | N12: 47 | O12: Dpto. Arquitectura y Urbanismo | P12: 80136735 | Q12: BUENO RIVERO CARLOS | R12: TC | S12: PR
A13: 1346 | B13: ARQ4085 | C13: T.CIUDAD I: ESPAC PUB DIS URBA | D13: 1 | E13: 202330 | F13: 15 | G13: 14 | H13: 0 | I13: 1 | J13: 1 | K13: =+BD_DEP[[#This Row],[totalp]]/BD_DEP[[#This Row],[Mat Inicial]] -> 0 | L13: =+BD_DEP[[#This Row],[totalr]]/BD_DEP[[#This Row],[Mat Inicial]] -> 0.06666666667 | M13: =+BD_DEP[[#This Row],[repi]]/BD_DEP[[#This Row],[Mat Inicial]] -> 0.06666666667 | N13: 47 | O13: Dpto. Arquitectura y Urbanismo | P13: 1140864916 | Q13: Castilla Riasco Martha | R13: TC | S13: PR
A14: 4214 | B14: ARQ4125 | C14: TALLER BASICO 1:FUND DEL DISEÑ | D14: 51 | E14: 202330 | F14: 12 | G14: 12 | H14: 1 | I14: 0 | J14: 1 | K14: =+BD_DEP[[#This Row],[totalp]]/BD_DEP[[#This Row],[Mat Inicial]] -> 0.08333333333 | L14: =+BD_DEP[[#This Row],[totalr]]/BD_DEP[[#This Row],[Mat Inicial]] -> 0 | M14: =+BD_DEP[[#This Row],[repi]]/BD_DEP[[#This Row],[Mat Inicial]] -> 0.08333333333 | N14: 47 | O14: Dpto. Arquitectura y Urbanismo | P14: 72200663 | Q14: Moreno Slagter Manuel | R14: TC | S14: PR
A15: 1359 | B15: ARQ4120 | C15: TALLER BASICOII: FUND DEL PROY | D15: 3 | E15: 202330 | F15: 15 | G15: 15 | H15: 0 | I15: 0 | J15: 0 | K15: =+BD_DEP[[#This Row],[totalp]]/BD_DEP[[#This Row],[Mat Inicial]] -> 0 | L15: =+BD_DEP[[#This Row],[totalr]]/BD_DEP[[#This Row],[Mat Inicial]] -> 0 | M15: =+BD_DEP[[#This Row],[repi]]/BD_DEP[[#This Row],[Mat Inicial]] -> 0 | N15: 47 | O15: Dpto. Arquitectura y Urbanismo | P15: 1140864916 | Q15: Castilla Riasco Martha | R15: TC | S15: PR
A16: 1344 | B16: ARQ4080 | C16: TALLER CIUDAD II: SOST URBANA | D16: 1 | E16: 202330 | F16: 11 | G16: 10 | H16: 0 | I16: 1 | J16: 1 | K16: =+BD_DEP[[#This Row],[totalp]]/BD_DEP[[#This Row],[Mat Inicial]] -> 0 | L16: =+BD_DEP[[#This Row],[totalr]]/BD_DEP[[#This Row],[Mat Inicial]] -> 0.09090909091 | M16: =+BD_DEP[[#This Row],[repi]]/BD_DEP[[#This Row],[Mat Inicial]] -> 0.09090909091 | N16: 47 | O16: Dpto. Arquitectura y Urbanismo | P16: 79547723 | Q16: NIÑO SOTO ALEXANDER | R16: TC | S16: PR
A17: 1316 | B17: ARQ4021 | C17: TEC GRAFICAS III COMUNICACIÓN | D17: 1 | E17: 202330 | F17: 13 | G17: 12 | H17: 0 | I17: 1 | J17: 1 | K17: =+BD_DEP[[#This Row],[totalp]]/BD_DEP[[#This Row],[Mat Inicial]] -> 0 | L17: =+BD_DEP[[#This Row],[totalr]]/BD_DEP[[#This Row],[Mat Inicial]] -> 0.07692307692 | M17: =+BD_DEP[[#This Row],[repi]]/BD_DEP[[#This Row],[Mat Inicial]] -> 0.07692307692 | N17: 47 | O17: Dpto. Arquitectura y Urbanismo | P17: 80136735 | Q17: BUENO RIVERO CARLOS | R17: TC | S17: PR
A18: 1303 | B18: ARQ4012 | C18: PROYECTO DE GRADO II | D18: 1 | E18: 202330 | F18: 16 | G18: 15 | H18: 0 | I18: 1 | J18: 1 | K18: =+BD_DEP[[#This Row],[totalp]]/BD_DEP[[#This Row],[Mat Inicial]] -> 0 | L18: =+BD_DEP[[#This Row],[totalr]]/BD_DEP[[#This Row],[Mat Inicial]] -> 0.0625 | M18: =+BD_DEP[[#This Row],[repi]]/BD_DEP[[#This Row],[Mat Inicial]] -> 0.0625 | N18: 47 | O18: Dpto. Arquitectura y Urbanismo | P18: 79148511 | Q18: AMAYA VALDIVIESO FABIAN | R18: MT | S18: PR
A19: 1304 | B19: ARQ4012 | C19: PROYECTO DE GRADO II | D19: 2 | E19: 202330 | F19: 16 | G19: 16 | H19: 0 | I19: 0 | J19: 0 | K19: =+BD_DEP[[#This Row],[totalp]]/BD_DEP[[#This Row],[Mat Inicial]] -> 0 | L19: =+BD_DEP[[#This Row],[totalr]]/BD_DEP[[#This Row],[Mat Inicial]] -> 0 | M19: =+BD_DEP[[#This Row],[repi]]/BD_DEP[[#This Row],[Mat Inicial]] -> 0 | N19: 47 | O19: Dpto. Arquitectura y Urbanismo | P19: 79148511 | Q19: AMAYA VALDIVIESO FABIAN | R19: MT | S19: PR
A20: 1321 | B20: ARQ4023 | C20: CONST I ENVOL Y CONF CONSTRUC | D20: 1 | E20: 202330 | F20: 40 | G20: 36 | H20: 5 | I20: 4 | J20: 9 | K20: =+BD_DEP[[#This Row],[totalp]]/BD_DEP[[#This Row],[Mat Inicial]] -> 0.125 | L20: =+BD_DEP[[#This Row],[totalr]]/BD_DEP[[#This Row],[Mat Inicial]] -> 0.1 | M20: =+BD_DEP[[#This Row],[repi]]/BD_DEP[[#This Row],[Mat Inicial]] -> 0.225 | N20: 47 | O20: Dpto. Arquitectura y Urbanismo | P20: 32878075 | Q20: Ayala Rueda Claudia | R20: CA | S20: PR
A21: 1326 | B21: ARQ4026 | C21: CONST III TECN AVANZ INDUST | D21: 1 | E21: 202330 | F21: 22 | G21: 19 | H21: 5 | I21: 3 | J21: 8 | K21: =+BD_DEP[[#This Row],[totalp]]/BD_DEP[[#This Row],[Mat Inicial]] -> 0.2272727273 | L21: =+BD_DEP[[#This Row],[totalr]]/BD_DEP[[#This Row],[Mat Inicial]] -> 0.1363636364 | M21: =+BD_DEP[[#This Row],[repi]]/BD_DEP[[#This Row],[Mat Inicial]] -> 0.3636363636 | N21: 47 | O21: Dpto. Arquitectura y Urbanismo | P21: 85464511 | Q21: Tinoco Posada Mauricio | R21: CA | S21: PR
A22: 1322 | B22: ARQ4024 | C22: CONSTR II INST E INFRAESTRUCTU | D22: 1 | E22: 202330 | F22: 30 | G22: 30 | H22: 0 | I22: 0 | J22: 0 | K22: =+BD_DEP[[#This Row],[totalp]]/BD_DEP[[#This Row],[Mat Inicial]] -> 0 | L22: =+BD_DEP[[#This Row],[totalr]]/BD_DEP[[#This Row],[Mat Inicial]] -> 0 | M22: =+BD_DEP[[#This Row],[repi]]/BD_DEP[[#This Row],[Mat Inicial]] -> 0 | N22: 47 | O22: Dpto. Arquitectura y Urbanismo | P22: 79955640 | Q22: RODRIGUEZ PEÑARANDA OSCAR | R22: CA | S22: PR
A23: 1323 | B23: ARQ4024 | C23: CONSTR II INST E INFRAESTRUCTU | D23: 2 | E23: 202330 | F23: 30 | G23: 30 | H23: 0 | I23: 0 | J23: 0 | K23: =+BD_DEP[[#This Row],[totalp]]/BD_DEP[[#This Row],[Mat Inicial]] -> 0 | L23: =+BD_DEP[[#This Row],[totalr]]/BD_DEP[[#This Row],[Mat Inicial]] -> 0 | M23: =+BD_DEP[[#This Row],[repi]]/BD_DEP[[#This Row],[Mat Inicial]] -> 0 | N23: 47 | O23: Dpto. Arquitectura y Urbanismo | P23: 1129535971 | Q23: Gonzalez Arias Alcides | R23: CA | S23: PR
A24: 1324 | B24: ARQ4025 | C24: GESTIÓN URBANA | D24: 1 | E24: 202330 | F24: 25 | G24: 25 | H24: 0 | I24: 0 | J24: 0 | K24: =+BD_DEP[[#This Row],[totalp]]/BD_DEP[[#This Row],[Mat Inicial]] -> 0 | L24: =+BD_DEP[[#This Row],[totalr]]/BD_DEP[[#This Row],[Mat Inicial]] -> 0 | M24: =+BD_DEP[[#This Row],[repi]]/BD_DEP[[#This Row],[Mat Inicial]] -> 0 | N24: 47 | O24: Dpto. Arquitectura y Urbanismo | P24: 7633544 | Q24: Carpintero Charris Luis | R24: CA | S24: PR
A25: 1325 | B25: ARQ4025 | C25: GESTIÓN URBANA | D25: 2 | E25: 202330 | F25: 20 | G25: 20 | H25: 0 | I25: 0 | J25: 0 | K25: =+BD_DEP[[#This Row],[totalp]]/BD_DEP[[#This Row],[Mat Inicial]] -> 0 | L25: =+BD_DEP[[#This Row],[totalr]]/BD_DEP[[#This Row],[Mat Inicial]] -> 0 | M25: =+BD_DEP[[#This Row],[repi]]/BD_DEP[[#This Row],[Mat Inicial]] -> 0 | N25: 47 | O25: Dpto. Arquitectura y Urbanismo | P25: 7633544 | Q25: Carpintero Charris Luis | R25: CA | S25: PR
A26: 1337 | B26: ARQ4050 | C26: HABITAT,CLIMA Y MEDIO AMBIENTE | D26: 1 | E26: 202330 | F26: 39 | G26: 33 | H26: 3 | I26: 6 | J26: 9 | K26: =+BD_DEP[[#This Row],[totalp]]/BD_DEP[[#This Row],[Mat Inicial]] -> 0.07692307692 | L26: =+BD_DEP[[#This Row],[totalr]]/BD_DEP[[#This Row],[Mat Inicial]] -> 0.1538461538 | M26: =+BD_DEP[[#This Row],[repi]]/BD_DEP[[#This Row],[Mat Inicial]] -> 0.2307692308 | N26: 47 | O26: Dpto. Arquitectura y Urbanismo | P26: 1140867055 | Q26: Guzman Gordon Maria | R26: CA | S26: PR
A27: 2019 | B27: HIS4115 | C27: HIST ARQUITECTURA:ANTIG Y CLAS | D27: 1 | E27: 202330 | F27: 24 | G27: 23 | H27: 0 | I27: 1 | J27: 1 | K27: =+BD_DEP[[#This Row],[totalp]]/BD_DEP[[#This Row],[Mat Inicial]] -> 0 | L27: =+BD_DEP[[#This Row],[totalr]]/BD_DEP[[#This Row],[Mat Inicial]] -> 0.04166666667 | M27: =+BD_DEP[[#This Row],[repi]]/BD_DEP[[#This Row],[Mat Inicial]] -> 0.04166666667 | N27: 47 | O27: Dpto. Arquitectura y Urbanismo | P27: 52030306 | Q27: Delgado Osorio Claudia | R27: CA | S27: PR
A28: 2020 | B28: HIS4115 | C28: HIST ARQUITECTURA:ANTIG Y CLAS | D28: 2 | E28: 202330 | F28: 25 | G28: 25 | H28: 0 | I28: 0 | J28: 0 | K28: =+BD_DEP[[#This Row],[totalp]]/BD_DEP[[#This Row],[Mat Inicial]] -> 0 | L28: =+BD_DEP[[#This Row],[totalr]]/BD_DEP[[#This Row],[Mat Inicial]] -> 0 | M28: =+BD_DEP[[#This Row],[repi]]/BD_DEP[[#This Row],[Mat Inicial]] -> 0 | N28: 47 | O28: Dpto. Arquitectura y Urbanismo | P28: 52030306 | Q28: Delgado Osorio Claudia | R28: CA | S28: PR
A29: 1306 | B29: ARQ4013 | C29: HIST Y TEORIA LATINOAMERICANA | D29: 2 | E29: 202330 | F29: 38 | G29: 34 | H29: 0 | I29: 4 | J29: 4 | K29: =+BD_DEP[[#This Row],[totalp]]/BD_DEP[[#This Row],[Mat Inicial]] -> 0 | L29: =+BD_DEP[[#This Row],[totalr]]/BD_DEP[[#This Row],[Mat Inicial]] -> 0.1052631579 | M29: =+BD_DEP[[#This Row],[repi]]/BD_DEP[[#This Row],[Mat Inicial]] -> 0.1052631579 | N29: 47 | O29: Dpto. Arquitectura y Urbanismo | P29: 1065625952 | Q29: AMAYA SAADE MARIA | R29: CA | S29: PR
A30: 2017 | B30: HIS4002 | C30: HISTORIA INTRO ARQ Y URBANISMO | D30: 1 | E30: 202330 | F30: 21 | G30: 21 | H30: 0 | I30: 0 | J30: 0 | K30: =+BD_DEP[[#This Row],[totalp]]/BD_DEP[[#This Row],[Mat Inicial]] -> 0 | L30: =+BD_DEP[[#This Row],[totalr]]/BD_DEP[[#This Row],[Mat Inicial]] -> 0 | M30: =+BD_DEP[[#This Row],[repi]]/BD_DEP[[#This Row],[Mat Inicial]] -> 0 | N30: 47 | O30: Dpto. Arquitectura y Urbanismo | P30: 1140824723 | Q30: Mestre Hermines Juan | R30: CA | S30: PR
A31: 2018 | B31: HIS4002 | C31: HISTORIA INTRO ARQ Y URBANISMO | D31: 2 | E31: 202330 | F31: 20 | G31: 20 | H31: 1 | I31: 0 | J31: 1 | K31: =+BD_DEP[[#This Row],[totalp]]/BD_DEP[[#This Row],[Mat Inicial]] -> 0.05 | L31: =+BD_DEP[[#This Row],[totalr]]/BD_DEP[[#This Row],[Mat Inicial]] -> 0 | M31: =+BD_DEP[[#This Row],[repi]]/BD_DEP[[#This Row],[Mat Inicial]] -> 0.05 | N31: 47 | O31: Dpto. Arquitectura y Urbanismo | P31: 1140847476 | Q31: Gomez Abdala Ana | R31: CA | S31: PR
A32: 1309 | B32: ARQ4016 | C32: HISTORIA Y TEORIA MOV MODERNO | D32: 1 | E32: 202330 | F32: 20 | G32: 20 | H32: 0 | I32: 0 | J32: 0 | K32: =+BD_DEP[[#This Row],[totalp]]/BD_DEP[[#This Row],[Mat Inicial]] -> 0 | L32: =+BD_DEP[[#This Row],[totalr]]/BD_DEP[[#This Row],[Mat Inicial]] -> 0 | M32: =+BD_DEP[[#This Row],[repi]]/BD_DEP[[#This Row],[Mat Inicial]] -> 0 | N32: 47 | O32: Dpto. Arquitectura y Urbanismo | P32: 1032365671 | Q32: GONZALEZ RUIZ ANA | R32: CA | S32: PR
A33: 1110 | B33: ARQ4017 | C33: HISTORIA Y TEORIA PENSAM CLASI | D33: 2 | E33: 202330 | F33: 30 | G33: 29 | H33: 0 | I33: 1 | J33: 1 | K33: =+BD_DEP[[#This Row],[totalp]]/BD_DEP[[#This Row],[Mat Inicial]] -> 0 | L33: =+BD_DEP[[#This Row],[totalr]]/BD_DEP[[#This Row],[Mat Inicial]] -> 0.03333333333 | M33: =+BD_DEP[[#This Row],[repi]]/BD_DEP[[#This Row],[Mat Inicial]] -> 0.03333333333 | N33: 47 | O33: Dpto. Arquitectura y Urbanismo | P33: 1032365671 | Q33: GONZALEZ RUIZ ANA | R33: CA | S33: PR
A34: 1112 | B34: ARQ4027 | C34: PRINCIPIOS DE CONSTRUCCION | D34: 2 | E34: 202330 | F34: 39 | G34: 37 | H34: 0 | I34: 2 | J34: 2 | K34: =+BD_DEP[[#This Row],[totalp]]/BD_DEP[[#This Row],[Mat Inicial]] -> 0 | L34: =+BD_DEP[[#This Row],[totalr]]/BD_DEP[[#This Row],[Mat Inicial]] -> 0.05128205128 | M34: =+BD_DEP[[#This Row],[repi]]/BD_DEP[[#This Row],[Mat Inicial]] -> 0.05128205128 | N34: 47 | O34: Dpto. Arquitectura y Urbanismo | P34: 32692831 | Q34: Mora Ortiz Catalina | R34: CA | S34: PR
A35: 1341 | B35: ARQ4070 | C35: PROYECTO DE GRADO | D35: 3 | E35: 202330 | F35: 2 | G35: 2 | H35: 1 | I35: 0 | J35: 1 | K35: =+BD_DEP[[#This Row],[totalp]]/BD_DEP[[#This Row],[Mat Inicial]] -> 0.5 | L35: =+BD_DEP[[#This Row],[totalr]]/BD_DEP[[#This Row],[Mat Inicial]] -> 0 | M35: =+BD_DEP[[#This Row],[repi]]/BD_DEP[[#This Row],[Mat Inicial]] -> 0.5 | N35: 47 | O35: Dpto. Arquitectura y Urbanismo | P35: 1020731004 | Q35: CUBEROS ACEVEDO JUAN | R35: CA | S35: PR
A36: 1331 | B36: ARQ4028 | C36: PROYECTO DE GRADO I | D36: 4 | E36: 202330 | F36: 14 | G36: 14 | H36: 1 | I36: 0 | J36: 1 | K36: =+BD_DEP[[#This Row],[totalp]]/BD_DEP[[#This Row],[Mat Inicial]] -> 0.07142857143 | L36: =+BD_DEP[[#This Row],[totalr]]/BD_DEP[[#This Row],[Mat Inicial]] -> 0 | M36: =+BD_DEP[[#This Row],[repi]]/BD_DEP[[#This Row],[Mat Inicial]] -> 0.07142857143 | N36: 47 | O36: Dpto. Arquitectura y Urbanismo | P36: 77170941 | Q36: Olmos Hernandez Antonio | R36: CA | S36: PR
A37: 1329 | B37: ARQ4028 | C37: PROYECTO DE GRADO I | D37: 2 | E37: 202330 | F37: 15 | G37: 13 | H37: 0 | I37: 2 | J37: 2 | K37: =+BD_DEP[[#This Row],[totalp]]/BD_DEP[[#This Row],[Mat Inicial]] -> 0 | L37: =+BD_DEP[[#This Row],[totalr]]/BD_DEP[[#This Row],[Mat Inicial]] -> 0.1333333333 | M37: =+BD_DEP[[#This Row],[repi]]/BD_DEP[[#This Row],[Mat Inicial]] -> 0.1333333333 | N37: 47 | O37: Dpto. Arquitectura y Urbanismo | P37: 85448108 | Q37: Garces De Vivo Juan | R37: CA | S37: PR
A38: 1330 | B38: ARQ4028 | C38: PROYECTO DE GRADO I | D38: 3 | E38: 202330 | F38: 14 | G38: 14 | H38: 0 | I38: 0 | J38: 0 | K38: =+BD_DEP[[#This Row],[totalp]]/BD_DEP[[#This Row],[Mat Inicial]] -> 0 | L38: =+BD_DEP[[#This Row],[totalr]]/BD_DEP[[#This Row],[Mat Inicial]] -> 0 | M38: =+BD_DEP[[#This Row],[repi]]/BD_DEP[[#This Row],[Mat Inicial]] -> 0 | N38: 47 | O38: Dpto. Arquitectura y Urbanismo | P38: 1102823024 | Q38: Chavez Martinez Sander | R38: CA | S38: PR
A39: 1305 | B39: ARQ4012 | C39: PROYECTO DE GRADO II | D39: 3 | E39: 202330 | F39: 15 | G39: 14 | H39: 1 | I39: 1 | J39: 2 | K39: =+BD_DEP[[#This Row],[totalp]]/BD_DEP[[#This Row],[Mat Inicial]] -> 0.06666666667 | L39: =+BD_DEP[[#This Row],[totalr]]/BD_DEP[[#This Row],[Mat Inicial]] -> 0.06666666667 | M39: =+BD_DEP[[#This Row],[repi]]/BD_DEP[[#This Row],[Mat Inicial]] -> 0.1333333333 | N39: 47 | O39: Dpto. Arquitectura y Urbanismo | P39: 1020731004 | Q39: CUBEROS ACEVEDO JUAN | R39: CA | S39: PR
A40: 2058 | B40: HUM0280 | C40: SIMBOLOS Y SIGNIFIC ARQUITEC | D40: 2 | E40: 202330 | F40: 13 | G40: 11 | H40: 0 | I40: 2 | J40: 2 | K40: =+BD_DEP[[#This Row],[totalp]]/BD_DEP[[#This Row],[Mat Inicial]] -> 0 | L40: =+BD_DEP[[#This Row],[totalr]]/BD_DEP[[#This Row],[Mat Inicial]] -> 0.1538461538 | M40: =+BD_DEP[[#This Row],[repi]]/BD_DEP[[#This Row],[Mat Inicial]] -> 0.1538461538 | N40: 47 | O40: Dpto. Arquitectura y Urbanismo | P40: 9143154 | Q40: DURAN POLO JOSE | R40: CA | S40: PR
A41: 1332 | B41: ARQ4035 | C41: SISTEMAS ESTRUCTURALES | D41: 1 | E41: 202330 | F41: 26 | G41: 25 | H41: 0 | I41: 1 | J41: 1 | K41: =+BD_DEP[[#This Row],[totalp]]/BD_DEP[[#This Row],[Mat Inicial]] -> 0 | L41: =+BD_DEP[[#This Row],[totalr]]/BD_DEP[[#This Row],[Mat Inicial]] -> 0.03846153846 | M41: =+BD_DEP[[#This Row],[repi]]/BD_DEP[[#This Row],[Mat Inicial]] -> 0.03846153846 | N41: 47 | O41: Dpto. Arquitectura y Urbanismo | P41: 79955640 | Q41: RODRIGUEZ PEÑARANDA OSCAR | R41: CA | S41: PR
A42: 1333 | B42: ARQ4035 | C42: SISTEMAS ESTRUCTURALES | D42: 2 | E42: 202330 | F42: 31 | G42: 28 | H42: 0 | I42: 3 | J42: 3 | K42: =+BD_DEP[[#This Row],[totalp]]/BD_DEP[[#This Row],[Mat Inicial]] -> 0 | L42: =+BD_DEP[[#This Row],[totalr]]/BD_DEP[[#This Row],[Mat Inicial]] -> 0.09677419355 | M42: =+BD_DEP[[#This Row],[repi]]/BD_DEP[[#This Row],[Mat Inicial]] -> 0.09677419355 | N42: 47 | O42: Dpto. Arquitectura y Urbanismo | P42: 1129535971 | Q42: Gonzalez Arias Alcides | R42: CA | S42: PR
A43: 1114 | B43: ARQ4095 | C43: T.ARQUITEC II: HAB Y VIVIENDA | D43: 5 | E43: 202330 | F43: 13 | G43: 12 | H43: 0 | I43: 1 | J43: 1 | K43: =+BD_DEP[[#This Row],[totalp]]/BD_DEP[[#This Row],[Mat Inicial]] -> 0 | L43: =+BD_DEP[[#This Row],[totalr]]/BD_DEP[[#This Row],[Mat Inicial]] -> 0.07692307692 | M43: =+BD_DEP[[#This Row],[repi]]/BD_DEP[[#This Row],[Mat Inicial]] -> 0.07692307692 | N43: 47 | O43: Dpto. Arquitectura y Urbanismo | P43: 22580964 | Q43: Rueda Erazo Adriana | R43: CA | S43: PR
A44: 1352 | B44: ARQ4095 | C44: T.ARQUITEC II: HAB Y VIVIENDA | D44: 2 | E44: 202330 | F44: 13 | G44: 13 | H44: 0 | I44: 0 | J44: 0 | K44: =+BD_DEP[[#This Row],[totalp]]/BD_DEP[[#This Row],[Mat Inicial]] -> 0 | L44: =+BD_DEP[[#This Row],[totalr]]/BD_DEP[[#This Row],[Mat Inicial]] -> 0 | M44: =+BD_DEP[[#This Row],[repi]]/BD_DEP[[#This Row],[Mat Inicial]] -> 0 | N44: 47 | O44: Dpto. Arquitectura y Urbanismo | P44: 32692831 | Q44: Mora Ortiz Catalina | R44: CA | S44: PR
A45: 1353 | B45: ARQ4095 | C45: T.ARQUITEC II: HAB Y VIVIENDA | D45: 3 | E45: 202330 | F45: 13 | G45: 13 | H45: 0 | I45: 0 | J45: 0 | K45: =+BD_DEP[[#This Row],[totalp]]/BD_DEP[[#This Row],[Mat Inicial]] -> 0 | L45: =+BD_DEP[[#This Row],[totalr]]/BD_DEP[[#This Row],[Mat Inicial]] -> 0 | M45: =+BD_DEP[[#This Row],[repi]]/BD_DEP[[#This Row],[Mat Inicial]] -> 0 | N45: 47 | O45: Dpto. Arquitectura y Urbanismo | P45: 1065625952 | Q45: AMAYA SAADE MARIA | R45: CA | S45: PR
A46: 1349 | B46: ARQ4090 | C46: T.ARQUITEC III: EQUIPAMIENTOS | D46: 1 | E46: 202330 | F46: 15 | G46: 14 | H46: 0 | I46: 1 | J46: 1 | K46: =+BD_DEP[[#This Row],[totalp]]/BD_DEP[[#This Row],[Mat Inicial]] -> 0 | L46: =+BD_DEP[[#This Row],[totalr]]/BD_DEP[[#This Row],[Mat Inicial]] -> 0.06666666667 | M46: =+BD_DEP[[#This Row],[repi]]/BD_DEP[[#This Row],[Mat Inicial]] -> 0.06666666667 | N46: 47 | O46: Dpto. Arquitectura y Urbanismo | P46: 22580964 | Q46: Rueda Erazo Adriana | R46: CA | S46: PR
A47: 1355 | B47: ARQ4100 | C47: T.ARQUITECTURA I: ARQ BASICAS | D47: 1 | E47: 202330 | F47: 16 | G47: 14 | H47: 0 | I47: 2 | J47: 2 | K47: =+BD_DEP[[#This Row],[totalp]]/BD_DEP[[#This Row],[Mat Inicial]] -> 0 | L47: =+BD_DEP[[#This Row],[totalr]]/BD_DEP[[#This Row],[Mat Inicial]] -> 0.125 | M47: =+BD_DEP[[#This Row],[repi]]/BD_DEP[[#This Row],[Mat Inicial]] -> 0.125 | N47: 47 | O47: Dpto. Arquitectura y Urbanismo | P47: 1140867386 | Q47: Velez Cheu Myrian | R47: CA | S47: PR
A48: 4216 | B48: ARQ4125 | C48: TALLER BASICO 1:FUND DEL DISEÑ | D48: 53 | E48: 202330 | F48: 14 | G48: 14 | H48: 0 | I48: 0 | J48: 0 | K48: =+BD_DEP[[#This Row],[totalp]]/BD_DEP[[#This Row],[Mat Inicial]] -> 0 | L48: =+BD_DEP[[#This Row],[totalr]]/BD_DEP[[#This Row],[Mat Inicial]] -> 0 | M48: =+BD_DEP[[#This Row],[repi]]/BD_DEP[[#This Row],[Mat Inicial]] -> 0 | N48: 47 | O48: Dpto. Arquitectura y Urbanismo | P48: 85448108 | Q48: Garces De Vivo Juan | R48: CA | S48: PR
A49: 4215 | B49: ARQ4125 | C49: TALLER BASICO 1:FUND DEL DISEÑ | D49: 52 | E49: 202330 | F49: 15 | G49: 14 | H49: 0 | I49: 1 | J49: 1 | K49: =+BD_DEP[[#This Row],[totalp]]/BD_DEP[[#This Row],[Mat Inicial]] -> 0 | L49: =+BD_DEP[[#This Row],[totalr]]/BD_DEP[[#This Row],[Mat Inicial]] -> 0.06666666667 | M49: =+BD_DEP[[#This Row],[repi]]/BD_DEP[[#This Row],[Mat Inicial]] -> 0.06666666667 | N49: 47 | O49: Dpto. Arquitectura y Urbanismo | P49: 1065625952 | Q49: AMAYA SAADE MARIA | R49: CA | S49: PR
A50: 1358 | B50: ARQ4120 | C50: TALLER BASICOII: FUND DEL PROY | D50: 2 | E50: 202330 | F50: 17 | G50: 16 | H50: 2 | I50: 1 | J50: 3 | K50: =+BD_DEP[[#This Row],[totalp]]/BD_DEP[[#This Row],[Mat Inicial]] -> 0.1176470588 | L50: =+BD_DEP[[#This Row],[totalr]]/BD_DEP[[#This Row],[Mat Inicial]] -> 0.05882352941 | M50: =+BD_DEP[[#This Row],[repi]]/BD_DEP[[#This Row],[Mat Inicial]] -> 0.1764705882 | N50: 47 | O50: Dpto. Arquitectura y Urbanismo | P50: 1140867055 | Q50: Guzman Gordon Maria | R50: CA | S50: PR
A51: 1357 | B51: ARQ4120 | C51: TALLER BASICOII: FUND DEL PROY | D51: 1 | E51: 202330 | F51: 15 | G51: 14 | H51: 4 | I51: 1 | J51: 5 | K51: =+BD_DEP[[#This Row],[totalp]]/BD_DEP[[#This Row],[Mat Inicial]] -> 0.2666666667 | L51: =+BD_DEP[[#This Row],[totalr]]/BD_DEP[[#This Row],[Mat Inicial]] -> 0.06666666667 | M51: =+BD_DEP[[#This Row],[repi]]/BD_DEP[[#This Row],[Mat Inicial]] -> 0.3333333333 | N51: 47 | O51: Dpto. Arquitectura y Urbanismo | P51: 1140867386 | Q51: Velez Cheu Myrian | R51: CA | S51: PR
A52: 1345 | B52: ARQ4080 | C52: TALLER CIUDAD II: SOST URBANA | D52: 2 | E52: 202330 | F52: 11 | G52: 10 | H52: 0 | I52: 1 | J52: 1 | K52: =+BD_DEP[[#This Row],[totalp]]/BD_DEP[[#This Row],[Mat Inicial]] -> 0 | L52: =+BD_DEP[[#This Row],[totalr]]/BD_DEP[[#This Row],[Mat Inicial]] -> 0.09090909091 | M52: =+BD_DEP[[#This Row],[repi]]/BD_DEP[[#This Row],[Mat Inicial]] -> 0.09090909091 | N52: 47 | O52: Dpto. Arquitectura y Urbanismo | P52: 72291438 | Q52: Chain Rodriguez Rodrigo | R52: CA | S52: PR
A53: 4212 | B53: ARQ4071 | C53: TALLER DE EXPRESION I | D53: 51 | E53: 202330 | F53: 21 | G53: 20 | H53: 0 | I53: 1 | J53: 1 | K53: =+BD_DEP[[#This Row],[totalp]]/BD_DEP[[#This Row],[Mat Inicial]] -> 0 | L53: =+BD_DEP[[#This Row],[totalr]]/BD_DEP[[#This Row],[Mat Inicial]] -> 0.04761904762 | M53: =+BD_DEP[[#This Row],[repi]]/BD_DEP[[#This Row],[Mat Inicial]] -> 0.04761904762 | N53: 47 | O53: Dpto. Arquitectura y Urbanismo | P53: 1140831707 | Q53: Garavito Garcia Karolay | R53: CA | S53: PR
A54: 4213 | B54: ARQ4071 | C54: TALLER DE EXPRESION I | D54: 52 | E54: 202330 | F54: 20 | G54: 18 | H54: 1 | I54: 2 | J54: 3 | K54: =+BD_DEP[[#This Row],[totalp]]/BD_DEP[[#This Row],[Mat Inicial]] -> 0.05 | L54: =+BD_DEP[[#This Row],[totalr]]/BD_DEP[[#This Row],[Mat Inicial]] -> 0.1 | M54: =+BD_DEP[[#This Row],[repi]]/BD_DEP[[#This Row],[Mat Inicial]] -> 0.15 | N54: 47 | O54: Dpto. Arquitectura y Urbanismo | P54: 1140877112 | Q54: PEDROSA ABDALA VERONICA | R54: CA | S54: PR
A55: 1342 | B55: ARQ4072 | C55: TALLER DE EXPRESION II | D55: 1 | E55: 202330 | F55: 20 | G55: 20 | H55: 0 | I55: 0 | J55: 0 | K55: =+BD_DEP[[#This Row],[totalp]]/BD_DEP[[#This Row],[Mat Inicial]] -> 0 | L55: =+BD_DEP[[#This Row],[totalr]]/BD_DEP[[#This Row],[Mat Inicial]] -> 0 | M55: =+BD_DEP[[#This Row],[repi]]/BD_DEP[[#This Row],[Mat Inicial]] -> 0 | N55: 47 | O55: Dpto. Arquitectura y Urbanismo | P55: 32692831 | Q55: Mora Ortiz Catalina | R55: CA | S55: PR
A56: 1343 | B56: ARQ4072 | C56: TALLER DE EXPRESION II | D56: 2 | E56: 202330 | F56: 22 | G56: 19 | H56: 4 | I56: 3 | J56: 7 | K56: =+BD_DEP[[#This Row],[totalp]]/BD_DEP[[#This Row],[Mat Inicial]] -> 0.1818181818 | L56: =+BD_DEP[[#This Row],[totalr]]/BD_DEP[[#This Row],[Mat Inicial]] -> 0.1363636364 | M56: =+BD_DEP[[#This Row],[repi]]/BD_DEP[[#This Row],[Mat Inicial]] -> 0.3181818182 | N56: 47 | O56: Dpto. Arquitectura y Urbanismo | P56: 1140867055 | Q56: Guzman Gordon Maria | R56: CA | S56: PR
A57: 1311 | B57: ARQ4018 | C57: TEC GRAFICAS I REPRESENTACION | D57: 1 | E57: 202330 | F57: 19 | G57: 19 | H57: 1 | I57: 0 | J57: 1 | K57: =+BD_DEP[[#This Row],[totalp]]/BD_DEP[[#This Row],[Mat Inicial]] -> 0.05263157895 | L57: =+BD_DEP[[#This Row],[totalr]]/BD_DEP[[#This Row],[Mat Inicial]] -> 0 | M57: =+BD_DEP[[#This Row],[repi]]/BD_DEP[[#This Row],[Mat Inicial]] -> 0.05263157895 | N57: 47 | O57: Dpto. Arquitectura y Urbanismo | P57: 8713463 | Q57: Holguin Calonge Federico | R57: CA | S57: PR
A58: 1312 | B58: ARQ4018 | C58: TEC GRAFICAS I REPRESENTACION | D58: 2 | E58: 202330 | F58: 13 | G58: 10 | H58: 0 | I58: 3 | J58: 3 | K58: =+BD_DEP[[#This Row],[totalp]]/BD_DEP[[#This Row],[Mat Inicial]] -> 0 | L58: =+BD_DEP[[#This Row],[totalr]]/BD_DEP[[#This Row],[Mat Inicial]] -> 0.2307692308 | M58: =+BD_DEP[[#This Row],[repi]]/BD_DEP[[#This Row],[Mat Inicial]] -> 0.2307692308 | N58: 47 | O58: Dpto. Arquitectura y Urbanismo | P58: 10025872 | Q58: Tapias Martinez Juan | R58: CA | S58: PR
A59: 1314 | B59: ARQ4019 | C59: TEC GRAFICAS II MODELACION | D59: 2 | E59: 202330 | F59: 19 | G59: 18 | H59: 1 | I59: 1 | J59: 2 | K59: =+BD_DEP[[#This Row],[totalp]]/BD_DEP[[#This Row],[Mat Inicial]] -> 0.05263157895 | L59: =+BD_DEP[[#This Row],[totalr]]/BD_DEP[[#This Row],[Mat Inicial]] -> 0.05263157895 | M59: =+BD_DEP[[#This Row],[repi]]/BD_DEP[[#This Row],[Mat Inicial]] -> 0.1052631579 | N59: 47 | O59: Dpto. Arquitectura y Urbanismo | P59: 9021880 | Q59: Hurtado Morales Jim | R59: CA | S59: PR
A60: 1313 | B60: ARQ4019 | C60: TEC GRAFICAS II MODELACION | D60: 1 | E60: 202330 | F60: 21 | G60: 20 | H60: 1 | I60: 1 | J60: 2 | K60: =+BD_DEP[[#This Row],[totalp]]/BD_DEP[[#This Row],[Mat Inicial]] -> 0.04761904762 | L60: =+BD_DEP[[#This Row],[totalr]]/BD_DEP[[#This Row],[Mat Inicial]] -> 0.04761904762 | M60: =+BD_DEP[[#This Row],[repi]]/BD_DEP[[#This Row],[Mat Inicial]] -> 0.09523809524 | N60: 47 | O60: Dpto. Arquitectura y Urbanismo | P60: 1140818248 | Q60: ALFARO DIAZ JESUS | R60: CA | S60: PR
A61: 1315 | B61: ARQ4019 | C61: TEC GRAFICAS II MODELACION | D61: 3 | E61: 202330 | F61: 22 | G61: 18 | H61: 1 | I61: 4 | J61: 5 | K61: =+BD_DEP[[#This Row],[totalp]]/BD_DEP[[#This Row],[Mat Inicial]] -> 0.04545454545 | L61: =+BD_DEP[[#This Row],[totalr]]/BD_DEP[[#This Row],[Mat Inicial]] -> 0.1818181818 | M61: =+BD_DEP[[#This Row],[repi]]/BD_DEP[[#This Row],[Mat Inicial]] -> 0.2272727273 | N61: 47 | O61: Dpto. Arquitectura y Urbanismo | P61: 1140871625 | Q61: Arenas Niebles Sebastian | R61: CA | S61: PR
A62: 1317 | B62: ARQ4021 | C62: TEC GRAFICAS III COMUNICACIÓN | D62: 2 | E62: 202330 | F62: 13 | G62: 12 | H62: 1 | I62: 1 | J62: 2 | K62: =+BD_DEP[[#This Row],[totalp]]/BD_DEP[[#This Row],[Mat Inicial]] -> 0.07692307692 | L62: =+BD_DEP[[#This Row],[totalr]]/BD_DEP[[#This Row],[Mat Inicial]] -> 0.07692307692 | M62: =+BD_DEP[[#This Row],[repi]]/BD_DEP[[#This Row],[Mat Inicial]] -> 0.1538461538 | N62: 47 | O62: Dpto. Arquitectura y Urbanismo | P62: 1140871625 | Q62: Arenas Niebles Sebastian | R62: CA | S62: PR
A63: 1318 | B63: ARQ4022 | C63: TÉC GRAFICAS IV DOCUMENTACIÓN | D63: 1 | E63: 202330 | F63: 21 | G63: 18 | H63: 5 | I63: 3 | J63: 8 | K63: =+BD_DEP[[#This Row],[totalp]]/BD_DEP[[#This Row],[Mat Inicial]] -> 0.2380952381 | L63: =+BD_DEP[[#This Row],[totalr]]/BD_DEP[[#This Row],[Mat Inicial]] -> 0.1428571429 | M63: =+BD_DEP[[#This Row],[repi]]/BD_DEP[[#This Row],[Mat Inicial]] -> 0.380952381 | N63: 47 | O63: Dpto. Arquitectura y Urbanismo | P63: 1140867386 | Q63: Velez Cheu Myrian | R63: CA | S63: PR
A64: 1319 | B64: ARQ4022 | C64: TÉC GRAFICAS IV DOCUMENTACIÓN | D64: 2 | E64: 202330 | F64: 19 | G64: 18 | H64: 0 | I64: 1 | J64: 1 | K64: =+BD_DEP[[#This Row],[totalp]]/BD_DEP[[#This Row],[Mat Inicial]] -> 0 | L64: =+BD_DEP[[#This Row],[totalr]]/BD_DEP[[#This Row],[Mat Inicial]] -> 0.05263157895 | M64: =+BD_DEP[[#This Row],[repi]]/BD_DEP[[#This Row],[Mat Inicial]] -> 0.05263157895 | N64: 47 | O64: Dpto. Arquitectura y Urbanismo | P64: 1140867386 | Q64: Velez Cheu Myrian | R64: CA | S64: PR
A65: 1320 | B65: ARQ4022 | C65: TÉC GRAFICAS IV DOCUMENTACIÓN | D65: 3 | E65: 202330 | F65: 21 | G65: 14 | H65: 1 | I65: 7 | J65: 8 | K65: =+BD_DEP[[#This Row],[totalp]]/BD_DEP[[#This Row],[Mat Inicial]] -> 0.04761904762 | L65: =+BD_DEP[[#This Row],[totalr]]/BD_DEP[[#This Row],[Mat Inicial]] -> 0.3333333333 | M65: =+BD_DEP[[#This Row],[repi]]/BD_DEP[[#This Row],[Mat Inicial]] -> 0.380952381 | N65: 47 | O65: Dpto. Arquitectura y Urbanismo | P65: 1140868484 | Q65: Ortiz Hernandez Maria | R65: CA | S65: PR
A66: 1490 | B66: CMN7240 | C66: ANALISIS CINEMATOGRAFICO | D66: 2 | E66: 202330 | F66: 28 | G66: 26 | H66: 0 | I66: 2 | J66: 2 | K66: =+BD_DEP[[#This Row],[totalp]]/BD_DEP[[#This Row],[Mat Inicial]] -> 0 | L66: =+BD_DEP[[#This Row],[totalr]]/BD_DEP[[#This Row],[Mat Inicial]] -> 0.07142857143 | M66: =+BD_DEP[[#This Row],[repi]]/BD_DEP[[#This Row],[Mat Inicial]] -> 0.07142857143 | N66: 40 | O66: Dpto. Comunicación Social | P66: 72311006 | Q66: Osman Florez Juan | R66: TC | S66: PR
A67: 1500 | B67: CMN7530 | C67: CINE E HISTORIA | D67: 1 | E67: 202330 | F67: 29 | G67: 29 | H67: 2 | I67: 0 | J67: 2 | K67: =+BD_DEP[[#This Row],[totalp]]/BD_DEP[[#This Row],[Mat Inicial]] -> 0.06896551724 | L67: =+BD_DEP[[#This Row],[totalr]]/BD_DEP[[#This Row],[Mat Inicial]] -> 0 | M67: =+BD_DEP[[#This Row],[repi]]/BD_DEP[[#This Row],[Mat Inicial]] -> 0.06896551724 | N67: 40 | O67: Dpto. Comunicación Social | P67: 72311006 | Q67: Osman Florez Juan | R67: TC | S67: PR
A68: 1507 | B68: CMN9270 | C68: COMUNICACIÓN CORPORATIVA | D68: 1 | E68: 202330 | F68: 37 | G68: 37 | H68: 0 | I68: 0 | J68: 0 | K68: =+BD_DEP[[#This Row],[totalp]]/BD_DEP[[#This Row],[Mat Inicial]] -> 0 | L68: =+BD_DEP[[#This Row],[totalr]]/BD_DEP[[#This Row],[Mat Inicial]] -> 0 | M68: =+BD_DEP[[#This Row],[repi]]/BD_DEP[[#This Row],[Mat Inicial]] -> 0 | N68: 40 | O68: Dpto. Comunicación Social | P68: 22477800 | Q68: Peña Escobar Yenny | R68: TC | S68: PR
A69: 1509 | B69: CMN9365 | C69: COMUNICACIÓN DE MARKETING | D69: 1 | E69: 202330 | F69: 11 | G69: 10 | H69: 0 | I69: 1 | J69: 1 | K69: =+BD_DEP[[#This Row],[totalp]]/BD_DEP[[#This Row],[Mat Inicial]] -> 0 | L69: =+BD_DEP[[#This Row],[totalr]]/BD_DEP[[#This Row],[Mat Inicial]] -> 0.09090909091 | M69: =+BD_DEP[[#This Row],[repi]]/BD_DEP[[#This Row],[Mat Inicial]] -> 0.09090909091 | N69: 40 | O69: Dpto. Comunicación Social | P69: 80414869 | Q69: Llano Aristizabal Sergio | R69: TC | S69: PR
A70: 1487 | B70: CMN7190 | C70: COMUNICACION Y DESARROLLO | D70: 1 | E70: 202330 | F70: 19 | G70: 19 | H70: 0 | I70: 0 | J70: 0 | K70: =+BD_DEP[[#This Row],[totalp]]/BD_DEP[[#This Row],[Mat Inicial]] -> 0 | L70: =+BD_DEP[[#This Row],[totalr]]/BD_DEP[[#This Row],[Mat Inicial]] -> 0 | M70: =+BD_DEP[[#This Row],[repi]]/BD_DEP[[#This Row],[Mat Inicial]] -> 0 | N70: 40 | O70: Dpto. Comunicación Social | P70: 71779693 | Q70: Perez Quintero Camilo | R70: TC | S70: PR
A71: 1488 | B71: CMN7190 | C71: COMUNICACION Y DESARROLLO | D71: 2 | E71: 202330 | F71: 19 | G71: 19 | H71: 0 | I71: 0 | J71: 0 | K71: =+BD_DEP[[#This Row],[totalp]]/BD_DEP[[#This Row],[Mat Inicial]] -> 0 | L71: =+BD_DEP[[#This Row],[totalr]]/BD_DEP[[#This Row],[Mat Inicial]] -> 0 | M71: =+BD_DEP[[#This Row],[repi]]/BD_DEP[[#This Row],[Mat Inicial]] -> 0 | N71: 40 | O71: Dpto. Comunicación Social | P71: 71779693 | Q71: Perez Quintero Camilo | R71: TC | S71: PR
A72: 1480 | B72: CMN6051 | C72: COMUNICACION Y POLITICA | D72: 1 | E72: 202330 | F72: 37 | G72: 36 | H72: 0 | I72: 1 | J72: 1 | K72: =+BD_DEP[[#This Row],[totalp]]/BD_DEP[[#This Row],[Mat Inicial]] -> 0 | L72: =+BD_DEP[[#This Row],[totalr]]/BD_DEP[[#This Row],[Mat Inicial]] -> 0.02702702703 | M72: =+BD_DEP[[#This Row],[repi]]/BD_DEP[[#This Row],[Mat Inicial]] -> 0.02702702703 | N72: 40 | O72: Dpto. Comunicación Social | P72: 8767107 | Q72: Vega Casanova Manuel | R72: TC | S72: PR
A73: 1481 | B73: CMN6051 | C73: COMUNICACION Y POLITICA | D73: 2 | E73: 202330 | F73: 37 | G73: 36 | H73: 0 | I73: 1 | J73: 1 | K73: =+BD_DEP[[#This Row],[totalp]]/BD_DEP[[#This Row],[Mat Inicial]] -> 0 | L73: =+BD_DEP[[#This Row],[totalr]]/BD_DEP[[#This Row],[Mat Inicial]] -> 0.02702702703 | M73: =+BD_DEP[[#This Row],[repi]]/BD_DEP[[#This Row],[Mat Inicial]] -> 0.02702702703 | N73: 40 | O73: Dpto. Comunicación Social | P73: 8767107 | Q73: Vega Casanova Manuel | R73: TC | S73: PR
A74: 1468 | B74: CMN2070 | C74: CULTURA Y COMUNIC ORGANIZAC | D74: 1 | E74: 202330 | F74: 39 | G74: 37 | H74: 0 | I74: 2 | J74: 2 | K74: =+BD_DEP[[#This Row],[totalp]]/BD_DEP[[#This Row],[Mat Inicial]] -> 0 | L74: =+BD_DEP[[#This Row],[totalr]]/BD_DEP[[#This Row],[Mat Inicial]] -> 0.05128205128 | M74: =+BD_DEP[[#This Row],[repi]]/BD_DEP[[#This Row],[Mat Inicial]] -> 0.05128205128 | N74: 40 | O74: Dpto. Comunicación Social | P74: 22580147 | Q74: Villamizar Loaiza Carolina | R74: TC | S74: PR
A75: 1444 | B75: CMN0088 | C75: EMPRENDER PERIODIS | D75: 1 | E75: 202330 | F75: 13 | G75: 13 | H75: 0 | I75: 0 | J75: 0 | K75: =+BD_DEP[[#This Row],[totalp]]/BD_DEP[[#This Row],[Mat Inicial]] -> 0 | L75: =+BD_DEP[[#This Row],[totalr]]/BD_DEP[[#This Row],[Mat Inicial]] -> 0 | M75: =+BD_DEP[[#This Row],[repi]]/BD_DEP[[#This Row],[Mat Inicial]] -> 0 | N75: 40 | O75: Dpto. Comunicación Social | P75: 43877220 | Q75: Muñoz Lalinde Johanna | R75: TC | S75: PR
A76: 1498 | B76: CMN7390 | C76: MEDIOS MASIVOS Y CONFLICTO | D76: 1 | E76: 202330 | F76: 18 | G76: 17 | H76: 0 | I76: 1 | J76: 1 | K76: =+BD_DEP[[#This Row],[totalp]]/BD_DEP[[#This Row],[Mat Inicial]] -> 0 | L76: =+BD_DEP[[#This Row],[totalr]]/BD_DEP[[#This Row],[Mat Inicial]] -> 0.05555555556 | M76: =+BD_DEP[[#This Row],[repi]]/BD_DEP[[#This Row],[Mat Inicial]] -> 0.05555555556 | N76: 40 | O76: Dpto. Comunicación Social | P76: 79144239 | Q76: FERRO CASAS JUAN | R76: TC | S76: PR
A77: 1456 | B77: CMN2010 | C77: PERIODISMO I | D77: 1 | E77: 202330 | F77: 30 | G77: 30 | H77: 0 | I77: 0 | J77: 0 | K77: =+BD_DEP[[#This Row],[totalp]]/BD_DEP[[#This Row],[Mat Inicial]] -> 0 | L77: =+BD_DEP[[#This Row],[totalr]]/BD_DEP[[#This Row],[Mat Inicial]] -> 0 | M77: =+BD_DEP[[#This Row],[repi]]/BD_DEP[[#This Row],[Mat Inicial]] -> 0 | N77: 40 | O77: Dpto. Comunicación Social | P77: 79144239 | Q77: FERRO CASAS JUAN | R77: TC | S77: PR
A78: 1457 | B78: CMN2010 | C78: PERIODISMO I | D78: 2 | E78: 202330 | F78: 27 | G78: 27 | H78: 0 | I78: 0 | J78: 0 | K78: =+BD_DEP[[#This Row],[totalp]]/BD_DEP[[#This Row],[Mat Inicial]] -> 0 | L78: =+BD_DEP[[#This Row],[totalr]]/BD_DEP[[#This Row],[Mat Inicial]] -> 0 | M78: =+BD_DEP[[#This Row],[repi]]/BD_DEP[[#This Row],[Mat Inicial]] -> 0 | N78: 40 | O78: Dpto. Comunicación Social | P78: 79144239 | Q78: FERRO CASAS JUAN | R78: TC | S78: PR
A79: 1458 | B79: CMN2040 | C79: PERIODISMO III | D79: 1 | E79: 202330 | F79: 36 | G79: 36 | H79: 1 | I79: 0 | J79: 1 | K79: =+BD_DEP[[#This Row],[totalp]]/BD_DEP[[#This Row],[Mat Inicial]] -> 0.02777777778 | L79: =+BD_DEP[[#This Row],[totalr]]/BD_DEP[[#This Row],[Mat Inicial]] -> 0 | M79: =+BD_DEP[[#This Row],[repi]]/BD_DEP[[#This Row],[Mat Inicial]] -> 0.02777777778 | N79: 40 | O79: Dpto. Comunicación Social | P79: 43877220 | Q79: Muñoz Lalinde Johanna | R79: TC | S79: PR
A80: 1459 | B80: CMN2040 | C80: PERIODISMO III | D80: 2 | E80: 202330 | F80: 32 | G80: 32 | H80: 0 | I80: 0 | J80: 0 | K80: =+BD_DEP[[#This Row],[totalp]]/BD_DEP[[#This Row],[Mat Inicial]] -> 0 | L80: =+BD_DEP[[#This Row],[totalr]]/BD_DEP[[#This Row],[Mat Inicial]] -> 0 | M80: =+BD_DEP[[#This Row],[repi]]/BD_DEP[[#This Row],[Mat Inicial]] -> 0 | N80: 40 | O80: Dpto. Comunicación Social | P80: 43877220 | Q80: Muñoz Lalinde Johanna | R80: TC | S80: PR
A81: 1466 | B81: CMN2060 | C81: PERIODISMO IV | D81: 1 | E81: 202330 | F81: 16 | G81: 15 | H81: 2 | I81: 1 | J81: 3 | K81: =+BD_DEP[[#This Row],[totalp]]/BD_DEP[[#This Row],[Mat Inicial]] -> 0.125 | L81: =+BD_DEP[[#This Row],[totalr]]/BD_DEP[[#This Row],[Mat Inicial]] -> 0.0625 | M81: =+BD_DEP[[#This Row],[repi]]/BD_DEP[[#This Row],[Mat Inicial]] -> 0.1875 | N81: 40 | O81: Dpto. Comunicación Social | P81: 80779533 | Q81: CORTES MARTINEZ CARLOS | R81: TC | S81: PR
A82: 1467 | B82: CMN2060 | C82: PERIODISMO IV | D82: 2 | E82: 202330 | F82: 23 | G82: 23 | H82: 1 | I82: 0 | J82: 1 | K82: =+BD_DEP[[#This Row],[totalp]]/BD_DEP[[#This Row],[Mat Inicial]] -> 0.04347826087 | L82: =+BD_DEP[[#This Row],[totalr]]/BD_DEP[[#This Row],[Mat Inicial]] -> 0 | M82: =+BD_DEP[[#This Row],[repi]]/BD_DEP[[#This Row],[Mat Inicial]] -> 0.04347826087 | N82: 40 | O82: Dpto. Comunicación Social | P82: 80779533 | Q82: CORTES MARTINEZ CARLOS | R82: TC | S82: PR
A83: 1475 | B83: CMN3090 | C83: PERIODISMO V | D83: 1 | E83: 202330 | F83: 22 | G83: 21 | H83: 0 | I83: 1 | J83: 1 | K83: =+BD_DEP[[#This Row],[totalp]]/BD_DEP[[#This Row],[Mat Inicial]] -> 0 | L83: =+BD_DEP[[#This Row],[totalr]]/BD_DEP[[#This Row],[Mat Inicial]] -> 0.04545454545 | M83: =+BD_DEP[[#This Row],[repi]]/BD_DEP[[#This Row],[Mat Inicial]] -> 0.04545454545 | N83: 40 | O83: Dpto. Comunicación Social | P83: 1140815099 | Q83: Cancino Borbon Andrea | R83: TC | S83: PR
A84: 1476 | B84: CMN3090 | C84: PERIODISMO V | D84: 2 | E84: 202330 | F84: 27 | G84: 27 | H84: 0 | I84: 0 | J84: 0 | K84: =+BD_DEP[[#This Row],[totalp]]/BD_DEP[[#This Row],[Mat Inicial]] -> 0 | L84: =+BD_DEP[[#This Row],[totalr]]/BD_DEP[[#This Row],[Mat Inicial]] -> 0 | M84: =+BD_DEP[[#This Row],[repi]]/BD_DEP[[#This Row],[Mat Inicial]] -> 0 | N84: 40 | O84: Dpto. Comunicación Social | P84: 1140815099 | Q84: Cancino Borbon Andrea | R84: TC | S84: PR
A85: 1477 | B85: CMN3090 | C85: PERIODISMO V | D85: 3 | E85: 202330 | F85: 26 | G85: 26 | H85: 0 | I85: 0 | J85: 0 | K85: =+BD_DEP[[#This Row],[totalp]]/BD_DEP[[#This Row],[Mat Inicial]] -> 0 | L85: =+BD_DEP[[#This Row],[totalr]]/BD_DEP[[#This Row],[Mat Inicial]] -> 0 | M85: =+BD_DEP[[#This Row],[repi]]/BD_DEP[[#This Row],[Mat Inicial]] -> 0 | N85: 40 | O85: Dpto. Comunicación Social | P85: 1140815099 | Q85: Cancino Borbon Andrea | R85: TC | S85: PR
A86: 1495 | B86: CMN7341 | C86: PROY COMUNIC ORGANIZACIONAL | D86: 1 | E86: 202330 | F86: 37 | G86: 36 | H86: 6 | I86: 1 | J86: 7 | K86: =+BD_DEP[[#This Row],[totalp]]/BD_DEP[[#This Row],[Mat Inicial]] -> 0.1621621622 | L86: =+BD_DEP[[#This Row],[totalr]]/BD_DEP[[#This Row],[Mat Inicial]] -> 0.02702702703 | M86: =+BD_DEP[[#This Row],[repi]]/BD_DEP[[#This Row],[Mat Inicial]] -> 0.1891891892 | N86: 40 | O86: Dpto. Comunicación Social | P86: 80414869 | Q86: Llano Aristizabal Sergio | R86: TC | S86: PR
A87: 1496 | B87: CMN7341 | C87: PROY COMUNIC ORGANIZACIONAL | D87: 2 | E87: 202330 | F87: 39 | G87: 39 | H87: 1 | I87: 0 | J87: 1 | K87: =+BD_DEP[[#This Row],[totalp]]/BD_DEP[[#This Row],[Mat Inicial]] -> 0.02564102564 | L87: =+BD_DEP[[#This Row],[totalr]]/BD_DEP[[#This Row],[Mat Inicial]] -> 0 | M87: =+BD_DEP[[#This Row],[repi]]/BD_DEP[[#This Row],[Mat Inicial]] -> 0.02564102564 | N87: 40 | O87: Dpto. Comunicación Social | P87: 80414869 | Q87: Llano Aristizabal Sergio | R87: TC | S87: PR
A88: 4247 | B88: CMN1150 | C88: REALIZACION MEDIO AUDIOVISUAL1 | D88: 51 | E88: 202330 | F88: 12 | G88: 12 | H88: 0 | I88: 0 | J88: 0 | K88: =+BD_DEP[[#This Row],[totalp]]/BD_DEP[[#This Row],[Mat Inicial]] -> 0 | L88: =+BD_DEP[[#This Row],[totalr]]/BD_DEP[[#This Row],[Mat Inicial]] -> 0 | M88: =+BD_DEP[[#This Row],[repi]]/BD_DEP[[#This Row],[Mat Inicial]] -> 0 | N88: 40 | O88: Dpto. Comunicación Social | P88: 1143225466 | Q88: Reyes Redondo Maria | R88: TC | S88: PR
A89: 4248 | B89: CMN1150 | C89: REALIZACION MEDIO AUDIOVISUAL1 | D89: 52 | E89: 202330 | F89: 11 | G89: 11 | H89: 0 | I89: 0 | J89: 0 | K89: =+BD_DEP[[#This Row],[totalp]]/BD_DEP[[#This Row],[Mat Inicial]] -> 0 | L89: =+BD_DEP[[#This Row],[totalr]]/BD_DEP[[#This Row],[Mat Inicial]] -> 0 | M89: =+BD_DEP[[#This Row],[repi]]/BD_DEP[[#This Row],[Mat Inicial]] -> 0 | N89: 40 | O89: Dpto. Comunicación Social | P89: 1143225466 | Q89: Reyes Redondo Maria | R89: TC | S89: PR
A90: 4249 | B90: CMN1150 | C90: REALIZACION MEDIO AUDIOVISUAL1 | D90: 53 | E90: 202330 | F90: 10 | G90: 9 | H90: 0 | I90: 1 | J90: 1 | K90: =+BD_DEP[[#This Row],[totalp]]/BD_DEP[[#This Row],[Mat Inicial]] -> 0 | L90: =+BD_DEP[[#This Row],[totalr]]/BD_DEP[[#This Row],[Mat Inicial]] -> 0.1 | M90: =+BD_DEP[[#This Row],[repi]]/BD_DEP[[#This Row],[Mat Inicial]] -> 0.1 | N90: 40 | O90: Dpto. Comunicación Social | P90: 1143225466 | Q90: Reyes Redondo Maria | R90: TC | S90: PR
A91: 4250 | B91: CMN1150 | C91: REALIZACION MEDIO AUDIOVISUAL1 | D91: 54 | E91: 202330 | F91: 11 | G91: 11 | H91: 1 | I91: 0 | J91: 1 | K91: =+BD_DEP[[#This Row],[totalp]]/BD_DEP[[#This Row],[Mat Inicial]] -> 0.09090909091 | L91: =+BD_DEP[[#This Row],[totalr]]/BD_DEP[[#This Row],[Mat Inicial]] -> 0 | M91: =+BD_DEP[[#This Row],[repi]]/BD_DEP[[#This Row],[Mat Inicial]] -> 0.09090909091 | N91: 40 | O91: Dpto. Comunicación Social | P91: 1143225466 | Q91: Reyes Redondo Maria | R91: TC | S91: PR
A92: 1454 | B92: CMN1180 | C92: REALIZACION MEDIO AUDIOVISUAL3 | D92: 1 | E92: 202330 | F92: 42 | G92: 42 | H92: 6 | I92: 0 | J92: 6 | K92: =+BD_DEP[[#This Row],[totalp]]/BD_DEP[[#This Row],[Mat Inicial]] -> 0.1428571429 | L92: =+BD_DEP[[#This Row],[totalr]]/BD_DEP[[#This Row],[Mat Inicial]] -> 0 | M92: =+BD_DEP[[#This Row],[repi]]/BD_DEP[[#This Row],[Mat Inicial]] -> 0.1428571429 | N92: 40 | O92: Dpto. Comunicación Social | P92: 72308847 | Q92: Sabbagh Fajardo Alfredo | R92: TC | S92: PR
A93: 1460 | B93: CMN2050 | C93: REALIZACION MEDIO AUDIOVISUAL4 | D93: 1 | E93: 202330 | F93: 11 | G93: 11 | H93: 1 | I93: 0 | J93: 1 | K93: =+BD_DEP[[#This Row],[totalp]]/BD_DEP[[#This Row],[Mat Inicial]] -> 0.09090909091 | L93: =+BD_DEP[[#This Row],[totalr]]/BD_DEP[[#This Row],[Mat Inicial]] -> 0 | M93: =+BD_DEP[[#This Row],[repi]]/BD_DEP[[#This Row],[Mat Inicial]] -> 0.09090909091 | N93: 40 | O93: Dpto. Comunicación Social | P93: 72260311 | Q93: Cure Londoño Yamil | R93: TC | S93: PR
A94: 1461 | B94: CMN2050 | C94: REALIZACION MEDIO AUDIOVISUAL4 | D94: 2 | E94: 202330 | F94: 12 | G94: 12 | H94: 0 | I94: 0 | J94: 0 | K94: =+BD_DEP[[#This Row],[totalp]]/BD_DEP[[#This Row],[Mat Inicial]] -> 0 | L94: =+BD_DEP[[#This Row],[totalr]]/BD_DEP[[#This Row],[Mat Inicial]] -> 0 | M94: =+BD_DEP[[#This Row],[repi]]/BD_DEP[[#This Row],[Mat Inicial]] -> 0 | N94: 40 | O94: Dpto. Comunicación Social | P94: 72260311 | Q94: Cure Londoño Yamil | R94: TC | S94: PR
A95: 1462 | B95: CMN2050 | C95: REALIZACION MEDIO AUDIOVISUAL4 | D95: 3 | E95: 202330 | F95: 12 | G95: 12 | H95: 0 | I95: 0 | J95: 0 | K95: =+BD_DEP[[#This Row],[totalp]]/BD_DEP[[#This Row],[Mat Inicial]] -> 0 | L95: =+BD_DEP[[#This Row],[totalr]]/BD_DEP[[#This Row],[Mat Inicial]] -> 0 | M95: =+BD_DEP[[#This Row],[repi]]/BD_DEP[[#This Row],[Mat Inicial]] -> 0 | N95: 40 | O95: Dpto. Comunicación Social | P95: 72260311 | Q95: Cure Londoño Yamil | R95: TC | S95: PR
A96: 1463 | B96: CMN2050 | C96: REALIZACION MEDIO AUDIOVISUAL4 | D96: 4 | E96: 202330 | F96: 12 | G96: 11 | H96: 1 | I96: 1 | J96: 2 | K96: =+BD_DEP[[#This Row],[totalp]]/BD_DEP[[#This Row],[Mat Inicial]] -> 0.08333333333 | L96: =+BD_DEP[[#This Row],[totalr]]/BD_DEP[[#This Row],[Mat Inicial]] -> 0.08333333333 | M96: =+BD_DEP[[#This Row],[repi]]/BD_DEP[[#This Row],[Mat Inicial]] -> 0.1666666667 | N96: 40 | O96: Dpto. Comunicación Social | P96: 72260311 | Q96: Cure Londoño Yamil | R96: TC | S96: PR
A97: 1464 | B97: CMN2050 | C97: REALIZACION MEDIO AUDIOVISUAL4 | D97: 5 | E97: 202330 | F97: 10 | G97: 10 | H97: 0 | I97: 0 | J97: 0 | K97: =+BD_DEP[[#This Row],[totalp]]/BD_DEP[[#This Row],[Mat Inicial]] -> 0 | L97: =+BD_DEP[[#This Row],[totalr]]/BD_DEP[[#This Row],[Mat Inicial]] -> 0 | M97: =+BD_DEP[[#This Row],[repi]]/BD_DEP[[#This Row],[Mat Inicial]] -> 0 | N97: 40 | O97: Dpto. Comunicación Social | P97: 72260311 | Q97: Cure Londoño Yamil | R97: TC | S97: PR
A98: 1465 | B98: CMN2050 | C98: REALIZACION MEDIO AUDIOVISUAL4 | D98: 6 | E98: 202330 | F98: 8 | G98: 8 | H98: 0 | I98: 0 | J98: 0 | K98: =+BD_DEP[[#This Row],[totalp]]/BD_DEP[[#This Row],[Mat Inicial]] -> 0 | L98: =+BD_DEP[[#This Row],[totalr]]/BD_DEP[[#This Row],[Mat Inicial]] -> 0 | M98: =+BD_DEP[[#This Row],[repi]]/BD_DEP[[#This Row],[Mat Inicial]] -> 0 | N98: 40 | O98: Dpto. Comunicación Social | P98: 72260311 | Q98: Cure Londoño Yamil | R98: TC | S98: PR
A99: 1469 | B99: CMN2080 | C99: REALIZACION MEDIO AUDIOVISUAL5 | D99: 1 | E99: 202330 | F99: 10 | G99: 10 | H99: 0 | I99: 0 | J99: 0 | K99: =+BD_DEP[[#This Row],[totalp]]/BD_DEP[[#This Row],[Mat Inicial]] -> 0 | L99: =+BD_DEP[[#This Row],[totalr]]/BD_DEP[[#This Row],[Mat Inicial]] -> 0 | M99: =+BD_DEP[[#This Row],[repi]]/BD_DEP[[#This Row],[Mat Inicial]] -> 0 | N99: 40 | O99: Dpto. Comunicación Social | P99: 72308847 | Q99: Sabbagh Fajardo Alfredo | R99: TC | S99: PR
A100: 1470 | B100: CMN2080 | C100: REALIZACION MEDIO AUDIOVISUAL5 | D100: 2 | E100: 202330 | F100: 8 | G100: 7 | H100: 0 | I100: 1 | J100: 1 | K100: =+BD_DEP[[#This Row],[totalp]]/BD_DEP[[#This Row],[Mat Inicial]] -> 0 | L100: =+BD_DEP[[#This Row],[totalr]]/BD_DEP[[#This Row],[Mat Inicial]] -> 0.125 | M100: =+BD_DEP[[#This Row],[repi]]/BD_DEP[[#This Row],[Mat Inicial]] -> 0.125 | N100: 40 | O100: Dpto. Comunicación Social | P100: 72308847 | Q100: Sabbagh Fajardo Alfredo | R100: TC | S100: PR
A101: 1471 | B101: CMN2080 | C101: REALIZACION MEDIO AUDIOVISUAL5 | D101: 3 | E101: 202330 | F101: 8 | G101: 8 | H101: 0 | I101: 0 | J101: 0 | K101: =+BD_DEP[[#This Row],[totalp]]/BD_DEP[[#This Row],[Mat Inicial]] -> 0 | L101: =+BD_DEP[[#This Row],[totalr]]/BD_DEP[[#This Row],[Mat Inicial]] -> 0 | M101: =+BD_DEP[[#This Row],[repi]]/BD_DEP[[#This Row],[Mat Inicial]] -> 0 | N101: 40 | O101: Dpto. Comunicación Social | P101: 72308847 | Q101: Sabbagh Fajardo Alfredo | R101: TC | S101: PR
A102: 1472 | B102: CMN2080 | C102: REALIZACION MEDIO AUDIOVISUAL5 | D102: 4 | E102: 202330 | F102: 6 | G102: 6 | H102: 0 | I102: 0 | J102: 0 | K102: =+BD_DEP[[#This Row],[totalp]]/BD_DEP[[#This Row],[Mat Inicial]] -> 0 | L102: =+BD_DEP[[#This Row],[totalr]]/BD_DEP[[#This Row],[Mat Inicial]] -> 0 | M102: =+BD_DEP[[#This Row],[repi]]/BD_DEP[[#This Row],[Mat Inicial]] -> 0 | N102: 40 | O102: Dpto. Comunicación Social | P102: 72308847 | Q102: Sabbagh Fajardo Alfredo | R102: TC | S102: PR
A103: 1473 | B103: CMN2080 | C103: REALIZACION MEDIO AUDIOVISUAL5 | D103: 5 | E103: 202330 | F103: 4 | G103: 4 | H103: 0 | I103: 0 | J103: 0 | K103: =+BD_DEP[[#This Row],[totalp]]/BD_DEP[[#This Row],[Mat Inicial]] -> 0 | L103: =+BD_DEP[[#This Row],[totalr]]/BD_DEP[[#This Row],[Mat Inicial]] -> 0 | M103: =+BD_DEP[[#This Row],[repi]]/BD_DEP[[#This Row],[Mat Inicial]] -> 0 | N103: 40 | O103: Dpto. Comunicación Social | P103: 72308847 | Q103: Sabbagh Fajardo Alfredo | R103: TC | S103: PR
A104: 1474 | B104: CMN2080 | C104: REALIZACION MEDIO AUDIOVISUAL5 | D104: 6 | E104: 202330 | F104: 3 | G104: 3 | H104: 0 | I104: 0 | J104: 0 | K104: =+BD_DEP[[#This Row],[totalp]]/BD_DEP[[#This Row],[Mat Inicial]] -> 0 | L104: =+BD_DEP[[#This Row],[totalr]]/BD_DEP[[#This Row],[Mat Inicial]] -> 0 | M104: =+BD_DEP[[#This Row],[repi]]/BD_DEP[[#This Row],[Mat Inicial]] -> 0 | N104: 40 | O104: Dpto. Comunicación Social | P104: 72308847 | Q104: Sabbagh Fajardo Alfredo | R104: TC | S104: PR
A105: 1484 | B105: CMN6080 | C105: REALIZACION MEDIO AUDIOVISUAL6 | D105: 1 | E105: 202330 | F105: 44 | G105: 44 | H105: 9 | I105: 0 | J105: 9 | K105: =+BD_DEP[[#This Row],[totalp]]/BD_DEP[[#This Row],[Mat Inicial]] -> 0.2045454545 | L105: =+BD_DEP[[#This Row],[totalr]]/BD_DEP[[#This Row],[Mat Inicial]] -> 0 | M105: =+BD_DEP[[#This Row],[repi]]/BD_DEP[[#This Row],[Mat Inicial]] -> 0.2045454545 | N105: 40 | O105: Dpto. Comunicación Social | P105: 72308847 | Q105: Sabbagh Fajardo Alfredo | R105: TC | S105: PR
A106: 1486 | B106: CMN6080 | C106: REALIZACION MEDIO AUDIOVISUAL6 | D106: 3 | E106: 202330 | F106: 35 | G106: 34 | H106: 5 | I106: 1 | J106: 6 | K106: =+BD_DEP[[#This Row],[totalp]]/BD_DEP[[#This Row],[Mat Inicial]] -> 0.1428571429 | L106: =+BD_DEP[[#This Row],[totalr]]/BD_DEP[[#This Row],[Mat Inicial]] -> 0.02857142857 | M106: =+BD_DEP[[#This Row],[repi]]/BD_DEP[[#This Row],[Mat Inicial]] -> 0.1714285714 | N106: 40 | O106: Dpto. Comunicación Social | P106: 72308847 | Q106: Sabbagh Fajardo Alfredo | R106: TC | S106: PR
A107: 1440 | B107: CMN0011 | C107: REALIZACION MEDIOS AUDIOVI VII | D107: 2 | E107: 202330 | F107: 38 | G107: 38 | H107: 0 | I107: 0 | J107: 0 | K107: =+BD_DEP[[#This Row],[totalp]]/BD_DEP[[#This Row],[Mat Inicial]] -> 0 | L107: =+BD_DEP[[#This Row],[totalr]]/BD_DEP[[#This Row],[Mat Inicial]] -> 0 | M107: =+BD_DEP[[#This Row],[repi]]/BD_DEP[[#This Row],[Mat Inicial]] -> 0 | N107: 40 | O107: Dpto. Comunicación Social | P107: 72311006 | Q107: Osman Florez Juan | R107: TC | S107: PR
A108: 1503 | B108: CMN9011 | C108: SEM COMUNIC ORGANIZACIONAL | D108: 1 | E108: 202330 | F108: 32 | G108: 32 | H108: 0 | I108: 0 | J108: 0 | K108: =+BD_DEP[[#This Row],[totalp]]/BD_DEP[[#This Row],[Mat Inicial]] -> 0 | L108: =+BD_DEP[[#This Row],[totalr]]/BD_DEP[[#This Row],[Mat Inicial]] -> 0 | M108: =+BD_DEP[[#This Row],[repi]]/BD_DEP[[#This Row],[Mat Inicial]] -> 0 | N108: 40 | O108: Dpto. Comunicación Social | P108: 22580147 | Q108: Villamizar Loaiza Carolina | R108: TC | S108: PR
A109: 1504 | B109: CMN9011 | C109: SEM COMUNIC ORGANIZACIONAL | D109: 2 | E109: 202330 | F109: 22 | G109: 22 | H109: 3 | I109: 0 | J109: 3 | K109: =+BD_DEP[[#This Row],[totalp]]/BD_DEP[[#This Row],[Mat Inicial]] -> 0.1363636364 | L109: =+BD_DEP[[#This Row],[totalr]]/BD_DEP[[#This Row],[Mat Inicial]] -> 0 | M109: =+BD_DEP[[#This Row],[repi]]/BD_DEP[[#This Row],[Mat Inicial]] -> 0.1363636364 | N109: 40 | O109: Dpto. Comunicación Social | P109: 22580147 | Q109: Villamizar Loaiza Carolina | R109: TC | S109: PR
A110: 1492 | B110: CMN7320 | C110: SEM INVEST EN COMUNICACION | D110: 1 | E110: 202330 | F110: 36 | G110: 35 | H110: 0 | I110: 1 | J110: 1 | K110: =+BD_DEP[[#This Row],[totalp]]/BD_DEP[[#This Row],[Mat Inicial]] -> 0 | L110: =+BD_DEP[[#This Row],[totalr]]/BD_DEP[[#This Row],[Mat Inicial]] -> 0.02777777778 | M110: =+BD_DEP[[#This Row],[repi]]/BD_DEP[[#This Row],[Mat Inicial]] -> 0.02777777778 | N110: 40 | O110: Dpto. Comunicación Social | P110: 80779533 | Q110: CORTES MARTINEZ CARLOS | R110: TC | S110: PR
A111: 1493 | B111: CMN7320 | C111: SEM INVEST EN COMUNICACION | D111: 2 | E111: 202330 | F111: 39 | G111: 39 | H111: 0 | I111: 0 | J111: 0 | K111: =+BD_DEP[[#This Row],[totalp]]/BD_DEP[[#This Row],[Mat Inicial]] -> 0 | L111: =+BD_DEP[[#This Row],[totalr]]/BD_DEP[[#This Row],[Mat Inicial]] -> 0 | M111: =+BD_DEP[[#This Row],[repi]]/BD_DEP[[#This Row],[Mat Inicial]] -> 0 | N111: 40 | O111: Dpto. Comunicación Social | P111: 80779533 | Q111: CORTES MARTINEZ CARLOS | R111: TC | S111: PR
A112: 1447 | B112: CMN1060 | C112: SEMIÓTICA Y COMUNICACIÓN | D112: 1 | E112: 202330 | F112: 40 | G112: 39 | H112: 0 | I112: 1 | J112: 1 | K112: =+BD_DEP[[#This Row],[totalp]]/BD_DEP[[#This Row],[Mat Inicial]] -> 0 | L112: =+BD_DEP[[#This Row],[totalr]]/BD_DEP[[#This Row],[Mat Inicial]] -> 0.025 | M112: =+BD_DEP[[#This Row],[repi]]/BD_DEP[[#This Row],[Mat Inicial]] -> 0.025 | N112: 40 | O112: Dpto. Comunicación Social | P112: 1143225466 | Q112: Reyes Redondo Maria | R112: TC | S112: PR
A113: 1448 | B113: CMN1060 | C113: SEMIÓTICA Y COMUNICACIÓN | D113: 2 | E113: 202330 | F113: 24 | G113: 24 | H113: 0 | I113: 0 | J113: 0 | K113: =+BD_DEP[[#This Row],[totalp]]/BD_DEP[[#This Row],[Mat Inicial]] -> 0 | L113: =+BD_DEP[[#This Row],[totalr]]/BD_DEP[[#This Row],[Mat Inicial]] -> 0 | M113: =+BD_DEP[[#This Row],[repi]]/BD_DEP[[#This Row],[Mat Inicial]] -> 0 | N113: 40 | O113: Dpto. Comunicación Social | P113: 1143225466 | Q113: Reyes Redondo Maria | R113: TC | S113: PR
A114: 2411 | B114: INV7481 | C114: TECNICAS INV EN COMUNICACION | D114: 1 | E114: 202330 | F114: 39 | G114: 39 | H114: 8 | I114: 0 | J114: 8 | K114: =+BD_DEP[[#This Row],[totalp]]/BD_DEP[[#This Row],[Mat Inicial]] -> 0.2051282051 | L114: =+BD_DEP[[#This Row],[totalr]]/BD_DEP[[#This Row],[Mat Inicial]] -> 0 | M114: =+BD_DEP[[#This Row],[repi]]/BD_DEP[[#This Row],[Mat Inicial]] -> 0.2051282051 | N114: 40 | O114: Dpto. Comunicación Social | P114: 80414869 | Q114: Llano Aristizabal Sergio | R114: TC | S114: PR
A115: 4246 | B115: CMN1030 | C115: TEORIA COMUNICACION I | D115: 51 | E115: 202330 | F115: 42 | G115: 41 | H115: 0 | I115: 1 | J115: 1 | K115: =+BD_DEP[[#This Row],[totalp]]/BD_DEP[[#This Row],[Mat Inicial]] -> 0 | L115: =+BD_DEP[[#This Row],[totalr]]/BD_DEP[[#This Row],[Mat Inicial]] -> 0.02380952381 | M115: =+BD_DEP[[#This Row],[repi]]/BD_DEP[[#This Row],[Mat Inicial]] -> 0.02380952381 | N115: 40 | O115: Dpto. Comunicación Social | P115: 1143225466 | Q115: Reyes Redondo Maria | R115: TC | S115: PR
A116: 1445 | B116: CMN1040 | C116: TEORIA COMUNICACION II | D116: 1 | E116: 202330 | F116: 29 | G116: 29 | H116: 0 | I116: 0 | J116: 0 | K116: =+BD_DEP[[#This Row],[totalp]]/BD_DEP[[#This Row],[Mat Inicial]] -> 0 | L116: =+BD_DEP[[#This Row],[totalr]]/BD_DEP[[#This Row],[Mat Inicial]] -> 0 | M116: =+BD_DEP[[#This Row],[repi]]/BD_DEP[[#This Row],[Mat Inicial]] -> 0 | N116: 40 | O116: Dpto. Comunicación Social | P116: 71779693 | Q116: Perez Quintero Camilo | R116: TC | S116: PR
A117: 1446 | B117: CMN1040 | C117: TEORIA COMUNICACION II | D117: 2 | E117: 202330 | F117: 30 | G117: 30 | H117: 0 | I117: 0 | J117: 0 | K117: =+BD_DEP[[#This Row],[totalp]]/BD_DEP[[#This Row],[Mat Inicial]] -> 0 | L117: =+BD_DEP[[#This Row],[totalr]]/BD_DEP[[#This Row],[Mat Inicial]] -> 0 | M117: =+BD_DEP[[#This Row],[repi]]/BD_DEP[[#This Row],[Mat Inicial]] -> 0 | N117: 40 | O117: Dpto. Comunicación Social | P117: 71779693 | Q117: Perez Quintero Camilo | R117: TC | S117: PR
A118: 1502 | B118: CMN8130 | C118: TEORIA DE LA COMUNICACION 3 | D118: 1 | E118: 202330 | F118: 38 | G118: 37 | H118: 0 | I118: 1 | J118: 1 | K118: =+BD_DEP[[#This Row],[totalp]]/BD_DEP[[#This Row],[Mat Inicial]] -> 0 | L118: =+BD_DEP[[#This Row],[totalr]]/BD_DEP[[#This Row],[Mat Inicial]] -> 0.02631578947 | M118: =+BD_DEP[[#This Row],[repi]]/BD_DEP[[#This Row],[Mat Inicial]] -> 0.02631578947 | N118: 40 | O118: Dpto. Comunicación Social | P118: 8767107 | Q118: Vega Casanova Manuel | R118: TC | S118: PR
A119: 2417 | B119: INV9580 | C119: TRABAJO DE GRADO | D119: 5 | E119: 202330 | F119: 6 | G119: 6 | H119: 1 | I119: 0 | J119: 1 | K119: =+BD_DEP[[#This Row],[totalp]]/BD_DEP[[#This Row],[Mat Inicial]] -> 0.1666666667 | L119: =+BD_DEP[[#This Row],[totalr]]/BD_DEP[[#This Row],[Mat Inicial]] -> 0 | M119: =+BD_DEP[[#This Row],[repi]]/BD_DEP[[#This Row],[Mat Inicial]] -> 0.1666666667 | N119: 40 | O119: Dpto. Comunicación Social | P119: 22477800 | Q119: Peña Escobar Yenny | R119: TC | S119: PR
A120: 2420 | B120: INV9580 | C120: TRABAJO DE GRADO | D120: 8 | E120: 202330 | F120: 5 | G120: 5 | H120: 0 | I120: 0 | J120: 0 | K120: =+BD_DEP[[#This Row],[totalp]]/BD_DEP[[#This Row],[Mat Inicial]] -> 0 | L120: =+BD_DEP[[#This Row],[totalr]]/BD_DEP[[#This Row],[Mat Inicial]] -> 0 | M120: =+BD_DEP[[#This Row],[repi]]/BD_DEP[[#This Row],[Mat Inicial]] -> 0 | N120: 40 | O120: Dpto. Comunicación Social | P120: 22580147 | Q120: Villamizar Loaiza Carolina | R120: TC | S120: PR
A121: 6941 | B121: INV9580 | C121: TRABAJO DE GRADO | D121: 20 | E121: 202330 | F121: 4 | G121: 4 | H121: 0 | I121: 0 | J121: 0 | K121: =+BD_DEP[[#This Row],[totalp]]/BD_DEP[[#This Row],[Mat Inicial]] -> 0 | L121: =+BD_DEP[[#This Row],[totalr]]/BD_DEP[[#This Row],[Mat Inicial]] -> 0 | M121: =+BD_DEP[[#This Row],[repi]]/BD_DEP[[#This Row],[Mat Inicial]] -> 0 | N121: 40 | O121: Dpto. Comunicación Social | P121: 22580147 | Q121: Villamizar Loaiza Carolina | R121: TC | S121: PR
A122: 2421 | B122: INV9580 | C122: TRABAJO DE GRADO | D122: 9 | E122: 202330 | F122: 9 | G122: 9 | H122: 0 | I122: 0 | J122: 0 | K122: =+BD_DEP[[#This Row],[totalp]]/BD_DEP[[#This Row],[Mat Inicial]] -> 0 | L122: =+BD_DEP[[#This Row],[totalr]]/BD_DEP[[#This Row],[Mat Inicial]] -> 0 | M122: =+BD_DEP[[#This Row],[repi]]/BD_DEP[[#This Row],[Mat Inicial]] -> 0 | N122: 40 | O122: Dpto. Comunicación Social | P122: 72311006 | Q122: Osman Florez Juan | R122: TC | S122: PR
A123: 2413 | B123: INV9580 | C123: TRABAJO DE GRADO | D123: 1 | E123: 202330 | F123: 12 | G123: 11 | H123: 0 | I123: 1 | J123: 1 | K123: =+BD_DEP[[#This Row],[totalp]]/BD_DEP[[#This Row],[Mat Inicial]] -> 0 | L123: =+BD_DEP[[#This Row],[totalr]]/BD_DEP[[#This Row],[Mat Inicial]] -> 0.08333333333 | M123: =+BD_DEP[[#This Row],[repi]]/BD_DEP[[#This Row],[Mat Inicial]] -> 0.08333333333 | N123: 40 | O123: Dpto. Comunicación Social | P123: 79144239 | Q123: FERRO CASAS JUAN | R123: TC | S123: PR
A124: 2414 | B124: INV9580 | C124: TRABAJO DE GRADO | D124: 2 | E124: 202330 | F124: 4 | G124: 4 | H124: 1 | I124: 0 | J124: 1 | K124: =+BD_DEP[[#This Row],[totalp]]/BD_DEP[[#This Row],[Mat Inicial]] -> 0.25 | L124: =+BD_DEP[[#This Row],[totalr]]/BD_DEP[[#This Row],[Mat Inicial]] -> 0 | M124: =+BD_DEP[[#This Row],[repi]]/BD_DEP[[#This Row],[Mat Inicial]] -> 0.25 | N124: 40 | O124: Dpto. Comunicación Social | P124: 79144239 | Q124: FERRO CASAS JUAN | R124: TC | S124: PR
A125: 1489 | B125: CMN7240 | C125: ANALISIS CINEMATOGRAFICO | D125: 1 | E125: 202330 | F125: 38 | G125: 38 | H125: 1 | I125: 0 | J125: 1 | K125: =+BD_DEP[[#This Row],[totalp]]/BD_DEP[[#This Row],[Mat Inicial]] -> 0.02631578947 | L125: =+BD_DEP[[#This Row],[totalr]]/BD_DEP[[#This Row],[Mat Inicial]] -> 0 | M125: =+BD_DEP[[#This Row],[repi]]/BD_DEP[[#This Row],[Mat Inicial]] -> 0.02631578947 | N125: 40 | O125: Dpto. Comunicación Social | P125: 51612181 | Q125: Flores Prieto Pamela | R125: MT | S125: PR
A126: 1479 | B126: CMN6041 | C126: COMUNICACION Y CULTURA | D126: 1 | E126: 202330 | F126: 41 | G126: 40 | H126: 0 | I126: 1 | J126: 1 | K126: =+BD_DEP[[#This Row],[totalp]]/BD_DEP[[#This Row],[Mat Inicial]] -> 0 | L126: =+BD_DEP[[#This Row],[totalr]]/BD_DEP[[#This Row],[Mat Inicial]] -> 0.0243902439 | M126: =+BD_DEP[[#This Row],[repi]]/BD_DEP[[#This Row],[Mat Inicial]] -> 0.0243902439 | N126: 40 | O126: Dpto. Comunicación Social | P126: 51612181 | Q126: Flores Prieto Pamela | R126: MT | S126: PR
A127: 1499 | B127: CMN7520 | C127: GRANDES DIRECTORES DEL CINE | D127: 1 | E127: 202330 | F127: 12 | G127: 12 | H127: 2 | I127: 0 | J127: 2 | K127: =+BD_DEP[[#This Row],[totalp]]/BD_DEP[[#This Row],[Mat Inicial]] -> 0.1666666667 | L127: =+BD_DEP[[#This Row],[totalr]]/BD_DEP[[#This Row],[Mat Inicial]] -> 0 | M127: =+BD_DEP[[#This Row],[repi]]/BD_DEP[[#This Row],[Mat Inicial]] -> 0.1666666667 | N127: 40 | O127: Dpto. Comunicación Social | P127: 51612181 | Q127: Flores Prieto Pamela | R127: MT | S127: PR
A128: 1452 | B128: CMN1170 | C128: PERIODISMO II | D128: 1 | E128: 202330 | F128: 13 | G128: 13 | H128: 0 | I128: 0 | J128: 0 | K128: =+BD_DEP[[#This Row],[totalp]]/BD_DEP[[#This Row],[Mat Inicial]] -> 0 | L128: =+BD_DEP[[#This Row],[totalr]]/BD_DEP[[#This Row],[Mat Inicial]] -> 0 | M128: =+BD_DEP[[#This Row],[repi]]/BD_DEP[[#This Row],[Mat Inicial]] -> 0 | N128: 40 | O128: Dpto. Comunicación Social | P128: 8735282 | Q128: Franco Altamar Javier | R128: MT | S128: PR
A129: 1453 | B129: CMN1170 | C129: PERIODISMO II | D129: 2 | E129: 202330 | F129: 24 | G129: 24 | H129: 0 | I129: 0 | J129: 0 | K129: =+BD_DEP[[#This Row],[totalp]]/BD_DEP[[#This Row],[Mat Inicial]] -> 0 | L129: =+BD_DEP[[#This Row],[totalr]]/BD_DEP[[#This Row],[Mat Inicial]] -> 0 | M129: =+BD_DEP[[#This Row],[repi]]/BD_DEP[[#This Row],[Mat Inicial]] -> 0 | N129: 40 | O129: Dpto. Comunicación Social | P129: 8735282 | Q129: Franco Altamar Javier | R129: MT | S129: PR
A130: 1510 | B130: CMN9375 | C130: PERIODISMO LITERARIO | D130: 1 | E130: 202330 | F130: 23 | G130: 23 | H130: 0 | I130: 0 | J130: 0 | K130: =+BD_DEP[[#This Row],[totalp]]/BD_DEP[[#This Row],[Mat Inicial]] -> 0 | L130: =+BD_DEP[[#This Row],[totalr]]/BD_DEP[[#This Row],[Mat Inicial]] -> 0 | M130: =+BD_DEP[[#This Row],[repi]]/BD_DEP[[#This Row],[Mat Inicial]] -> 0 | N130: 40 | O130: Dpto. Comunicación Social | P130: 8735282 | Q130: Franco Altamar Javier | R130: MT | S130: PR
A131: 2418 | B131: INV9580 | C131: TRABAJO DE GRADO | D131: 6 | E131: 202330 | F131: 9 | G131: 9 | H131: 0 | I131: 0 | J131: 0 | K131: =+BD_DEP[[#This Row],[totalp]]/BD_DEP[[#This Row],[Mat Inicial]] -> 0 | L131: =+BD_DEP[[#This Row],[totalr]]/BD_DEP[[#This Row],[Mat Inicial]] -> 0 | M131: =+BD_DEP[[#This Row],[repi]]/BD_DEP[[#This Row],[Mat Inicial]] -> 0 | N131: 40 | O131: Dpto. Comunicación Social | P131: 8735282 | Q131: Franco Altamar Javier | R131: MT | S131: PR
A132: 2422 | B132: INV9580 | C132: TRABAJO DE GRADO | D132: 11 | E132: 202330 | F132: 9 | G132: 9 | H132: 0 | I132: 0 | J132: 0 | K132: =+BD_DEP[[#This Row],[totalp]]/BD_DEP[[#This Row],[Mat Inicial]] -> 0 | L132: =+BD_DEP[[#This Row],[totalr]]/BD_DEP[[#This Row],[Mat Inicial]] -> 0 | M132: =+BD_DEP[[#This Row],[repi]]/BD_DEP[[#This Row],[Mat Inicial]] -> 0 | N132: 40 | O132: Dpto. Comunicación Social | P132: 51612181 | Q132: Flores Prieto Pamela | R132: MT | S132: PR
A133: 1505 | B133: CMN9040 | C133: ARGUMENTACIÓN PERIODÍSTICA | D133: 1 | E133: 202330 | F133: 20 | G133: 20 | H133: 1 | I133: 0 | J133: 1 | K133: =+BD_DEP[[#This Row],[totalp]]/BD_DEP[[#This Row],[Mat Inicial]] -> 0.05 | L133: =+BD_DEP[[#This Row],[totalr]]/BD_DEP[[#This Row],[Mat Inicial]] -> 0 | M133: =+BD_DEP[[#This Row],[repi]]/BD_DEP[[#This Row],[Mat Inicial]] -> 0.05 | N133: 40 | O133: Dpto. Comunicación Social | P133: 72257464 | Q133: Sarmiento Figueroa Jorge | R133: CA | S133: PR
A134: 1506 | B134: CMN9040 | C134: ARGUMENTACIÓN PERIODÍSTICA | D134: 2 | E134: 202330 | F134: 30 | G134: 30 | H134: 0 | I134: 0 | J134: 0 | K134: =+BD_DEP[[#This Row],[totalp]]/BD_DEP[[#This Row],[Mat Inicial]] -> 0 | L134: =+BD_DEP[[#This Row],[totalr]]/BD_DEP[[#This Row],[Mat Inicial]] -> 0 | M134: =+BD_DEP[[#This Row],[repi]]/BD_DEP[[#This Row],[Mat Inicial]] -> 0 | N134: 40 | O134: Dpto. Comunicación Social | P134: 72257464 | Q134: Sarmiento Figueroa Jorge | R134: CA | S134: PR
A135: 1482 | B135: CMN6060 | C135: FILOSOFIA Y COMUNICACION | D135: 1 | E135: 202330 | F135: 33 | G135: 32 | H135: 1 | I135: 1 | J135: 2 | K135: =+BD_DEP[[#This Row],[totalp]]/BD_DEP[[#This Row],[Mat Inicial]] -> 0.0303030303 | L135: =+BD_DEP[[#This Row],[totalr]]/BD_DEP[[#This Row],[Mat Inicial]] -> 0.0303030303 | M135: =+BD_DEP[[#This Row],[repi]]/BD_DEP[[#This Row],[Mat Inicial]] -> 0.06060606061 | N135: 40 | O135: Dpto. Comunicación Social | P135: 55225540 | Q135: Pozo Garcia Kelly | R135: CA | S135: PR
A136: 1483 | B136: CMN6060 | C136: FILOSOFIA Y COMUNICACION | D136: 2 | E136: 202330 | F136: 16 | G136: 16 | H136: 0 | I136: 0 | J136: 0 | K136: =+BD_DEP[[#This Row],[totalp]]/BD_DEP[[#This Row],[Mat Inicial]] -> 0 | L136: =+BD_DEP[[#This Row],[totalr]]/BD_DEP[[#This Row],[Mat Inicial]] -> 0 | M136: =+BD_DEP[[#This Row],[repi]]/BD_DEP[[#This Row],[Mat Inicial]] -> 0 | N136: 40 | O136: Dpto. Comunicación Social | P136: 55225540 | Q136: Pozo Garcia Kelly | R136: CA | S136: PR
A137: 1362 | B137: ART0020 | C137: FOTOGRAFIA Y LABORATORIO | D137: 1 | E137: 202330 | F137: 36 | G137: 36 | H137: 0 | I137: 0 | J137: 0 | K137: =+BD_DEP[[#This Row],[totalp]]/BD_DEP[[#This Row],[Mat Inicial]] -> 0 | L137: =+BD_DEP[[#This Row],[totalr]]/BD_DEP[[#This Row],[Mat Inicial]] -> 0 | M137: =+BD_DEP[[#This Row],[repi]]/BD_DEP[[#This Row],[Mat Inicial]] -> 0 | N137: 40 | O137: Dpto. Comunicación Social | P137: 8743889 | Q137: Gil Zubiria Julio | R137: CA | S137: PR
A138: 4217 | B138: ART0020 | C138: FOTOGRAFIA Y LABORATORIO | D138: 53 | E138: 202330 | F138: 37 | G138: 36 | H138: 0 | I138: 1 | J138: 1 | K138: =+BD_DEP[[#This Row],[totalp]]/BD_DEP[[#This Row],[Mat Inicial]] -> 0 | L138: =+BD_DEP[[#This Row],[totalr]]/BD_DEP[[#This Row],[Mat Inicial]] -> 0.02702702703 | M138: =+BD_DEP[[#This Row],[repi]]/BD_DEP[[#This Row],[Mat Inicial]] -> 0.02702702703 | N138: 40 | O138: Dpto. Comunicación Social | P138: 1045684896 | Q138: Gutierrez Ravelo Raquel | R138: CA | S138: PR
A139: 4219 | B139: ART0020 | C139: FOTOGRAFIA Y LABORATORIO | D139: 52 | E139: 202330 | F139: 16 | G139: 15 | H139: 0 | I139: 1 | J139: 1 | K139: =+BD_DEP[[#This Row],[totalp]]/BD_DEP[[#This Row],[Mat Inicial]] -> 0 | L139: =+BD_DEP[[#This Row],[totalr]]/BD_DEP[[#This Row],[Mat Inicial]] -> 0.0625 | M139: =+BD_DEP[[#This Row],[repi]]/BD_DEP[[#This Row],[Mat Inicial]] -> 0.0625 | N139: 40 | O139: Dpto. Comunicación Social | P139: 1045684896 | Q139: Gutierrez Ravelo Raquel | R139: CA | S139: PR
A140: 1441 | B140: CMN0013 | C140: PRACTICA RADIAL | D140: 1 | E140: 202330 | F140: 36 | G140: 36 | H140: 0 | I140: 0 | J140: 0 | K140: =+BD_DEP[[#This Row],[totalp]]/BD_DEP[[#This Row],[Mat Inicial]] -> 0 | L140: =+BD_DEP[[#This Row],[totalr]]/BD_DEP[[#This Row],[Mat Inicial]] -> 0 | M140: =+BD_DEP[[#This Row],[repi]]/BD_DEP[[#This Row],[Mat Inicial]] -> 0 | N140: 40 | O140: Dpto. Comunicación Social | P140: 72266157 | Q140: Duva Ruiz Ivan | R140: CA | S140: PR
A141: 1449 | B141: CMN1160 | C141: REALIZACION MEDIO AUDIOVISUAL2 | D141: 1 | E141: 202330 | F141: 21 | G141: 21 | H141: 0 | I141: 0 | J141: 0 | K141: =+BD_DEP[[#This Row],[totalp]]/BD_DEP[[#This Row],[Mat Inicial]] -> 0 | L141: =+BD_DEP[[#This Row],[totalr]]/BD_DEP[[#This Row],[Mat Inicial]] -> 0 | M141: =+BD_DEP[[#This Row],[repi]]/BD_DEP[[#This Row],[Mat Inicial]] -> 0 | N141: 40 | O141: Dpto. Comunicación Social | P141: 72167566 | Q141: Rojas Barandica Miguel | R141: CA | S141: PR
A142: 1450 | B142: CMN1160 | C142: REALIZACION MEDIO AUDIOVISUAL2 | D142: 2 | E142: 202330 | F142: 24 | G142: 24 | H142: 0 | I142: 0 | J142: 0 | K142: =+BD_DEP[[#This Row],[totalp]]/BD_DEP[[#This Row],[Mat Inicial]] -> 0 | L142: =+BD_DEP[[#This Row],[totalr]]/BD_DEP[[#This Row],[Mat Inicial]] -> 0 | M142: =+BD_DEP[[#This Row],[repi]]/BD_DEP[[#This Row],[Mat Inicial]] -> 0 | N142: 40 | O142: Dpto. Comunicación Social | P142: 72167566 | Q142: Rojas Barandica Miguel | R142: CA | S142: PR
A143: 1451 | B143: CMN1160 | C143: REALIZACION MEDIO AUDIOVISUAL2 | D143: 3 | E143: 202330 | F143: 13 | G143: 13 | H143: 0 | I143: 0 | J143: 0 | K143: =+BD_DEP[[#This Row],[totalp]]/BD_DEP[[#This Row],[Mat Inicial]] -> 0 | L143: =+BD_DEP[[#This Row],[totalr]]/BD_DEP[[#This Row],[Mat Inicial]] -> 0 | M143: =+BD_DEP[[#This Row],[repi]]/BD_DEP[[#This Row],[Mat Inicial]] -> 0 | N143: 40 | O143: Dpto. Comunicación Social | P143: 72167566 | Q143: Rojas Barandica Miguel | R143: CA | S143: PR
A144: 1436 | B144: CMN0008 | C144: SONIDO Y LENGUAJE RADIOFONICO | D144: 1 | E144: 202330 | F144: 23 | G144: 23 | H144: 0 | I144: 0 | J144: 0 | K144: =+BD_DEP[[#This Row],[totalp]]/BD_DEP[[#This Row],[Mat Inicial]] -> 0 | L144: =+BD_DEP[[#This Row],[totalr]]/BD_DEP[[#This Row],[Mat Inicial]] -> 0 | M144: =+BD_DEP[[#This Row],[repi]]/BD_DEP[[#This Row],[Mat Inicial]] -> 0 | N144: 40 | O144: Dpto. Comunicación Social | P144: 1140839328 | Q144: DIAZ HENAO JOSEPH | R144: CA | S144: PR
A145: 1437 | B145: CMN0008 | C145: SONIDO Y LENGUAJE RADIOFONICO | D145: 2 | E145: 202330 | F145: 24 | G145: 24 | H145: 0 | I145: 0 | J145: 0 | K145: =+BD_DEP[[#This Row],[totalp]]/BD_DEP[[#This Row],[Mat Inicial]] -> 0 | L145: =+BD_DEP[[#This Row],[totalr]]/BD_DEP[[#This Row],[Mat Inicial]] -> 0 | M145: =+BD_DEP[[#This Row],[repi]]/BD_DEP[[#This Row],[Mat Inicial]] -> 0 | N145: 40 | O145: Dpto. Comunicación Social | P145: 1140839328 | Q145: DIAZ HENAO JOSEPH | R145: CA | S145: PR
A146: 1438 | B146: CMN0008 | C146: SONIDO Y LENGUAJE RADIOFONICO | D146: 3 | E146: 202330 | F146: 11 | G146: 11 | H146: 0 | I146: 0 | J146: 0 | K146: =+BD_DEP[[#This Row],[totalp]]/BD_DEP[[#This Row],[Mat Inicial]] -> 0 | L146: =+BD_DEP[[#This Row],[totalr]]/BD_DEP[[#This Row],[Mat Inicial]] -> 0 | M146: =+BD_DEP[[#This Row],[repi]]/BD_DEP[[#This Row],[Mat Inicial]] -> 0 | N146: 40 | O146: Dpto. Comunicación Social | P146: 1140839328 | Q146: DIAZ HENAO JOSEPH | R146: CA | S146: PR
A147: 2954 | B147: POL4524 | C147: COMU Y MARKETING POLITICO | D147: 1 | E147: 202330 | F147: 26 | G147: 25 | H147: 0 | I147: 1 | J147: 1 | K147: =+BD_DEP[[#This Row],[totalp]]/BD_DEP[[#This Row],[Mat Inicial]] -> 0 | L147: =+BD_DEP[[#This Row],[totalr]]/BD_DEP[[#This Row],[Mat Inicial]] -> 0.03846153846 | M147: =+BD_DEP[[#This Row],[repi]]/BD_DEP[[#This Row],[Mat Inicial]] -> 0.03846153846 | N147: 50 | O147: Dpto. Cs Politica y Rel Intern | P147: 1044425733 | Q147: Solis Menco Karol | R147: TC | S147: PR
A148: 2955 | B148: POL4524 | C148: COMU Y MARKETING POLITICO | D148: 2 | E148: 202330 | F148: 27 | G148: 26 | H148: 0 | I148: 1 | J148: 1 | K148: =+BD_DEP[[#This Row],[totalp]]/BD_DEP[[#This Row],[Mat Inicial]] -> 0 | L148: =+BD_DEP[[#This Row],[totalr]]/BD_DEP[[#This Row],[Mat Inicial]] -> 0.03703703704 | M148: =+BD_DEP[[#This Row],[repi]]/BD_DEP[[#This Row],[Mat Inicial]] -> 0.03703703704 | N148: 50 | O148: Dpto. Cs Politica y Rel Intern | P148: 1044425733 | Q148: Solis Menco Karol | R148: TC | S148: PR
A149: 3127 | B149: SCO4110 | C149: COOPERACION INTER PAZ DD HH | D149: 1 | E149: 202330 | F149: 19 | G149: 19 | H149: 0 | I149: 0 | J149: 0 | K149: =+BD_DEP[[#This Row],[totalp]]/BD_DEP[[#This Row],[Mat Inicial]] -> 0 | L149: =+BD_DEP[[#This Row],[totalr]]/BD_DEP[[#This Row],[Mat Inicial]] -> 0 | M149: =+BD_DEP[[#This Row],[repi]]/BD_DEP[[#This Row],[Mat Inicial]] -> 0 | N149: 50 | O149: Dpto. Cs Politica y Rel Intern | P149: 1140820687 | Q149: Rueda Fiorentino Mariangela | R149: TC | S149: PR
A150: 3128 | B150: SCO4110 | C150: COOPERACION INTER PAZ DD HH | D150: 2 | E150: 202330 | F150: 14 | G150: 13 | H150: 0 | I150: 1 | J150: 1 | K150: =+BD_DEP[[#This Row],[totalp]]/BD_DEP[[#This Row],[Mat Inicial]] -> 0 | L150: =+BD_DEP[[#This Row],[totalr]]/BD_DEP[[#This Row],[Mat Inicial]] -> 0.07142857143 | M150: =+BD_DEP[[#This Row],[repi]]/BD_DEP[[#This Row],[Mat Inicial]] -> 0.07142857143 | N150: 50 | O150: Dpto. Cs Politica y Rel Intern | P150: 1140820687 | Q150: Rueda Fiorentino Mariangela | R150: TC | S150: PR
A151: 2957 | B151: POL4527 | C151: DESCENT Y GOB TERRITORIAL | D151: 1 | E151: 202330 | F151: 15 | G151: 14 | H151: 0 | I151: 1 | J151: 1 | K151: =+BD_DEP[[#This Row],[totalp]]/BD_DEP[[#This Row],[Mat Inicial]] -> 0 | L151: =+BD_DEP[[#This Row],[totalr]]/BD_DEP[[#This Row],[Mat Inicial]] -> 0.06666666667 | M151: =+BD_DEP[[#This Row],[repi]]/BD_DEP[[#This Row],[Mat Inicial]] -> 0.06666666667 | N151: 50 | O151: Dpto. Cs Politica y Rel Intern | P151: 72002637 | Q151: Tuiran Sarmiento Angel | R151: TC | S151: PR
A152: 3118 | B152: SCO4000 | C152: DIPLOMACIA Y POLITICA INTERNAC | D152: 1 | E152: 202330 | F152: 21 | G152: 20 | H152: 0 | I152: 1 | J152: 1 | K152: =+BD_DEP[[#This Row],[totalp]]/BD_DEP[[#This Row],[Mat Inicial]] -> 0 | L152: =+BD_DEP[[#This Row],[totalr]]/BD_DEP[[#This Row],[Mat Inicial]] -> 0.04761904762 | M152: =+BD_DEP[[#This Row],[repi]]/BD_DEP[[#This Row],[Mat Inicial]] -> 0.04761904762 | N152: 50 | O152: Dpto. Cs Politica y Rel Intern | P152: 16208389 | Q152: Agudelo Taborda Jairo | R152: TC | S152: PR
A153: 2959 | B153: POL4529 | C153: ENFOQUES EN CIENCIA POL | D153: 1 | E153: 202330 | F153: 13 | G153: 13 | H153: 0 | I153: 0 | J153: 0 | K153: =+BD_DEP[[#This Row],[totalp]]/BD_DEP[[#This Row],[Mat Inicial]] -> 0 | L153: =+BD_DEP[[#This Row],[totalr]]/BD_DEP[[#This Row],[Mat Inicial]] -> 0 | M153: =+BD_DEP[[#This Row],[repi]]/BD_DEP[[#This Row],[Mat Inicial]] -> 0 | N153: 50 | O153: Dpto. Cs Politica y Rel Intern | P153: 1045669074 | Q153: De La Puente Pacheco Mario | R153: TC | S153: PR
A154: 2939 | B154: POL0080 | C154: GEOPOLITICA | D154: 2 | E154: 202330 | F154: 25 | G154: 25 | H154: 0 | I154: 0 | J154: 0 | K154: =+BD_DEP[[#This Row],[totalp]]/BD_DEP[[#This Row],[Mat Inicial]] -> 0 | L154: =+BD_DEP[[#This Row],[totalr]]/BD_DEP[[#This Row],[Mat Inicial]] -> 0 | M154: =+BD_DEP[[#This Row],[repi]]/BD_DEP[[#This Row],[Mat Inicial]] -> 0 | N154: 50 | O154: Dpto. Cs Politica y Rel Intern | P154: 72245278 | Q154: Melamed Visbal Janiel | R154: TC | S154: PR
A155: 4480 | B155: POL4310 | C155: INST POLITICAS Y CONSTITUCION | D155: 51 | E155: 202330 | F155: 28 | G155: 28 | H155: 1 | I155: 0 | J155: 1 | K155: =+BD_DEP[[#This Row],[totalp]]/BD_DEP[[#This Row],[Mat Inicial]] -> 0.03571428571 | L155: =+BD_DEP[[#This Row],[totalr]]/BD_DEP[[#This Row],[Mat Inicial]] -> 0 | M155: =+BD_DEP[[#This Row],[repi]]/BD_DEP[[#This Row],[Mat Inicial]] -> 0.03571428571 | N155: 50 | O155: Dpto. Cs Politica y Rel Intern | P155: 1140865839 | Q155: Lopez Muñoz Laura | R155: TC | S155: PR
A156: 4485 | B156: SCO1010 | C156: INT RELACIONES INTERNALES | D156: 51 | E156: 202330 | F156: 44 | G156: 43 | H156: 2 | I156: 1 | J156: 3 | K156: =+BD_DEP[[#This Row],[totalp]]/BD_DEP[[#This Row],[Mat Inicial]] -> 0.04545454545 | L156: =+BD_DEP[[#This Row],[totalr]]/BD_DEP[[#This Row],[Mat Inicial]] -> 0.02272727273 | M156: =+BD_DEP[[#This Row],[repi]]/BD_DEP[[#This Row],[Mat Inicial]] -> 0.06818181818 | N156: 50 | O156: Dpto. Cs Politica y Rel Intern | P156: 16208389 | Q156: Agudelo Taborda Jairo | R156: TC | S156: PR
A157: 4479 | B157: POL0010 | C157: INTROD A LA CIENCIA POLITICA | D157: 51 | E157: 202330 | F157: 44 | G157: 44 | H157: 4 | I157: 0 | J157: 4 | K157: =+BD_DEP[[#This Row],[totalp]]/BD_DEP[[#This Row],[Mat Inicial]] -> 0.09090909091 | L157: =+BD_DEP[[#This Row],[totalr]]/BD_DEP[[#This Row],[Mat Inicial]] -> 0 | M157: =+BD_DEP[[#This Row],[repi]]/BD_DEP[[#This Row],[Mat Inicial]] -> 0.09090909091 | N157: 50 | O157: Dpto. Cs Politica y Rel Intern | P157: 1044425733 | Q157: Solis Menco Karol | R157: TC | S157: PR
A158: 2960 | B158: POL4531 | C158: METODOLOGIA | D158: 1 | E158: 202330 | F158: 7 | G158: 6 | H158: 1 | I158: 1 | J158: 2 | K158: =+BD_DEP[[#This Row],[totalp]]/BD_DEP[[#This Row],[Mat Inicial]] -> 0.1428571429 | L158: =+BD_DEP[[#This Row],[totalr]]/BD_DEP[[#This Row],[Mat Inicial]] -> 0.1428571429 | M158: =+BD_DEP[[#This Row],[repi]]/BD_DEP[[#This Row],[Mat Inicial]] -> 0.2857142857 | N158: 50 | O158: Dpto. Cs Politica y Rel Intern | P158: 9398085 | Q158: MORALES VEGAS GUSTAVO | R158: TC | S158: PR
A159: 2948 | B159: POL4330 | C159: NORTH AMERICAN POLITICS | D159: 1 | E159: 202330 | F159: 21 | G159: 21 | H159: 0 | I159: 0 | J159: 0 | K159: =+BD_DEP[[#This Row],[totalp]]/BD_DEP[[#This Row],[Mat Inicial]] -> 0 | L159: =+BD_DEP[[#This Row],[totalr]]/BD_DEP[[#This Row],[Mat Inicial]] -> 0 | M159: =+BD_DEP[[#This Row],[repi]]/BD_DEP[[#This Row],[Mat Inicial]] -> 0 | N159: 50 | O159: Dpto. Cs Politica y Rel Intern | P159: 609608 | Q159: BALDERACCHI CLAUDIO | R159: TC | S159: PR
A160: 3130 | B160: SCO8460 | C160: ORDEN Y SEGURIDAD GLOBAL | D160: 1 | E160: 202330 | F160: 28 | G160: 28 | H160: 0 | I160: 0 | J160: 0 | K160: =+BD_DEP[[#This Row],[totalp]]/BD_DEP[[#This Row],[Mat Inicial]] -> 0 | L160: =+BD_DEP[[#This Row],[totalr]]/BD_DEP[[#This Row],[Mat Inicial]] -> 0 | M160: =+BD_DEP[[#This Row],[repi]]/BD_DEP[[#This Row],[Mat Inicial]] -> 0 | N160: 50 | O160: Dpto. Cs Politica y Rel Intern | P160: 72245278 | Q160: Melamed Visbal Janiel | R160: TC | S160: PR
A161: 3119 | B161: SCO4015 | C161: ORGANISMOS INTERNACIONALES | D161: 1 | E161: 202330 | F161: 21 | G161: 20 | H161: 1 | I161: 1 | J161: 2 | K161: =+BD_DEP[[#This Row],[totalp]]/BD_DEP[[#This Row],[Mat Inicial]] -> 0.04761904762 | L161: =+BD_DEP[[#This Row],[totalr]]/BD_DEP[[#This Row],[Mat Inicial]] -> 0.04761904762 | M161: =+BD_DEP[[#This Row],[repi]]/BD_DEP[[#This Row],[Mat Inicial]] -> 0.09523809524 | N161: 50 | O161: Dpto. Cs Politica y Rel Intern | P161: 9398085 | Q161: MORALES VEGAS GUSTAVO | R161: TC | S161: PR
A162: 2937 | B162: POL0030 | C162: POLÍTICA COLOMBIANA | D162: 1 | E162: 202330 | F162: 17 | G162: 16 | H162: 2 | I162: 1 | J162: 3 | K162: =+BD_DEP[[#This Row],[totalp]]/BD_DEP[[#This Row],[Mat Inicial]] -> 0.1176470588 | L162: =+BD_DEP[[#This Row],[totalr]]/BD_DEP[[#This Row],[Mat Inicial]] -> 0.05882352941 | M162: =+BD_DEP[[#This Row],[repi]]/BD_DEP[[#This Row],[Mat Inicial]] -> 0.1764705882 | N162: 50 | O162: Dpto. Cs Politica y Rel Intern | P162: 72311023 | Q162: Trejos Rosero Luis | R162: TC | S162: PR
A163: 2971 | B163: POL8170 | C163: POLITICA DE LA UNION EUROPEA | D163: 1 | E163: 202330 | F163: 29 | G163: 27 | H163: 0 | I163: 2 | J163: 2 | K163: =+BD_DEP[[#This Row],[totalp]]/BD_DEP[[#This Row],[Mat Inicial]] -> 0 | L163: =+BD_DEP[[#This Row],[totalr]]/BD_DEP[[#This Row],[Mat Inicial]] -> 0.06896551724 | M163: =+BD_DEP[[#This Row],[repi]]/BD_DEP[[#This Row],[Mat Inicial]] -> 0.06896551724 | N163: 50 | O163: Dpto. Cs Politica y Rel Intern | P163: 16208389 | Q163: Agudelo Taborda Jairo | R163: TC | S163: PR
A164: 2969 | B164: POL8165 | C164: POLITICA DE MEDIO ORIENTE | D164: 1 | E164: 202330 | F164: 39 | G164: 39 | H164: 0 | I164: 0 | J164: 0 | K164: =+BD_DEP[[#This Row],[totalp]]/BD_DEP[[#This Row],[Mat Inicial]] -> 0 | L164: =+BD_DEP[[#This Row],[totalr]]/BD_DEP[[#This Row],[Mat Inicial]] -> 0 | M164: =+BD_DEP[[#This Row],[repi]]/BD_DEP[[#This Row],[Mat Inicial]] -> 0 | N164: 50 | O164: Dpto. Cs Politica y Rel Intern | P164: 72245278 | Q164: Melamed Visbal Janiel | R164: TC | S164: PR
A165: 2940 | B165: POL3050 | C165: POLITICA EXTERIOR COLOMBIANA | D165: 1 | E165: 202330 | F165: 21 | G165: 21 | H165: 0 | I165: 0 | J165: 0 | K165: =+BD_DEP[[#This Row],[totalp]]/BD_DEP[[#This Row],[Mat Inicial]] -> 0 | L165: =+BD_DEP[[#This Row],[totalr]]/BD_DEP[[#This Row],[Mat Inicial]] -> 0 | M165: =+BD_DEP[[#This Row],[repi]]/BD_DEP[[#This Row],[Mat Inicial]] -> 0 | N165: 50 | O165: Dpto. Cs Politica y Rel Intern | P165: 72311023 | Q165: Trejos Rosero Luis | R165: TC | S165: PR
A166: 2943 | B166: POL4230 | C166: POLITICA LATINOAMERIC Y CARIBE | D166: 1 | E166: 202330 | F166: 30 | G166: 30 | H166: 0 | I166: 0 | J166: 0 | K166: =+BD_DEP[[#This Row],[totalp]]/BD_DEP[[#This Row],[Mat Inicial]] -> 0 | L166: =+BD_DEP[[#This Row],[totalr]]/BD_DEP[[#This Row],[Mat Inicial]] -> 0 | M166: =+BD_DEP[[#This Row],[repi]]/BD_DEP[[#This Row],[Mat Inicial]] -> 0 | N166: 50 | O166: Dpto. Cs Politica y Rel Intern | P166: 609608 | Q166: BALDERACCHI CLAUDIO | R166: TC | S166: PR
A167: 2972 | B167: POL8180 | C167: POLÍTICAS PÚBLICAS | D167: 1 | E167: 202330 | F167: 19 | G167: 19 | H167: 0 | I167: 0 | J167: 0 | K167: =+BD_DEP[[#This Row],[totalp]]/BD_DEP[[#This Row],[Mat Inicial]] -> 0 | L167: =+BD_DEP[[#This Row],[totalr]]/BD_DEP[[#This Row],[Mat Inicial]] -> 0 | M167: =+BD_DEP[[#This Row],[repi]]/BD_DEP[[#This Row],[Mat Inicial]] -> 0 | N167: 50 | O167: Dpto. Cs Politica y Rel Intern | P167: 72002637 | Q167: Tuiran Sarmiento Angel | R167: TC | S167: PR
A168: 2973 | B168: POL8180 | C168: POLÍTICAS PÚBLICAS | D168: 2 | E168: 202330 | F168: 19 | G168: 19 | H168: 0 | I168: 0 | J168: 0 | K168: =+BD_DEP[[#This Row],[totalp]]/BD_DEP[[#This Row],[Mat Inicial]] -> 0 | L168: =+BD_DEP[[#This Row],[totalr]]/BD_DEP[[#This Row],[Mat Inicial]] -> 0 | M168: =+BD_DEP[[#This Row],[repi]]/BD_DEP[[#This Row],[Mat Inicial]] -> 0 | N168: 50 | O168: Dpto. Cs Politica y Rel Intern | P168: 72002637 | Q168: Tuiran Sarmiento Angel | R168: TC | S168: PR
A169: 3125 | B169: SCO4100 | C169: SEM DE CONFLICTO Y PAZ | D169: 1 | E169: 202330 | F169: 23 | G169: 23 | H169: 0 | I169: 0 | J169: 0 | K169: =+BD_DEP[[#This Row],[totalp]]/BD_DEP[[#This Row],[Mat Inicial]] -> 0 | L169: =+BD_DEP[[#This Row],[totalr]]/BD_DEP[[#This Row],[Mat Inicial]] -> 0 | M169: =+BD_DEP[[#This Row],[repi]]/BD_DEP[[#This Row],[Mat Inicial]] -> 0 | N169: 50 | O169: Dpto. Cs Politica y Rel Intern | P169: 1140820687 | Q169: Rueda Fiorentino Mariangela | R169: TC | S169: PR
A170: 3126 | B170: SCO4100 | C170: SEM DE CONFLICTO Y PAZ | D170: 2 | E170: 202330 | F170: 19 | G170: 19 | H170: 0 | I170: 0 | J170: 0 | K170: =+BD_DEP[[#This Row],[totalp]]/BD_DEP[[#This Row],[Mat Inicial]] -> 0 | L170: =+BD_DEP[[#This Row],[totalr]]/BD_DEP[[#This Row],[Mat Inicial]] -> 0 | M170: =+BD_DEP[[#This Row],[repi]]/BD_DEP[[#This Row],[Mat Inicial]] -> 0 | N170: 50 | O170: Dpto. Cs Politica y Rel Intern | P170: 1140820687 | Q170: Rueda Fiorentino Mariangela | R170: TC | S170: PR
A171: 3122 | B171: SCO4050 | C171: SEMINARIO DE GLOBALIZACION | D171: 1 | E171: 202330 | F171: 23 | G171: 22 | H171: 1 | I171: 1 | J171: 2 | K171: =+BD_DEP[[#This Row],[totalp]]/BD_DEP[[#This Row],[Mat Inicial]] -> 0.04347826087 | L171: =+BD_DEP[[#This Row],[totalr]]/BD_DEP[[#This Row],[Mat Inicial]] -> 0.04347826087 | M171: =+BD_DEP[[#This Row],[repi]]/BD_DEP[[#This Row],[Mat Inicial]] -> 0.08695652174 | N171: 50 | O171: Dpto. Cs Politica y Rel Intern | P171: 1140820687 | Q171: Rueda Fiorentino Mariangela | R171: TC | S171: PR
A172: 2383 | B172: INV4085 | C172: SEMINARIO DE INVESTIGACION I | D172: 1 | E172: 202330 | F172: 20 | G172: 20 | H172: 0 | I172: 0 | J172: 0 | K172: =+BD_DEP[[#This Row],[totalp]]/BD_DEP[[#This Row],[Mat Inicial]] -> 0 | L172: =+BD_DEP[[#This Row],[totalr]]/BD_DEP[[#This Row],[Mat Inicial]] -> 0 | M172: =+BD_DEP[[#This Row],[repi]]/BD_DEP[[#This Row],[Mat Inicial]] -> 0 | N172: 50 | O172: Dpto. Cs Politica y Rel Intern | P172: 30338632 | Q172: Rico Revelo Diana | R172: TC | S172: PR
A173: 2384 | B173: INV4085 | C173: SEMINARIO DE INVESTIGACION I | D173: 2 | E173: 202330 | F173: 19 | G173: 18 | H173: 0 | I173: 1 | J173: 1 | K173: =+BD_DEP[[#This Row],[totalp]]/BD_DEP[[#This Row],[Mat Inicial]] -> 0 | L173: =+BD_DEP[[#This Row],[totalr]]/BD_DEP[[#This Row],[Mat Inicial]] -> 0.05263157895 | M173: =+BD_DEP[[#This Row],[repi]]/BD_DEP[[#This Row],[Mat Inicial]] -> 0.05263157895 | N173: 50 | O173: Dpto. Cs Politica y Rel Intern | P173: 1140865839 | Q173: Lopez Muñoz Laura | R173: TC | S173: PR
A174: 2385 | B174: INV4095 | C174: SEMINARIO DE INVESTIGACION II | D174: 1 | E174: 202330 | F174: 19 | G174: 19 | H174: 0 | I174: 0 | J174: 0 | K174: =+BD_DEP[[#This Row],[totalp]]/BD_DEP[[#This Row],[Mat Inicial]] -> 0 | L174: =+BD_DEP[[#This Row],[totalr]]/BD_DEP[[#This Row],[Mat Inicial]] -> 0 | M174: =+BD_DEP[[#This Row],[repi]]/BD_DEP[[#This Row],[Mat Inicial]] -> 0 | N174: 50 | O174: Dpto. Cs Politica y Rel Intern | P174: 1140865839 | Q174: Lopez Muñoz Laura | R174: TC | S174: PR
A175: 2974 | B175: POL8210 | C175: SEMINARIO PROTOCOLO | D175: 1 | E175: 202330 | F175: 24 | G175: 21 | H175: 0 | I175: 3 | J175: 3 | K175: =+BD_DEP[[#This Row],[totalp]]/BD_DEP[[#This Row],[Mat Inicial]] -> 0 | L175: =+BD_DEP[[#This Row],[totalr]]/BD_DEP[[#This Row],[Mat Inicial]] -> 0.125 | M175: =+BD_DEP[[#This Row],[repi]]/BD_DEP[[#This Row],[Mat Inicial]] -> 0.125 | N175: 50 | O175: Dpto. Cs Politica y Rel Intern | P175: 32634549 | Q175: Plata Cepeda Sara | R175: TC | S175: PR
A176: 2965 | B176: POL8065 | C176: SISTEMAS POLITICOS COMPARADOS | D176: 1 | E176: 202330 | F176: 20 | G176: 20 | H176: 0 | I176: 0 | J176: 0 | K176: =+BD_DEP[[#This Row],[totalp]]/BD_DEP[[#This Row],[Mat Inicial]] -> 0 | L176: =+BD_DEP[[#This Row],[totalr]]/BD_DEP[[#This Row],[Mat Inicial]] -> 0 | M176: =+BD_DEP[[#This Row],[repi]]/BD_DEP[[#This Row],[Mat Inicial]] -> 0 | N176: 50 | O176: Dpto. Cs Politica y Rel Intern | P176: 1045676539 | Q176: GONZALEZ MALABET MARIA | R176: TC | S176: PR
A177: 2966 | B177: POL8065 | C177: SISTEMAS POLITICOS COMPARADOS | D177: 2 | E177: 202330 | F177: 17 | G177: 17 | H177: 0 | I177: 0 | J177: 0 | K177: =+BD_DEP[[#This Row],[totalp]]/BD_DEP[[#This Row],[Mat Inicial]] -> 0 | L177: =+BD_DEP[[#This Row],[totalr]]/BD_DEP[[#This Row],[Mat Inicial]] -> 0 | M177: =+BD_DEP[[#This Row],[repi]]/BD_DEP[[#This Row],[Mat Inicial]] -> 0 | N177: 50 | O177: Dpto. Cs Politica y Rel Intern | P177: 1045676539 | Q177: GONZALEZ MALABET MARIA | R177: TC | S177: PR
A178: 2967 | B178: POL8065 | C178: SISTEMAS POLITICOS COMPARADOS | D178: 3 | E178: 202330 | F178: 8 | G178: 8 | H178: 0 | I178: 0 | J178: 0 | K178: =+BD_DEP[[#This Row],[totalp]]/BD_DEP[[#This Row],[Mat Inicial]] -> 0 | L178: =+BD_DEP[[#This Row],[totalr]]/BD_DEP[[#This Row],[Mat Inicial]] -> 0 | M178: =+BD_DEP[[#This Row],[repi]]/BD_DEP[[#This Row],[Mat Inicial]] -> 0 | N178: 50 | O178: Dpto. Cs Politica y Rel Intern | P178: 1045676539 | Q178: GONZALEZ MALABET MARIA | R178: TC | S178: PR
A179: 3123 | B179: SCO4090 | C179: TEORIA DE LAS REL INTERNAC II | D179: 1 | E179: 202330 | F179: 21 | G179: 20 | H179: 0 | I179: 1 | J179: 1 | K179: =+BD_DEP[[#This Row],[totalp]]/BD_DEP[[#This Row],[Mat Inicial]] -> 0 | L179: =+BD_DEP[[#This Row],[totalr]]/BD_DEP[[#This Row],[Mat Inicial]] -> 0.04761904762 | M179: =+BD_DEP[[#This Row],[repi]]/BD_DEP[[#This Row],[Mat Inicial]] -> 0.04761904762 | N179: 50 | O179: Dpto. Cs Politica y Rel Intern | P179: 52969363 | Q179: Rodriguez Rodriguez Angelica | R179: TC | S179: PR
A180: 3124 | B180: SCO4090 | C180: TEORIA DE LAS REL INTERNAC II | D180: 2 | E180: 202330 | F180: 16 | G180: 16 | H180: 0 | I180: 0 | J180: 0 | K180: =+BD_DEP[[#This Row],[totalp]]/BD_DEP[[#This Row],[Mat Inicial]] -> 0 | L180: =+BD_DEP[[#This Row],[totalr]]/BD_DEP[[#This Row],[Mat Inicial]] -> 0 | M180: =+BD_DEP[[#This Row],[repi]]/BD_DEP[[#This Row],[Mat Inicial]] -> 0 | N180: 50 | O180: Dpto. Cs Politica y Rel Intern | P180: 52969363 | Q180: Rodriguez Rodriguez Angelica | R180: TC | S180: PR
A181: 3121 | B181: SCO4025 | C181: TEORIA DE LAS RELACIONES INTER | D181: 1 | E181: 202330 | F181: 38 | G181: 35 | H181: 1 | I181: 3 | J181: 4 | K181: =+BD_DEP[[#This Row],[totalp]]/BD_DEP[[#This Row],[Mat Inicial]] -> 0.02631578947 | L181: =+BD_DEP[[#This Row],[totalr]]/BD_DEP[[#This Row],[Mat Inicial]] -> 0.07894736842 | M181: =+BD_DEP[[#This Row],[repi]]/BD_DEP[[#This Row],[Mat Inicial]] -> 0.1052631579 | N181: 50 | O181: Dpto. Cs Politica y Rel Intern | P181: 52969363 | Q181: Rodriguez Rodriguez Angelica | R181: TC | S181: PR
A182: 2951 | B182: POL4521 | C182: TEORIA POLITICA I | D182: 1 | E182: 202330 | F182: 16 | G182: 16 | H182: 1 | I182: 0 | J182: 1 | K182: =+BD_DEP[[#This Row],[totalp]]/BD_DEP[[#This Row],[Mat Inicial]] -> 0.0625 | L182: =+BD_DEP[[#This Row],[totalr]]/BD_DEP[[#This Row],[Mat Inicial]] -> 0 | M182: =+BD_DEP[[#This Row],[repi]]/BD_DEP[[#This Row],[Mat Inicial]] -> 0.0625 | N182: 50 | O182: Dpto. Cs Politica y Rel Intern | P182: 609608 | Q182: BALDERACCHI CLAUDIO | R182: TC | S182: PR
A183: 2952 | B183: POL4522 | C183: TEORIA POLITICA II | D183: 1 | E183: 202330 | F183: 9 | G183: 9 | H183: 0 | I183: 0 | J183: 0 | K183: =+BD_DEP[[#This Row],[totalp]]/BD_DEP[[#This Row],[Mat Inicial]] -> 0 | L183: =+BD_DEP[[#This Row],[totalr]]/BD_DEP[[#This Row],[Mat Inicial]] -> 0 | M183: =+BD_DEP[[#This Row],[repi]]/BD_DEP[[#This Row],[Mat Inicial]] -> 0 | N183: 50 | O183: Dpto. Cs Politica y Rel Intern | P183: 9398085 | Q183: MORALES VEGAS GUSTAVO | R183: TC | S183: PR
A184: 2941 | B184: POL4010 | C184: TEORIA Y ESTRUCTURA DEL ESTADO | D184: 1 | E184: 202330 | F184: 26 | G184: 26 | H184: 0 | I184: 0 | J184: 0 | K184: =+BD_DEP[[#This Row],[totalp]]/BD_DEP[[#This Row],[Mat Inicial]] -> 0 | L184: =+BD_DEP[[#This Row],[totalr]]/BD_DEP[[#This Row],[Mat Inicial]] -> 0 | M184: =+BD_DEP[[#This Row],[repi]]/BD_DEP[[#This Row],[Mat Inicial]] -> 0 | N184: 50 | O184: Dpto. Cs Politica y Rel Intern | P184: 16208389 | Q184: Agudelo Taborda Jairo | R184: TC | S184: PR
A185: 2953 | B185: POL4523 | C185: TEORIAS DE LA DEMOCRACIA | D185: 2 | E185: 202330 | F185: 13 | G185: 12 | H185: 0 | I185: 1 | J185: 1 | K185: =+BD_DEP[[#This Row],[totalp]]/BD_DEP[[#This Row],[Mat Inicial]] -> 0 | L185: =+BD_DEP[[#This Row],[totalr]]/BD_DEP[[#This Row],[Mat Inicial]] -> 0.07692307692 | M185: =+BD_DEP[[#This Row],[repi]]/BD_DEP[[#This Row],[Mat Inicial]] -> 0.07692307692 | N185: 50 | O185: Dpto. Cs Politica y Rel Intern | P185: 9398085 | Q185: MORALES VEGAS GUSTAVO | R185: TC | S185: PR
A186: 2956 | B186: POL4525 | C186: CULTURA POLITICA Y OPINION PUB | D186: 1 | E186: 202330 | F186: 30 | G186: 29 | H186: 0 | I186: 1 | J186: 1 | K186: =+BD_DEP[[#This Row],[totalp]]/BD_DEP[[#This Row],[Mat Inicial]] -> 0 | L186: =+BD_DEP[[#This Row],[totalr]]/BD_DEP[[#This Row],[Mat Inicial]] -> 0.03333333333 | M186: =+BD_DEP[[#This Row],[repi]]/BD_DEP[[#This Row],[Mat Inicial]] -> 0.03333333333 | N186: 50 | O186: Dpto. Cs Politica y Rel Intern | P186: 1082856396 | Q186: PEÑARANDA FERNANDEZ ALICIA | R186: CA | S186: PR
A187: 2958 | B187: POL4528 | C187: DISEÑOS CUALI Y CUANTI | D187: 1 | E187: 202330 | F187: 19 | G187: 18 | H187: 0 | I187: 1 | J187: 1 | K187: =+BD_DEP[[#This Row],[totalp]]/BD_DEP[[#This Row],[Mat Inicial]] -> 0 | L187: =+BD_DEP[[#This Row],[totalr]]/BD_DEP[[#This Row],[Mat Inicial]] -> 0.05263157895 | M187: =+BD_DEP[[#This Row],[repi]]/BD_DEP[[#This Row],[Mat Inicial]] -> 0.05263157895 | N187: 50 | O187: Dpto. Cs Politica y Rel Intern | P187: 72253006 | Q187: Valencia Cobo Jorge | R187: CA | S187: PR
A188: 2945 | B188: POL4285 | C188: EVALUACIÓN DEPOLITICAS PÚBLICA | D188: 1 | E188: 202330 | F188: 14 | G188: 13 | H188: 0 | I188: 1 | J188: 1 | K188: =+BD_DEP[[#This Row],[totalp]]/BD_DEP[[#This Row],[Mat Inicial]] -> 0 | L188: =+BD_DEP[[#This Row],[totalr]]/BD_DEP[[#This Row],[Mat Inicial]] -> 0.07142857143 | M188: =+BD_DEP[[#This Row],[repi]]/BD_DEP[[#This Row],[Mat Inicial]] -> 0.07142857143 | N188: 50 | O188: =+VLOOKUP(BD_DEP[[#This Row],[CODASG]],[2]carga!$C$1:$N$13231,5,FALSE) -> Dpto. Cs Politica y Rel Intern | P188: 73207919 | Q188: Garcia Torres David | R188: CA | S188: PR
A189: 2946 | B189: POL4285 | C189: EVALUACIÓN DEPOLITICAS PÚBLICA | D189: 2 | E189: 202330 | F189: 19 | G189: 18 | H189: 0 | I189: 1 | J189: 1 | K189: =+BD_DEP[[#This Row],[totalp]]/BD_DEP[[#This Row],[Mat Inicial]] -> 0 | L189: =+BD_DEP[[#This Row],[totalr]]/BD_DEP[[#This Row],[Mat Inicial]] -> 0.05263157895 | M189: =+BD_DEP[[#This Row],[repi]]/BD_DEP[[#This Row],[Mat Inicial]] -> 0.05263157895 | N189: 50 | O189: =+VLOOKUP(BD_DEP[[#This Row],[CODASG]],[2]carga!$C$1:$N$13231,5,FALSE) -> Dpto. Cs Politica y Rel Intern | P189: 1234093915 | Q189: Monsalvo Amaris Carmen | R189: CA | S189: PR
A190: 2938 | B190: POL0080 | C190: GEOPOLITICA | D190: 1 | E190: 202330 | F190: 16 | G190: 16 | H190: 0 | I190: 0 | J190: 0 | K190: =+BD_DEP[[#This Row],[totalp]]/BD_DEP[[#This Row],[Mat Inicial]] -> 0 | L190: =+BD_DEP[[#This Row],[totalr]]/BD_DEP[[#This Row],[Mat Inicial]] -> 0 | M190: =+BD_DEP[[#This Row],[repi]]/BD_DEP[[#This Row],[Mat Inicial]] -> 0 | N190: 50 | O190: Dpto. Cs Politica y Rel Intern | P190: 1129579653 | Q190: Londoño Meza Guillermo | R190: CA | S190: PR
A191: 1185 | B191: POL4530 | C191: GERENCIA PUBLICA | D191: 1 | E191: 202330 | F191: 17 | G191: 16 | H191: 0 | I191: 1 | J191: 1 | K191: =+BD_DEP[[#This Row],[totalp]]/BD_DEP[[#This Row],[Mat Inicial]] -> 0 | L191: =+BD_DEP[[#This Row],[totalr]]/BD_DEP[[#This Row],[Mat Inicial]] -> 0.05882352941 | M191: =+BD_DEP[[#This Row],[repi]]/BD_DEP[[#This Row],[Mat Inicial]] -> 0.05882352941 | N191: 50 | O191: Dpto. Cs Politica y Rel Intern | P191: 19472285 | Q191: Gomez Mendoza Arnold | R191: CA | S191: PR
A192: 2944 | B192: POL4270 | C192: INTRODUC A LA ADMON PUBLICA | D192: 1 | E192: 202330 | F192: 12 | G192: 12 | H192: 1 | I192: 0 | J192: 1 | K192: =+BD_DEP[[#This Row],[totalp]]/BD_DEP[[#This Row],[Mat Inicial]] -> 0.08333333333 | L192: =+BD_DEP[[#This Row],[totalr]]/BD_DEP[[#This Row],[Mat Inicial]] -> 0 | M192: =+BD_DEP[[#This Row],[repi]]/BD_DEP[[#This Row],[Mat Inicial]] -> 0.08333333333 | N192: 50 | O192: =+VLOOKUP(BD_DEP[[#This Row],[CODASG]],[2]carga!$C$1:$N$13231,5,FALSE) -> Dpto. Cs Politica y Rel Intern | P192: 1140821228 | Q192: Diartt Pombo Katherine | R192: CA | S192: PR
A193: 2961 | B193: POL4532 | C193: PARTICIPACION Y PROCESOS ELEC | D193: 1 | E193: 202330 | F193: 7 | G193: 6 | H193: 0 | I193: 1 | J193: 1 | K193: =+BD_DEP[[#This Row],[totalp]]/BD_DEP[[#This Row],[Mat Inicial]] -> 0 | L193: =+BD_DEP[[#This Row],[totalr]]/BD_DEP[[#This Row],[Mat Inicial]] -> 0.1428571429 | M193: =+BD_DEP[[#This Row],[repi]]/BD_DEP[[#This Row],[Mat Inicial]] -> 0.1428571429 | N193: 50 | O193: Dpto. Cs Politica y Rel Intern | P193: 1140821254 | Q193: Aroca Vidal Maria | R193: CA | S193: PR
A194: 2962 | B194: POL4533 | C194: PARTIDOS Y SISTEMAS DE PART. | D194: 1 | E194: 202330 | F194: 15 | G194: 15 | H194: 1 | I194: 0 | J194: 1 | K194: =+BD_DEP[[#This Row],[totalp]]/BD_DEP[[#This Row],[Mat Inicial]] -> 0.06666666667 | L194: =+BD_DEP[[#This Row],[totalr]]/BD_DEP[[#This Row],[Mat Inicial]] -> 0 | M194: =+BD_DEP[[#This Row],[repi]]/BD_DEP[[#This Row],[Mat Inicial]] -> 0.06666666667 | N194: 50 | O194: Dpto. Cs Politica y Rel Intern | P194: 1129579179 | Q194: Ruiz Aycardi Paola | R194: CA | S194: PR
A195: 2963 | B195: POL4534 | C195: PLANEACION DEL DESARROLLO | D195: 1 | E195: 202330 | F195: 15 | G195: 15 | H195: 0 | I195: 0 | J195: 0 | K195: =+BD_DEP[[#This Row],[totalp]]/BD_DEP[[#This Row],[Mat Inicial]] -> 0 | L195: =+BD_DEP[[#This Row],[totalr]]/BD_DEP[[#This Row],[Mat Inicial]] -> 0 | M195: =+BD_DEP[[#This Row],[repi]]/BD_DEP[[#This Row],[Mat Inicial]] -> 0 | N195: 50 | O195: Dpto. Cs Politica y Rel Intern | P195: 1045679071 | Q195: Pineda Serge Camilo | R195: CA | S195: PR
A196: 2964 | B196: POL4534 | C196: PLANEACION DEL DESARROLLO | D196: 2 | E196: 202330 | F196: 12 | G196: 10 | H196: 0 | I196: 2 | J196: 2 | K196: =+BD_DEP[[#This Row],[totalp]]/BD_DEP[[#This Row],[Mat Inicial]] -> 0 | L196: =+BD_DEP[[#This Row],[totalr]]/BD_DEP[[#This Row],[Mat Inicial]] -> 0.1666666667 | M196: =+BD_DEP[[#This Row],[repi]]/BD_DEP[[#This Row],[Mat Inicial]] -> 0.1666666667 | N196: 50 | O196: Dpto. Cs Politica y Rel Intern | P196: 1045679071 | Q196: Pineda Serge Camilo | R196: CA | S196: PR
A197: 2968 | B197: POL8160 | C197: POLITICA DE ASIA PACIFICO | D197: 1 | E197: 202330 | F197: 38 | G197: 38 | H197: 0 | I197: 0 | J197: 0 | K197: =+BD_DEP[[#This Row],[totalp]]/BD_DEP[[#This Row],[Mat Inicial]] -> 0 | L197: =+BD_DEP[[#This Row],[totalr]]/BD_DEP[[#This Row],[Mat Inicial]] -> 0 | M197: =+BD_DEP[[#This Row],[repi]]/BD_DEP[[#This Row],[Mat Inicial]] -> 0 | N197: 50 | O197: =+VLOOKUP(BD_DEP[[#This Row],[CODASG]],[2]carga!$C$1:$N$13231,5,FALSE) -> Dpto. Cs Politica y Rel Intern | P197: 79407658 | Q197: GALEANO DAVID HECTOR | R197: CA | S197: PR
A198: 2942 | B198: POL4220 | C198: POLITICA EXTERIOR COLOMBIANA | D198: 1 | E198: 202330 | F198: 21 | G198: 19 | H198: 1 | I198: 2 | J198: 3 | K198: =+BD_DEP[[#This Row],[totalp]]/BD_DEP[[#This Row],[Mat Inicial]] -> 0.04761904762 | L198: =+BD_DEP[[#This Row],[totalr]]/BD_DEP[[#This Row],[Mat Inicial]] -> 0.09523809524 | M198: =+BD_DEP[[#This Row],[repi]]/BD_DEP[[#This Row],[Mat Inicial]] -> 0.1428571429 | N198: 50 | O198: Dpto. Cs Politica y Rel Intern | P198: 79407658 | Q198: GALEANO DAVID HECTOR | R198: CA | S198: PR
A199: 2950 | B199: POL4520 | C199: PROCESOS LEGISLATIVOS | D199: 1 | E199: 202330 | F199: 7 | G199: 7 | H199: 0 | I199: 0 | J199: 0 | K199: =+BD_DEP[[#This Row],[totalp]]/BD_DEP[[#This Row],[Mat Inicial]] -> 0 | L199: =+BD_DEP[[#This Row],[totalr]]/BD_DEP[[#This Row],[Mat Inicial]] -> 0 | M199: =+BD_DEP[[#This Row],[repi]]/BD_DEP[[#This Row],[Mat Inicial]] -> 0 | N199: 50 | O199: Dpto. Cs Politica y Rel Intern | P199: 1140855035 | Q199: Caballero Lopera Jose | R199: CA | S199: PR
A200: 2949 | B200: POL4335 | C200: SEM DE INTEGRACION ECONOMICA | D200: 1 | E200: 202330 | F200: 15 | G200: 14 | H200: 0 | I200: 1 | J200: 1 | K200: =+BD_DEP[[#This Row],[totalp]]/BD_DEP[[#This Row],[Mat Inicial]] -> 0 | L200: =+BD_DEP[[#This Row],[totalr]]/BD_DEP[[#This Row],[Mat Inicial]] -> 0.06666666667 | M200: =+BD_DEP[[#This Row],[repi]]/BD_DEP[[#This Row],[Mat Inicial]] -> 0.06666666667 | N200: 50 | O200: =+VLOOKUP(BD_DEP[[#This Row],[CODASG]],[2]carga!$C$1:$N$13231,5,FALSE) -> Dpto. Cs Politica y Rel Intern | P200: 72302939 | Q200: Navarro Garcia Alejandro | R200: CA | S200: PR
... 2382 more rows

Sheet Índice
C5: Índice
F9: Institucional
C11: Dpto. Arquitectura y Urbanismo | E11: Dpto. Emprendimiento y Management | G11: Dpto. Ingeniería de Sistemas | I11: Dpto. Música
C13: Dpto. Comunicación Social | E13: Dpto. Enfermería | G13: Dpto. Ingeniería Industrial | I13: Dpto. Odontología
C15: Dpto. Cs. Política y Rel. Internacionales | E15: Dpto. Español | G15: Dpto. Ingeniería Mecánica | I15: Dpto. Psicología
C17: Dpto. de Economía | E17: Dpto. Física y Geociencias | G17: Dpto. Lenguas Extranjeras | I17: Dpto. Química y Biología
C19: Dpto. Derecho | E19: Dpto. Historia y Ciencias Sociales | G19: Dpto. Matemáticas y Estadística | I19: Dpto. Finanzas y Contaduría
C21: Dpto. Diseño | E21: Dpto. Humanidades y Filosofía | G21: Dpto. Medicina | I21: Dpto. Salud Pública
C23: Dpto. Educación | E23: Dpto. Ingeniería Civil y Ambiental | G23: Dpto. Mercadeo y Negocios Internacionales | I23: Dpto. Ingeniería Eléctrica y Electrónica
A29: Marzo 20 de 2019

Sheet Rep_Inst
A1: OFICINA DE PLANEACIÓN - INFORMACIÓN Y ESTADÍSTICA
A3: Perdidos, Retirados y Repitencia de Asignaturas
A4: =Planeación!A1 -> 2023-2
A5: Codasg | B5: Asignaturas | C5: Total Cursos Abiertos | D5: Matrícula Inicial | E5: Matrícula Final | F5: Perdidos | G5: % Perdidos | H5: Retirados | I5: % Retirados | J5: % Repitencia
A6: PSI1300 | B6: TEND. Y AUTORES CONDUCTUALES | C6: 1 | D6: 1 | E6: 0 | F6: 0 | G6: =IFERROR(F6/E6,0) -> 0 | H6: 1 | I6: =H6/D6 -> 1 | J6: =(H6+F6)/D6 -> 1
A7: MUS7538 | B7: RECITAL CLARINETE II | C7: 1 | D7: 1 | E7: 0 | F7: 0 | G7: 0 | H7: 1 | I7: 1 | J7: 1
A8: MUS7045 | B8: GUITARRA II | C8: 1 | D8: 1 | E8: 0 | F8: 0 | G8: 0 | H8: 1 | I8: 1 | J8: 1 | L8: Volver al Índice
A9: MUS4025 | B9: DEL CLASICISMO AL IMPRESIONISM | C9: 1 | D9: 3 | E9: 2 | F9: 1 | G9: 0.5 | H9: 1 | I9: 0.3333333333 | J9: 0.6666666667
A10: LEY4710 | B10: TEORIA DEL DERECHO PROCESAL | C10: 2 | D10: 74 | E10: 45 | F10: 18 | G10: 0.4 | H10: 29 | I10: 0.3918918919 | J10: 0.6351351351
A11: MUS4060 | B11: FUNDAMENTOS DE TEORIA | C11: 1 | D11: 11 | E11: 9 | F11: 4 | G11: 0.4444444444 | H11: 2 | I11: 0.1818181818 | J11: 0.5454545455
A12: PSI0055 | B12: PENSAMIENTO Y LENGUAJE | C12: 2 | D12: 2 | E12: 1 | F12: 0 | G12: 0 | H12: 1 | I12: 0.5 | J12: 0.5 | L12: Ir a Tabla de Repitencia >=30%
A13: ARQ4070 | B13: PROYECTO DE GRADO | C13: 1 | D13: 2 | E13: 2 | F13: 1 | G13: 0.5 | H13: 0 | I13: 0 | J13: 0.5
A14: IBA4070 | B14: ESTATICA PARA ARQUITECTOS | C14: 2 | D14: 46 | E14: 39 | F14: 15 | G14: 0.3846153846 | H14: 7 | I14: 0.152173913 | J14: 0.4782608696
A15: ECA0065 | B15: MUSICA DE COLOMBIA Y DEL CAR | C15: 1 | D15: 26 | E15: 18 | F15: 4 | G15: 0.2222222222 | H15: 8 | I15: 0.3076923077 | J15: 0.4615384615
A16: IIN7050 | B16: CTRL Y GEST INT DE LA CALIDAD | C16: 8 | D16: 113 | E16: 86 | F16: 25 | G16: 0.2906976744 | H16: 27 | I16: 0.2389380531 | J16: 0.4601769912
A17: LEY1080 | B17: TEORIA Y ORG. DEL ESTADO | C17: 3 | D17: 85 | E17: 62 | F17: 16 | G17: 0.2580645161 | H17: 23 | I17: 0.2705882353 | J17: 0.4588235294
A18: MAT4160 | B18: ANALISIS MATEMATICO 1 | C18: 1 | D18: 27 | E18: 18 | F18: 3 | G18: 0.1666666667 | H18: 9 | I18: 0.3333333333 | J18: 0.4444444444
A19: INV4270 | B19: PROYECTO DE GRADO II FILOSOFIA | C19: 1 | D19: 7 | E19: 6 | F19: 2 | G19: 0.3333333333 | H19: 1 | I19: 0.1428571429 | J19: 0.4285714286
A20: HIS7130 | B20: AMERICA PREHISPANICA | C20: 2 | D20: 75 | E20: 50 | F20: 7 | G20: 0.14 | H20: 25 | I20: 0.3333333333 | J20: 0.4266666667
A21: LEY4021 | B21: OBLIGACIONES II | C21: 3 | D21: 84 | E21: 77 | F21: 28 | G21: 0.3636363636 | H21: 7 | I21: 0.08333333333 | J21: 0.4166666667
A22: ICI7104 | B22: ANÁLISIS ESTRUCTURAL | C22: 3 | D22: 112 | E22: 97 | F22: 31 | G22: 0.3195876289 | H22: 15 | I22: 0.1339285714 | J22: 0.4107142857
A23: IME7070 | B23: TERMODINAMICA II | C23: 2 | D23: 44 | E23: 28 | F23: 2 | G23: 0.07142857143 | H23: 16 | I23: 0.3636363636 | J23: 0.4090909091
A24: IIN7105 | B24: SIMULACIÓN | C24: 4 | D24: 109 | E24: 99 | F24: 34 | G24: 0.3434343434 | H24: 10 | I24: 0.09174311927 | J24: 0.4036697248
A25: ICI4021 | B25: DISEÑO DE VÍAS | C25: 2 | D25: 77 | E25: 68 | F25: 22 | G25: 0.3235294118 | H25: 9 | I25: 0.1168831169 | J25: 0.4025974026
A26: ECO8731 | B26: MICROECONOMIA I | C26: 1 | D26: 28 | E26: 19 | F26: 2 | G26: 0.1052631579 | H26: 9 | I26: 0.3214285714 | J26: 0.3928571429
A27: IEL7250 | B27: LINEAS Y REDES DE TRANSMISION | C27: 2 | D27: 37 | E27: 30 | F27: 7 | G27: 0.2333333333 | H27: 7 | I27: 0.1891891892 | J27: 0.3783783784
A28: IME1205 | B28: CIENCIA DE LOS MATERIALES | C28: 11 | D28: 157 | E28: 118 | F28: 20 | G28: 0.1694915254 | H28: 39 | I28: 0.2484076433 | J28: 0.3757961783
A29: EST4071 | B29: ANALISIS ESTADISTICO | C29: 1 | D29: 16 | E29: 10 | F29: 0 | G29: 0 | H29: 6 | I29: 0.375 | J29: 0.375
A30: IGL4890 | B30: EXIGENCIA INGLES I | C30: 7 | D30: 139 | E30: 128 | F30: 41 | G30: 0.3203125 | H30: 11 | I30: 0.07913669065 | J30: 0.3741007194
A31: ARQ4026 | B31: CONST III TECN AVANZ INDUST | C31: 1 | D31: 22 | E31: 19 | F31: 5 | G31: 0.2631578947 | H31: 3 | I31: 0.1363636364 | J31: 0.3636363636
A32: EST1062 | B32: ESTADISTICA MATEMATICAS | C32: 1 | D32: 11 | E32: 9 | F32: 2 | G32: 0.2222222222 | H32: 2 | I32: 0.1818181818 | J32: 0.3636363636
A33: IIN7061 | B33: INVESTIGACION DE OPERACIONES I | C33: 4 | D33: 124 | E33: 110 | F33: 31 | G33: 0.2818181818 | H33: 14 | I33: 0.1129032258 | J33: 0.3629032258
A34: IME7095 | B34: MODELOS DE SISTEMAS DINÁMICOS | C34: 2 | D34: 31 | E34: 24 | F34: 4 | G34: 0.1666666667 | H34: 7 | I34: 0.2258064516 | J34: 0.3548387097
A35: IIN7171 | B35: PLAN. PROG Y CTRL PRODUCCION | C35: 3 | D35: 85 | E35: 74 | F35: 19 | G35: 0.2567567568 | H35: 11 | I35: 0.1294117647 | J35: 0.3529411765
A36: GEO4014 | B36: GEOQUIMICA | C36: 2 | D36: 20 | E36: 15 | F36: 2 | G36: 0.1333333333 | H36: 5 | I36: 0.25 | J36: 0.35
A37: IME4200 | B37: MECÁNICA DE SOLIDOS | C37: 5 | D37: 168 | E37: 143 | F37: 32 | G37: 0.2237762238 | H37: 25 | I37: 0.1488095238 | J37: 0.3392857143
A38: MAT4260 | B38: CALCULO III (ANEC) | C38: 5 | D38: 189 | E38: 146 | F38: 20 | G38: 0.1369863014 | H38: 43 | I38: 0.2275132275 | J38: 0.3333333333
A39: IGL1350 | B39: BUSINESS ENGLISH I | C39: 1 | D39: 18 | E39: 15 | F39: 3 | G39: 0.2 | H39: 3 | I39: 0.1666666667 | J39: 0.3333333333
A40: MAT4264 | B40: TOPOLOGIA | C40: 1 | D40: 12 | E40: 9 | F40: 1 | G40: 0.1111111111 | H40: 3 | I40: 0.25 | J40: 0.3333333333
A41: MAT4051 | B41: ANALISIS NUMERICO | C41: 1 | D41: 9 | E41: 7 | F41: 1 | G41: 0.1428571429 | H41: 2 | I41: 0.2222222222 | J41: 0.3333333333
A42: MUS4030 | B42: ENTRENAMIENTO AUDITIVO I | C42: 1 | D42: 9 | E42: 7 | F42: 1 | G42: 0.1428571429 | H42: 2 | I42: 0.2222222222 | J42: 0.3333333333
A43: ELP8260 | B43: PROYECTO DE GRADO | C43: 1 | D43: 3 | E43: 2 | F43: 0 | G43: 0 | H43: 1 | I43: 0.3333333333 | J43: 0.3333333333
A44: PSI0015 | B44: PSICOLOGIA DEL DESARROLLO II | C44: 1 | D44: 3 | E44: 3 | F44: 1 | G44: 0.3333333333 | H44: 0 | I44: 0 | J44: 0.3333333333
A45: MAT1101 | B45: CALCULO I | C45: 8 | D45: 292 | E45: 236 | F45: 41 | G45: 0.1737288136 | H45: 56 | I45: 0.1917808219 | J45: 0.3321917808
A46: LEY2021 | B46: TEORIA CONS. E INST. POLITICAS | C46: 2 | D46: 89 | E46: 75 | F46: 15 | G46: 0.2 | H46: 14 | I46: 0.1573033708 | J46: 0.3258426966
A47: IGL4992 | B47: ENGLISH I | C47: 3 | D47: 22 | E47: 19 | F47: 4 | G47: 0.2105263158 | H47: 3 | I47: 0.1363636364 | J47: 0.3181818182
A48: IST7081 | B48: SISTEMAS OPERACIONALES | C48: 2 | D48: 41 | E48: 36 | F48: 8 | G48: 0.2222222222 | H48: 5 | I48: 0.1219512195 | J48: 0.3170731707
A49: LEY4600 | B49: ADMINISTRATIVO I | C49: 2 | D49: 60 | E49: 47 | F49: 6 | G49: 0.1276595745 | H49: 13 | I49: 0.2166666667 | J49: 0.3166666667
A50: MAT4258 | B50: CALCULO II (ANEC) | C50: 6 | D50: 216 | E50: 177 | F50: 29 | G50: 0.1638418079 | H50: 39 | I50: 0.1805555556 | J50: 0.3148148148
A51: MAT8630 | B51: GEOMETRÍA 2D | C51: 2 | D51: 64 | E51: 50 | F51: 6 | G51: 0.12 | H51: 14 | I51: 0.21875 | J51: 0.3125
A52: ICI4011 | B52: TOPOGRAFIA Y GEOINFORMACION | C52: 4 | D52: 61 | E52: 53 | F52: 11 | G52: 0.2075471698 | H52: 8 | I52: 0.131147541 | J52: 0.3114754098
A53: HIS2041 | B53: FUNDAMENTOS DEL MUNDO CONTEM | C53: 2 | D53: 52 | E53: 38 | F53: 2 | G53: 0.05263157895 | H53: 14 | I53: 0.2692307692 | J53: 0.3076923077
A54: LEY4660 | B54: PROCEDIMIENTO CIVIL GRAL | C54: 3 | D54: 89 | E54: 69 | F54: 7 | G54: 0.1014492754 | H54: 20 | I54: 0.2247191011 | J54: 0.3033707865
A55: IST2088 | B55: ALGORITMIA Y PROGRAMACIÓN I | C55: 10 | D55: 380 | E55: 331 | F55: 66 | G55: 0.1993957704 | H55: 49 | I55: 0.1289473684 | J55: 0.3026315789
A56: EST7042 | B56: ANÁLISIS DE DATOS EN INGEN I | C56: 10 | D56: 299 | E56: 250 | F56: 41 | G56: 0.164 | H56: 49 | I56: 0.1638795987 | J56: 0.3010033445
A57: IEL4005 | B57: MAQUINAS ELECTRICAS | C57: 1 | D57: 10 | E57: 8 | F57: 1 | G57: 0.125 | H57: 2 | I57: 0.2 | J57: 0.3
A58: MUS4155 | B58: SOLFEO I | C58: 1 | D58: 10 | E58: 8 | F58: 1 | G58: 0.125 | H58: 2 | I58: 0.2 | J58: 0.3
A59: MUS4065 | B59: GESTION DE PROYECTOS MUSICALES | C59: 1 | D59: 10 | E59: 9 | F59: 2 | G59: 0.2222222222 | H59: 1 | I59: 0.1 | J59: 0.3
A60: IME4070 | B60: MECANICA DE FLUIDOS | C60: 2 | D60: 68 | E60: 54 | F60: 6 | G60: 0.1111111111 | H60: 14 | I60: 0.2058823529 | J60: 0.2941176471
A61: ALE0027 | B61: DEUTSCHE SPRACHE UND KULT 8 | C61: 1 | D61: 17 | E61: 17 | F61: 5 | G61: 0.2941176471 | H61: 0 | I61: 0 | J61: 0.2941176471
A62: ELP4085 | B62: GESTION DE INVENTARIOS | C62: 1 | D62: 17 | E62: 17 | F62: 5 | G62: 0.2941176471 | H62: 0 | I62: 0 | J62: 0.2941176471
A63: ECA0020 | B63: CARIBE PREHISPANICO | C63: 3 | D63: 99 | E63: 79 | F63: 9 | G63: 0.1139240506 | H63: 20 | I63: 0.202020202 | J63: 0.2929292929
A64: GPY1012 | B64: FORM Y EVAL DE PROYECTOS | C64: 5 | D64: 195 | E64: 170 | F64: 32 | G64: 0.1882352941 | H64: 25 | I64: 0.1282051282 | J64: 0.2923076923
A65: IME4072 | B65: MECANICA DE FLUIDOS | C65: 3 | D65: 24 | E65: 22 | F65: 5 | G65: 0.2272727273 | H65: 2 | I65: 0.08333333333 | J65: 0.2916666667
A66: LEY4181 | B66: PENAL II | C66: 3 | D66: 56 | E66: 52 | F66: 12 | G66: 0.2307692308 | H66: 4 | I66: 0.07142857143 | J66: 0.2857142857
A67: IIN9525 | B67: DISEÑO DE SIST DE INFORMACION | C67: 1 | D67: 14 | E67: 12 | F67: 2 | G67: 0.1666666667 | H67: 2 | I67: 0.1428571429 | J67: 0.2857142857
A68: IGL4930 | B68: EXIGENCIA INGLES NIVELATORIO | C68: 1 | D68: 14 | E68: 12 | F68: 2 | G68: 0.1666666667 | H68: 2 | I68: 0.1428571429 | J68: 0.2857142857
A69: FRA0005 | B69: LANGUE FRANC ET CULT FRANC V | C69: 1 | D69: 14 | E69: 13 | F69: 3 | G69: 0.2307692308 | H69: 1 | I69: 0.07142857143 | J69: 0.2857142857
A70: ALE1031 | B70: EXIGENCIA ALEMAN I | C70: 1 | D70: 14 | E70: 13 | F70: 3 | G70: =IFERROR(F70/E70,0) -> 0.2307692308 | H70: 1 | I70: =H70/D70 -> 0.07142857143 | J70: =(H70+F70)/D70 -> 0.2857142857
A71: POL4531 | B71: METODOLOGIA | C71: 1 | D71: 7 | E71: 6 | F71: 1 | G71: 0.1666666667 | H71: 1 | I71: 0.1428571429 | J71: 0.2857142857
A72: MUS4035 | B72: ENTRENAMIENTO AUDITIVO II | C72: 1 | D72: 14 | E72: 14 | F72: 4 | G72: 0.2857142857 | H72: 0 | I72: 0 | J72: 0.2857142857
A73: IBA4061 | B73: DINAMICA | C73: 3 | D73: 81 | E73: 66 | F73: 8 | G73: 0.1212121212 | H73: 15 | I73: 0.1851851852 | J73: 0.2839506173
A74: EST1031 | B74: ESTADISTICA II (AD) | C74: 4 | D74: 134 | E74: 102 | F74: 6 | G74: 0.05882352941 | H74: 32 | I74: 0.2388059701 | J74: 0.2835820896
A75: MAT1111 | B75: CALCULO II | C75: 11 | D75: 420 | E75: 335 | F75: 34 | G75: 0.1014925373 | H75: 85 | I75: 0.2023809524 | J75: 0.2833333333
A76: MAT8570 | B76: ALGEBRA LINEAL II | C76: 1 | D76: 25 | E76: 19 | F76: 1 | G76: 0.05263157895 | H76: 6 | I76: 0.24 | J76: 0.28
A77: MAT4011 | B77: ECUACIONES DIFERENCIALES | C77: 8 | D77: 297 | E77: 248 | F77: 34 | G77: 0.1370967742 | H77: 49 | I77: 0.164983165 | J77: 0.2794612795
A78: ARQ4022 | B78: TÉC GRAFICAS IV DOCUMENTACIÓN | C78: 3 | D78: 61 | E78: 50 | F78: 6 | G78: 0.12 | H78: 11 | I78: 0.1803278689 | J78: 0.2786885246
A79: IST7410 | B79: COMPILADORES | C79: 2 | D79: 79 | E79: 75 | F79: 18 | G79: 0.24 | H79: 4 | I79: 0.05063291139 | J79: 0.2784810127
A80: LEY4680 | B80: REL DE TRAB Y SEG SOCIAL III | C80: 3 | D80: 87 | E80: 76 | F80: 13 | G80: 0.1710526316 | H80: 11 | I80: 0.1264367816 | J80: 0.275862069
A81: IEL4020 | B81: MAQUINAS ELECTRICAS II | C81: 1 | D81: 11 | E81: 9 | F81: 1 | G81: 0.1111111111 | H81: 2 | I81: 0.1818181818 | J81: 0.2727272727
A82: ALE0018 | B82: DEUTSCHE SPRACHE UND KULT 5 | C82: 1 | D82: 11 | E82: 10 | F82: 2 | G82: 0.2 | H82: 1 | I82: 0.09090909091 | J82: 0.2727272727
A83: IST4330 | B83: ESTRUCTURAS DISCRETAS | C83: 2 | D83: 63 | E83: 54 | F83: 8 | G83: 0.1481481481 | H83: 9 | I83: 0.1428571429 | J83: 0.2698412698
A84: MAT1100 | B84: CALCULO I (ANEC) | C84: 6 | D84: 215 | E84: 188 | F84: 31 | G84: 0.164893617 | H84: 27 | I84: 0.1255813953 | J84: 0.2697674419
A85: LEY4685 | B85: REL DE TRAB Y SEG SOCIAL I | C85: 3 | D85: 78 | E85: 73 | F85: 16 | G85: 0.2191780822 | H85: 5 | I85: 0.0641025641 | J85: 0.2692307692
A86: ODO4145 | B86: PATOLOGIA ORAL | C86: 1 | D86: 26 | E86: 26 | F86: 7 | G86: 0.2692307692 | H86: 0 | I86: 0 | J86: 0.2692307692
A87: LEY4670 | B87: PRUEBAS | C87: 2 | D87: 67 | E87: 65 | F87: 16 | G87: 0.2461538462 | H87: 2 | I87: 0.02985074627 | J87: 0.2686567164
A88: ICI7014 | B88: INGENIERIA DE TRANSPORTE | C88: 3 | D88: 97 | E88: 96 | F88: 25 | G88: 0.2604166667 | H88: 1 | I88: 0.01030927835 | J88: 0.2680412371
A89: IME7061 | B89: TERMODINAMICA I | C89: 6 | D89: 198 | E89: 151 | F89: 6 | G89: 0.03973509934 | H89: 47 | I89: 0.2373737374 | J89: 0.2676767677
A90: IEN4095 | B90: INTROD. A LA ROBÓTICA MÓVIL | C90: 1 | D90: 15 | E90: 12 | F90: 1 | G90: 0.08333333333 | H90: 3 | I90: 0.2 | J90: 0.2666666667
A91: FIL7010 | B91: FILOSOFIA ANTIGUA II (ARISTOT) | C91: 1 | D91: 15 | E91: 13 | F91: 2 | G91: 0.1538461538 | H91: 2 | I91: 0.1333333333 | J91: 0.2666666667
A92: IIN7071 | B92: INVESTIGACION DE OPERAC 2 | C92: 3 | D92: 83 | E92: 81 | F92: 20 | G92: 0.2469135802 | H92: 2 | I92: 0.02409638554 | J92: 0.265060241
A93: MUS4150 | B93: PRINCIPIOS DE ARMONIA Y FORMA | C93: 1 | D93: 19 | E93: 19 | F93: 5 | G93: 0.2631578947 | H93: 0 | I93: 0 | J93: 0.2631578947
A94: ECA7000 | B94: HRIA. Y CULTURA DEL CARIBE | C94: 6 | D94: 196 | E94: 164 | F94: 19 | G94: 0.1158536585 | H94: 32 | I94: 0.1632653061 | J94: 0.2602040816
A95: IME1210 | B95: MECÁNICA DE MAQUINAS | C95: 1 | D95: 27 | E95: 25 | F95: 5 | G95: 0.2 | H95: 2 | I95: 0.07407407407 | J95: 0.2592592593
A96: FIS1023 | B96: FÍSICA MECANICA | C96: 20 | D96: 403 | E96: 353 | F96: 52 | G96: 0.1473087819 | H96: 50 | I96: 0.1240694789 | J96: 0.253101737
A97: LEY4705 | B97: TEORIA DE LA ARGUMENTACION | C97: 3 | D97: 64 | E97: 58 | F97: 10 | G97: 0.1724137931 | H97: 6 | I97: 0.09375 | J97: 0.25
A98: MUS4090 | B98: PIANO / GUITARRA FUNCIONAL I | C98: 1 | D98: 8 | E98: 7 | F98: 1 | G98: 0.1428571429 | H98: 1 | I98: 0.125 | J98: 0.25
A99: MUS7450 | B99: JAZZ Y MUSICA POPULAR II | C99: 4 | D99: 4 | E99: 4 | F99: 1 | G99: 0.25 | H99: 0 | I99: 0 | J99: 0.25
A100: CON2014 | B100: CONTABILIDAD FINANCIERA | C100: 6 | D100: 209 | E100: 179 | F100: 22 | G100: 0.1229050279 | H100: 30 | I100: 0.1435406699 | J100: 0.2488038278
A101: MAT4013 | B101: ECUACIONES DIFERENCIALES (MAT) | C101: 1 | D101: 29 | E101: 23 | F101: 1 | G101: 0.04347826087 | H101: 6 | I101: 0.2068965517 | J101: 0.2413793103
A102: GEO4012 | B102: GEOLOGIA FISICA | C102: 2 | D102: 29 | E102: 29 | F102: 7 | G102: 0.2413793103 | H102: 0 | I102: 0 | J102: 0.2413793103
A103: EST1050 | B103: ESTADISTICA II (ING) | C103: 1 | D103: 25 | E103: 22 | F103: 3 | G103: 0.1363636364 | H103: 3 | I103: 0.12 | J103: 0.24
A104: CON8073 | B104: INTERNATIONAL ACCOUNTING I | C104: 1 | D104: 21 | E104: 17 | F104: 1 | G104: 0.05882352941 | H104: 4 | I104: 0.1904761905 | J104: 0.2380952381
A105: ODO4010 | B105: BIOESTRUCTURA DENTAL OCLUS II | C105: 1 | D105: 17 | E105: 17 | F105: 4 | G105: 0.2352941176 | H105: 0 | I105: 0 | J105: 0.2352941176
A106: FIS1043 | B106: FISICA CALOR ONDAS | C106: 15 | D106: 304 | E106: 272 | F106: 39 | G106: 0.1433823529 | H106: 32 | I106: 0.1052631579 | J106: 0.2335526316
A107: LEY7051 | B107: CONTRATOS I | C107: 3 | D107: 60 | E107: 55 | F107: 9 | G107: 0.1636363636 | H107: 5 | I107: 0.08333333333 | J107: 0.2333333333
A108: ARQ4050 | B108: HABITAT,CLIMA Y MEDIO AMBIENTE | C108: 1 | D108: 39 | E108: 33 | F108: 3 | G108: 0.09090909091 | H108: 6 | I108: 0.1538461538 | J108: 0.2307692308
A109: ELP7271 | B109: PAVIMENTOS | C109: 1 | D109: 13 | E109: 10 | F109: 0 | G109: 0 | H109: 3 | I109: 0.2307692308 | J109: 0.2307692308
A110: ARQ4023 | B110: CONST I ENVOL Y CONF CONSTRUC | C110: 1 | D110: 40 | E110: 36 | F110: 5 | G110: 0.1388888889 | H110: 4 | I110: 0.1 | J110: 0.225
A111: LEY4640 | B111: INTERPRETACION CONST Y LEGAL | C111: 2 | D111: 85 | E111: 75 | F111: 9 | G111: 0.12 | H111: 10 | I111: 0.1176470588 | J111: 0.2235294118
A112: HUM0060 | B112: LOGICAS DE LA VIDA AMOROSA | C112: 3 | D112: 126 | E112: 106 | F112: 8 | G112: 0.07547169811 | H112: 20 | I112: 0.1587301587 | J112: 0.2222222222
A113: IEL1021 | B113: CIRCUITOS II | C113: 3 | D113: 36 | E113: 30 | F113: 2 | G113: 0.06666666667 | H113: 6 | I113: 0.1666666667 | J113: 0.2222222222
A114: ELP8011 | B114: CRIPTOGRAFIA | C114: 1 | D114: 18 | E114: 14 | F114: 0 | G114: 0 | H114: 4 | I114: 0.2222222222 | J114: 0.2222222222
A115: MAT8550 | B115: VARIABLE COMPLEJA | C115: 1 | D115: 9 | E115: 8 | F115: 1 | G115: 0.125 | H115: 1 | I115: 0.1111111111 | J115: 0.2222222222
A116: ODO4100 | B116: ENDODONCIA | C116: 2 | D116: 27 | E116: 27 | F116: 6 | G116: 0.2222222222 | H116: 0 | I116: 0 | J116: 0.2222222222
A117: EDU4533 | B117: DESARROLLO DEL PENSAMIENTO | C117: 1 | D117: 9 | E117: 9 | F117: 2 | G117: 0.2222222222 | H117: 0 | I117: 0 | J117: 0.2222222222
A118: ODO4165 | B118: REHABILITACION ORAL | C118: 2 | D118: 27 | E118: 27 | F118: 6 | G118: 0.2222222222 | H118: 0 | I118: 0 | J118: 0.2222222222
A119: MAT1031 | B119: ALGEBRA LINEAL | C119: 12 | D119: 471 | E119: 410 | F119: 43 | G119: 0.1048780488 | H119: 61 | I119: 0.1295116773 | J119: 0.2208067941
A120: LEY4011 | B120: OBLIGACIONES I | C120: 2 | D120: 64 | E120: 54 | F120: 4 | G120: 0.07407407407 | H120: 10 | I120: 0.15625 | J120: 0.21875
A121: ICI4083 | B121: HIDRAULICA | C121: 5 | D121: 69 | E121: 63 | F121: 9 | G121: 0.1428571429 | H121: 6 | I121: 0.08695652174 | J121: 0.2173913043
A122: IGL0376 | B122: ENGLISH FOR NURSING 2 | C122: 2 | D122: 23 | E122: 20 | F122: 2 | G122: 0.1 | H122: 3 | I122: 0.1304347826 | J122: 0.2173913043
A123: ODO4170 | B123: SEMIOLOGIA CABEZA Y CUELLO | C123: 1 | D123: 23 | E123: 23 | F123: 5 | G123: 0.2173913043 | H123: 0 | I123: 0 | J123: 0.2173913043
A124: IGL0011 | B124: BUSINESS ENGLISH I ADM | C124: 5 | D124: 79 | E124: 73 | F124: 11 | G124: 0.1506849315 | H124: 6 | I124: 0.07594936709 | J124: 0.2151898734
A125: MUS4050 | B125: FORMA Y ANALISIS I | C125: 1 | D125: 14 | E125: 14 | F125: 3 | G125: 0.2142857143 | H125: 0 | I125: 0 | J125: 0.2142857143
A126: CSO7150 | B126: SOCIOLOGÍA JURÍDICA | C126: 3 | D126: 80 | E126: 79 | F126: 16 | G126: 0.2025316456 | H126: 1 | I126: 0.0125 | J126: 0.2125
A127: ELP8124 | B127: MINERÍA DE DATOS | C127: 1 | D127: 33 | E127: 26 | F127: 0 | G127: 0 | H127: 7 | I127: 0.2121212121 | J127: 0.2121212121
A128: IGL7750 | B128: BUSINESS ENGLISH V | C128: 4 | D128: 81 | E128: 74 | F128: 10 | G128: 0.1351351351 | H128: 7 | I128: 0.08641975309 | J128: 0.2098765432
A129: IGL4895 | B129: EXIGENCIA INGLES II | C129: 10 | D129: 201 | E129: 179 | F129: 20 | G129: 0.1117318436 | H129: 22 | I129: 0.1094527363 | J129: 0.2089552239
A130: ODO4150 | B130: PERIODONCIA Y CLINICA DE PERIO | C130: 1 | D130: 24 | E130: 23 | F130: 4 | G130: 0.1739130435 | H130: 1 | I130: 0.04166666667 | J130: 0.2083333333
A131: ODO4090 | B131: CLINICA OPERATORIA DENTAL | C131: 2 | D131: 24 | E131: 24 | F131: 5 | G131: 0.2083333333 | H131: 0 | I131: 0 | J131: 0.2083333333
A132: INV7481 | B132: TECNICAS INV EN COMUNICACION | C132: 1 | D132: 39 | E132: 39 | F132: 8 | G132: 0.2051282051 | H132: 0 | I132: 0 | J132: 0.2051282051
A133: LEY4650 | B133: PENAL I | C133: 2 | D133: 74 | E133: 69 | F133: 10 | G133: 0.1449275362 | H133: 5 | I133: 0.06756756757 | J133: 0.2027027027
A134: IEN4020 | B134: ELECTRÓNICA I | C134: 3 | D134: 35 | E134: 28 | F134: 0 | G134: =IFERROR(F134/E134,0) -> 0 | H134: 7 | I134: =H134/D134 -> 0.2 | J134: =(H134+F134)/D134 -> 0.2
A135: CSO0040 | B135: GEOGRAFIA UNIVERSAL | C135: 2 | D135: 50 | E135: 44 | F135: 4 | G135: 0.09090909091 | H135: 6 | I135: 0.12 | J135: 0.2
A136: IIN0008 | B136: SISTEMAS DE COSTOS DE PRODUCCI | C136: 2 | D136: 60 | E136: 54 | F136: 6 | G136: 0.1111111111 | H136: 6 | I136: 0.1 | J136: 0.2
A137: ELP8022 | B137: ANALISIS ESTADIST.MULTIVARIADO | C137: 1 | D137: 20 | E137: 16 | F137: 0 | G137: 0 | H137: 4 | I137: 0.2 | J137: 0.2
A138: DIN4100 | B138: BIODISEÑO:NATURALEZAEINNOVACIO | C138: 1 | D138: 15 | E138: 12 | F138: 0 | G138: 0 | H138: 3 | I138: 0.2 | J138: 0.2
A139: DIG0037 | B139: REALIZACION AUDIVISUAL I | C139: 2 | D139: 35 | E139: 33 | F139: 5 | G139: 0.1515151515 | H139: 2 | I139: 0.05714285714 | J139: 0.2
A140: MUS7311 | B140: HISTORIA DE LA MUSICA II | C140: 1 | D140: 5 | E140: 4 | F140: 0 | G140: 0 | H140: 1 | I140: 0.2 | J140: 0.2
A141: HUM4190 | B141: SEM LITERATURA III (TEMATICO) | C141: 1 | D141: 5 | E141: 5 | F141: 1 | G141: 0.2 | H141: 0 | I141: 0 | J141: 0.2
A142: EDU0105 | B142: CORRIENTES PEDAGOGICAS CONTEMP | C142: 1 | D142: 10 | E142: 10 | F142: 2 | G142: 0.2 | H142: 0 | I142: 0 | J142: 0.2
A143: IGL4990 | B143: EXIGENCIA INGLES NIVELATORIO | C143: 2 | D143: 5 | E143: 5 | F143: 1 | G143: 0.2 | H143: 0 | I143: 0 | J143: 0.2
A144: IME7220 | B144: DISEÑO MECANICO | C144: 2 | D144: 67 | E144: 65 | F144: 11 | G144: 0.1692307692 | H144: 2 | I144: 0.02985074627 | J144: 0.1940298507
A145: LEY0001 | B145: TECNOLOGIA LEGAL | C145: 1 | D145: 26 | E145: 25 | F145: 4 | G145: 0.16 | H145: 1 | I145: 0.03846153846 | J145: 0.1923076923
A146: IBA0022 | B146: EXPRESION GRAFICA | C146: 4 | D146: 136 | E146: 130 | F146: 20 | G146: 0.1538461538 | H146: 6 | I146: 0.04411764706 | J146: 0.1911764706
A147: EDU4545 | B147: INCLUSION Y EDUCACION | C147: 1 | D147: 21 | E147: 19 | F147: 2 | G147: 0.1052631579 | H147: 2 | I147: 0.09523809524 | J147: 0.1904761905
A148: EDU2100 | B148: EVALUACION EDUCATIVA | C148: 1 | D148: 21 | E148: 20 | F148: 3 | G148: 0.15 | H148: 1 | I148: 0.04761904762 | J148: 0.1904761905
A149: ODO4070 | B149: CLI DE REHABILITACION ORAL II | C149: 6 | D149: 21 | E149: 21 | F149: 4 | G149: 0.1904761905 | H149: 0 | I149: 0 | J149: 0.1904761905
A150: CMN6080 | B150: REALIZACION MEDIO AUDIOVISUAL6 | C150: 2 | D150: 79 | E150: 78 | F150: 14 | G150: 0.1794871795 | H150: 1 | I150: 0.01265822785 | J150: 0.1898734177
A151: DIS0010 | B151: TALLER BASICO I | C151: 3 | D151: 58 | E151: 54 | F151: 7 | G151: 0.1296296296 | H151: 4 | I151: 0.06896551724 | J151: 0.1896551724
A152: IST4360 | B152: SOLUCIONES COMP. A PROB.EN ING | C152: 7 | D152: 223 | E152: 188 | F152: 7 | G152: 0.03723404255 | H152: 35 | I152: 0.1569506726 | J152: 0.1883408072
A153: HIS7240 | B153: AMERICA LATINA CONTEMPORANEA | C153: 2 | D153: 80 | E153: 71 | F153: 6 | G153: 0.08450704225 | H153: 9 | I153: 0.1125 | J153: 0.1875
A154: LEY4655 | B154: PROCEDIMIENTO CIVIL ESPECIAL | C154: 2 | D154: 32 | E154: 27 | F154: 1 | G154: 0.03703703704 | H154: 5 | I154: 0.15625 | J154: 0.1875
A155: IGL1370 | B155: BUSINESS ENGLISH III | C155: 2 | D155: 27 | E155: 23 | F155: 1 | G155: 0.04347826087 | H155: 4 | I155: 0.1481481481 | J155: 0.1851851852
A156: IEN7135 | B156: MICROPROCESADORES | C156: 2 | D156: 27 | E156: 25 | F156: 3 | G156: 0.12 | H156: 2 | I156: 0.07407407407 | J156: 0.1851851852
A157: IME7085 | B157: DISEÑOS DE SISTEMAS MECANICOS | C157: 2 | D157: 38 | E157: 36 | F157: 5 | G157: 0.1388888889 | H157: 2 | I157: 0.05263157895 | J157: 0.1842105263
A158: HIS1020 | B158: HISTORIA DEL DERECHO | C158: 2 | D158: 82 | E158: 70 | F158: 3 | G158: 0.04285714286 | H158: 12 | I158: 0.1463414634 | J158: 0.1829268293
A159: IEN4030 | B159: ELECTRONICA II | C159: 1 | D159: 22 | E159: 19 | F159: 1 | G159: 0.05263157895 | H159: 3 | I159: 0.1363636364 | J159: 0.1818181818
A160: MAT4140 | B160: TEORIA DE GRUPOS | C160: 1 | D160: 11 | E160: 10 | F160: 1 | G160: 0.1 | H160: 1 | I160: 0.09090909091 | J160: 0.1818181818
A161: FIS4011 | B161: FISICA MODERNA DEL ESTADO | C161: 1 | D161: 11 | E161: 10 | F161: 1 | G161: 0.1 | H161: 1 | I161: 0.09090909091 | J161: 0.1818181818
A162: EDU4547 | B162: GERENCIA DE PROYECTOS EDUCATIV | C162: 1 | D162: 11 | E162: 10 | F162: 1 | G162: 0.1 | H162: 1 | I162: 0.09090909091 | J162: 0.1818181818
A163: EDU4548 | B163: MEDIACIONES EN EDUCACION Y TIC | C163: 1 | D163: 11 | E163: 10 | F163: 1 | G163: 0.1 | H163: 1 | I163: 0.09090909091 | J163: 0.1818181818
A164: CBM4030 | B164: FUNDAMENTO CIENCIAS BASICAS MD | C164: 8 | D164: 187 | E164: 186 | F164: 33 | G164: 0.1774193548 | H164: 1 | I164: 0.005347593583 | J164: 0.1818181818
A165: IGL0375 | B165: ENGLISH FOR NURSING 1 | C165: 1 | D165: 22 | E165: 22 | F165: 4 | G165: 0.1818181818 | H165: 0 | I165: 0 | J165: 0.1818181818
A166: MAT8540 | B166: TEORIA DE NUMEROS | C166: 1 | D166: 11 | E166: 11 | F166: 2 | G166: 0.1818181818 | H166: 0 | I166: 0 | J166: 0.1818181818
A167: ENF0033 | B167: PROFUNDIZACION ENFERMERIA | C167: 3 | D167: 11 | E167: 11 | F167: 2 | G167: 0.1818181818 | H167: 0 | I167: 0 | J167: 0.1818181818
A168: ALE0022 | B168: DEUTSCHE SPRACHE UND KULT 1 | C168: 1 | D168: 11 | E168: 11 | F168: 2 | G168: 0.1818181818 | H168: 0 | I168: 0 | J168: 0.1818181818
A169: ODO4065 | B169: CLI DE REHABILITACION ORAL I | C169: 6 | D169: 11 | E169: 11 | F169: 2 | G169: 0.1818181818 | H169: 0 | I169: 0 | J169: 0.1818181818
A170: MAT1121 | B170: CALCULO 3 | C170: 7 | D170: 250 | E170: 219 | F170: 14 | G170: 0.06392694064 | H170: 31 | I170: 0.124 | J170: 0.18
A171: MAT4215 | B171: TEORIA DE CODIGOS | C171: 1 | D171: 39 | E171: 33 | F171: 1 | G171: 0.0303030303 | H171: 6 | I171: 0.1538461538 | J171: 0.1794871795
A172: MAT4190 | B172: MATEMATICAS FUNDAMENTALES | C172: 1 | D172: 39 | E172: 34 | F172: 2 | G172: 0.05882352941 | H172: 5 | I172: 0.1282051282 | J172: 0.1794871795
A173: ECO9000 | B173: MICROECONOMIA II | C173: 1 | D173: 28 | E173: 27 | F173: 4 | G173: 0.1481481481 | H173: 1 | I173: 0.03571428571 | J173: 0.1785714286
A174: IGL4915 | B174: EXIGENCIA INGLES VI | C174: 17 | D174: 377 | E174: 357 | F174: 47 | G174: 0.1316526611 | H174: 20 | I174: 0.05305039788 | J174: 0.1777188329
A175: GEO0009 | B175: GEOLOGIA ESTRUCTURAL | C175: 2 | D175: 34 | E175: 29 | F175: 1 | G175: 0.03448275862 | H175: 5 | I175: 0.1470588235 | J175: 0.1764705882
A176: POL0030 | B176: POLÍTICA COLOMBIANA | C176: 1 | D176: 17 | E176: 16 | F176: 2 | G176: 0.125 | H176: 1 | I176: 0.05882352941 | J176: 0.1764705882
A177: IME7101 | B177: TRANSFERENCIA DE CALOR | C177: 8 | D177: 74 | E177: 66 | F177: 5 | G177: 0.07575757576 | H177: 8 | I177: 0.1081081081 | J177: 0.1756756757
A178: LEY7061 | B178: CONTRATOS II | C178: 2 | D178: 80 | E178: 75 | F178: 9 | G178: 0.12 | H178: 5 | I178: 0.0625 | J178: 0.175
A179: ODO4035 | B179: CLINICA CIRUGIA ORAL I | C179: 1 | D179: 23 | E179: 23 | F179: 4 | G179: 0.1739130435 | H179: 0 | I179: 0 | J179: 0.1739130435
A180: IEL7240 | B180: PROTECCIONES ELECTRICAS | C180: 2 | D180: 29 | E180: 27 | F180: 3 | G180: 0.1111111111 | H180: 2 | I180: 0.06896551724 | J180: 0.1724137931
A181: DIG0032 | B181: DISEÑO DIGITAL I | C181: 2 | D181: 41 | E181: 39 | F181: 5 | G181: 0.1282051282 | H181: 2 | I181: 0.0487804878 | J181: 0.1707317073
A182: ARQ4120 | B182: TALLER BASICOII: FUND DEL PROY | C182: 3 | D182: 47 | E182: 45 | F182: 6 | G182: 0.1333333333 | H182: 2 | I182: 0.04255319149 | J182: 0.170212766
A183: LEY4715 | B183: TEORIA DEL DERECHO | C183: 2 | D183: 65 | E183: 65 | F183: 11 | G183: 0.1692307692 | H183: 0 | I183: 0 | J183: 0.1692307692
A184: ARQ4072 | B184: TALLER DE EXPRESION II | C184: 2 | D184: 42 | E184: 39 | F184: 4 | G184: 0.1025641026 | H184: 3 | I184: 0.07142857143 | J184: 0.1666666667
A185: CSV0071 | B185: INTRODUCCION A LA ASTROFISICA | C185: 1 | D185: 18 | E185: 16 | F185: 1 | G185: 0.0625 | H185: 2 | I185: 0.1111111111 | J185: 0.1666666667
A186: MAT1061 | B186: OPTIMIZACION MATEMATICA | C186: 1 | D186: 6 | E186: 5 | F186: 0 | G186: 0 | H186: 1 | I186: 0.1666666667 | J186: 0.1666666667
A187: IEN8557 | B187: REDES INALÁMBRICAS DE SENSORES | C187: 1 | D187: 12 | E187: 11 | F187: 1 | G187: 0.09090909091 | H187: 1 | I187: 0.08333333333 | J187: 0.1666666667
A188: GEO4013 | B188: GEOMORFOLOGIA | C188: 2 | D188: 24 | E188: 23 | F188: 3 | G188: 0.1304347826 | H188: 1 | I188: 0.04166666667 | J188: 0.1666666667
A189: CMN7520 | B189: GRANDES DIRECTORES DEL CINE | C189: 1 | D189: 12 | E189: 12 | F189: 2 | G189: 0.1666666667 | H189: 0 | I189: 0 | J189: 0.1666666667
A190: ECO4020 | B190: HRIA ECONOMICA DE COLOMBIA | C190: 1 | D190: 6 | E190: 6 | F190: 1 | G190: 0.1666666667 | H190: 0 | I190: 0 | J190: 0.1666666667
A191: MAT1011 | B191: ALGEBRA Y TRIGONOMETRIA | C191: 2 | D191: 62 | E191: 55 | F191: 3 | G191: 0.05454545455 | H191: 7 | I191: 0.1129032258 | J191: 0.1612903226
A192: IEN7211 | B192: MEDIOS DE TRANSMISIÓN | C192: 2 | D192: 31 | E192: 28 | F192: 2 | G192: 0.07142857143 | H192: 3 | I192: 0.09677419355 | J192: 0.1612903226
A193: IEL7150 | B193: SUBESTACIONES ELECTRICAS | C193: 1 | D193: 25 | E193: 24 | F193: 3 | G193: 0.125 | H193: 1 | I193: 0.04 | J193: 0.16
A194: IEN4100 | B194: SEÑALES Y SISTEMAS | C194: 3 | D194: 63 | E194: 60 | F194: 7 | G194: 0.1166666667 | H194: 3 | I194: 0.04761904762 | J194: 0.1587301587
A195: IIN7100 | B195: LOGISTICA Y DISTRIBUCION | C195: 3 | D195: 101 | E195: 99 | F195: 14 | G195: 0.1414141414 | H195: 2 | I195: 0.0198019802 | J195: 0.1584158416
A196: GEO0006 | B196: PROGRAMACION EN CIENCIAS | C196: 1 | D196: 32 | E196: 29 | F196: 2 | G196: 0.06896551724 | H196: 3 | I196: 0.09375 | J196: 0.15625
A197: LEY3075 | B197: INTERNATIONAL LAW | C197: 1 | D197: 32 | E197: 31 | F197: 4 | G197: 0.1290322581 | H197: 1 | I197: 0.03125 | J197: 0.15625
A198: CBM6071 | B198: FUND BIOLOG DEL CUIDADO II | C198: 2 | D198: 32 | E198: 32 | F198: 5 | G198: =IFERROR(F198/E198,0) -> 0.15625 | H198: 0 | I198: =H198/D198 -> 0 | J198: =(H198+F198)/D198 -> 0.15625
A199: PSI0119 | B199: TENDENCIAS Y AUTORES COGNITIVO | C199: 3 | D199: 77 | E199: 75 | F199: 10 | G199: 0.1333333333 | H199: 2 | I199: 0.02597402597 | J199: 0.1558441558
A200: IST7102 | B200: ESTRUCTURA DEL COMPUTADOR II | C200: 1 | D200: 39 | E200: 37 | F200: 4 | G200: 0.1081081081 | H200: 2 | I200: 0.05128205128 | J200: 0.1538461538
A201: HUM0280 | B201: SIMBOLOS Y SIGNIFIC ARQUITEC | C201: 1 | D201: 13 | E201: 11 | F201: 0 | G201: 0 | H201: 2 | I201: 0.1538461538 | J201: 0.1538461538
... 950 more rows

Sheet Graf_Inst
A1: OFICINA DE PLANEACIÓN - INFORMACIÓN Y ESTADÍSTICA
R2: Volver

Sheet Rep_Arq
A1: OFICINA DE PLANEACIÓN - INFORMACIÓN Y ESTADÍSTICA
A3: Perdidos, Retirados y Repitencia de Asignaturas del Dpto. Arquitectura, Urbanismo y Diseño
A4: =Planeación!A1 -> 2023-2
A5: Codasg | B5: Asignaturas | C5: Total Cursos Abiertos | D5: Matrícula Inicial | E5: Matrícula Final | F5: Perdidos | G5: % Perdidos | H5: Retirados | I5: % Retirados | J5: % Repitencia
A6: ARQ4070 | B6: PROYECTO DE GRADO | C6: 1 | D6: 2 | E6: 2 | F6: 1 | G6: =IFERROR(F6/E6,"-") -> 0.5 | H6: 0 | I6: =H6/D6 -> 0 | J6: =(F6+H6)/D6 -> 0.5 | L6: Volver al Índice
A7: ARQ4026 | B7: CONST III TECN AVANZ INDUST | C7: 1 | D7: 22 | E7: 19 | F7: 5 | G7: 0.2631578947 | H7: 3 | I7: 0.1363636364 | J7: 0.3636363636
A8: ARQ4022 | B8: TÉC GRAFICAS IV DOCUMENTACIÓN | C8: 3 | D8: 61 | E8: 50 | F8: 6 | G8: 0.12 | H8: 11 | I8: 0.1803278689 | J8: 0.2786885246
A9: ARQ4050 | B9: HABITAT,CLIMA Y MEDIO AMBIENTE | C9: 1 | D9: 39 | E9: 33 | F9: 3 | G9: 0.09090909091 | H9: 6 | I9: 0.1538461538 | J9: 0.2307692308
A10: ARQ4023 | B10: CONST I ENVOL Y CONF CONSTRUC | C10: 1 | D10: 40 | E10: 36 | F10: 5 | G10: 0.1388888889 | H10: 4 | I10: 0.1 | J10: 0.225 | L10: Ir a Tabla de Repitencia >=30%
A11: ARQ4120 | B11: TALLER BASICOII: FUND DEL PROY | C11: 3 | D11: 47 | E11: 45 | F11: 6 | G11: 0.1333333333 | H11: 2 | I11: 0.04255319149 | J11: 0.170212766
A12: ARQ4072 | B12: TALLER DE EXPRESION II | C12: 2 | D12: 42 | E12: 39 | F12: 4 | G12: 0.1025641026 | H12: 3 | I12: 0.07142857143 | J12: 0.1666666667
A13: HUM0280 | B13: SIMBOLOS Y SIGNIFIC ARQUITEC | C13: 1 | D13: 13 | E13: 11 | F13: 0 | G13: 0 | H13: 2 | I13: 0.1538461538 | J13: 0.1538461538
A14: ARQ4100 | B14: T.ARQUITECTURA I: ARQ BASICAS | C14: 2 | D14: 33 | E14: 31 | F14: 3 | G14: 0.09677419355 | H14: 2 | I14: 0.06060606061 | J14: 0.1515151515
A15: ARQ4019 | B15: TEC GRAFICAS II MODELACION | C15: 3 | D15: 62 | E15: 56 | F15: 3 | G15: 0.05357142857 | H15: 6 | I15: 0.09677419355 | J15: 0.1451612903
A16: ARQ4018 | B16: TEC GRAFICAS I REPRESENTACION | C16: 2 | D16: 32 | E16: 29 | F16: 1 | G16: 0.03448275862 | H16: 3 | I16: 0.09375 | J16: 0.125
A17: ARQ4021 | B17: TEC GRAFICAS III COMUNICACIÓN | C17: 2 | D17: 26 | E17: 24 | F17: 1 | G17: 0.04166666667 | H17: 2 | I17: 0.07692307692 | J17: 0.1153846154
A18: ARQ4014 | B18: HISTORIA Y TEORIA - SIGLO XIX | C18: 2 | D18: 61 | E18: 54 | F18: 0 | G18: 0 | H18: 7 | I18: 0.1147540984 | J18: 0.1147540984
A19: ARQ4017 | B19: HISTORIA Y TEORIA PENSAM CLASI | C19: 2 | D19: 54 | E19: 49 | F19: 1 | G19: 0.02040816327 | H19: 5 | I19: 0.09259259259 | J19: 0.1111111111
A20: ARQ4090 | B20: T.ARQUITEC III: EQUIPAMIENTOS | C20: 2 | D20: 27 | E20: 25 | F20: 1 | G20: 0.04 | H20: 2 | I20: 0.07407407407 | J20: 0.1111111111
A21: ARQ4013 | B21: HIST Y TEORIA LATINOAMERICANA | C21: 1 | D21: 38 | E21: 34 | F21: 0 | G21: 0 | H21: 4 | I21: 0.1052631579 | J21: 0.1052631579
A22: ARQ4011 | B22: HISTORIA Y TEORIA VANGUARDIAS | C22: 1 | D22: 29 | E22: 27 | F22: 1 | G22: 0.03703703704 | H22: 2 | I22: 0.06896551724 | J22: 0.1034482759
A23: ARQ4071 | B23: TALLER DE EXPRESION I | C23: 2 | D23: 41 | E23: 38 | F23: 1 | G23: 0.02631578947 | H23: 3 | I23: 0.07317073171 | J23: 0.09756097561
A24: ARQ4080 | B24: TALLER CIUDAD II: SOST URBANA | C24: 2 | D24: 22 | E24: 20 | F24: 0 | G24: 0 | H24: 2 | I24: 0.09090909091 | J24: 0.09090909091
A25: ARQ4035 | B25: SISTEMAS ESTRUCTURALES | C25: 2 | D25: 57 | E25: 53 | F25: 0 | G25: 0 | H25: 4 | I25: 0.0701754386 | J25: 0.0701754386
A26: ARQ4028 | B26: PROYECTO DE GRADO I | C26: 4 | D26: 58 | E26: 56 | F26: 2 | G26: 0.03571428571 | H26: 2 | I26: 0.03448275862 | J26: 0.06896551724
A27: ARQ4085 | B27: T.CIUDAD I: ESPAC PUB DIS URBA | C27: 3 | D27: 44 | E27: 41 | F27: 0 | G27: 0 | H27: 3 | I27: 0.06818181818 | J27: 0.06818181818
A28: ARQ4095 | B28: T.ARQUITEC II: HAB Y VIVIENDA | C28: 5 | D28: 62 | E28: 60 | F28: 2 | G28: 0.03333333333 | H28: 2 | I28: 0.03225806452 | J28: 0.06451612903
A29: ARQ4012 | B29: PROYECTO DE GRADO II | C29: 3 | D29: 47 | E29: 45 | F29: 1 | G29: 0.02222222222 | H29: 2 | I29: 0.04255319149 | J29: 0.06382978723
A30: ARQ4027 | B30: PRINCIPIOS DE CONSTRUCCION | C30: 1 | D30: 39 | E30: 37 | F30: 0 | G30: 0 | H30: 2 | I30: 0.05128205128 | J30: 0.05128205128
A31: ARQ4125 | B31: TALLER BASICO 1:FUND DEL DISEÑ | C31: 3 | D31: 41 | E31: 40 | F31: 1 | G31: 0.025 | H31: 1 | I31: 0.0243902439 | J31: 0.0487804878
A32: HIS4002 | B32: HISTORIA INTRO ARQ Y URBANISMO | C32: 2 | D32: 41 | E32: 41 | F32: 1 | G32: 0.0243902439 | H32: 0 | I32: 0 | J32: 0.0243902439
A33: HIS4115 | B33: HIST ARQUITECTURA:ANTIG Y CLAS | C33: 2 | D33: 49 | E33: 48 | F33: 0 | G33: 0 | H33: 1 | I33: 0.02040816327 | J33: 0.02040816327
A34: ARQ4024 | B34: CONSTR II INST E INFRAESTRUCTU | C34: 2 | D34: 60 | E34: 60 | F34: 0 | G34: 0 | H34: 0 | I34: 0 | J34: 0
A35: ARQ4025 | B35: GESTIÓN URBANA | C35: 2 | D35: 45 | E35: 45 | F35: 0 | G35: 0 | H35: 0 | I35: 0 | J35: 0
A36: ARQ4016 | B36: HISTORIA Y TEORIA MOV MODERNO | C36: 1 | D36: 20 | E36: 20 | F36: 0 | G36: 0 | H36: 0 | I36: 0 | J36: 0
A37: Total | C37: =SUM(C6:C36) -> 64 | D37: =SUM(D6:D36) -> 1254 | E37: =SUM(E6:E36) -> 1168 | F37: =SUM(F6:F36) -> 49 | G37: =F37/E37 -> 0.04195205479 | H37: =SUM(H6:H36) -> 86 | I37: =H37/D37 -> 0.06858054226 | J37: =(F37+H37)/D37 -> 0.1076555024
A39: Repitencia de Asignaturas del Dpto. Arquitectura, Urbanismo y Diseño, Mayor o Igual al 30%
A40: =Planeación!A1 -> 2023-2
A41: Codasg | B41: Asignaturas | C41: Total Cursos Abiertos | D41: Número de Cursos con Repitencia >=30% | E41: Matricula Inicial | F41: Matrícula Final | G41: Perdidos | H41: % Perdidos | I41: Retirados | J41: % Retirados | K41: % Repitencia
A42: ARQ4070 | B42: PROYECTO DE GRADO | C42: =VLOOKUP(A42,$A$6:$C$36,3,FALSE) -> 1 | D42: 1 | E42: 2 | F42: 2 | G42: 1 | H42: =IFERROR(G42/F42,"-") -> 0.5 | I42: 0 | J42: =I42/E42 -> 0 | K42: =(G42+I42)/E42 -> 0.5 | L42: Ir a Inicio | M42: Ir a Gráfico
A43: ARQ4022 | B43: TÉC GRAFICAS IV DOCUMENTACIÓN | C43: =VLOOKUP(A43,$A$6:$C$36,3,FALSE) -> 3 | D43: 2 | E43: 42 | F43: 32 | G43: 6 | H43: =IFERROR(G43/F43,"-") -> 0.1875 | I43: 10 | J43: =I43/E43 -> 0.2380952381 | K43: =(G43+I43)/E43 -> 0.380952381
A44: ARQ4026 | B44: CONST III TECN AVANZ INDUST | C44: =VLOOKUP(A44,$A$6:$C$36,3,FALSE) -> 1 | D44: 1 | E44: 22 | F44: 19 | G44: 5 | H44: =IFERROR(G44/F44,"-") -> 0.2631578947 | I44: 3 | J44: =I44/E44 -> 0.1363636364 | K44: =(G44+I44)/E44 -> 0.3636363636
A45: ARQ4120 | B45: TALLER BASICOII: FUND DEL PROY | C45: =VLOOKUP(A45,$A$6:$C$36,3,FALSE) -> 3 | D45: 1 | E45: 15 | F45: 14 | G45: 4 | H45: =IFERROR(G45/F45,"-") -> 0.2857142857 | I45: 1 | J45: =I45/E45 -> 0.06666666667 | K45: =(G45+I45)/E45 -> 0.3333333333
A46: ARQ4072 | B46: TALLER DE EXPRESION II | C46: =VLOOKUP(A46,$A$6:$C$36,3,FALSE) -> 2 | D46: 1 | E46: 22 | F46: 19 | G46: 4 | H46: =IFERROR(G46/F46,"-") -> 0.2105263158 | I46: 3 | J46: =I46/E46 -> 0.1363636364 | K46: =(G46+I46)/E46 -> 0.3181818182
A47: Total | C47: =SUM(C42:C46) -> 10 | D47: =SUM(D42:D46) -> 6 | E47: =SUM(E42:E46) -> 103 | F47: =SUM(F42:F46) -> 86 | G47: =SUM(G42:G46) -> 20 | H47: =G47/F47 -> 0.2325581395 | I47: =SUM(I42:I46) -> 17 | J47: =I47/E47 -> 0.1650485437 | K47: =(G47+I47)/E47 -> 0.359223301

Sheet Graf_Arq
A1: OFICINA DE PLANEACIÓN - INFORMACIÓN Y ESTADÍSTICA
O2: Volver

Sheet Rep_Com
A1: OFICINA DE PLANEACIÓN - INFORMACIÓN Y ESTADÍSTICA
A3: Perdidos, Retirados y Repitencia de Asignaturas del Dpto. Comunicación Social
A4: =Planeación!A1 -> 2023-2
A5: Codasg | B5: Asignaturas | C5: Total Cursos Abiertos | D5: Matrícula Inicial | E5: Matrícula Final | F5: Perdidos | G5: % Perdidos | H5: Retirados | I5: % Retirados | J5: % Repitencia
A6: INV7481 | B6: TECNICAS INV EN COMUNICACION | C6: 1 | D6: 39 | E6: 39 | F6: 8 | G6: =IFERROR(F6/E6,"-") -> 0.2051282051 | H6: 0 | I6: =H6/D6 -> 0 | J6: =(F6+H6)/D6 -> 0.2051282051 | L6: Volver al Índice
A7: CMN6080 | B7: REALIZACION MEDIO AUDIOVISUAL6 | C7: 2 | D7: 79 | E7: 78 | F7: 14 | G7: 0.1794871795 | H7: 1 | I7: 0.01265822785 | J7: 0.1898734177
A8: CMN7520 | B8: GRANDES DIRECTORES DEL CINE | C8: 1 | D8: 12 | E8: 12 | F8: 2 | G8: 0.1666666667 | H8: 0 | I8: 0 | J8: 0.1666666667
A9: CMN1180 | B9: REALIZACION MEDIO AUDIOVISUAL3 | C9: 1 | D9: 42 | E9: 42 | F9: 6 | G9: 0.1428571429 | H9: 0 | I9: 0 | J9: 0.1428571429
A10: CMN7341 | B10: PROY COMUNIC ORGANIZACIONAL | C10: 2 | D10: 76 | E10: 75 | F10: 7 | G10: 0.09333333333 | H10: 1 | I10: 0.01315789474 | J10: 0.1052631579 | L10: Ir a Tabla de Repitencia >=30%
A11: CMN2060 | B11: PERIODISMO IV | C11: 2 | D11: 39 | E11: 38 | F11: 3 | G11: 0.07894736842 | H11: 1 | I11: 0.02564102564 | J11: 0.1025641026
A12: CMN9365 | B12: COMUNICACIÓN DE MARKETING | C12: 1 | D12: 11 | E12: 10 | F12: 0 | G12: 0 | H12: 1 | I12: 0.09090909091 | J12: 0.09090909091
A13: CMN7530 | B13: CINE E HISTORIA | C13: 1 | D13: 29 | E13: 29 | F13: 2 | G13: 0.06896551724 | H13: 0 | I13: 0 | J13: 0.06896551724
A14: CMN9011 | B14: SEM COMUNIC ORGANIZACIONAL | C14: 2 | D14: 54 | E14: 54 | F14: 3 | G14: 0.05555555556 | H14: 0 | I14: 0 | J14: 0.05555555556
A15: CMN7390 | B15: MEDIOS MASIVOS Y CONFLICTO | C15: 1 | D15: 18 | E15: 17 | F15: 0 | G15: 0 | H15: 1 | I15: 0.05555555556 | J15: 0.05555555556
A16: INV9580 | B16: TRABAJO DE GRADO | C16: 8 | D16: 58 | E16: 57 | F16: 2 | G16: 0.0350877193 | H16: 1 | I16: 0.01724137931 | J16: 0.05172413793
A17: CMN2070 | B17: CULTURA Y COMUNIC ORGANIZAC | C17: 1 | D17: 39 | E17: 37 | F17: 0 | G17: 0 | H17: 2 | I17: 0.05128205128 | J17: 0.05128205128
A18: CMN2050 | B18: REALIZACION MEDIO AUDIOVISUAL4 | C18: 6 | D18: 65 | E18: 64 | F18: 2 | G18: 0.03125 | H18: 1 | I18: 0.01538461538 | J18: 0.04615384615
A19: CMN1150 | B19: REALIZACION MEDIO AUDIOVISUAL1 | C19: 4 | D19: 44 | E19: 43 | F19: 1 | G19: 0.02325581395 | H19: 1 | I19: 0.02272727273 | J19: 0.04545454545
A20: CMN7240 | B20: ANALISIS CINEMATOGRAFICO | C20: 2 | D20: 66 | E20: 64 | F20: 1 | G20: 0.015625 | H20: 2 | I20: 0.0303030303 | J20: 0.04545454545
A21: CMN6060 | B21: FILOSOFIA Y COMUNICACION | C21: 2 | D21: 49 | E21: 48 | F21: 1 | G21: 0.02083333333 | H21: 1 | I21: 0.02040816327 | J21: 0.04081632653
A22: CMN6051 | B22: COMUNICACION Y POLITICA | C22: 2 | D22: 74 | E22: 72 | F22: 0 | G22: 0 | H22: 2 | I22: 0.02702702703 | J22: 0.02702702703
A23: CMN8130 | B23: TEORIA DE LA COMUNICACION 3 | C23: 1 | D23: 38 | E23: 37 | F23: 0 | G23: 0 | H23: 1 | I23: 0.02631578947 | J23: 0.02631578947
A24: CMN2080 | B24: REALIZACION MEDIO AUDIOVISUAL5 | C24: 6 | D24: 39 | E24: 38 | F24: 0 | G24: 0 | H24: 1 | I24: 0.02564102564 | J24: 0.02564102564
A25: CMN6041 | B25: COMUNICACION Y CULTURA | C25: 1 | D25: 41 | E25: 40 | F25: 0 | G25: 0 | H25: 1 | I25: 0.0243902439 | J25: 0.0243902439
A26: CMN1030 | B26: TEORIA COMUNICACION I | C26: 1 | D26: 42 | E26: 41 | F26: 0 | G26: 0 | H26: 1 | I26: 0.02380952381 | J26: 0.02380952381
A27: ART0020 | B27: FOTOGRAFIA Y LABORATORIO | C27: 3 | D27: 89 | E27: 87 | F27: 0 | G27: 0 | H27: 2 | I27: 0.02247191011 | J27: 0.02247191011
A28: CMN9040 | B28: ARGUMENTACIÓN PERIODÍSTICA | C28: 2 | D28: 50 | E28: 50 | F28: 1 | G28: 0.02 | H28: 0 | I28: 0 | J28: 0.02
A29: CMN1060 | B29: SEMIÓTICA Y COMUNICACIÓN | C29: 2 | D29: 64 | E29: 63 | F29: 0 | G29: 0 | H29: 1 | I29: 0.015625 | J29: 0.015625
A30: CMN2040 | B30: PERIODISMO III | C30: 2 | D30: 68 | E30: 68 | F30: 1 | G30: 0.01470588235 | H30: 0 | I30: 0 | J30: 0.01470588235
A31: CMN3090 | B31: PERIODISMO V | C31: 3 | D31: 75 | E31: 74 | F31: 0 | G31: 0 | H31: 1 | I31: 0.01333333333 | J31: 0.01333333333
A32: CMN7320 | B32: SEM INVEST EN COMUNICACION | C32: 2 | D32: 75 | E32: 74 | F32: 0 | G32: 0 | H32: 1 | I32: 0.01333333333 | J32: 0.01333333333
A33: CMN1040 | B33: TEORIA COMUNICACION II | C33: 2 | D33: 59 | E33: 59 | F33: 0 | G33: 0 | H33: 0 | I33: 0 | J33: 0
A34: CMN1160 | B34: REALIZACION MEDIO AUDIOVISUAL2 | C34: 3 | D34: 58 | E34: 58 | F34: 0 | G34: 0 | H34: 0 | I34: 0 | J34: 0
A35: CMN1170 | B35: PERIODISMO II | C35: 2 | D35: 37 | E35: 37 | F35: 0 | G35: 0 | H35: 0 | I35: 0 | J35: 0
A36: CMN2010 | B36: PERIODISMO I | C36: 2 | D36: 57 | E36: 57 | F36: 0 | G36: 0 | H36: 0 | I36: 0 | J36: 0
A37: CMN7190 | B37: COMUNICACION Y DESARROLLO | C37: 2 | D37: 38 | E37: 38 | F37: 0 | G37: 0 | H37: 0 | I37: 0 | J37: 0
A38: CMN9270 | B38: COMUNICACIÓN CORPORATIVA | C38: 1 | D38: 37 | E38: 37 | F38: 0 | G38: 0 | H38: 0 | I38: 0 | J38: 0
A39: CMN0008 | B39: SONIDO Y LENGUAJE RADIOFONICO | C39: 3 | D39: 58 | E39: 58 | F39: 0 | G39: 0 | H39: 0 | I39: 0 | J39: 0
A40: CMN0013 | B40: PRACTICA RADIAL | C40: 1 | D40: 36 | E40: 36 | F40: 0 | G40: 0 | H40: 0 | I40: 0 | J40: 0
A41: CMN9375 | B41: PERIODISMO LITERARIO | C41: 1 | D41: 23 | E41: 23 | F41: 0 | G41: 0 | H41: 0 | I41: 0 | J41: 0
A42: CMN0011 | B42: REALIZACION MEDIOS AUDIOVI VII | C42: 1 | D42: 38 | E42: 38 | F42: 0 | G42: 0 | H42: 0 | I42: 0 | J42: 0
A43: CMN0088 | B43: EMPRENDER PERIODIS | C43: 1 | D43: 13 | E43: 13 | F43: 0 | G43: 0 | H43: 0 | I43: 0 | J43: 0
A44: Total | C44: =SUM(C6:C43) -> 81 | D44: =SUM(D6:D43) -> 1829 | E44: =SUM(E6:E43) -> 1805 | F44: =SUM(F6:F43) -> 54 | G44: =F44/E44 -> 0.02991689751 | H44: =SUM(H6:H43) -> 24 | I44: =H44/D44 -> 0.01312192455 | J44: =(F44+H44)/D44 -> 0.04264625478
A47: Repitencia de Asignaturas del Dpto. Comunicación Social, Mayor o Igual al 30%
A48: =Planeación!A1 -> 2023-2
A49: Codasg | B49: Asignaturas | C49: Total Cursos Abiertos | D49: Número de Cursos con Repitencia >=30% | E49: Matricula Inicial | F49: Matrícula Final | G49: Perdidos | H49: % Perdidos | I49: Retirados | J49: % Retirados | K49: % Repitencia
L50: Ir a Inicio | M50: Ir a Gráfico
A51: Total | C51: =SUM(C50:C50) -> 0 | D51: =SUM(D50:D50) -> 0 | E51: =SUM(E50:E50) -> 0 | F51: =SUM(F50:F50) -> 0 | G51: =SUM(G50:G50) -> 0 | H51: =IFERROR(G51/F51,"-") -> - | I51: =SUM(I50:I50) -> 0 | J51: =IFERROR(I51/E51,"-") -> - | K51: =IFERROR((G51+I51)/E51,"-") -> -

Sheet Rep_CsPol
A1: OFICINA DE PLANEACIÓN - INFORMACIÓN Y ESTADÍSTICA
A3: Perdidos, Retirados y Repitencia de Asignaturas del Dpto. Cs. Política y Rel. Internacionales
A4: =Planeación!A1 -> 2023-2
A5: Codasg | B5: Asignaturas | C5: Total Cursos Abiertos | D5: Matrícula Inicial | E5: Matrícula Final | F5: Perdidos | G5: % Perdidos | H5: Retirados | I5: % Retirados | J5: % Repitencia
A6: POL4531 | B6: METODOLOGIA | C6: 1 | D6: 7 | E6: 6 | F6: 1 | G6: =IFERROR(F6/E6,"-") -> 0.1666666667 | H6: 1 | I6: =H6/D6 -> 0.1428571429 | J6: =(F6+H6)/D6 -> 0.2857142857 | L6: Volver al Índice
A7: POL0030 | B7: POLÍTICA COLOMBIANA | C7: 1 | D7: 17 | E7: 16 | F7: 2 | G7: 0.125 | H7: 1 | I7: 0.05882352941 | J7: 0.1764705882
A8: POL4220 | B8: POLITICA EXTERIOR COLOMBIANA | C8: 1 | D8: 21 | E8: 19 | F8: 1 | G8: 0.05263157895 | H8: 2 | I8: 0.09523809524 | J8: 0.1428571429
A9: POL4532 | B9: PARTICIPACION Y PROCESOS ELEC | C9: 1 | D9: 7 | E9: 6 | F9: 0 | G9: 0 | H9: 1 | I9: 0.1428571429 | J9: 0.1428571429
A10: INV4537 | B10: SEMINARIO DE INVESTIGACION II | C10: 1 | D10: 16 | E10: 15 | F10: 1 | G10: 0.06666666667 | H10: 1 | I10: 0.0625 | J10: 0.125 | L10: Ir a Tabla de Repitencia >=30%
A11: POL8210 | B11: SEMINARIO PROTOCOLO | C11: 1 | D11: 24 | E11: 21 | F11: 0 | G11: 0 | H11: 3 | I11: 0.125 | J11: 0.125
A12: SCO4025 | B12: TEORIA DE LAS RELACIONES INTER | C12: 1 | D12: 38 | E12: 35 | F12: 1 | G12: 0.02857142857 | H12: 3 | I12: 0.07894736842 | J12: 0.1052631579
A13: SCO4015 | B13: ORGANISMOS INTERNACIONALES | C13: 1 | D13: 21 | E13: 20 | F13: 1 | G13: 0.05 | H13: 1 | I13: 0.04761904762 | J13: 0.09523809524
A14: POL0010 | B14: INTROD A LA CIENCIA POLITICA | C14: 1 | D14: 44 | E14: 44 | F14: 4 | G14: 0.09090909091 | H14: 0 | I14: 0 | J14: 0.09090909091
A15: SCO4050 | B15: SEMINARIO DE GLOBALIZACION | C15: 1 | D15: 23 | E15: 22 | F15: 1 | G15: 0.04545454545 | H15: 1 | I15: 0.04347826087 | J15: 0.08695652174
A16: POL4270 | B16: INTRODUC A LA ADMON PUBLICA | C16: 1 | D16: 12 | E16: 12 | F16: 1 | G16: 0.08333333333 | H16: 0 | I16: 0 | J16: 0.08333333333
A17: POL4523 | B17: TEORIAS DE LA DEMOCRACIA | C17: 1 | D17: 13 | E17: 12 | F17: 0 | G17: 0 | H17: 1 | I17: 0.07692307692 | J17: 0.07692307692
A18: POL4534 | B18: PLANEACION DEL DESARROLLO | C18: 2 | D18: 27 | E18: 25 | F18: 0 | G18: 0 | H18: 2 | I18: 0.07407407407 | J18: 0.07407407407
A19: POL8170 | B19: POLITICA DE LA UNION EUROPEA | C19: 1 | D19: 29 | E19: 27 | F19: 0 | G19: 0 | H19: 2 | I19: 0.06896551724 | J19: 0.06896551724
A20: SCO1010 | B20: INT RELACIONES INTERNALES | C20: 1 | D20: 44 | E20: 43 | F20: 2 | G20: 0.04651162791 | H20: 1 | I20: 0.02272727273 | J20: 0.06818181818
A21: POL4533 | B21: PARTIDOS Y SISTEMAS DE PART. | C21: 1 | D21: 15 | E21: 15 | F21: 1 | G21: 0.06666666667 | H21: 0 | I21: 0 | J21: 0.06666666667
A22: POL4527 | B22: DESCENT Y GOB TERRITORIAL | C22: 1 | D22: 15 | E22: 14 | F22: 0 | G22: 0 | H22: 1 | I22: 0.06666666667 | J22: 0.06666666667
A23: POL4335 | B23: SEM DE INTEGRACION ECONOMICA | C23: 1 | D23: 15 | E23: 14 | F23: 0 | G23: 0 | H23: 1 | I23: 0.06666666667 | J23: 0.06666666667
A24: POL4521 | B24: TEORIA POLITICA I | C24: 1 | D24: 16 | E24: 16 | F24: 1 | G24: 0.0625 | H24: 0 | I24: 0 | J24: 0.0625
A25: POL4285 | B25: EVALUACIÓN DEPOLITICAS PÚBLICA | C25: 2 | D25: 33 | E25: 31 | F25: 0 | G25: 0 | H25: 2 | I25: 0.06060606061 | J25: 0.06060606061
A26: POL4530 | B26: GERENCIA PUBLICA | C26: 1 | D26: 17 | E26: 16 | F26: 0 | G26: 0 | H26: 1 | I26: 0.05882352941 | J26: 0.05882352941
A27: AMB4035 | B27: SEM MEDIO AMBIENTE Y RELAC INT | C27: 1 | D27: 18 | E27: 18 | F27: 1 | G27: 0.05555555556 | H27: 0 | I27: 0 | J27: 0.05555555556
A28: POL4528 | B28: DISEÑOS CUALI Y CUANTI | C28: 1 | D28: 19 | E28: 18 | F28: 0 | G28: 0 | H28: 1 | I28: 0.05263157895 | J28: 0.05263157895
A29: SCO4000 | B29: DIPLOMACIA Y POLITICA INTERNAC | C29: 1 | D29: 21 | E29: 20 | F29: 0 | G29: 0 | H29: 1 | I29: 0.04761904762 | J29: 0.04761904762
A30: POL4524 | B30: COMU Y MARKETING POLITICO | C30: 2 | D30: 53 | E30: 51 | F30: 0 | G30: 0 | H30: 2 | I30: 0.03773584906 | J30: 0.03773584906
A31: POL4310 | B31: INST POLITICAS Y CONSTITUCION | C31: 1 | D31: 28 | E31: 28 | F31: 1 | G31: 0.03571428571 | H31: 0 | I31: 0 | J31: 0.03571428571
A32: POL4525 | B32: CULTURA POLITICA Y OPINION PUB | C32: 1 | D32: 30 | E32: 29 | F32: 0 | G32: 0 | H32: 1 | I32: 0.03333333333 | J32: 0.03333333333
A33: SCO4110 | B33: COOPERACION INTER PAZ DD HH | C33: 2 | D33: 33 | E33: 32 | F33: 0 | G33: 0 | H33: 1 | I33: 0.0303030303 | J33: 0.0303030303
A34: SCO4090 | B34: TEORIA DE LAS REL INTERNAC II | C34: 2 | D34: 37 | E34: 36 | F34: 0 | G34: 0 | H34: 1 | I34: 0.02702702703 | J34: 0.02702702703
A35: INV4085 | B35: SEMINARIO DE INVESTIGACION I | C35: 2 | D35: 39 | E35: 38 | F35: 0 | G35: 0 | H35: 1 | I35: 0.02564102564 | J35: 0.02564102564
A36: POL4010 | B36: TEORIA Y ESTRUCTURA DEL ESTADO | C36: 1 | D36: 26 | E36: 26 | F36: 0 | G36: 0 | H36: 0 | I36: 0 | J36: 0
A37: POL4230 | B37: POLITICA LATINOAMERIC Y CARIBE | C37: 1 | D37: 30 | E37: 30 | F37: 0 | G37: 0 | H37: 0 | I37: 0 | J37: 0
A38: POL4330 | B38: NORTH AMERICAN POLITICS | C38: 1 | D38: 21 | E38: 21 | F38: 0 | G38: 0 | H38: 0 | I38: 0 | J38: 0
A39: SCO4100 | B39: SEM DE CONFLICTO Y PAZ | C39: 2 | D39: 42 | E39: 42 | F39: 0 | G39: 0 | H39: 0 | I39: 0 | J39: 0
A40: INV4095 | B40: SEMINARIO DE INVESTIGACION II | C40: 1 | D40: 19 | E40: 19 | F40: 0 | G40: 0 | H40: 0 | I40: 0 | J40: 0
A41: POL4522 | B41: TEORIA POLITICA II | C41: 1 | D41: 9 | E41: 9 | F41: 0 | G41: 0 | H41: 0 | I41: 0 | J41: 0
A42: POL4520 | B42: PROCESOS LEGISLATIVOS | C42: 1 | D42: 7 | E42: 7 | F42: 0 | G42: 0 | H42: 0 | I42: 0 | J42: 0
A43: POL4529 | B43: ENFOQUES EN CIENCIA POL | C43: 1 | D43: 13 | E43: 13 | F43: 0 | G43: 0 | H43: 0 | I43: 0 | J43: 0
A44: INV4536 | B44: SEMINARIO DE INVESTIGACION I | C44: 1 | D44: 22 | E44: 22 | F44: 0 | G44: 0 | H44: 0 | I44: 0 | J44: 0
A45: POL8165 | B45: POLITICA DE MEDIO ORIENTE | C45: 1 | D45: 39 | E45: 39 | F45: 0 | G45: 0 | H45: 0 | I45: 0 | J45: 0
A46: POL8180 | B46: POLÍTICAS PÚBLICAS | C46: 2 | D46: 38 | E46: 38 | F46: 0 | G46: 0 | H46: 0 | I46: 0 | J46: 0
A47: POL8065 | B47: SISTEMAS POLITICOS COMPARADOS | C47: 3 | D47: 45 | E47: 45 | F47: 0 | G47: 0 | H47: 0 | I47: 0 | J47: 0
A48: POL0080 | B48: GEOPOLITICA | C48: 2 | D48: 41 | E48: 41 | F48: 0 | G48: 0 | H48: 0 | I48: 0 | J48: 0
A49: POL8160 | B49: POLITICA DE ASIA PACIFICO | C49: 1 | D49: 38 | E49: 38 | F49: 0 | G49: 0 | H49: 0 | I49: 0 | J49: 0
A50: POL3050 | B50: POLITICA EXTERIOR COLOMBIANA | C50: 1 | D50: 21 | E50: 21 | F50: 0 | G50: 0 | H50: 0 | I50: 0 | J50: 0
A51: SCO8460 | B51: ORDEN Y SEGURIDAD GLOBAL | C51: 1 | D51: 28 | E51: 28 | F51: 0 | G51: 0 | H51: 0 | I51: 0 | J51: 0
A52: Total | C52: =SUM(C6:C51) -> 57 | D52: =SUM(D6:D51) -> 1171 | E52: =SUM(E6:E51) -> 1138 | F52: =SUM(F6:F51) -> 19 | G52: =F52/E52 -> 0.01669595782 | H52: =SUM(H6:H51) -> 33 | I52: =H52/D52 -> 0.02818104184 | J52: =(F52+H52)/D52 -> 0.04440649018
A55: Repitencia de Asignaturas del Dpto. Cs. Política y Rel. Internacionales, Mayor o Igual al 30%
A56: =Planeación!A1 -> 2023-2 | L56: Ir a Inicio | M56: Ir a Gráfico
A57: Codasg | B57: Asignaturas | C57: Total Cursos Abiertos | D57: Número de Cursos con Repitencia >=30% | E57: Matricula Inicial | F57: Matrícula Final | G57: Perdidos | H57: % Perdidos | I57: Retirados | J57: % Retirados | K57: % Repitencia
A59: Total | C59: =SUM(C58:C58) -> 0 | D59: =SUM(D58:D58) -> 0 | E59: =SUM(E58:E58) -> 0 | F59: =SUM(F58:F58) -> 0 | G59: =SUM(G58:G58) -> 0 | H59: =IFERROR(G59/F59,"-") -> - | I59: =SUM(I58:I58) -> 0 | J59: =IFERROR(I59/E59,"-") -> - | K59: =IFERROR((G59+I59)/E59,"-") -> -

Sheet Rep_Eco
A1: OFICINA DE PLANEACIÓN - INFORMACIÓN Y ESTADÍSTICA
A3: Perdidos, Retirados y Repitencia de Asignaturas del Dpto. de Economía
A4: =Planeación!A1 -> 2023-2
A5: Codasg | B5: Asignaturas | C5: Total Cursos Abiertos | D5: Matrícula Inicial | E5: Matrícula Final | F5: Perdidos | G5: % Perdidos | H5: Retirados | I5: % Retirados | J5: % Repitencia
A6: ECO8731 | B6: MICROECONOMIA I | C6: 1 | D6: 28 | E6: 19 | F6: 2 | G6: =IFERROR(F6/E6,"-") -> 0.1052631579 | H6: 9 | I6: =H6/D6 -> 0.3214285714 | J6: =(F6+H6)/D6 -> 0.3928571429 | L6: Volver al Índice
A7: ECO9000 | B7: MICROECONOMIA II | C7: 1 | D7: 28 | E7: 27 | F7: 4 | G7: 0.1481481481 | H7: 1 | I7: 0.03571428571 | J7: 0.1785714286
A8: ECO4020 | B8: HRIA ECONOMICA DE COLOMBIA | C8: 1 | D8: 6 | E8: 6 | F8: 1 | G8: 0.1666666667 | H8: 0 | I8: 0 | J8: 0.1666666667
A9: ECO7141 | B9: DESARROLLO ECONOMICO | C9: 1 | D9: 20 | E9: 19 | F9: 2 | G9: 0.1052631579 | H9: 1 | I9: 0.05 | J9: 0.15
A10: ECO0010 | B10: INTRODUCCION A LA ECONOMIA | C10: 7 | D10: 290 | E10: 279 | F10: 29 | G10: 0.1039426523 | H10: 11 | I10: 0.03793103448 | J10: 0.1379310345 | L10: Ir a Tabla de Repitencia >=30%
A11: ECO2080 | B11: MACROECONOMIA II | C11: 1 | D11: 29 | E11: 28 | F11: 3 | G11: 0.1071428571 | H11: 1 | I11: 0.03448275862 | J11: 0.1379310345
A12: CSO0120 | B12: INTROD A LA ECONOMIA COLOMB | C12: 1 | D12: 45 | E12: 45 | F12: 6 | G12: 0.1333333333 | H12: 0 | I12: 0 | J12: 0.1333333333
A13: ECA1000 | B13: INT A LA ECONOMIA DEL CARIBE | C13: 1 | D13: 38 | E13: 34 | F13: 1 | G13: 0.02941176471 | H13: 4 | I13: 0.1052631579 | J13: 0.1315789474
A14: ECO8738 | B14: DINAMICA Y PROGRAMACION ECO | C14: 1 | D14: 8 | E14: 7 | F14: 0 | G14: 0 | H14: 1 | I14: 0.125 | J14: 0.125
A15: ECO8734 | B15: ECONOMIA MONETARIA | C15: 1 | D15: 11 | E15: 11 | F15: 1 | G15: 0.09090909091 | H15: 0 | I15: 0 | J15: 0.09090909091
A16: ECO8735 | B16: PENSAMIENTO ECONOMICO I | C16: 1 | D16: 23 | E16: 22 | F16: 1 | G16: 0.04545454545 | H16: 1 | I16: 0.04347826087 | J16: 0.08695652174
A17: ECO4145 | B17: PENSAMIENTO ECONOMICO II | C17: 1 | D17: 12 | E17: 12 | F17: 1 | G17: 0.08333333333 | H17: 0 | I17: 0 | J17: 0.08333333333
A18: ECO8733 | B18: ECONOMETRIA I | C18: 1 | D18: 12 | E18: 11 | F18: 0 | G18: 0 | H18: 1 | I18: 0.08333333333 | J18: 0.08333333333
A19: ECO2061 | B19: MICROECONOMIA III | C19: 1 | D19: 25 | E19: 24 | F19: 1 | G19: 0.04166666667 | H19: 1 | I19: 0.04 | J19: 0.08
A20: GPY7181 | B20: EVAL. ECON. Y SOCIAL DE PROY. | C20: 1 | D20: 13 | E20: 13 | F20: 1 | G20: 0.07692307692 | H20: 0 | I20: 0 | J20: 0.07692307692
A21: ECO8580 | B21: EVALUACION DE IMPACTO DE PROG. | C21: 1 | D21: 13 | E21: 13 | F21: 1 | G21: 0.07692307692 | H21: 0 | I21: 0 | J21: 0.07692307692
A22: ECO4618 | B22: SOCIEDAD ECONOMIA Y POLITICA | C22: 1 | D22: 14 | E22: 13 | F22: 0 | G22: 0 | H22: 1 | I22: 0.07142857143 | J22: 0.07142857143
A23: ECO8430 | B23: ECONOMIA INDUSTRIAL | C23: 1 | D23: 15 | E23: 15 | F23: 1 | G23: 0.06666666667 | H23: 0 | I23: 0 | J23: 0.06666666667
A24: ECO8340 | B24: ECONOMETRIA II | C24: 1 | D24: 18 | E24: 18 | F24: 1 | G24: 0.05555555556 | H24: 0 | I24: 0 | J24: 0.05555555556
A25: ECO2120 | B25: MACROECONOMIA I | C25: 1 | D25: 21 | E25: 20 | F25: 0 | G25: 0 | H25: 1 | I25: 0.04761904762 | J25: 0.04761904762
A26: ECO8732 | B26: MEDICION ECONOMICA | C26: 1 | D26: 25 | E26: 24 | F26: 0 | G26: 0 | H26: 1 | I26: 0.04 | J26: 0.04
A27: ECO2011 | B27: PRINCIPIOS DE MICROECONOMIA | C27: 6 | D27: 181 | E27: 179 | F27: 5 | G27: 0.02793296089 | H27: 2 | I27: 0.01104972376 | J27: 0.03867403315
A28: ECO2021 | B28: PRINCIPIOS DE MACROECONOMIA | C28: 5 | D28: 132 | E28: 129 | F28: 2 | G28: 0.01550387597 | H28: 3 | I28: 0.02272727273 | J28: 0.03787878788
A29: IDS0020 | B29: EMPRENDIMIENTO SOCIAL | C29: 2 | D29: 99 | E29: 98 | F29: 0 | G29: 0 | H29: 1 | I29: 0.0101010101 | J29: 0.0101010101
A30: ECO1060 | B30: HRIA ECONOMICA GENERAL | C30: 1 | D30: 22 | E30: 22 | F30: 0 | G30: 0 | H30: 0 | I30: 0 | J30: 0
A31: ECO2130 | B31: PRINCIPIOS DE MACROECONOMIA | C31: 1 | D31: 14 | E31: 14 | F31: 0 | G31: 0 | H31: 0 | I31: 0 | J31: 0
A32: ECO7130 | B32: ECONOMIA DEL MEDIO AMBIENTE | C32: 1 | D32: 9 | E32: 9 | F32: 0 | G32: 0 | H32: 0 | I32: 0 | J32: 0
A33: FIN4032 | B33: FINANZAS PUBLICAS | C33: 1 | D33: 14 | E33: 14 | F33: 0 | G33: 0 | H33: 0 | I33: 0 | J33: 0
A34: ECO8737 | B34: ECONOMIA REGIONAL URBANA | C34: 1 | D34: 17 | E34: 17 | F34: 0 | G34: 0 | H34: 0 | I34: 0 | J34: 0
A35: ECO8736 | B35: ECONOMIA INTERNACIONAL | C35: 1 | D35: 10 | E35: 10 | F35: 0 | G35: 0 | H35: 0 | I35: 0 | J35: 0
A36: ECO8373 | B36: ECONOMIA PUBLICA | C36: 1 | D36: 11 | E36: 11 | F36: 0 | G36: 0 | H36: 0 | I36: 0 | J36: 0
A37: ECO4110 | B37: DESARROLLO ECONOMICO | C37: 1 | D37: 25 | E37: 25 | F37: 0 | G37: 0 | H37: 0 | I37: 0 | J37: 0
A38: ECO0190 | B38: TALLER DE INVESTIGACION | C38: 1 | D38: 3 | E38: 3 | F38: 0 | G38: 0 | H38: 0 | I38: 0 | J38: 0
A39: Total | C39: =SUM(C6:C38) -> 49 | D39: =SUM(D6:D38) -> 1231 | E39: =SUM(E6:E38) -> 1191 | F39: =SUM(F6:F38) -> 63 | G39: =F39/E39 -> 0.05289672544 | H39: =SUM(H6:H38) -> 40 | I39: =H39/D39 -> 0.03249390739 | J39: =(F39+H39)/D39 -> 0.08367181154
A42: Repitencia de Asignaturas del Dpto. de Economía, Mayor o Igual al 30%
A43: =Planeación!A1 -> 2023-2 | L43: Ir a Inicio | M43: Ir a Gráfico
A44: Codasg | B44: Asignaturas | C44: Total Cursos Abiertos | D44: Número de Cursos con Repitencia >=30% | E44: Matricula Inicial | F44: Matrícula Final | G44: Perdidos | H44: % Perdidos | I44: Retirados | J44: % Retirados | K44: % Repitencia
A45: ECO8731 | B45: MICROECONOMIA I | C45: =VLOOKUP(A45,$A$6:$C$38,3,FALSE) -> 1 | D45: 1 | E45: 28 | F45: 19 | G45: 2 | H45: =IFERROR(G45/F45,"-") -> 0.1052631579 | I45: 9 | J45: =I45/E45 -> 0.3214285714 | K45: =(G45+I45)/E45 -> 0.3928571429
A46: Total | C46: =SUM(C45) -> 1 | D46: =SUM(D45) -> 1 | E46: 28 | F46: 19 | G46: 2 | H46: =G46/F46 -> 0.1052631579 | I46: 9 | J46: =I46/E46 -> 0.3214285714 | K46: =(G46+I46)/E46 -> 0.3928571429

Sheet Graf_Eco
A1: OFICINA DE PLANEACIÓN - INFORMACIÓN Y ESTADÍSTICA
O2: Volver

Sheet Rep_Der
A1: OFICINA DE PLANEACIÓN - INFORMACIÓN Y ESTADÍSTICA
A3: Perdidos, Retirados y Repitencia de Asignaturas del Dpto. de Derecho
A4: =Planeación!A1 -> 2023-2
A5: Codasg | B5: Asignaturas | C5: Total Cursos Abiertos | D5: Matrícula Inicial | E5: Matrícula Final | F5: Perdidos | G5: % Perdidos | H5: Retirados | I5: % Retirados | J5: % Repitencia
A6: LEY4710 | B6: TEORIA DEL DERECHO PROCESAL | C6: 2 | D6: 74 | E6: 45 | F6: 18 | G6: =IFERROR(F6/E6,"-") -> 0.4 | H6: 29 | I6: =H6/D6 -> 0.3918918919 | J6: =(F6+H6)/D6 -> 0.6351351351 | L6: Volver al Índice
A7: LEY1080 | B7: TEORIA Y ORG. DEL ESTADO | C7: 3 | D7: 85 | E7: 62 | F7: 16 | G7: 0.2580645161 | H7: 23 | I7: 0.2705882353 | J7: 0.4588235294
A8: LEY4021 | B8: OBLIGACIONES II | C8: 3 | D8: 84 | E8: 77 | F8: 28 | G8: 0.3636363636 | H8: 7 | I8: 0.08333333333 | J8: 0.4166666667
A9: LEY2021 | B9: TEORIA CONS. E INST. POLITICAS | C9: 2 | D9: 89 | E9: 75 | F9: 15 | G9: 0.2 | H9: 14 | I9: 0.1573033708 | J9: 0.3258426966
A10: LEY4600 | B10: ADMINISTRATIVO I | C10: 2 | D10: 60 | E10: 47 | F10: 6 | G10: 0.1276595745 | H10: 13 | I10: 0.2166666667 | J10: 0.3166666667 | L10: Ir a Tabla de Repitencia >=30%
A11: LEY4660 | B11: PROCEDIMIENTO CIVIL GRAL | C11: 3 | D11: 89 | E11: 69 | F11: 7 | G11: 0.1014492754 | H11: 20 | I11: 0.2247191011 | J11: 0.3033707865
A12: LEY4181 | B12: PENAL II | C12: 3 | D12: 56 | E12: 52 | F12: 12 | G12: 0.2307692308 | H12: 4 | I12: 0.07142857143 | J12: 0.2857142857
A13: LEY4680 | B13: REL DE TRAB Y SEG SOCIAL III | C13: 3 | D13: 87 | E13: 76 | F13: 13 | G13: 0.1710526316 | H13: 11 | I13: 0.1264367816 | J13: 0.275862069
A14: LEY4685 | B14: REL DE TRAB Y SEG SOCIAL I | C14: 3 | D14: 78 | E14: 73 | F14: 16 | G14: 0.2191780822 | H14: 5 | I14: 0.0641025641 | J14: 0.2692307692
A15: LEY4670 | B15: PRUEBAS | C15: 2 | D15: 67 | E15: 65 | F15: 16 | G15: 0.2461538462 | H15: 2 | I15: 0.02985074627 | J15: 0.2686567164
A16: LEY4705 | B16: TEORIA DE LA ARGUMENTACION | C16: 3 | D16: 64 | E16: 58 | F16: 10 | G16: 0.1724137931 | H16: 6 | I16: 0.09375 | J16: 0.25
A17: LEY7051 | B17: CONTRATOS I | C17: 3 | D17: 60 | E17: 55 | F17: 9 | G17: 0.1636363636 | H17: 5 | I17: 0.08333333333 | J17: 0.2333333333
A18: LEY4640 | B18: INTERPRETACION CONST Y LEGAL | C18: 2 | D18: 85 | E18: 75 | F18: 9 | G18: 0.12 | H18: 10 | I18: 0.1176470588 | J18: 0.2235294118
A19: LEY4011 | B19: OBLIGACIONES I | C19: 2 | D19: 64 | E19: 54 | F19: 4 | G19: 0.07407407407 | H19: 10 | I19: 0.15625 | J19: 0.21875
A20: CSO7150 | B20: SOCIOLOGÍA JURÍDICA | C20: 3 | D20: 80 | E20: 79 | F20: 16 | G20: 0.2025316456 | H20: 1 | I20: 0.0125 | J20: 0.2125
A21: LEY4650 | B21: PENAL I | C21: 2 | D21: 74 | E21: 69 | F21: 10 | G21: 0.1449275362 | H21: 5 | I21: 0.06756756757 | J21: 0.2027027027
A22: LEY0001 | B22: TECNOLOGIA LEGAL | C22: 1 | D22: 26 | E22: 25 | F22: 4 | G22: 0.16 | H22: 1 | I22: 0.03846153846 | J22: 0.1923076923
A23: LEY4655 | B23: PROCEDIMIENTO CIVIL ESPECIAL | C23: 2 | D23: 32 | E23: 27 | F23: 1 | G23: 0.03703703704 | H23: 5 | I23: 0.15625 | J23: 0.1875
A24: HIS1020 | B24: HISTORIA DEL DERECHO | C24: 2 | D24: 82 | E24: 70 | F24: 3 | G24: 0.04285714286 | H24: 12 | I24: 0.1463414634 | J24: 0.1829268293
A25: LEY7061 | B25: CONTRATOS II | C25: 2 | D25: 80 | E25: 75 | F25: 9 | G25: 0.12 | H25: 5 | I25: 0.0625 | J25: 0.175
A26: LEY4715 | B26: TEORIA DEL DERECHO | C26: 2 | D26: 65 | E26: 65 | F26: 11 | G26: 0.1692307692 | H26: 0 | I26: 0 | J26: 0.1692307692
A27: LEY3075 | B27: INTERNATIONAL LAW | C27: 1 | D27: 32 | E27: 31 | F27: 4 | G27: 0.1290322581 | H27: 1 | I27: 0.03125 | J27: 0.15625
A28: LEY4475 | B28: DER HUM Y DER INTERN HUMANITAR | C28: 2 | D28: 46 | E28: 44 | F28: 5 | G28: 0.1136363636 | H28: 2 | I28: 0.04347826087 | J28: 0.152173913
A29: LEY7205 | B29: PENAL III | C29: 3 | D29: 101 | E29: 95 | F29: 9 | G29: 0.09473684211 | H29: 6 | I29: 0.05940594059 | J29: 0.1485148515
A30: LEY4290 | B30: DD HH DERECHO INTER HUMANI RI | C30: 1 | D30: 28 | E30: 25 | F30: 1 | G30: 0.04 | H30: 3 | I30: 0.1071428571 | J30: 0.1428571429
A31: LEY4630 | B31: DERECHO CORPORATIVO | C31: 2 | D31: 82 | E31: 81 | F31: 10 | G31: 0.1234567901 | H31: 1 | I31: 0.01219512195 | J31: 0.1341463415
A32: LEY9679 | B32: LEGISLACION TRIBUTARIA | C32: 1 | D32: 40 | E32: 39 | F32: 4 | G32: 0.1025641026 | H32: 1 | I32: 0.025 | J32: 0.125
A33: INV3010 | B33: MET INV JURIDI Y SOCIOJURIDICA | C33: 3 | D33: 49 | E33: 48 | F33: 5 | G33: 0.1041666667 | H33: 1 | I33: 0.02040816327 | J33: 0.1224489796
A34: LEY4665 | B34: PROCEDIMIENTO PENAL | C34: 2 | D34: 90 | E34: 84 | F34: 5 | G34: 0.05952380952 | H34: 6 | I34: 0.06666666667 | J34: 0.1222222222
A35: LEY4526 | B35: DCHO. INTER Y DCHOS. HUMANOS | C35: 1 | D35: 17 | E35: 15 | F35: 0 | G35: 0 | H35: 2 | I35: 0.1176470588 | J35: 0.1176470588
A36: LEY1031 | B36: PERSONAS | C36: 2 | D36: 69 | E36: 68 | F36: 6 | G36: 0.08823529412 | H36: 1 | I36: 0.01449275362 | J36: 0.1014492754
A37: LEY1060 | B37: BIENES | C37: 2 | D37: 69 | E37: 65 | F37: 3 | G37: 0.04615384615 | H37: 4 | I37: 0.05797101449 | J37: 0.1014492754
A38: LEY4740 | B38: CRIMINOLOGIA Y POLITICA CRIMIN | C38: 1 | D38: 20 | E38: 18 | F38: 0 | G38: =IFERROR(F38/E38,"-") -> 0 | H38: 2 | I38: =H38/D38 -> 0.1 | J38: =(F38+H38)/D38 -> 0.1
A39: LEY5972 | B39: JUSTICIA TRANSICIONAL | C39: 1 | D39: 31 | E39: 29 | F39: 1 | G39: 0.03448275862 | H39: 2 | I39: 0.06451612903 | J39: 0.09677419355
A40: LEY7305 | B40: CONSULTORIO JURIDICO I | C40: 4 | D40: 43 | E40: 42 | F40: 3 | G40: 0.07142857143 | H40: 1 | I40: 0.02325581395 | J40: 0.09302325581
A41: LEY4815 | B41: ACCIONES PUBLICAS Y PROC ADM | C41: 2 | D41: 46 | E41: 44 | F41: 2 | G41: 0.04545454545 | H41: 2 | I41: 0.04347826087 | J41: 0.08695652174
A42: LEY7322 | B42: CONSULTORIO JURIDICO III | C42: 2 | D42: 55 | E42: 53 | F42: 2 | G42: 0.03773584906 | H42: 2 | I42: 0.03636363636 | J42: 0.07272727273
A43: LEY4690 | B43: RELACIONES DE FAMILIA I | C43: 2 | D43: 43 | E43: 40 | F43: 0 | G43: 0 | H43: 3 | I43: 0.06976744186 | J43: 0.06976744186
A44: LEY4675 | B44: REL DE TRAB Y SEG SOCIAL II | C44: 2 | D44: 58 | E44: 58 | F44: 4 | G44: 0.06896551724 | H44: 0 | I44: 0 | J44: 0.06896551724
A45: LEY7312 | B45: CONSULTORIO JURIDICO II | C45: 2 | D45: 109 | E45: 109 | F45: 6 | G45: 0.05504587156 | H45: 0 | I45: 0 | J45: 0.05504587156
A46: LEY7740 | B46: DERECHO IMPACTO CINE Y LITERAT | C46: 1 | D46: 37 | E46: 35 | F46: 0 | G46: 0 | H46: 2 | I46: 0.05405405405 | J46: 0.05405405405
A47: LEY4610 | B47: ADMINISTRATIVO II | C47: 3 | D47: 75 | E47: 73 | F47: 2 | G47: 0.02739726027 | H47: 2 | I47: 0.02666666667 | J47: 0.05333333333
A48: LEY4620 | B48: BIENES DEL COMERCIO | C48: 2 | D48: 73 | E48: 71 | F48: 1 | G48: 0.01408450704 | H48: 2 | I48: 0.02739726027 | J48: 0.04109589041
A49: LEY3020 | B49: INTERNACIONAL PRIVADO | C49: 3 | D49: 100 | E49: 98 | F49: 2 | G49: 0.02040816327 | H49: 2 | I49: 0.02 | J49: 0.04
A50: LEY4645 | B50: ORALIDAD JURIDICA | C50: 3 | D50: 52 | E50: 51 | F50: 1 | G50: 0.01960784314 | H50: 1 | I50: 0.01923076923 | J50: 0.03846153846
A51: LEY4635 | B51: FUND DEL DERECHO COMERCIAL | C51: 2 | D51: 53 | E51: 52 | F51: 1 | G51: 0.01923076923 | H51: 1 | I51: 0.01886792453 | J51: 0.03773584906
A52: LEY2055 | B52: LEGISLACION EMPRESARIAL | C52: 2 | D52: 91 | E52: 91 | F52: 3 | G52: 0.03296703297 | H52: 0 | I52: 0 | J52: 0.03296703297
A53: LEY4780 | B53: DERECHO TRIBUTARIO | C53: 1 | D53: 40 | E53: 39 | F53: 0 | G53: 0 | H53: 1 | I53: 0.025 | J53: 0.025
A54: LEY4320 | B54: MECANISMOS ALTERNOS | C54: 4 | D54: 110 | E54: 108 | F54: 0 | G54: 0 | H54: 2 | I54: 0.01818181818 | J54: 0.01818181818
A55: LEY4625 | B55: CONTRATACION ESTATAL | C55: 3 | D55: 114 | E55: 112 | F55: 0 | G55: 0 | H55: 2 | I55: 0.01754385965 | J55: 0.01754385965
A56: LEY0006 | B56: DERECHO COMERCIAL INTER. | C56: 2 | D56: 60 | E56: 59 | F56: 0 | G56: 0 | H56: 1 | I56: 0.01666666667 | J56: 0.01666666667
A57: FIL4110 | B57: FILOSOFIA DEL DERECHO | C57: 3 | D57: 60 | E57: 59 | F57: 0 | G57: 0 | H57: 1 | I57: 0.01666666667 | J57: 0.01666666667
A58: LEY4455 | B58: T.GRAL DEREC INT Y DER INT PUB | C58: 3 | D58: 81 | E58: 80 | F58: 0 | G58: 0 | H58: 1 | I58: 0.01234567901 | J58: 0.01234567901
A59: LEY4695 | B59: RELACIONES DE FAMILIA II | C59: 3 | D59: 103 | E59: 103 | F59: 0 | G59: 0 | H59: 0 | I59: 0 | J59: 0
A60: LEY4700 | B60: RELACIONES DEL COMERCIO | C60: 2 | D60: 25 | E60: 25 | F60: 0 | G60: 0 | H60: 0 | I60: 0 | J60: 0
A61: LEY4615 | B61: ARBITRAJE | C61: 2 | D61: 71 | E61: 71 | F61: 0 | G61: 0 | H61: 0 | I61: 0 | J61: 0
A62: LEY7332 | B62: CONSULTORIO JURIDICO IV | C62: 1 | D62: 37 | E62: 37 | F62: 0 | G62: 0 | H62: 0 | I62: 0 | J62: 0
A63: LEY4300 | B63: INTER TRADE AND MARIT LAW SEM | C63: 1 | D63: 36 | E63: 36 | F63: 0 | G63: 0 | H63: 0 | I63: 0 | J63: 0
A64: Total | C64: =SUM(C6:C63) -> 127 | D64: =SUM(D6:D63) -> 3727 | E64: =SUM(E6:E63) -> 3481 | F64: =SUM(F6:F63) -> 313 | G64: =F64/E64 -> 0.08991669061 | H64: =SUM(H6:H63) -> 246 | I64: =H64/D64 -> 0.06600482962 | J64: =(F64+H64)/D64 -> 0.1499865844
A67: Repitencia de Asignaturas del Dpto. de Derecho, Mayor o Igual al 30%
A68: =Planeación!A1 -> 2023-2 | L68: Ir a Inicio | M68: Ir a Gráfico
A69: Codasg | B69: Asignaturas | C69: Total Cursos Abiertos | D69: Número de Cursos con Repitencia >=30% | E69: Matricula Inicial | F69: Matrícula Final | G69: Perdidos | H69: % Perdidos | I69: Retirados | J69: % Retirados | K69: % Repitencia
A70: LEY4710 | B70: TEORIA DEL DERECHO PROCESAL | C70: =VLOOKUP(A70,$A$6:$C$63,3,FALSE) -> 2 | D70: 2 | E70: 74 | F70: 45 | G70: 18 | H70: =IFERROR(G70/F70,"-") -> 0.4 | I70: 29 | J70: =I70/E70 -> 0.3918918919 | K70: =(G70+I70)/E70 -> 0.6351351351
A71: LEY4021 | B71: OBLIGACIONES II | C71: 3 | D71: 2 | E71: 58 | F71: 52 | G71: 24 | H71: 0.4615384615 | I71: 6 | J71: 0.1034482759 | K71: 0.5172413793
A72: LEY4660 | B72: PROCEDIMIENTO CIVIL GRAL | C72: 3 | D72: 1 | E72: 35 | F72: 20 | G72: 2 | H72: 0.1 | I72: 15 | J72: 0.4285714286 | K72: 0.4857142857
A73: LEY4685 | B73: REL DE TRAB Y SEG SOCIAL I | C73: 3 | D73: 1 | E73: 15 | F73: 12 | G73: 4 | H73: 0.3333333333 | I73: 3 | J73: 0.2 | K73: 0.4666666667
A74: LEY4670 | B74: PRUEBAS | C74: 2 | D74: 1 | E74: 26 | F74: 24 | G74: 10 | H74: 0.4166666667 | I74: 2 | J74: 0.07692307692 | K74: 0.4615384615
A75: LEY1080 | B75: TEORIA Y ORG. DEL ESTADO | C75: 3 | D75: 3 | E75: 85 | F75: 62 | G75: 16 | H75: 0.2580645161 | I75: 23 | J75: 0.2705882353 | K75: 0.4588235294
A76: CSO7150 | B76: SOCIOLOGÍA JURÍDICA | C76: 3 | D76: 1 | E76: 9 | F76: 9 | G76: 4 | H76: 0.4444444444 | I76: 0 | J76: 0 | K76: 0.4444444444
A77: LEY4705 | B77: TEORIA DE LA ARGUMENTACION | C77: 3 | D77: 1 | E77: 16 | F77: 14 | G77: 5 | H77: 0.3571428571 | I77: 2 | J77: 0.125 | K77: 0.4375
A78: LEY4680 | B78: REL DE TRAB Y SEG SOCIAL III | C78: 3 | D78: 1 | E78: 28 | F78: 23 | G78: 6 | H78: 0.2608695652 | I78: 5 | J78: 0.1785714286 | K78: 0.3928571429
A79: LEY4011 | B79: OBLIGACIONES I | C79: 2 | D79: 1 | E79: 24 | F79: 17 | G79: 2 | H79: 0.1176470588 | I79: 7 | J79: 0.2916666667 | K79: 0.375
A80: LEY4181 | B80: PENAL II | C80: 3 | D80: 2 | E80: 31 | F80: 28 | G80: 8 | H80: 0.2857142857 | I80: 3 | J80: 0.09677419355 | K80: 0.3548387097
A81: LEY4600 | B81: ADMINISTRATIVO I | C81: 2 | D81: 1 | E81: 40 | F81: 28 | G81: 2 | H81: 0.07142857143 | I81: 12 | J81: 0.3 | K81: 0.35
A82: LEY7051 | B82: CONTRATOS I | C82: 3 | D82: 1 | E82: 12 | F82: 10 | G82: 2 | H82: 0.2 | I82: 2 | J82: 0.1666666667 | K82: 0.3333333333
A83: LEY2021 | B83: TEORIA CONS. E INST. POLITICAS | C83: 2 | D83: 2 | E83: 89 | F83: 75 | G83: 15 | H83: 0.2 | I83: 14 | J83: 0.1573033708 | K83: 0.3258426966
A84: Total | C84: =SUM(C70:C83) -> 37 | D84: =SUM(D70:D83) -> 20 | E84: 542 | F84: 419 | G84: 118 | H84: =G84/F84 -> 0.2816229117 | I84: 123 | J84: =I84/E84 -> 0.2269372694 | K84: =(G84+I84)/E84 -> 0.4446494465

Sheet Graf_Der
A1: OFICINA DE PLANEACIÓN - INFORMACIÓN Y ESTADÍSTICA
O2: Volver

Sheet Rep_Dis
A1: OFICINA DE PLANEACIÓN - INFORMACIÓN Y ESTADÍSTICA
A3: Perdidos, Retirados y Repitencia de Asignaturas del Dpto. de Diseño
A4: =Planeación!A1 -> 2023-2
A5: Codasg | B5: Asignaturas | C5: Total Cursos Abiertos | D5: Matrícula Inicial | E5: Matrícula Final | F5: Perdidos | G5: % Perdidos | H5: Retirados | I5: % Retirados | J5: % Repitencia
A6: ELP8260 | B6: PROYECTO DE GRADO | C6: 1 | D6: 3 | E6: 2 | F6: 0 | G6: =IFERROR(F6/E6,"-") -> 0 | H6: 1 | I6: =H6/D6 -> 0.3333333333 | J6: =(F6+H6)/D6 -> 0.3333333333 | L6: Volver al Índice
A7: DIG0037 | B7: REALIZACION AUDIVISUAL I | C7: 2 | D7: 35 | E7: 33 | F7: 5 | G7: 0.1515151515 | H7: 2 | I7: 0.05714285714 | J7: 0.2
A8: DIN4100 | B8: BIODISEÑO:NATURALEZAEINNOVACIO | C8: 1 | D8: 15 | E8: 12 | F8: 0 | G8: 0 | H8: 3 | I8: 0.2 | J8: 0.2
A9: DIS0010 | B9: TALLER BASICO I | C9: 3 | D9: 58 | E9: 54 | F9: 7 | G9: 0.1296296296 | H9: 4 | I9: 0.06896551724 | J9: 0.1896551724
A10: DIG0032 | B10: DISEÑO DIGITAL I | C10: 2 | D10: 41 | E10: 39 | F10: 5 | G10: 0.1282051282 | H10: 2 | I10: 0.0487804878 | J10: 0.1707317073 | L10: Ir a Tabla de Repitencia >=30%
A11: DIG0031 | B11: DISEÑO AMBIENTAL | C11: 2 | D11: 30 | E11: 27 | F11: 1 | G11: 0.03703703704 | H11: 3 | I11: 0.1 | J11: 0.1333333333
A12: DIS0020 | B12: TALLER DE EXPRESION I | C12: 3 | D12: 56 | E12: 52 | F12: 2 | G12: 0.03846153846 | H12: 4 | I12: 0.07142857143 | J12: 0.1071428571
A13: DIG0083 | B13: TALLER DE CREATIVIDAD | C13: 1 | D13: 10 | E13: 9 | F13: 0 | G13: 0 | H13: 1 | I13: 0.1 | J13: 0.1
A14: DIN4104 | B14: DISEÑO DE EXP. DE USUARIO UX | C14: 1 | D14: 20 | E14: 18 | F14: 0 | G14: 0 | H14: 2 | I14: 0.1 | J14: 0.1
A15: DIS0023 | B15: TALLER BASICO II | C15: 4 | D15: 85 | E15: 80 | F15: 3 | G15: 0.0375 | H15: 5 | I15: 0.05882352941 | J15: 0.09411764706
A16: DIS0021 | B16: SEGURIDAD Y HERRAMIENTAS | C16: 4 | D16: 64 | E16: 60 | F16: 2 | G16: 0.03333333333 | H16: 4 | I16: 0.0625 | J16: 0.09375
A17: DIN7235 | B17: TALLER FACTORES HUMANOS | C17: 1 | D17: 11 | E17: 11 | F17: 1 | G17: 0.09090909091 | H17: 0 | I17: 0 | J17: 0.09090909091
A18: DIG4040 | B18: T DIS 5- IDENTIDAD VISUAL | C18: 2 | D18: 34 | E18: 33 | F18: 2 | G18: 0.06060606061 | H18: 1 | I18: 0.02941176471 | J18: 0.08823529412
A19: DIS0022 | B19: IDEACION Y CREATIVIDAD | C19: 2 | D19: 60 | E19: 57 | F19: 2 | G19: 0.0350877193 | H19: 3 | I19: 0.05 | J19: 0.08333333333
A20: ELP7340 | B20: PROYECTO DE GRADO | C20: 1 | D20: 13 | E20: 12 | F20: 0 | G20: 0 | H20: 1 | I20: 0.07692307692 | J20: 0.07692307692
A21: DIS0015 | B21: HISTORIA DEL DISEÑO | C21: 2 | D21: 57 | E21: 55 | F21: 2 | G21: 0.03636363636 | H21: 2 | I21: 0.0350877193 | J21: 0.0701754386
A22: DIG0081 | B22: TALLER DE REALIZACION | C22: 2 | D22: 29 | E22: 27 | F22: 0 | G22: 0 | H22: 2 | I22: 0.06896551724 | J22: 0.06896551724
A23: DIG0082 | B23: METODOLOGIA PROYECTUAL | C23: 2 | D23: 31 | E23: 30 | F23: 1 | G23: 0.03333333333 | H23: 1 | I23: 0.03225806452 | J23: 0.06451612903
A24: DIN7155 | B24: DISEÑO Y MERCADEO | C24: 2 | D24: 35 | E24: 35 | F24: 2 | G24: 0.05714285714 | H24: 0 | I24: 0 | J24: 0.05714285714
A25: DIG0038 | B25: PRE-PRENSA E IMPRESIÓN | C25: 2 | D25: 36 | E25: 35 | F25: 1 | G25: 0.02857142857 | H25: 1 | I25: 0.02777777778 | J25: 0.05555555556
A26: DIN7090 | B26: DISEÑO DIGITAL II | C26: 1 | D26: 18 | E26: 18 | F26: 1 | G26: 0.05555555556 | H26: 0 | I26: 0 | J26: 0.05555555556
A27: DIS0028 | B27: CONTRUCCION DE MODELOS | C27: 4 | D27: 82 | E27: 80 | F27: 2 | G27: 0.025 | H27: 2 | I27: 0.0243902439 | J27: 0.0487804878
A28: DIS0029 | B28: ESTETICA Y SEMIOTICA | C28: 2 | D28: 48 | E28: 47 | F28: 1 | G28: 0.02127659574 | H28: 1 | I28: 0.02083333333 | J28: 0.04166666667
A29: DIS0031 | B29: PORTAFOLIO | C29: 2 | D29: 50 | E29: 48 | F29: 0 | G29: 0 | H29: 2 | I29: 0.04 | J29: 0.04
A30: DIG0080 | B30: ILUSTRACION | C30: 3 | D30: 53 | E30: 51 | F30: 0 | G30: 0 | H30: 2 | I30: 0.03773584906 | J30: 0.03773584906
A31: DIN7125 | B31: DISEÑO DE INTERIORES | C31: 1 | D31: 27 | E31: 27 | F31: 1 | G31: 0.03703703704 | H31: 0 | I31: 0 | J31: 0.03703703704
A32: DIG4024 | B32: FOTOGRAFIA PUBLICITARIA | C32: 3 | D32: 64 | E32: 64 | F32: 2 | G32: 0.03125 | H32: 0 | I32: 0 | J32: 0.03125
A33: DIG4081 | B33: FUNDAMENTOS DE PUBLICIDAD | C33: 2 | D33: 33 | E33: 33 | F33: 1 | G33: 0.0303030303 | H33: 0 | I33: 0 | J33: 0.0303030303
A34: DIS0026 | B34: TALLER DE EXPRESION II | C34: 4 | D34: 82 | E34: 81 | F34: 1 | G34: 0.01234567901 | H34: 1 | I34: 0.01219512195 | J34: 0.0243902439
A35: DIS0030 | B35: IDENTIDAD GLOBAL | C35: 3 | D35: 52 | E35: 52 | F35: 1 | G35: 0.01923076923 | H35: 0 | I35: 0 | J35: 0.01923076923
A36: DIG0033 | B36: DISEÑO DIGITAL II | C36: 2 | D36: 53 | E36: 53 | F36: 1 | G36: 0.01886792453 | H36: 0 | I36: 0 | J36: 0.01886792453
A37: DIG0039 | B37: REALIZACION AUDIVISUAL II | C37: 3 | D37: 57 | E37: 57 | F37: 1 | G37: 0.01754385965 | H37: 0 | I37: 0 | J37: 0.01754385965
A38: DIG4023 | B38: DISEÑO EN MOVIMIENTO | C38: 3 | D38: 62 | E38: 61 | F38: 0 | G38: =IFERROR(F38/E38,"-") -> 0 | H38: 1 | I38: =H38/D38 -> 0.01612903226 | J38: =(F38+H38)/D38 -> 0.01612903226
A39: DIG4026 | B39: ILUSTRACION I | C39: 3 | D39: 63 | E39: 63 | F39: 1 | G39: 0.01587301587 | H39: 0 | I39: 0 | J39: 0.01587301587
A40: DIS0032 | B40: DISEÑO DIGITAL I | C40: 4 | D40: 75 | E40: 75 | F40: 1 | G40: 0.01333333333 | H40: 0 | I40: 0 | J40: 0.01333333333
A41: DIS0024 | B41: METODOLOGIA DE DISEÑO | C41: 3 | D41: 82 | E41: 81 | F41: 0 | G41: 0 | H41: 1 | I41: 0.01219512195 | J41: 0.01219512195
A42: DIN0032 | B42: INVESTIGACION DE TENDENCIAS | C42: 1 | D42: 11 | E42: 11 | F42: 0 | G42: 0 | H42: 0 | I42: 0 | J42: 0
A43: DIG4105 | B43: EXPERIENCIA DE MARCA | C43: 1 | D43: 19 | E43: 19 | F43: 0 | G43: 0 | H43: 0 | I43: 0 | J43: 0
A44: DIN7060 | B44: TALLER PRODUCCION INDUSTRIAL | C44: 1 | D44: 10 | E44: 10 | F44: 0 | G44: 0 | H44: 0 | I44: 0 | J44: 0
A45: DIN7100 | B45: MOD.PARAMET.PROTOTIPADO RAPIDO | C45: 1 | D45: 13 | E45: 13 | F45: 0 | G45: 0 | H45: 0 | I45: 0 | J45: 0
A46: DIN7070 | B46: DISEÑO Y PRODUCCION | C46: 1 | D46: 7 | E46: 7 | F46: 0 | G46: 0 | H46: 0 | I46: 0 | J46: 0
A47: DIG4050 | B47: T DIS 6- EMPAQUES/PIEZAS PROM | C47: 3 | D47: 55 | E47: 55 | F47: 0 | G47: 0 | H47: 0 | I47: 0 | J47: 0
A48: DIN7010 | B48: ESTUDIO DE DISEÑO | C48: 1 | D48: 8 | E48: 8 | F48: 0 | G48: 0 | H48: 0 | I48: 0 | J48: 0
A49: DIN7020 | B49: TALLER DISEÑO TECNOLOGICO | C49: 1 | D49: 11 | E49: 11 | F49: 0 | G49: 0 | H49: 0 | I49: 0 | J49: 0
A50: DIN7030 | B50: GESTION DEL DISEÑO | C50: 1 | D50: 11 | E50: 11 | F50: 0 | G50: 0 | H50: 0 | I50: 0 | J50: 0
A51: DIG4021 | B51: TALLER DE TIPOGRAFIA | C51: 2 | D51: 35 | E51: 35 | F51: 0 | G51: 0 | H51: 0 | I51: 0 | J51: 0
A52: DIG4022 | B52: DIAGRAMACION Y PRODUCCION | C52: 3 | D52: 61 | E52: 61 | F52: 0 | G52: 0 | H52: 0 | I52: 0 | J52: 0
A53: DIN7236 | B53: ERGONOMIA | C53: 1 | D53: 10 | E53: 10 | F53: 0 | G53: 0 | H53: 0 | I53: 0 | J53: 0
A54: DIN7238 | B54: LAB DE SISTEMAS Y MECANISMOS | C54: 1 | D54: 8 | E54: 8 | F54: 0 | G54: 0 | H54: 0 | I54: 0 | J54: 0
A55: DIN7240 | B55: TALLER DESARROLLO DE PRODUCTO | C55: 1 | D55: 9 | E55: 9 | F55: 0 | G55: 0 | H55: 0 | I55: 0 | J55: 0
A56: DIN7239 | B56: MATERIALES Y PROCESOS | C56: 1 | D56: 8 | E56: 8 | F56: 0 | G56: 0 | H56: 0 | I56: 0 | J56: 0
A57: DIN0031 | B57: ERGONOMIA | C57: 1 | D57: 8 | E57: 8 | F57: 0 | G57: 0 | H57: 0 | I57: 0 | J57: 0
A58: Total | C58: =SUM(C6:C57) -> 104 | D58: =SUM(D6:D57) -> 1908 | E58: =SUM(E6:E57) -> 1856 | F58: =SUM(F6:F57) -> 50 | G58: =F58/E58 -> 0.02693965517 | H58: =SUM(H6:H57) -> 52 | I58: =H58/D58 -> 0.02725366876 | J58: =(F58+H58)/D58 -> 0.0534591195
A61: Repitencia de Asignaturas del Dpto. de Diseño, Mayor o Igual al 30%
A62: =Planeación!A1 -> 2023-2 | L62: Ir a Inicio | M62: Ir a Gráfico
A63: Codasg | B63: Asignaturas | C63: Total Cursos Abiertos | D63: Número de Cursos con Repitencia >=30% | E63: Matricula Inicial | F63: Matrícula Final | G63: Perdidos | H63: % Perdidos | I63: Retirados | J63: % Retirados | K63: % Repitencia
A64: ELP8260 | B64: PROYECTO DE GRADO | C64: =VLOOKUP(A64,$A$6:$C$57,3,FALSE) -> 1 | D64: 1 | E64: 3 | F64: 2 | G64: 0 | H64: =IFERROR(G64/F64,"-") -> 0 | I64: 1 | J64: =I64/E64 -> 0.3333333333 | K64: =(G64+I64)/E64 -> 0.3333333333
A65: DIG0037 | B65: REALIZACION AUDIVISUAL I | C65: =VLOOKUP(A65,$A$6:$C$57,3,FALSE) -> 2 | D65: 1 | E65: 16 | F65: 15 | G65: 4 | H65: =IFERROR(G65/F65,"-") -> 0.2666666667 | I65: 1 | J65: =I65/E65 -> 0.0625 | K65: =(G65+I65)/E65 -> 0.3125
A66: Total | C66: =SUM(C64:C65) -> 3 | D66: =SUM(D64:D65) -> 2 | E66: =SUM(E64:E65) -> 19 | F66: =SUM(F64:F65) -> 17 | G66: =SUM(G64:G65) -> 4 | H66: =G66/F66 -> 0.2352941176 | I66: =SUM(I64:I65) -> 2 | J66: =I66/E66 -> 0.1052631579 | K66: =(G66+I66)/E66 -> 0.3157894737

Sheet Graf_Dis
A1: OFICINA DE PLANEACIÓN - INFORMACIÓN Y ESTADÍSTICA
O2: Volver

Sheet Rep_Edu
A1: OFICINA DE PLANEACIÓN - INFORMACIÓN Y ESTADÍSTICA
A3: Perdidos, Retirados y Repitencia de Asignaturas del Dpto. de Educación
A4: =Planeación!A1 -> 2023-2
A5: Codasg | B5: Asignaturas | C5: Total Cursos Abiertos | D5: Matrícula Inicial | E5: Matrícula Final | F5: Perdidos | G5: % Perdidos | H5: Retirados | I5: % Retirados | J5: % Repitencia
A6: EDU4533 | B6: DESARROLLO DEL PENSAMIENTO | C6: 1 | D6: 9 | E6: 9 | F6: 2 | G6: 0 | H6: 0 | I6: =H6/D6 -> 0 | J6: =(F6+H6)/D6 -> 0.2222222222 | L6: Volver al Índice
A7: EDU0105 | B7: CORRIENTES PEDAGOGICAS CONTEMP | C7: 1 | D7: 10 | E7: 10 | F7: 2 | G7: 0 | H7: 0 | I7: 0 | J7: 0.2
A8: EDU2100 | B8: EVALUACION EDUCATIVA | C8: 1 | D8: 21 | E8: 20 | F8: 3 | G8: 0 | H8: 1 | I8: 0.04761904762 | J8: 0.1904761905
A9: EDU4545 | B9: INCLUSION Y EDUCACION | C9: 1 | D9: 21 | E9: 19 | F9: 2 | G9: 1 | H9: 2 | I9: 0.09523809524 | J9: 0.1904761905
A10: EDU4547 | B10: GERENCIA DE PROYECTOS EDUCATIV | C10: 1 | D10: 11 | E10: 10 | F10: 1 | G10: 0 | H10: 1 | I10: 0.09090909091 | J10: 0.1818181818 | L10: Ir a Tabla de Repitencia >=30%
A11: EDU4548 | B11: MEDIACIONES EN EDUCACION Y TIC | C11: 1 | D11: 11 | E11: 10 | F11: 1 | G11: 2 | H11: 1 | I11: 0.09090909091 | J11: 0.1818181818
A12: EDU4360 | B12: DESARROLLO DEL LENGUAJE | C12: 1 | D12: 21 | E12: 21 | F12: 3 | G12: 0 | H12: 0 | I12: 0 | J12: 0.1428571429
A13: EDU4112 | B13: DIDAC DE LA LECTOESCRITURA | C13: 1 | D13: 8 | E13: 8 | F13: 1 | G13: 0 | H13: 0 | I13: 0 | J13: 0.125
A14: EDU4544 | B14: EXPERIENCIA EN INFANCIA Y FAM | C14: 1 | D14: 9 | E14: 9 | F14: 1 | G14: 0 | H14: 0 | I14: 0 | J14: 0.1111111111
A15: INV0005 | B15: INV. EDUCATIV Y PEDAGOGICA | C15: 1 | D15: 9 | E15: 8 | F15: 0 | G15: 0 | H15: 1 | I15: 0.1111111111 | J15: 0.1111111111
A16: EDU4540 | B16: DIDACTICA EN EDUCACION INFANTI | C16: 1 | D16: 10 | E16: 10 | F16: 1 | G16: 0 | H16: 0 | I16: 0 | J16: 0.1
A17: EDU4550 | B17: EXPERIENCIA EN GESTION SOCIAL | C17: 1 | D17: 10 | E17: 9 | F17: 0 | G17: 5 | H17: 1 | I17: 0.1 | J17: 0.1
A18: EDU0097 | B18: LENGUAJES EXPRESIVOS II | C18: 1 | D18: 10 | E18: 10 | F18: 1 | G18: 0 | H18: 0 | I18: 0 | J18: 0.1
A19: EDU4542 | B19: DLLO DE LENGUAJE EXPRESIVOS II | C19: 1 | D19: 21 | E19: 21 | F19: 2 | G19: 0 | H19: 0 | I19: 0 | J19: 0.09523809524
A20: EDU4537 | B20: FAMILIA, ESCUELA Y SOCIEDAD | C20: 1 | D20: 11 | E20: 10 | F20: 0 | G20: 0 | H20: 1 | I20: 0.09090909091 | J20: 0.09090909091
A21: EDU4543 | B21: DESARROLLO SOCIOAFECTIVO | C21: 1 | D21: 23 | E21: 22 | F21: 1 | G21: 0 | H21: 1 | I21: 0.04347826087 | J21: 0.08695652174
A22: IDS0036 | B22: APRENDER INDAGAR ACT CONTEXTO. | C22: 1 | D22: 26 | E22: 25 | F22: 1 | G22: 4 | H22: 1 | I22: 0.03846153846 | J22: 0.07692307692
A23: EDU4531 | B23: DESARROLLO MOTRIZ | C23: 1 | D23: 14 | E23: 14 | F23: 1 | G23: 0 | H23: 0 | I23: 0 | J23: 0.07142857143
A24: EDU0102 | B24: LENGUAJES EXPRESIVOS I | C24: 1 | D24: 14 | E24: 13 | F24: 0 | G24: 0 | H24: 1 | I24: 0.07142857143 | J24: 0.07142857143
A25: ECA0060 | B25: EDUCACION EN EL CARIBE | C25: 2 | D25: 72 | E25: 67 | F25: 0 | G25: 0 | H25: 5 | I25: 0.06944444444 | J25: 0.06944444444
A26: ETI1031 | B26: AUTOCONOCIMIENTO Y FELICIDAD | C26: 4 | D26: 155 | E26: 151 | F26: 4 | G26: 0 | H26: 4 | I26: 0.02580645161 | J26: 0.05161290323
A27: IDS0045 | B27: COMO LEER MEDIOS MASIVOS? | C27: 3 | D27: 119 | E27: 114 | F27: 0 | G27: 0 | H27: 5 | I27: 0.04201680672 | J27: 0.04201680672
A28: IDS0051 | B28: PEN. COMPUTACIONAL PARA TODOS | C28: 1 | D28: 31 | E28: 31 | F28: 1 | G28: 0 | H28: 0 | I28: 0 | J28: 0.03225806452
A29: HIS0020 | B29: ESTUDIOS SOBRE INFANCIA MUNDO | C29: 2 | D29: 71 | E29: 70 | F29: 1 | G29: 0 | H29: 1 | I29: 0.01408450704 | J29: 0.02816901408
A30: EDU4460 | B30: E-LEARNING | C30: 1 | D30: 31 | E30: 31 | F30: 0 | G30: 0 | H30: 0 | I30: 0 | J30: 0
A31: EDU4529 | B31: EDUCACION Y APRENDIZAJE | C31: 1 | D31: 9 | E31: 9 | F31: 0 | G31: 0 | H31: 0 | I31: 0 | J31: 0
A32: EDU4530 | B32: CUIDADO INFANTIL | C32: 1 | D32: 9 | E32: 9 | F32: 0 | G32: 0 | H32: 0 | I32: 0 | J32: 0
A33: EDU4534 | B33: MODELOS PEDAGOGICOS | C33: 1 | D33: 13 | E33: 13 | F33: 0 | G33: 0 | H33: 0 | I33: 0 | J33: 0
A34: EDU4536 | B34: JUEGO, LUDICA Y EDUCACIÓN | C34: 1 | D34: 9 | E34: 9 | F34: 0 | G34: 0 | H34: 0 | I34: 0 | J34: 0
A35: EDU7150 | B35: TEORIA Y DISEÑO CURRICULAR | C35: 1 | D35: 8 | E35: 8 | F35: 0 | G35: 0 | H35: 0 | I35: 0 | J35: 0
A36: EDU4505 | B36: EDUCACION INTERCULTURAL | C36: 1 | D36: 31 | E36: 31 | F36: 0 | G36: 0 | H36: 0 | I36: 0 | J36: 0
A37: EDU2180 | B37: ORGANIZACION CENTRO ESCOLAR | C37: 1 | D37: 10 | E37: 10 | F37: 0 | G37: 0 | H37: 0 | I37: 0 | J37: 0
A38: EDU4538 | B38: INVESTIGACION EDUCATIVA II | C38: 1 | D38: 10 | E38: 10 | F38: 0 | G38: 0 | H38: 0 | I38: 0 | J38: 0
A39: EDU4541 | B39: DLLO DE LENGUAJE EXPRESIVOS I | C39: 1 | D39: 7 | E39: 7 | F39: 0 | G39: 0 | H39: 0 | I39: 0 | J39: 0
A40: EDU4546 | B40: EXPERIENCIA EN INFANCIA Y ESCU | C40: 1 | D40: 17 | E40: 17 | F40: 0 | G40: 0 | H40: 0 | I40: 0 | J40: 0
A41: EDU0104 | B41: EDUC Y NEURODESARROLLO INFANT | C41: 1 | D41: 8 | E41: 8 | F41: 0 | G41: 0 | H41: 0 | I41: 0 | J41: 0
A42: EDU0103 | B42: EPISTEMOLOGIA DE LA EDUCACION | C42: 1 | D42: 13 | E42: 13 | F42: 0 | G42: 0 | H42: 0 | I42: 0 | J42: 0
A43: EDU4145 | B43: DIDACTICA DEL PENSAMIENTO ALEA | C43: 1 | D43: 1 | E43: 1 | F43: 0 | G43: 0 | H43: 0 | I43: 0 | J43: 0
A44: EDU0098 | B44: DIVERSIDAD E INCLUSION | C44: 1 | D44: 9 | E44: 9 | F44: 0 | G44: 0 | H44: 0 | I44: 0 | J44: 0
A45: EDU0101 | B45: PEDAGOGIA Y CONTEXTO SOCIOEDUC | C45: 1 | D45: 10 | E45: 10 | F45: 0 | G45: 0 | H45: 0 | I45: 0 | J45: 0
A46: ELP8044 | B46: PLANEACION Y ORG E-LEARNING | C46: 1 | D46: 31 | E46: 31 | F46: 0 | G46: 0 | H46: 0 | I46: 0 | J46: 0
A47: Total | C47: =SUM(C6:C46) -> 48 | D47: =SUM(D6:D46) -> 943 | E47: =SUM(E6:E46) -> 917 | F47: =SUM(F6:F46) -> 29 | G47: =F47/E47 -> 0.03162486369 | H47: =SUM(H6:H46) -> 26 | I47: =H47/D47 -> 0.02757158006 | J47: =(F47+H47)/D47 -> 0.05832449629
A50: Repitencia de Asignaturas del Dpto. de Educación, Mayor o Igual al 30%
A51: =Planeación!A1 -> 2023-2 | L51: Ir a Inicio
A52: Codasg | B52: Asignaturas | C52: Total Cursos Abiertos | D52: Número de Cursos con Repitencia >=30% | E52: Matricula Inicial | F52: Matrícula Final | G52: Perdidos | H52: % Perdidos | I52: Retirados | J52: % Retirados | K52: % Repitencia
A54: Total | C54: =SUM(C53:C53) -> 0 | D54: =SUM(D53:D53) -> 0 | E54: =SUM(E53:E53) -> 0 | F54: =SUM(F53:F53) -> 0 | G54: =SUM(G53:G53) -> 0 | H54: =IFERROR(G54/F54,"-") -> - | I54: =SUM(I53:I53) -> 0 | J54: =IFERROR(I54/E54,"-") -> - | K54: =IFERROR((G54+I54)/E54,"-") -> -

Sheet Rep_Emp
A1: OFICINA DE PLANEACIÓN - INFORMACIÓN Y ESTADÍSTICA
A3: Perdidos, Retirados y Repitencia de Asignaturas del Dpto. de Emprendimiento y Management
A4: =Planeación!A1 -> 2023-2
A5: Codasg | B5: Asignaturas | C5: Total Cursos Abiertos | D5: Matrícula Inicial | E5: Matrícula Final | F5: Perdidos | G5: % Perdidos | H5: Retirados | I5: % Retirados | J5: % Repitencia
A6: ADM0189 | B6: EVOLUCION PENSAMIENTO ADTIVO | C6: 7 | D6: 182 | E6: 173 | F6: 5 | G6: =IFERROR(F6/E6,"-") -> 0.0289017341 | H6: 9 | I6: =H6/D6 -> 0.04945054945 | J6: =(F6+H6)/D6 -> 0.07692307692 | L6: Volver al Índice
A7: ADM0018 | B7: PROJECT MANAGEMENT | C7: 4 | D7: 77 | E7: 72 | F7: 0 | G7: 0 | H7: 5 | I7: 0.06493506494 | J7: 0.06493506494
A8: ADM0020 | B8: FUNDAMENTOS DE ADMON. | C8: 1 | D8: 36 | E8: 35 | F8: 1 | G8: 0.02857142857 | H8: 1 | I8: 0.02777777778 | J8: 0.05555555556
A9: ADM3011 | B9: GESTION DEL TALENTO HUMANO | C9: 2 | D9: 51 | E9: 50 | F9: 1 | G9: 0.02 | H9: 1 | I9: 0.01960784314 | J9: 0.03921568627
A10: IDS0010 | B10: DLLO DEL ESPIRITU EMPRENDEDOR | C10: 10 | D10: 348 | E10: 342 | F10: 6 | G10: 0.01754385965 | H10: 6 | I10: 0.01724137931 | J10: 0.03448275862 | L10: Ir a Tabla de Repitencia >=30%
A11: ADM0019 | B11: STRATEGIC MAGEMENT | C11: 3 | D11: 88 | E11: 85 | F11: 0 | G11: 0 | H11: 3 | I11: 0.03409090909 | J11: 0.03409090909
A12: ADM0022 | B12: DESARROLLO ORGANIZACIONAL | C12: 3 | D12: 76 | E12: 76 | F12: 2 | G12: 0.02631578947 | H12: 0 | I12: 0 | J12: 0.02631578947
A13: IDS0070 | B13: INNOVACION Y DLLO SOCIOECO | C13: 1 | D13: 40 | E13: 39 | F13: 0 | G13: 0 | H13: 1 | I13: 0.025 | J13: 0.025
A14: ADM4471 | B14: CREACION DE EMPRESAS | C14: 6 | D14: 157 | E14: 154 | F14: 0 | G14: 0 | H14: 3 | I14: 0.01910828025 | J14: 0.01910828025
A15: ADM2011 | B15: PROCESO ADMINISTRATIVO | C15: 5 | D15: 146 | E15: 145 | F15: 1 | G15: 0.006896551724 | H15: 1 | I15: 0.006849315068 | J15: 0.01369863014
A16: ADM0033 | B16: RESPON. SOCIAL EMPRESARIAL | C16: 4 | D16: 79 | E16: 79 | F16: 0 | G16: 0 | H16: 0 | I16: 0 | J16: 0
A17: ADM9774 | B17: CORPORATE GOVERNMENT | C17: 1 | D17: 8 | E17: 8 | F17: 0 | G17: 0 | H17: 0 | I17: 0 | J17: 0
A18: ADM9772 | B18: E-MANAGEMENT | C18: 1 | D18: 7 | E18: 7 | F18: 0 | G18: 0 | H18: 0 | I18: 0 | J18: 0
A19: ADM0023 | B19: DEVELOP. AND ORG. CULTURE | C19: 1 | D19: 21 | E19: 21 | F19: 0 | G19: 0 | H19: 0 | I19: 0 | J19: 0
A20: ADM5215 | B20: EMPRENDIMIENTO CORPORATIVO | C20: 1 | D20: 27 | E20: 27 | F20: 0 | G20: 0 | H20: 0 | I20: 0 | J20: 0
A21: ADM5230 | B21: FINANZAS PARA NUEVAS EMPRESAS | C21: 1 | D21: 28 | E21: 28 | F21: 0 | G21: 0 | H21: 0 | I21: 0 | J21: 0
A22: ADM5235 | B22: INTERNAC DE NUEVAS EMPRESAS | C22: 1 | D22: 29 | E22: 29 | F22: 0 | G22: 0 | H22: 0 | I22: 0 | J22: 0
A23: ADM0031 | B23: ORG. AND THE SOCIAL SYSTEM | C23: 1 | D23: 21 | E23: 21 | F23: 0 | G23: 0 | H23: 0 | I23: 0 | J23: 0
A24: ADM0032 | B24: ORGANIZATIONAL DESIGN | C24: 1 | D24: 20 | E24: 20 | F24: 0 | G24: 0 | H24: 0 | I24: 0 | J24: 0
A25: ADM9773 | B25: MANAGEMENT AND CONTROL | C25: 1 | D25: 6 | E25: 6 | F25: 0 | G25: 0 | H25: 0 | I25: 0 | J25: 0
A26: Total | C26: =SUM(C6:C25) -> 55 | D26: =SUM(D6:D25) -> 1447 | E26: =SUM(E6:E25) -> 1417 | F26: =SUM(F6:F25) -> 16 | G26: =F26/E26 -> 0.01129146083 | H26: =SUM(H6:H25) -> 30 | I26: =H26/D26 -> 0.0207325501 | J26: =(F26+H26)/D26 -> 0.03178991016
A29: Repitencia de Asignaturas del Dpto. de Emprendimiento y Management, Mayor o Igual al 30%
A30: =Planeación!A1 -> 2023-2 | L30: Ir a Inicio | M30: Ir a Gráfico
A31: Codasg | B31: Asignaturas | C31: Total Cursos Abiertos | D31: Número de Cursos con Repitencia >=30% | E31: Matricula Inicial | F31: Matrícula Final | G31: Perdidos | H31: % Perdidos | I31: Retirados | J31: % Retirados | K31: % Repitencia
A33: Total | C33: =SUM(C32:C32) -> 0 | D33: =SUM(D32:D32) -> 0 | E33: =SUM(E32:E32) -> 0 | F33: =SUM(F32:F32) -> 0 | G33: =SUM(G32:G32) -> 0 | H33: =IFERROR(G33/F33,"-") -> - | I33: =SUM(I32:I32) -> 0 | J33: =IFERROR(I33/E33,"-") -> - | K33: =IFERROR((G33+I33)/E33,"-") -> -

Sheet Rep_Enf
A1: OFICINA DE PLANEACIÓN - INFORMACIÓN Y ESTADÍSTICA
A3: Perdidos, Retirados y Repitencia de Asignaturas del Dpto. de Enfermería
A4: =Planeación!A1 -> 2023-2
A5: Codasg | B5: Asignaturas | C5: Total Cursos Abiertos | D5: Matrícula Inicial | E5: Matrícula Final | F5: Perdidos | G5: % Perdidos | H5: Retirados | I5: % Retirados | J5: % Repitencia
A6: ENF0033 | B6: PROFUNDIZACION ENFERMERIA | C6: 3 | D6: 11 | E6: 11 | F6: 2 | G6: =IFERROR(F6/E6,"-") -> 0.1818181818 | H6: 0 | I6: =H6/D6 -> 0 | J6: =(F6+H6)/D6 -> 0.1818181818 | L6: Volver al Índice
A7: ENF7883 | B7: CUIDADO DE LA MUJER Y DEL NIÑO | C7: 3 | D7: 17 | E7: 16 | F7: 0 | G7: 0 | H7: 1 | I7: 0.05882352941 | J7: 0.05882352941
A8: ENF7189 | B8: ENF. SALUD MENTAL Y PSIQ. | C8: 3 | D8: 17 | E8: 16 | F8: 0 | G8: 0 | H8: 1 | I8: 0.05882352941 | J8: 0.05882352941
A9: ENF7188 | B9: FAR. APLIC. CUID. MUJER Y NIÑO | C9: 3 | D9: 17 | E9: 16 | F9: 0 | G9: 0 | H9: 1 | I9: 0.05882352941 | J9: 0.05882352941
A10: ENF7187 | B10: SALUD A COLECTIVOS II | C10: 3 | D10: 17 | E10: 16 | F10: 0 | G10: 0 | H10: 1 | I10: 0.05882352941 | J10: 0.05882352941 | L10: Ir a Tabla de Repitencia >=30%
A11: ENF7174 | B11: PROCESO DE ATENCION EN ENF | C11: 2 | D11: 32 | E11: 32 | F11: 1 | G11: 0.03125 | H11: 0 | I11: 0 | J11: 0.03125
A12: ENF7172 | B12: INTROD. A LA ENFERMERIA | C12: 1 | D12: 28 | E12: 28 | F12: 0 | G12: 0 | H12: 0 | I12: 0 | J12: 0
A13: ENF7173 | B13: ENFERMERIA BASICO CLINICA | C13: 4 | D13: 29 | E13: 29 | F13: 0 | G13: 0 | H13: 0 | I13: 0 | J13: 0
A14: ENF7880 | B14: SEMIOLOGIA CLINICA | C14: 3 | D14: 23 | E14: 23 | F14: 0 | G14: 0 | H14: 0 | I14: 0 | J14: 0
A15: ENF7177 | B15: ENFERMERIA EN LA EDUCACION | C15: 1 | D15: 25 | E15: 25 | F15: 0 | G15: 0 | H15: 0 | I15: 0 | J15: 0
A16: ENF7881 | B16: CUIDADO DEL ADULTO I | C16: 4 | D16: 32 | E16: 32 | F16: 0 | G16: 0 | H16: 0 | I16: 0 | J16: 0
A17: ENF7179 | B17: FAR. APLICADA CUIDADO ADULTO I | C17: 4 | D17: 32 | E17: 32 | F17: 0 | G17: 0 | H17: 0 | I17: 0 | J17: 0
A18: ENF7882 | B18: CUIDADO ADULTO II | C18: 4 | D18: 18 | E18: 18 | F18: 0 | G18: 0 | H18: 0 | I18: 0 | J18: 0
A19: ENF7182 | B19: FAR APLICADA CUIDADO ADULTO II | C19: 4 | D19: 18 | E19: 18 | F19: 0 | G19: 0 | H19: 0 | I19: 0 | J19: 0
A20: ENF7183 | B20: SALUD A COLECTIVOS I | C20: 4 | D20: 18 | E20: 18 | F20: 0 | G20: 0 | H20: 0 | I20: 0 | J20: 0
A21: ENF7884 | B21: ENFERMERIA Y GESTION | C21: 1 | D21: 11 | E21: 11 | F21: 0 | G21: 0 | H21: 0 | I21: 0 | J21: 0
A22: ENF4110 | B22: PRACTICAS ENFERMERIA Y GESTION | C22: 2 | D22: 16 | E22: 16 | F22: 0 | G22: 0 | H22: 0 | I22: 0 | J22: 0
A23: ENF4100 | B23: SEGURIDAD Y SALUD EN EL TRABAJ | C23: 1 | D23: 18 | E23: 18 | F23: 0 | G23: 0 | H23: 0 | I23: 0 | J23: 0
A24: ENF4065 | B24: VIVE Y DEJA VIVIR:EL ESTIG VHI | C24: 1 | D24: 13 | E24: 13 | F24: 0 | G24: 0 | H24: 0 | I24: 0 | J24: 0
A25: Total | C25: =SUM(C6:C24) -> 51 | D25: =SUM(D6:D24) -> 392 | E25: =SUM(E6:E24) -> 388 | F25: =SUM(F6:F24) -> 3 | G25: =F25/E25 -> 0.007731958763 | H25: =SUM(H6:H24) -> 4 | I25: =H25/D25 -> 0.01020408163 | J25: =(F25+H25)/D25 -> 0.01785714286
A28: Repitencia de Asignaturas del Dpto. de Enfermería, Mayor o Igual al 30%
A29: =Planeación!A1 -> 2023-2 | L29: Ir a Inicio
A30: Codasg | B30: Asignaturas | C30: Total Cursos Abiertos | D30: Número de Cursos con Repitencia >=30% | E30: Matricula Inicial | F30: Matrícula Final | G30: Perdidos | H30: % Perdidos | I30: Retirados | J30: % Retirados | K30: % Repitencia
A32: Total | C32: =SUM(C31:C31) -> 0 | D32: =SUM(D31:D31) -> 0 | E32: =SUM(E31:E31) -> 0 | F32: =SUM(F31:F31) -> 0 | G32: =SUM(G31:G31) -> 0 | H32: =IFERROR(G32/F32,"-") -> - | I32: =SUM(I31:I31) -> 0 | J32: =IFERROR(I32/E32,"-") -> - | K32: =IFERROR((G32+I32)/E32,"-") -> -

Sheet Rep_Esp
A1: OFICINA DE PLANEACIÓN - INFORMACIÓN Y ESTADÍSTICA
A3: Perdidos, Retirados y Repitencia de Asignaturas del Dpto. de Español
A4: =Planeación!A1 -> 2023-2
A5: Codasg | B5: Asignaturas | C5: Total Cursos Abiertos | D5: Matrícula Inicial | E5: Matrícula Final | F5: Perdidos | G5: % Perdidos | H5: Retirados | I5: % Retirados | J5: % Repitencia
A6: LIN4006 | B6: METOD ENSEÑANZA LENGUA MAT I | C6: 2 | D6: 28 | E6: 27 | F6: 3 | G6: =IFERROR(F6/E6,"-") -> 0.1111111111 | H6: 1 | I6: =H6/D6 -> 0.03571428571 | J6: =(F6+H6)/D6 -> 0.1428571429 | L6: Volver al Índice
A7: CAS3030 | B7: COMPETENCIA COMUNICATIVA II | C7: 37 | D7: 1125 | E7: 1078 | F7: 76 | G7: 0.07050092764 | H7: 47 | I7: 0.04177777778 | J7: 0.1093333333
A8: CSO4206 | B8: MUSICA Y CULT MASAS ROCK ELECT | C8: 1 | D8: 29 | E8: 28 | F8: 2 | G8: 0.07142857143 | H8: 1 | I8: 0.03448275862 | J8: 0.1034482759
A9: CMN0009 | B9: COMUNICACION Y ESCRITURA | C9: 2 | D9: 43 | E9: 40 | F9: 1 | G9: 0.025 | H9: 3 | I9: 0.06976744186 | J9: 0.09302325581
A10: LIN4003 | B10: DISCURSO ORAL | C10: 2 | D10: 44 | E10: 42 | F10: 1 | G10: 0.02380952381 | H10: 2 | I10: 0.04545454545 | J10: 0.06818181818 | L10: Ir a Tabla de Repitencia >=30%
A11: LIN4000 | B11: ESTUDIOS DEL LENGUAJE I | C11: 1 | D11: 33 | E11: 32 | F11: 1 | G11: 0.03125 | H11: 1 | I11: 0.0303030303 | J11: 0.06060606061
A12: LIN4008 | B12: DIDACTICA Y LIT CONTEMP | C12: 2 | D12: 34 | E12: 33 | F12: 1 | G12: 0.0303030303 | H12: 1 | I12: 0.02941176471 | J12: 0.05882352941
A13: CAS3020 | B13: COMPETENCIA COMUNICATIVA I | C13: 23 | D13: 683 | E13: 663 | F13: 19 | G13: 0.02865761689 | H13: 20 | I13: 0.02928257687 | J13: 0.05710102489
A14: LIN4002 | B14: GENEROS DISCURSIVOS Y LENGUAJE | C14: 2 | D14: 26 | E14: 25 | F14: 0 | G14: 0 | H14: 1 | I14: 0.03846153846 | J14: 0.03846153846
A15: LIN4007 | B15: METOD ENSEÑANZA LENGUA MAT II | C15: 3 | D15: 60 | E15: 59 | F15: 1 | G15: 0.01694915254 | H15: 1 | I15: 0.01666666667 | J15: 0.03333333333
A16: LIN4004 | B16: LITERATURA Y CULT LATINOAM | C16: 2 | D16: 39 | E16: 38 | F16: 0 | G16: 0 | H16: 1 | I16: 0.02564102564 | J16: 0.02564102564
A17: CAS0051 | B17: EXPRESION ORAL | C17: 4 | D17: 82 | E17: 81 | F17: 0 | G17: 0 | H17: 1 | I17: 0.01219512195 | J17: 0.01219512195
A18: HUM4204 | B18: FICCION Y GENEROS POPULARES | C18: 1 | D18: 25 | E18: 25 | F18: 0 | G18: 0 | H18: 0 | I18: 0 | J18: 0
A19: LIN4001 | B19: ESTUDIOS DEL LENGUAJE II | C19: 2 | D19: 34 | E19: 34 | F19: 0 | G19: 0 | H19: 0 | I19: 0 | J19: 0
A20: LIN4009 | B20: CONTEXTO EDUCATIVO | C20: 2 | D20: 31 | E20: 31 | F20: 0 | G20: 0 | H20: 0 | I20: 0 | J20: 0
A21: LIN4050 | B21: EDICION DE TEXTOS | C21: 1 | D21: 12 | E21: 12 | F21: 0 | G21: 0 | H21: 0 | I21: 0 | J21: 0
A22: HUM4203 | B22: LECTURA IMPRESCINDIBLES | C22: 1 | D22: 20 | E22: 20 | F22: 0 | G22: 0 | H22: 0 | I22: 0 | J22: 0
A23: Total | C23: =SUM(C6:C22) -> 88 | D23: =SUM(D6:D22) -> 2348 | E23: =SUM(E6:E22) -> 2268 | F23: =SUM(F6:F22) -> 105 | G23: =F23/E23 -> 0.0462962963 | H23: =SUM(H6:H22) -> 80 | I23: =H23/D23 -> 0.03407155026 | J23: =(F23+H23)/D23 -> 0.07879045997
A26: Repitencia de Asignaturas del Dpto. de Español, Mayor o Igual al 30%
A27: =Planeación!A1 -> 2023-2 | L27: Ir a Inicio | M27: Ir a Gráfico
A28: Codasg | B28: Asignaturas | C28: Total Cursos Abiertos | D28: Número de Cursos con Repitencia >=30% | E28: Matricula Inicial | F28: Matrícula Final | G28: Perdidos | H28: % Perdidos | I28: Retirados | J28: % Retirados | K28: % Repitencia
A29: CAS3030 | B29: COMPETENCIA COMUNICATIVA II | C29: =VLOOKUP(A29,$A$7:$C$22,3,FALSE) -> 37 | D29: 4 | E29: 121 | F29: 111 | G29: 37 | H29: =IFERROR(G29/F29,"-") -> 0.3333333333 | I29: 10 | J29: =I29/E29 -> 0.0826446281 | K29: =(G29+I29)/E29 -> 0.3884297521
A30: Total | C30: =SUM(C29:C29) -> 37 | D30: =SUM(D29:D29) -> 4 | E30: =SUM(E29:E29) -> 121 | F30: =SUM(F29:F29) -> 111 | G30: =SUM(G29:G29) -> 37 | H30: =G30/F30 -> 0.3333333333 | I30: =SUM(I29:I29) -> 10 | J30: =I30/E30 -> 0.0826446281 | K30: =(G30+I30)/E30 -> 0.3884297521

Sheet Graf_Esp
A1: OFICINA DE PLANEACIÓN - INFORMACIÓN Y ESTADÍSTICA
O2: Volver

Sheet Rep_Fin
A1: OFICINA DE PLANEACIÓN - INFORMACIÓN Y ESTADÍSTICA
A3: Perdidos, Retirados y Repitencia de Asignaturas del Dpto. de Finanzas y Contaduría
A4: =Planeación!A1 -> 2023-2
A5: Codasg | B5: Asignaturas | C5: Total Cursos Abiertos | D5: Matrícula Inicial | E5: Matrícula Final | F5: Perdidos | G5: % Perdidos | H5: Retirados | I5: % Retirados | J5: % Repitencia
A6: CON2014 | B6: CONTABILIDAD FINANCIERA | C6: 6 | D6: 209 | E6: 179 | F6: 22 | G6: =IFERROR(F6/E6,"-") -> 0.1229050279 | H6: 30 | I6: =H6/D6 -> 0.1435406699 | J6: =(F6+H6)/D6 -> 0.2488038278 | L6: Volver al Índice
A7: CON8073 | B7: INTERNATIONAL ACCOUNTING I | C7: 1 | D7: 21 | E7: 17 | F7: 1 | G7: 0.05882352941 | H7: 4 | I7: 0.1904761905 | J7: 0.2380952381
A8: FIN9240 | B8: PLANEACION FINANCIERA | C8: 5 | D8: 195 | E8: 178 | F8: 12 | G8: 0.06741573034 | H8: 17 | I8: 0.08717948718 | J8: 0.1487179487
A9: FIN9236 | B9: INTERNATIONAL FINANCE | C9: 1 | D9: 17 | E9: 15 | F9: 0 | G9: 0 | H9: 2 | I9: 0.1176470588 | J9: 0.1176470588
A10: ADM0016 | B10: COMPANY VALUATION | C10: 3 | D10: 74 | E10: 69 | F10: 2 | G10: 0.02898550725 | H10: 5 | I10: 0.06756756757 | J10: 0.09459459459 | L10: Ir a Tabla de Repitencia >=30%
A11: CON8070 | B11: FUNDAMENTOS DE CONTROL INTERNO | C11: 1 | D11: 39 | E11: 37 | F11: 1 | G11: 0.02702702703 | H11: 2 | I11: 0.05128205128 | J11: 0.07692307692
A12: ADM9739 | B12: CORPORATE HOLDINGS FISCALITY | C12: 1 | D12: 16 | E12: 16 | F12: 1 | G12: 0.0625 | H12: 0 | I12: 0 | J12: 0.0625
A13: CON2016 | B13: COSTOS Y PRESUPUESTOS | C13: 6 | D13: 163 | E13: 156 | F13: 3 | G13: 0.01923076923 | H13: 7 | I13: 0.04294478528 | J13: 0.06134969325
A14: CON8072 | B14: AUDITORIA INTERNATIONAL I | C14: 1 | D14: 18 | E14: 18 | F14: 1 | G14: 0.05555555556 | H14: 0 | I14: 0 | J14: 0.05555555556
A15: FIN4228 | B15: GESTION FINANCIERA | C15: 5 | D15: 190 | E15: 186 | F15: 0 | G15: 0 | H15: 4 | I15: 0.02105263158 | J15: 0.02105263158
A16: CON8075 | B16: INTERNATIONAL ACCOUNTING II | C16: 2 | D16: 39 | E16: 39 | F16: 0 | G16: 0 | H16: 0 | I16: 0 | J16: 0
A17: CON8077 | B17: INTERNATIONAL ACCOUNTING III | C17: 1 | D17: 29 | E17: 29 | F17: 0 | G17: 0 | H17: 0 | I17: 0 | J17: 0
A18: CON8067 | B18: REVISORIA FISCAL | C18: 1 | D18: 22 | E18: 22 | F18: 0 | G18: 0 | H18: 0 | I18: 0 | J18: 0
A19: ADM0021 | B19: DERIVATIVE INSTRUMENTS | C19: 1 | D19: 13 | E19: 13 | F19: 0 | G19: 0 | H19: 0 | I19: 0 | J19: 0
A20: ADM9115 | B20: INTERNATIONAL INFORMATION SYST | C20: 1 | D20: 11 | E20: 11 | F20: 0 | G20: 0 | H20: 0 | I20: 0 | J20: 0
A21: CON8079 | B21: INTERNATIONAL AUDIT II | C21: 2 | D21: 46 | E21: 46 | F21: 0 | G21: 0 | H21: 0 | I21: 0 | J21: 0
A22: ADM0026 | B22: INTERNAC FINANCE MANAGEMENT | C22: 1 | D22: 13 | E22: 13 | F22: 0 | G22: 0 | H22: 0 | I22: 0 | J22: 0
A23: ADM0011 | B23: CAPITAL MARKETS | C23: 1 | D23: 14 | E23: 14 | F23: 0 | G23: 0 | H23: 0 | I23: 0 | J23: 0
A24: ADM9738 | B24: INTERN TAXES AND INTERN PROCED | C24: 1 | D24: 15 | E24: 15 | F24: 0 | G24: 0 | H24: 0 | I24: 0 | J24: 0
A25: ADM9737 | B25: COLOMBIAN TARIFFS AND TAXES | C25: 1 | D25: 15 | E25: 15 | F25: 0 | G25: 0 | H25: 0 | I25: 0 | J25: 0
A26: Total | C26: =SUM(C6:C25) -> 42 | D26: =SUM(D6:D25) -> 1159 | E26: =SUM(E6:E25) -> 1088 | F26: =SUM(F6:F25) -> 43 | G26: =F26/E26 -> 0.03952205882 | H26: =SUM(H6:H25) -> 71 | I26: =H26/D26 -> 0.06125970664 | J26: =(F26+H26)/D26 -> 0.09836065574
A28: Repitencia de Asignaturas del Dpto. de Finanzas y Contaduría, Mayor o Igual al 30%
A29: =Planeación!A1 -> 2023-2 | L29: Ir a Inicio | M29: Ir a Gráfico
A30: Codasg | B30: Asignaturas | C30: Total Cursos Abiertos | D30: Número de Cursos con Repitencia >=30% | E30: Matricula Inicial | F30: Matrícula Final | G30: Perdidos | H30: % Perdidos | I30: Retirados | J30: % Retirados | K30: % Repitencia
A31: CON2014 | B31: CONTABILIDAD FINANCIERA | C31: =VLOOKUP(A31,$A$6:$C$25,3,FALSE) -> 6 | D31: 2 | E31: 77 | F31: 61 | G31: 11 | H31: =IFERROR(G31/F31,"-") -> 0.1803278689 | I31: 16 | J31: =I31/E31 -> 0.2077922078 | K31: =(G31+I31)/E31 -> 0.3506493506
A32: Total | C32: =SUM(C31:C31) -> 6 | D32: =SUM(D31:D31) -> 2 | E32: =SUM(E31:E31) -> 77 | F32: =SUM(F31:F31) -> 61 | G32: =SUM(G31:G31) -> 11 | H32: =G32/F32 -> 0.1803278689 | I32: =SUM(I31:I31) -> 16 | J32: =I32/E32 -> 0.2077922078 | K32: =(G32+I32)/E32 -> 0.3506493506

Sheet Graf_Fin
A1: OFICINA DE PLANEACIÓN - INFORMACIÓN Y ESTADÍSTICA
O2: Volver

Sheet Rep_Fis
A1: OFICINA DE PLANEACIÓN - INFORMACIÓN Y ESTADÍSTICA
A3: Perdidos, Retirados y Repitencia de Asignaturas del Dpto. de Física
A4: =Planeación!A1 -> 2023-2
A5: Codasg | B5: Asignaturas | C5: Total Cursos Abiertos | D5: Matrícula Inicial | E5: Matrícula Final | F5: Perdidos | G5: % Perdidos | H5: Retirados | I5: % Retirados | J5: % Repitencia
A6: GEO4014 | B6: GEOQUIMICA | C6: 2 | D6: 20 | E6: 15 | F6: 2 | G6: =IFERROR(F6/E6,"-") -> 0.1333333333 | H6: 5 | I6: =H6/D6 -> 0.25 | J6: =(F6+H6)/D6 -> 0.35 | L6: Volver al Índice
A7: FIS1023 | B7: FÍSICA MECANICA | C7: 20 | D7: 403 | E7: 353 | F7: 52 | G7: 0.1473087819 | H7: 50 | I7: 0.1240694789 | J7: 0.253101737
A8: GEO4012 | B8: GEOLOGIA FISICA | C8: 2 | D8: 29 | E8: 29 | F8: 7 | G8: 0.2413793103 | H8: 0 | I8: 0 | J8: 0.2413793103
A9: FIS1043 | B9: FISICA CALOR ONDAS | C9: 15 | D9: 304 | E9: 272 | F9: 39 | G9: 0.1433823529 | H9: 32 | I9: 0.1052631579 | J9: 0.2335526316
A10: FIS4011 | B10: FISICA MODERNA DEL ESTADO | C10: 1 | D10: 11 | E10: 10 | F10: 1 | G10: 0.1 | H10: 1 | I10: 0.09090909091 | J10: 0.1818181818 | L10: Ir a Tabla de Repitencia >=30%
A11: GEO0009 | B11: GEOLOGIA ESTRUCTURAL | C11: 2 | D11: 34 | E11: 29 | F11: 1 | G11: 0.03448275862 | H11: 5 | I11: 0.1470588235 | J11: 0.1764705882
A12: GEO4013 | B12: GEOMORFOLOGIA | C12: 2 | D12: 24 | E12: 23 | F12: 3 | G12: 0.1304347826 | H12: 1 | I12: 0.04166666667 | J12: 0.1666666667
A13: CSV0071 | B13: INTRODUCCION A LA ASTROFISICA | C13: 1 | D13: 18 | E13: 16 | F13: 1 | G13: 0.0625 | H13: 2 | I13: 0.1111111111 | J13: 0.1666666667
A14: GEO0006 | B14: PROGRAMACION EN CIENCIAS | C14: 1 | D14: 32 | E14: 29 | F14: 2 | G14: 0.06896551724 | H14: 3 | I14: 0.09375 | J14: 0.15625
A15: GEO4011 | B15: GEOLOGIA ESTRUCTURAL | C15: 2 | D15: 27 | E15: 25 | F15: 2 | G15: 0.08 | H15: 2 | I15: 0.07407407407 | J15: 0.1481481481
A16: GEO4003 | B16: ROCAS METAMORFICAS | C16: 2 | D16: 7 | E16: 7 | F16: 1 | G16: 0.1428571429 | H16: 0 | I16: 0 | J16: 0.1428571429
A17: GEO4016 | B17: INSTRUMENTACION GEOFISICA | C17: 2 | D17: 40 | E17: 35 | F17: 0 | G17: 0 | H17: 5 | I17: 0.125 | J17: 0.125
A18: FIS1010 | B18: TEORIA ELECTROMAGNETICA | C18: 2 | D18: 58 | E18: 52 | F18: 1 | G18: 0.01923076923 | H18: 6 | I18: 0.1034482759 | J18: 0.1206896552
A19: GEO4008 | B19: GEODESIA Y SISMOLOGIA | C19: 1 | D19: 26 | E19: 24 | F19: 1 | G19: 0.04166666667 | H19: 2 | I19: 0.07692307692 | J19: 0.1153846154
A20: INV4276 | B20: PROYECTO DE GRADO | C20: 2 | D20: 36 | E20: 32 | F20: 0 | G20: 0 | H20: 4 | I20: 0.1111111111 | J20: 0.1111111111
A21: FIS1033 | B21: FÍSICA ELECTRICIDAD | C21: 17 | D21: 334 | E21: 316 | F21: 19 | G21: 0.06012658228 | H21: 18 | I21: 0.05389221557 | J21: 0.1107784431
A22: GEO4017 | B22: INTRODUCCION A LA GEOCIENCIAS | C22: 1 | D22: 10 | E22: 9 | F22: 0 | G22: 0 | H22: 1 | I22: 0.1 | J22: 0.1
A23: CSV0052 | B23: AGUA Y SOCIEDAD | C23: 1 | D23: 30 | E23: 27 | F23: 0 | G23: 0 | H23: 3 | I23: 0.1 | J23: 0.1
A24: GEO4018 | B24: MINERALOGIA | C24: 2 | D24: 22 | E24: 21 | F24: 1 | G24: 0.04761904762 | H24: 1 | I24: 0.04545454545 | J24: 0.09090909091
A25: GEO4040 | B25: AMBIENT Y PROC SUBMARINOS PROF | C25: 1 | D25: 22 | E25: 21 | F25: 1 | G25: 0.04761904762 | H25: 1 | I25: 0.04545454545 | J25: 0.09090909091
A26: GEO4010 | B26: GEOLOGIA COLOMBIANA | C26: 1 | D26: 34 | E26: 33 | F26: 2 | G26: 0.06060606061 | H26: 1 | I26: 0.02941176471 | J26: 0.08823529412
A27: GEO4029 | B27: SEDIMENTOLOGIA Y ROCA SEDIMENT | C27: 1 | D27: 14 | E27: 13 | F27: 0 | G27: 0 | H27: 1 | I27: 0.07142857143 | J27: 0.07142857143
A28: GEO4015 | B28: HIDROGEOLOGIA | C28: 1 | D28: 29 | E28: 28 | F28: 1 | G28: 0.03571428571 | H28: 1 | I28: 0.03448275862 | J28: 0.06896551724
A29: GEO4024 | B29: ROCAS IGNEAS | C29: 1 | D29: 15 | E29: 14 | F29: 0 | G29: 0 | H29: 1 | I29: 0.06666666667 | J29: 0.06666666667
A30: GEO4009 | B30: GEOLOGIA AMBIENTAL | C30: 1 | D30: 15 | E30: 14 | F30: 0 | G30: 0 | H30: 1 | I30: 0.06666666667 | J30: 0.06666666667
A31: GEO4025 | B31: SENSORES REMOTOS Y SIG | C31: 2 | D31: 33 | E31: 31 | F31: 0 | G31: 0 | H31: 2 | I31: 0.06060606061 | J31: 0.06060606061
A32: GEO4021 | B32: PALEONTOLOGIA | C32: 1 | D32: 19 | E32: 19 | F32: 1 | G32: 0.05263157895 | H32: 0 | I32: 0 | J32: 0.05263157895
A33: CSV0040 | B33: FUNDAMENTO DE FISICA | C33: 3 | D33: 68 | E33: 65 | F33: 0 | G33: 0 | H33: 3 | I33: 0.04411764706 | J33: 0.04411764706
A34: GEO4023 | B34: RECURSOS MINERALES | C34: 2 | D34: 25 | E34: 24 | F34: 0 | G34: 0 | H34: 1 | I34: 0.04 | J34: 0.04
A35: GEO4020 | B35: OCEANOGRAFIA DINAMICA | C35: 1 | D35: 25 | E35: 24 | F35: 0 | G35: 0 | H35: 1 | I35: 0.04 | J35: 0.04
A36: GEO4031 | B36: SISMOLOGÍA AVANZADA | C36: 1 | D36: 26 | E36: 25 | F36: 0 | G36: 0 | H36: 1 | I36: 0.03846153846 | J36: 0.03846153846
A37: GEO4001 | B37: ANALISIS DE SERIES DE TIEMPO | C37: 1 | D37: 21 | E37: 21 | F37: 0 | G37: 0 | H37: 0 | I37: 0 | J37: 0
A38: GEO4019 | B38: OCEANOGRAFIA DESCRIPTIVA | C38: 1 | D38: 18 | E38: 18 | F38: 0 | G38: 0 | H38: 0 | I38: 0 | J38: 0
A39: GEO4006 | B39: ESTRATIGRAFIA | C39: 1 | D39: 6 | E39: 6 | F39: 0 | G39: 0 | H39: 0 | I39: 0 | J39: 0
A40: GEO0007 | B40: ESTRATIGRAFIA | C40: 1 | D40: 16 | E40: 16 | F40: 0 | G40: 0 | H40: 0 | I40: 0 | J40: 0
A41: GEO4022 | B41: PROCESOS COSTEROS | C41: 1 | D41: 23 | E41: 23 | F41: 0 | G41: 0 | H41: 0 | I41: 0 | J41: 0
A42: GEO0005 | B42: ROCAS METAMORFICAS | C42: 2 | D42: 16 | E42: 16 | F42: 0 | G42: 0 | H42: 0 | I42: 0 | J42: 0
A43: GEO0003 | B43: GEOLOGIA PLANETARIA | C43: 1 | D43: 15 | E43: 15 | F43: 0 | G43: 0 | H43: 0 | I43: 0 | J43: 0
A44: Total | C44: =SUM(C6:C43) -> 102 | D44: =SUM(D6:D43) -> 1905 | E44: =SUM(E6:E43) -> 1750 | F44: =SUM(F6:F43) -> 138 | G44: =F44/E44 -> 0.07885714286 | H44: =SUM(H6:H43) -> 155 | I44: =H44/D44 -> 0.0813648294 | J44: =(F44+H44)/D44 -> 0.1538057743
A46: Repitencia de Asignaturas del Dpto. de Física, Mayor o Igual al 30%
A47: =Planeación!A1 -> 2023-2 | L47: Ir a Inicio | M47: Ir a Gráfico
A48: Codasg | B48: Asignaturas | C48: Total Cursos Abiertos | D48: Número de Cursos con Repitencia >=30% | E48: Matricula Inicial | F48: Matrícula Final | G48: Perdidos | H48: % Perdidos | I48: Retirados | J48: % Retirados | K48: % Repitencia
A49: FIS1023 | B49: FÍSICA MECANICA | C49: =VLOOKUP(A49,$A$6:$C$43,3,FALSE) -> 20 | D49: 8 | E49: 161 | F49: 133 | G49: 30 | H49: =IFERROR(G49/F49,"-") -> 0.2255639098 | I49: 28 | J49: =I49/E49 -> 0.1739130435 | K49: =(G49+I49)/E49 -> 0.3602484472
A50: FIS1043 | B50: FISICA CALOR ONDAS | C50: =VLOOKUP(A50,$A$6:$C$43,3,FALSE) -> 15 | D50: 5 | E50: 100 | F50: 79 | G50: 24 | H50: =IFERROR(G50/F50,"-") -> 0.3037974684 | I50: 21 | J50: =I50/E50 -> 0.21 | K50: =(G50+I50)/E50 -> 0.45
A51: GEO4014 | B51: GEOQUIMICA | C51: =VLOOKUP(A51,$A$6:$C$43,3,FALSE) -> 2 | D51: 1 | E51: 12 | F51: 9 | G51: 2 | H51: =IFERROR(G51/F51,"-") -> 0.2222222222 | I51: 3 | J51: =I51/E51 -> 0.25 | K51: =(G51+I51)/E51 -> 0.4166666667
A52: Total | C52: =SUM(C49:C51) -> 37 | D52: =SUM(D49:D51) -> 14 | E52: =SUM(E49:E51) -> 273 | F52: =SUM(F49:F51) -> 221 | G52: =SUM(G49:G51) -> 56 | H52: =G52/F52 -> 0.2533936652 | I52: =SUM(I49:I51) -> 52 | J52: =I52/E52 -> 0.1904761905 | K52: =(G52+I52)/E52 -> 0.3956043956

Sheet Graf_Fis
A1: OFICINA DE PLANEACIÓN - INFORMACIÓN Y ESTADÍSTICA
O2: Volver

Sheet Rep_His
A1: OFICINA DE PLANEACIÓN - INFORMACIÓN Y ESTADÍSTICA
A3: Perdidos, Retirados y Repitencia de Asignaturas del Dpto. de Historia y Cs. Sociales
A4: =Planeación!A1 -> 2023-2
A5: Codasg | B5: Asignaturas | C5: Total Cursos Abiertos | D5: Matrícula Inicial | E5: Matrícula Final | F5: Perdidos | G5: % Perdidos | H5: Retirados | I5: % Retirados | J5: % Repitencia
A6: HIS7130 | B6: AMERICA PREHISPANICA | C6: 2 | D6: 75 | E6: 50 | F6: 7 | G6: =IFERROR(F6/E6,"-") -> 0.14 | H6: 25 | I6: =H6/D6 -> 0.3333333333 | J6: =(F6+H6)/D6 -> 0.4266666667 | L6: Volver al Índice
A7: HIS2041 | B7: FUNDAMENTOS DEL MUNDO CONTEM | C7: 2 | D7: 52 | E7: 38 | F7: 2 | G7: 0.05263157895 | H7: 14 | I7: 0.2692307692 | J7: 0.3076923077
A8: ECA0020 | B8: CARIBE PREHISPANICO | C8: 3 | D8: 99 | E8: 79 | F8: 9 | G8: 0.1139240506 | H8: 20 | I8: 0.202020202 | J8: 0.2929292929
A9: ECA7000 | B9: HRIA. Y CULTURA DEL CARIBE | C9: 6 | D9: 196 | E9: 164 | F9: 19 | G9: 0.1158536585 | H9: 32 | I9: 0.1632653061 | J9: 0.2602040816
A10: CSO0040 | B10: GEOGRAFIA UNIVERSAL | C10: 2 | D10: 50 | E10: 44 | F10: 4 | G10: 0.09090909091 | H10: 6 | I10: 0.12 | J10: 0.2 | L10: Ir a Tabla de Repitencia >=30%
A11: HIS7240 | B11: AMERICA LATINA CONTEMPORANEA | C11: 2 | D11: 80 | E11: 71 | F11: 6 | G11: 0.08450704225 | H11: 9 | I11: 0.1125 | J11: 0.1875
A12: HIS7160 | B12: COLOMBIA PREHISPANICA | C12: 1 | D12: 40 | E12: 37 | F12: 3 | G12: 0.08108108108 | H12: 3 | I12: 0.075 | J12: 0.15
A13: CSO7030 | B13: CIENCIAS,TECNOLOGIA-SOCIEDAD | C13: 3 | D13: 73 | E13: 67 | F13: 3 | G13: 0.0447761194 | H13: 6 | I13: 0.08219178082 | J13: 0.1232876712
A14: ECA7010 | B14: CULTURA E IDENTIDAD CARIBE | C14: 3 | D14: 110 | E14: 104 | F14: 5 | G14: 0.04807692308 | H14: 6 | I14: 0.05454545455 | J14: 0.1
A15: CSO0150 | B15: VIDA EN RED Y CAMBIO SOCIAL | C15: 2 | D15: 41 | E15: 39 | F15: 2 | G15: 0.05128205128 | H15: 2 | I15: 0.0487804878 | J15: 0.09756097561
A16: HIS7190 | B16: HRIA. DE COL. SIGLO XX | C16: 8 | D16: 314 | E16: 297 | F16: 12 | G16: 0.0404040404 | H16: 17 | I16: 0.05414012739 | J16: 0.0923566879
A17: HIS3005 | B17: HRIA POLITICA-AMERICA LATINA | C17: 1 | D17: 11 | E17: 11 | F17: 1 | G17: 0.09090909091 | H17: 0 | I17: 0 | J17: 0.09090909091
A18: CSO0006 | B18: FUNDAMENTOS DE ANTROPOLOGIA | C18: 5 | D18: 173 | E18: 166 | F18: 8 | G18: 0.04819277108 | H18: 7 | I18: 0.04046242775 | J18: 0.08670520231
A19: HIS2550 | B19: ENFERMEDADES EN EL PASADO | C19: 2 | D19: 59 | E19: 58 | F19: 3 | G19: 0.05172413793 | H19: 1 | I19: 0.01694915254 | J19: 0.06779661017
A20: ECA0030 | B20: DIVERSIDAD CULTURAL CARIBE COL | C20: 2 | D20: 70 | E20: 67 | F20: 1 | G20: 0.01492537313 | H20: 3 | I20: 0.04285714286 | J20: 0.05714285714
A21: CSO7020 | B21: PROB.SOCIEDAD CONTEMPORANEA | C21: 3 | D21: 86 | E21: 83 | F21: 1 | G21: 0.01204819277 | H21: 3 | I21: 0.03488372093 | J21: 0.04651162791
A22: HIS2110 | B22: REVOLUCIONES EN LA HISTORIA | C22: 1 | D22: 23 | E22: 22 | F22: 0 | G22: 0 | H22: 1 | I22: 0.04347826087 | J22: 0.04347826087
A23: HIS2100 | B23: HISTORIA DE LAS IDEAS POLITICA | C23: 1 | D23: 24 | E23: 23 | F23: 0 | G23: 0 | H23: 1 | I23: 0.04166666667 | J23: 0.04166666667
A24: HIS2070 | B24: HRIA POLITICA ECON- COLOMBIA | C24: 1 | D24: 32 | E24: 31 | F24: 0 | G24: 0 | H24: 1 | I24: 0.03125 | J24: 0.03125
A25: HIS7200 | B25: HRIA. DE BARRANQUILLA | C25: 3 | D25: 120 | E25: 117 | F25: 0 | G25: 0 | H25: 3 | I25: 0.025 | J25: 0.025
A26: CSO7045 | B26: ENVIRONMENT AND SOCIETY | C26: 1 | D26: 8 | E26: 8 | F26: 0 | G26: 0 | H26: 0 | I26: 0 | J26: 0
A27: Total | C27: =SUM(C6:C26) -> 54 | D27: =SUM(D6:D26) -> 1736 | E27: =SUM(E6:E26) -> 1576 | F27: =SUM(F6:F26) -> 86 | G27: =F27/E27 -> 0.05456852792 | H27: =SUM(H6:H26) -> 160 | I27: =H27/D27 -> 0.09216589862 | J27: =(F27+H27)/D27 -> 0.1417050691
A29: Repitencia de Asignaturas del Dpto. de Historia y Cs. Sociales, Mayor o Igual al 30%
A30: =Planeación!A1 -> 2023-2 | L30: Ir a Inicio | M30: Ir a Gráfico
A31: Codasg | B31: Asignaturas | C31: Total Cursos Abiertos | D31: Número de Cursos con Repitencia >=30% | E31: Matricula Inicial | F31: Matrícula Final | G31: Perdidos | H31: % Perdidos | I31: Retirados | J31: % Retirados | K31: % Repitencia
A32: HIS7130 | B32: AMERICA PREHISPANICA | C32: =VLOOKUP(A32,$A$6:$C$26,3,FALSE) -> 2 | D32: 2 | E32: 75 | F32: 50 | G32: 7 | H32: =IFERROR(G32/F32,"-") -> 0.14 | I32: 25 | J32: =I32/E32 -> 0.3333333333 | K32: =(G32+I32)/E32 -> 0.4266666667
A33: ECA7000 | B33: HRIA. Y CULTURA DEL CARIBE | C33: =VLOOKUP(A33,$A$6:$C$26,3,FALSE) -> 6 | D33: 3 | E33: 77 | F33: 54 | G33: 11 | H33: =IFERROR(G33/F33,"-") -> 0.2037037037 | I33: 23 | J33: 0.2987012987 | K33: 0.4415584416
A34: HIS2041 | B34: FUNDAMENTOS DEL MUNDO CONTEM | C34: =VLOOKUP(A34,$A$6:$C$26,3,FALSE) -> 2 | D34: 1 | E34: 30 | F34: 16 | G34: 2 | H34: =IFERROR(G34/F34,"-") -> 0.125 | I34: 14 | J34: 0.4666666667 | K34: 0.5333333333
A35: ECA0020 | B35: CARIBE PREHISPANICO | C35: =VLOOKUP(A35,$A$6:$C$26,3,FALSE) -> 3 | D35: 2 | E35: 59 | F35: 39 | G35: 7 | H35: =IFERROR(G35/F35,"-") -> 0.1794871795 | I35: 20 | J35: 0.3389830508 | K35: 0.4576271186
A36: CSO0040 | B36: GEOGRAFIA UNIVERSAL | C36: =VLOOKUP(A36,$A$6:$C$26,3,FALSE) -> 2 | D36: 1 | E36: 14 | F36: 11 | G36: 3 | H36: =IFERROR(G36/F36,"-") -> 0.2727272727 | I36: 3 | J36: 0.2142857143 | K36: 0.4285714286
A37: Total | C37: =SUM(C32:C36) -> 15 | D37: =SUM(D32:D36) -> 9 | E37: 255 | F37: 170 | G37: 30 | H37: =G37/F37 -> 0.1764705882 | I37: 85 | J37: 0.3333333333 | K37: 0.4509803922

Sheet Graf_His
A1: OFICINA DE PLANEACIÓN - INFORMACIÓN Y ESTADÍSTICA
O2: Volver

Sheet Rep_Hum
A1: OFICINA DE PLANEACIÓN - INFORMACIÓN Y ESTADÍSTICA
A3: Perdidos, Retirados y Repitencia de Asignaturas del Dpto. Humanidades y Filosofía
A4: =Planeación!A1 -> 2023-2
A5: Codasg | B5: Asignaturas | C5: Total Cursos Abiertos | D5: Matrícula Inicial | E5: Matrícula Final | F5: Perdidos | G5: % Perdidos | H5: Retirados | I5: % Retirados | J5: % Repitencia
A6: INV4270 | B6: PROYECTO DE GRADO II FILOSOFIA | C6: 1 | D6: 7 | E6: 6 | F6: 2 | G6: =IFERROR(F6/E6,"-") -> 0.3333333333 | H6: 1 | I6: =H6/D6 -> 0.1428571429 | J6: =(F6+H6)/D6 -> 0.4285714286 | L6: Volver al Índice
A7: FIL7010 | B7: FILOSOFIA ANTIGUA II (ARISTOT) | C7: 1 | D7: 15 | E7: 13 | F7: 2 | G7: 0.1538461538 | H7: 2 | I7: 0.1333333333 | J7: 0.2666666667
A8: HUM0060 | B8: LOGICAS DE LA VIDA AMOROSA | C8: 3 | D8: 126 | E8: 106 | F8: 8 | G8: 0.07547169811 | H8: 20 | I8: 0.1587301587 | J8: 0.2222222222
A9: HUM4190 | B9: SEM LITERATURA III (TEMATICO) | C9: 1 | D9: 5 | E9: 5 | F9: 1 | G9: 0.2 | H9: 0 | I9: 0 | J9: 0.2
A10: FIL4120 | B10: PENS MEDIEVAL Y RENACENTISTA | C10: 1 | D10: 21 | E10: 20 | F10: 2 | G10: 0.1 | H10: 1 | I10: 0.04761904762 | J10: 0.1428571429 | L10: Ir a Tabla de Repitencia >=30%
A11: HUM0050 | B11: LITERATURA Y CIUDAD | C11: 3 | D11: 87 | E11: 80 | F11: 5 | G11: 0.0625 | H11: 7 | I11: 0.08045977011 | J11: 0.1379310345
A12: IDS0035 | B12: VIAJANDO POR LA CIENCIA | C12: 1 | D12: 24 | E12: 21 | F12: 0 | G12: 0 | H12: 3 | I12: 0.125 | J12: 0.125
A13: HUM4040 | B13: HISTORIA DEL ARTE | C13: 1 | D13: 52 | E13: 51 | F13: 3 | G13: 0.05882352941 | H13: 1 | I13: 0.01923076923 | J13: 0.07692307692
A14: HUM7020 | B14: LITERATURA COLOMBIANA | C14: 3 | D14: 107 | E14: 103 | F14: 4 | G14: 0.03883495146 | H14: 4 | I14: 0.03738317757 | J14: 0.07476635514
A15: FIL4020 | B15: INTRODUCCION A LA FILOSOFIA | C15: 9 | D15: 347 | E15: 332 | F15: 9 | G15: 0.02710843373 | H15: 15 | I15: 0.04322766571 | J15: 0.06916426513
A16: HUM0285 | B16: LITERATURA LATINOAMERICANA | C16: 4 | D16: 153 | E16: 151 | F16: 8 | G16: 0.05298013245 | H16: 2 | I16: 0.01307189542 | J16: 0.06535947712
A17: ETI1020 | B17: BIOETICA | C17: 1 | D17: 17 | E17: 16 | F17: 0 | G17: 0 | H17: 1 | I17: 0.05882352941 | J17: 0.05882352941
A18: ETI8070 | B18: ETICA | C18: 21 | D18: 807 | E18: 782 | F18: 21 | G18: 0.02685421995 | H18: 25 | I18: 0.03097893432 | J18: 0.05700123916
A19: HUM4005 | B19: CULTURA CONTEMPORANEA Y GENERO | C19: 2 | D19: 53 | E19: 53 | F19: 3 | G19: 0.05660377358 | H19: 0 | I19: 0 | J19: 0.05660377358
A20: FIL4050 | B20: FILOSOFIA MODERNA II (KANT) | C20: 1 | D20: 18 | E20: 17 | F20: 0 | G20: 0 | H20: 1 | I20: 0.05555555556 | J20: 0.05555555556
A21: ETI4040 | B21: FILOSOFIA MORAL | C21: 1 | D21: 39 | E21: 38 | F21: 1 | G21: 0.02631578947 | H21: 1 | I21: 0.02564102564 | J21: 0.05128205128
A22: IDS0060 | B22: CONOCIMIENTO E INVESTIGACION | C22: 7 | D22: 145 | E22: 142 | F22: 4 | G22: 0.02816901408 | H22: 3 | I22: 0.02068965517 | J22: 0.04827586207
A23: HUM0110 | B23: CINE Y LITERATURA CONTEMPORA | C23: 1 | D23: 131 | E23: 125 | F23: 0 | G23: 0 | H23: 6 | I23: 0.04580152672 | J23: 0.04580152672
A24: HUM0120 | B24: ARTE Y TERAPIA | C24: 1 | D24: 133 | E24: 129 | F24: 1 | G24: 0.007751937984 | H24: 4 | I24: 0.03007518797 | J24: 0.03759398496
A25: FIL7040 | B25: PROB. FIL. CONTEMPORANEA I | C25: 13 | D25: 568 | E25: 554 | F25: 7 | G25: 0.01263537906 | H25: 14 | I25: 0.02464788732 | J25: 0.03697183099
A26: HUM0090 | B26: ESCRITURA CREATIVA | C26: 2 | D26: 60 | E26: 59 | F26: 1 | G26: 0.01694915254 | H26: 1 | I26: 0.01666666667 | J26: 0.03333333333
A27: HUM0030 | B27: MÚSICA Y CINE | C27: 1 | D27: 32 | E27: 31 | F27: 0 | G27: 0 | H27: 1 | I27: 0.03125 | J27: 0.03125
A28: HUM7040 | B28: LITERATURA NO HISPANICA | C28: 4 | D28: 211 | E28: 208 | F28: 2 | G28: 0.009615384615 | H28: 3 | I28: 0.01421800948 | J28: 0.02369668246
A29: ETI0040 | B29: BIOETICA MD | C29: 3 | D29: 169 | E29: 169 | F29: 0 | G29: 0 | H29: 0 | I29: 0 | J29: 0
A30: HUM0100 | B30: GÉNERO Y DERECHO HUMANO | C30: 1 | D30: 44 | E30: 44 | F30: 0 | G30: 0 | H30: 0 | I30: 0 | J30: 0
A31: FIL1080 | B31: SEM DE AUTOR I: CULT Y PSICOAN | C31: 1 | D31: 8 | E31: 8 | F31: 0 | G31: 0 | H31: 0 | I31: 0 | J31: 0
A32: FIL2040 | B32: SEM DE FILOSOFIA Y ESTUD LITER | C32: 1 | D32: 4 | E32: 4 | F32: 0 | G32: 0 | H32: 0 | I32: 0 | J32: 0
A33: HUM4170 | B33: SEM EST CONTEMPORANEOS Y CULTU | C33: 1 | D33: 7 | E33: 7 | F33: 0 | G33: 0 | H33: 0 | I33: 0 | J33: 0
A34: FIL4090 | B34: SEM FIL DEL ACONTECIMIENTO | C34: 1 | D34: 5 | E34: 5 | F34: 0 | G34: 0 | H34: 0 | I34: 0 | J34: 0
A35: HUM4150 | B35: SEM LITERATURA I (LIT COLOMB) | C35: 1 | D35: 7 | E35: 7 | F35: 0 | G35: 0 | H35: 0 | I35: 0 | J35: 0
A36: HUM4160 | B36: SEMINARIO DE ESTETICA | C36: 1 | D36: 9 | E36: 9 | F36: 0 | G36: 0 | H36: 0 | I36: 0 | J36: 0
A37: HUM4070 | B37: TEORIA DEL ARTE I | C37: 1 | D37: 10 | E37: 10 | F37: 0 | G37: 0 | H37: 0 | I37: 0 | J37: 0
A38: Total | C38: =SUM(C6:C37) -> 94 | D38: =SUM(D6:D37) -> 3421 | E38: =SUM(E6:E37) -> 3305 | F38: =SUM(F6:F37) -> 84 | G38: =F38/E38 -> 0.02541603631 | H38: =SUM(H6:H37) -> 116 | I38: 0.03390821397 | J38: 0.05846243788
A40: Repitencia de Asignaturas del Dpto. Humanidades y Filosofía, Mayor o Igual al 30%
A41: =Planeación!A1 -> 2023-2 | L41: Ir a Inicio | M41: Ir a Gráfico
A42: Codasg | B42: Asignaturas | C42: Total Cursos Abiertos | D42: Número de Cursos con Repitencia >=30% | E42: Matricula Inicial | F42: Matrícula Final | G42: Perdidos | H42: % Perdidos | I42: Retirados | J42: % Retirados | K42: % Repitencia
A43: INV4270 | B43: PROYECTO DE GRADO II FILOSOFIA | C43: =VLOOKUP(A43,$A$6:$C$37,3,FALSE) -> 1 | D43: 1 | E43: 7 | F43: 6 | G43: 2 | H43: =IFERROR(G43/F43,"-") -> 0.3333333333 | I43: 1 | J43: =I43/E43 -> 0.1428571429 | K43: =(G43+I43)/E43 -> 0.4285714286
A44: Total | C44: =SUM(C43:C43) -> 1 | D44: =SUM(D43:D43) -> 1 | E44: =SUM(E43:E43) -> 7 | F44: =SUM(F43:F43) -> 6 | G44: =SUM(G43:G43) -> 2 | H44: =G44/F44 -> 0.3333333333 | I44: =SUM(I43:I43) -> 1 | J44: =I44/E44 -> 0.1428571429 | K44: =(G44+I44)/E44 -> 0.4285714286

Sheet Graf_Hum
A1: OFICINA DE PLANEACIÓN - INFORMACIÓN Y ESTADÍSTICA

Sheet Rep_Civ
A1: OFICINA DE PLANEACIÓN - INFORMACIÓN Y ESTADÍSTICA
A3: Perdidos, Retirados y Repitencia de Asignaturas del Dpto. Ing. Civil y Ambiental
A4: =Planeación!A1 -> 2023-2
A5: Codasg | B5: Asignaturas | C5: Total Cursos Abiertos | D5: Matrícula Inicial | E5: Matrícula Final | F5: Perdidos | G5: % Perdidos | H5: Retirados | I5: % Retirados | J5: % Repitencia
A6: IBA4070 | B6: ESTATICA PARA ARQUITECTOS | C6: 2 | D6: 46 | E6: 39 | F6: 15 | G6: =IFERROR(F6/E6,"-") -> 0.3846153846 | H6: 7 | I6: =H6/D6 -> 0.152173913 | J6: =(F6+H6)/D6 -> 0.4782608696 | L6: Volver al Índice
A7: ICI7104 | B7: ANÁLISIS ESTRUCTURAL | C7: 3 | D7: 112 | E7: 97 | F7: 31 | G7: 0.3195876289 | H7: 15 | I7: 0.1339285714 | J7: 0.4107142857
A8: ICI4021 | B8: DISEÑO DE VÍAS | C8: 2 | D8: 77 | E8: 68 | F8: 22 | G8: 0.3235294118 | H8: 9 | I8: 0.1168831169 | J8: 0.4025974026
A9: ICI4011 | B9: TOPOGRAFIA Y GEOINFORMACION | C9: 4 | D9: 61 | E9: 53 | F9: 11 | G9: 0.2075471698 | H9: 8 | I9: 0.131147541 | J9: 0.3114754098
A10: ICI7014 | B10: INGENIERIA DE TRANSPORTE | C10: 3 | D10: 97 | E10: 96 | F10: 25 | G10: 0.2604166667 | H10: 1 | I10: 0.01030927835 | J10: 0.2680412371 | L10: Ir a Tabla de Repitencia >=30%
A11: ELP7271 | B11: PAVIMENTOS | C11: 1 | D11: 13 | E11: 10 | F11: 0 | G11: 0 | H11: 3 | I11: 0.2307692308 | J11: 0.2307692308
A12: ICI4083 | B12: HIDRAULICA | C12: 5 | D12: 69 | E12: 63 | F12: 9 | G12: 0.1428571429 | H12: 6 | I12: 0.08695652174 | J12: 0.2173913043
A13: IBA0022 | B13: EXPRESION GRAFICA | C13: 4 | D13: 136 | E13: 130 | F13: 20 | G13: 0.1538461538 | H13: 6 | I13: 0.04411764706 | J13: 0.1911764706
A14: IBA4032 | B14: ESTÁTICA | C14: 5 | D14: 136 | E14: 126 | F14: 9 | G14: 0.07142857143 | H14: 10 | I14: 0.07352941176 | J14: 0.1397058824
A15: ICI7052 | B15: DISEÑO ESTRUCTURAL | C15: 2 | D15: 48 | E15: 45 | F15: 3 | G15: 0.06666666667 | H15: 3 | I15: 0.0625 | J15: 0.125
A16: ICI4310 | B16: MECÁNICA DE SUELOS | C16: 6 | D16: 89 | E16: 88 | F16: 10 | G16: 0.1136363636 | H16: 1 | I16: 0.01123595506 | J16: 0.1235955056
A17: ICI4060 | B17: GEOLOGIA | C17: 3 | D17: 74 | E17: 71 | F17: 5 | G17: 0.07042253521 | H17: 3 | I17: 0.04054054054 | J17: 0.1081081081
A18: ICI4070 | B18: HIDROLOGIA | C18: 3 | D18: 90 | E18: 86 | F18: 5 | G18: 0.05813953488 | H18: 4 | I18: 0.04444444444 | J18: 0.1
A19: ICI0010 | B19: INT A LA INGENIERIA CIVIL | C19: 1 | D19: 42 | E19: 41 | F19: 3 | G19: 0.07317073171 | H19: 1 | I19: 0.02380952381 | J19: 0.09523809524
A20: ICI7110 | B20: FUNDACIONES | C20: 2 | D20: 33 | E20: 32 | F20: 2 | G20: 0.0625 | H20: 1 | I20: 0.0303030303 | J20: 0.09090909091
A21: ICI7171 | B21: ACUEDUCTO Y ALCANTARILLADO | C21: 3 | D21: 99 | E21: 98 | F21: 7 | G21: 0.07142857143 | H21: 1 | I21: 0.0101010101 | J21: 0.08080808081
A22: ICI4051 | B22: MATERIALES DE CONSTRUCCION | C22: 4 | D22: 55 | E22: 53 | F22: 2 | G22: 0.03773584906 | H22: 2 | I22: 0.03636363636 | J22: 0.07272727273
A23: ICI4280 | B23: GEOMETRIA DESCRIPTIVA | C23: 2 | D23: 42 | E23: 41 | F23: 2 | G23: 0.0487804878 | H23: 1 | I23: 0.02380952381 | J23: 0.07142857143
A24: ADM5031 | B24: ADMON Y CTRL DE CONSTRUCCION | C24: 4 | D24: 138 | E24: 134 | F24: 3 | G24: 0.0223880597 | H24: 4 | I24: 0.02898550725 | J24: 0.05072463768
A25: ICI8750 | B25: INGENIERIA AMBIENTAL | C25: 6 | D25: 87 | E25: 87 | F25: 1 | G25: 0.01149425287 | H25: 0 | I25: 0 | J25: 0.01149425287
A26: ICI7081 | B26: CONSTRUCCION | C26: 2 | D26: 42 | E26: 42 | F26: 0 | G26: 0 | H26: 0 | I26: 0 | J26: 0
A27: ELP7028 | B27: TOPIC AVANZ EN TECNOL Y CONCRE | C27: 1 | D27: 24 | E27: 24 | F27: 0 | G27: 0 | H27: 0 | I27: 0 | J27: 0
A28: INV7362 | B28: PROYECTO FINAL | C28: 4 | D28: 55 | E28: 55 | F28: 0 | G28: 0 | H28: 0 | I28: 0 | J28: 0
A29: ELP7272 | B29: GEOTECNIA APLICADA | C29: 1 | D29: 16 | E29: 16 | F29: 0 | G29: 0 | H29: 0 | I29: 0 | J29: 0
A30: ELP4083 | B30: CONSTRUCCIONES SOSTENIBLES | C30: 1 | D30: 29 | E30: 29 | F30: 0 | G30: 0 | H30: 0 | I30: 0 | J30: 0
A31: ELP0021 | B31: MATERIALES INFRAESTRUCTU VIAL | C31: 1 | D31: 23 | E31: 23 | F31: 0 | G31: 0 | H31: 0 | I31: 0 | J31: 0
A32: AMB4032 | B32: GESTION DE RESIDUOS | C32: 1 | D32: 28 | E32: 28 | F32: 0 | G32: 0 | H32: 0 | I32: 0 | J32: 0
A33: ELP4076 | B33: INGENIERIA DE RIOS Y COSTAS | C33: 1 | D33: 7 | E33: 7 | F33: 0 | G33: 0 | H33: 0 | I33: 0 | J33: 0
A34: ELP7029 | B34: CORROSION DE LOS MATERIALES | C34: 1 | D34: 17 | E34: 17 | F34: 0 | G34: 0 | H34: 0 | I34: 0 | J34: 0
A35: Total | C35: =SUM(C6:C34) -> 78 | D35: =SUM(D6:D34) -> 1785 | E35: =SUM(E6:E34) -> 1699 | F35: =SUM(F6:F34) -> 185 | G35: =F35/E35 -> 0.1088875809 | H35: =SUM(H6:H34) -> 86 | I35: =H35/D35 -> 0.04817927171 | J35: =(F35+H35)/D35 -> 0.1518207283
A37: Repitencia de Asignaturas del Dpto. Ing. Civil y Ambiental, Mayor o Igual al 30%
A38: =Planeación!A1 -> 2023-2 | L38: Ir a Inicio | M38: Ir a Gráfico
A39: Codasg | B39: Asignaturas | C39: Total Cursos Abiertos | D39: Número de Cursos con Repitencia >=30% | E39: Matricula Inicial | F39: Matrícula Final | G39: Perdidos | H39: % Perdidos | I39: Retirados | J39: % Retirados | K39: % Repitencia
A40: ICI4011 | B40: TOPOGRAFIA Y GEOINFORMACION | C40: =VLOOKUP(A40,$A$6:$C$34,3,FALSE) -> 4 | D40: 2 | E40: 31 | F40: 27 | G40: 8 | H40: =IFERROR(G40/F40,"-") -> 0.2962962963 | I40: 4 | J40: =I40/E40 -> 0.1290322581 | K40: =(G40+I40)/E40 -> 0.3870967742
A41: ICI4083 | B41: HIDRAULICA | C41: 5 | D41: 1 | E41: 9 | F41: 8 | G41: 3 | H41: 0.375 | I41: 1 | J41: 0.1111111111 | K41: 0.4444444444
A42: ICI7104 | B42: ANÁLISIS ESTRUCTURAL | C42: 3 | D42: 2 | E42: 77 | F42: 65 | G42: 25 | H42: 0.3846153846 | I42: 12 | J42: 0.1558441558 | K42: 0.4805194805
A43: ICI4021 | B43: DISEÑO DE VÍAS | C43: 2 | D43: 2 | E43: 77 | F43: 68 | G43: 22 | H43: 0.3235294118 | I43: 9 | J43: 0.1168831169 | K43: 0.4025974026
A44: ICI7014 | B44: INGENIERIA DE TRANSPORTE | C44: 3 | D44: 1 | E44: 36 | F44: 35 | G44: 12 | H44: 0.3428571429 | I44: 1 | J44: 0.02777777778 | K44: 0.3611111111
A45: IBA0022 | B45: EXPRESION GRAFICA | C45: 4 | D45: 1 | E45: 34 | F45: 32 | G45: 9 | H45: 0.28125 | I45: 2 | J45: 0.05882352941 | K45: 0.3235294118
A46: IBA4070 | B46: ESTATICA PARA ARQUITECTOS | C46: 2 | D46: 2 | E46: 46 | F46: 39 | G46: 15 | H46: 0.3846153846 | I46: 7 | J46: 0.152173913 | K46: 0.4782608696
A47: Total | C47: =SUM(C40:C46) -> 23 | D47: =SUM(D40:D46) -> 11 | E47: 310 | F47: 274 | G47: 94 | H47: =G47/F47 -> 0.3430656934 | I47: 36 | J47: 0.1161290323 | K47: 0.4193548387

Sheet Graf_Civ
A1: OFICINA DE PLANEACIÓN - INFORMACIÓN Y ESTADÍSTICA
O2: Volver

Sheet Rep_Sis
A1: OFICINA DE PLANEACIÓN - INFORMACIÓN Y ESTADÍSTICA
A3: Perdidos, Retirados y Repitencia de Asignaturas del Dpto. Ingeniería de Sistemas
A4: =Planeación!A1 -> 2023-2
A5: Codasg | B5: Asignaturas | C5: Total Cursos Abiertos | D5: Matrícula Inicial | E5: Matrícula Final | F5: Perdidos | G5: % Perdidos | H5: Retirados | I5: % Retirados | J5: % Repitencia
A6: IST7081 | B6: SISTEMAS OPERACIONALES | C6: 2 | D6: 41 | E6: 36 | F6: 8 | G6: =IFERROR(F6/E6,"-") -> 0.2222222222 | H6: 5 | I6: =H6/D6 -> 0.1219512195 | J6: =(F6+H6)/D6 -> 0.3170731707 | L6: Volver al Índice
A7: IST2088 | B7: ALGORITMIA Y PROGRAMACIÓN I | C7: 10 | D7: 380 | E7: 331 | F7: 66 | G7: 0.1993957704 | H7: 49 | I7: 0.1289473684 | J7: 0.3026315789
A8: IST7410 | B8: COMPILADORES | C8: 2 | D8: 79 | E8: 75 | F8: 18 | G8: 0.24 | H8: 4 | I8: 0.05063291139 | J8: 0.2784810127
A9: IST4330 | B9: ESTRUCTURAS DISCRETAS | C9: 2 | D9: 63 | E9: 54 | F9: 8 | G9: 0.1481481481 | H9: 9 | I9: 0.1428571429 | J9: 0.2698412698
A10: ELP8011 | B10: CRIPTOGRAFIA | C10: 1 | D10: 18 | E10: 14 | F10: 0 | G10: 0 | H10: 4 | I10: 0.2222222222 | J10: 0.2222222222 | L10: Ir a Tabla de Repitencia >=30%
A11: ELP8124 | B11: MINERÍA DE DATOS | C11: 1 | D11: 33 | E11: 26 | F11: 0 | G11: 0 | H11: 7 | I11: 0.2121212121 | J11: 0.2121212121
A12: IST4360 | B12: SOLUCIONES COMP. A PROB.EN ING | C12: 7 | D12: 223 | E12: 188 | F12: 7 | G12: 0.03723404255 | H12: 35 | I12: 0.1569506726 | J12: 0.1883408072
A13: IST7102 | B13: ESTRUCTURA DEL COMPUTADOR II | C13: 1 | D13: 39 | E13: 37 | F13: 4 | G13: 0.1081081081 | H13: 2 | I13: 0.05128205128 | J13: 0.1538461538
A14: IST2089 | B14: ALGORITMIA Y PROGRAMACIÓN II | C14: 5 | D14: 161 | E14: 148 | F14: 9 | G14: 0.06081081081 | H14: 13 | I14: 0.08074534161 | J14: 0.1366459627
A15: IST2110 | B15: PROGRAMACION ORIENTADA OBJETOS | C15: 3 | D15: 89 | E15: 81 | F15: 3 | G15: 0.03703703704 | H15: 8 | I15: 0.08988764045 | J15: 0.1235955056
A16: ELP8510 | B16: PROGRAMACIÓN MÓVIL | C16: 1 | D16: 33 | E16: 30 | F16: 1 | G16: 0.03333333333 | H16: 3 | I16: 0.09090909091 | J16: 0.1212121212
A17: IST0010 | B17: INT A LA ING. DE SISTEMAS | C17: 3 | D17: 87 | E17: 80 | F17: 3 | G17: 0.0375 | H17: 7 | I17: 0.08045977011 | J17: 0.1149425287
A18: IST4310 | B18: ALGORITMOS Y COMPLEJIDAD | C18: 2 | D18: 62 | E18: 57 | F18: 2 | G18: 0.0350877193 | H18: 5 | I18: 0.08064516129 | J18: 0.1129032258
A19: IST7420 | B19: OPTIMIZACION | C19: 1 | D19: 39 | E19: 36 | F19: 1 | G19: 0.02777777778 | H19: 3 | I19: 0.07692307692 | J19: 0.1025641026
A20: IST4031 | B20: ESTRUCTURA DE DATOS II | C20: 3 | D20: 114 | E20: 110 | F20: 7 | G20: 0.06363636364 | H20: 4 | I20: 0.0350877193 | J20: 0.09649122807
A21: ELP8012 | B21: INTELIGENCIA ARTIFICIAL | C21: 1 | D21: 26 | E21: 24 | F21: 0 | G21: 0 | H21: 2 | I21: 0.07692307692 | J21: 0.07692307692
A22: IST4021 | B22: ESTRUCTURA DE DATOS I-IS | C22: 3 | D22: 103 | E22: 100 | F22: 4 | G22: 0.04 | H22: 3 | I22: 0.02912621359 | J22: 0.06796116505
A23: IST7191 | B23: REDES DE COMPUTACION | C23: 3 | D23: 60 | E23: 58 | F23: 2 | G23: 0.03448275862 | H23: 2 | I23: 0.03333333333 | J23: 0.06666666667
A24: IST4012 | B24: ESTRUCTURA DEL COMPUTADOR I | C24: 2 | D24: 64 | E24: 62 | F24: 2 | G24: 0.03225806452 | H24: 2 | I24: 0.03125 | J24: 0.0625
A25: ELP7195 | B25: REDES DE ALTA VELOCIDAD | C25: 3 | D25: 53 | E25: 50 | F25: 0 | G25: 0 | H25: 3 | I25: 0.05660377358 | J25: 0.05660377358
A26: IST7111 | B26: BASES DE DATOS | C26: 2 | D26: 61 | E26: 60 | F26: 2 | G26: 0.03333333333 | H26: 1 | I26: 0.01639344262 | J26: 0.04918032787
A27: INV7363 | B27: PROYECTO FINAL | C27: 1 | D27: 41 | E27: 40 | F27: 1 | G27: 0.025 | H27: 1 | I27: 0.0243902439 | J27: 0.0487804878
A28: IDS0040 | B28: CIBERETICA | C28: 1 | D28: 22 | E28: 21 | F28: 0 | G28: 0 | H28: 1 | I28: 0.04545454545 | J28: 0.04545454545
A29: IST7122 | B29: DISEÑO DEL SOFTWARE II | C29: 2 | D29: 62 | E29: 61 | F29: 1 | G29: 0.01639344262 | H29: 1 | I29: 0.01612903226 | J29: 0.03225806452
A30: IST7072 | B30: DISEÑO DIGITAL | C30: 1 | D30: 38 | E30: 37 | F30: 0 | G30: 0 | H30: 1 | I30: 0.02631578947 | J30: 0.02631578947
A31: IDS0025 | B31: CIENCIA TECNOLOGIA Y GENERO | C31: 1 | D31: 14 | E31: 14 | F31: 0 | G31: 0 | H31: 0 | I31: 0 | J31: 0
A32: ELP7196 | B32: NETWORKING CON LINUX | C32: 1 | D32: 20 | E32: 20 | F32: 0 | G32: 0 | H32: 0 | I32: 0 | J32: 0
A33: IST7121 | B33: DISEÑO DE SOFTWARE I | C33: 1 | D33: 30 | E33: 30 | F33: 0 | G33: 0 | H33: 0 | I33: 0 | J33: 0
A34: IST4452 | B34: DSLLO APLICACIONES WEB BACKEND | C34: 1 | D34: 34 | E34: 34 | F34: 0 | G34: 0 | H34: 0 | I34: 0 | J34: 0
A35: ELP8480 | B35: GESTIÓN INTEGRADA EN T.I. | C35: 1 | D35: 29 | E35: 29 | F35: 0 | G35: 0 | H35: 0 | I35: 0 | J35: 0
A36: IST4453 | B36: DLLO APLICACIONES WEB FRONTEND | C36: 1 | D36: 34 | E36: 34 | F36: 0 | G36: 0 | H36: 0 | I36: 0 | J36: 0
A37: Total | C37: =SUM(C6:C36) -> 69 | D37: =SUM(D6:D36) -> 2152 | E37: =SUM(E6:E36) -> 1977 | F37: =SUM(F6:F36) -> 149 | G37: =F37/E37 -> 0.07536671725 | H37: =SUM(H6:H36) -> 175 | I37: =H37/D37 -> 0.0813197026 | J37: =(F37+H37)/D37 -> 0.1505576208
A39: Repitencia de Asignaturas del Dpto. Ingeniería de Sistemas, Mayor o Igual al 30%
A40: =Planeación!A1 -> 2023-2 | L40: Ir a Inicio | M40: Ir a Gráfico
A41: Codasg | B41: Asignaturas | C41: Total Cursos Abiertos | D41: Número de Cursos con Repitencia >=30% | E41: Matricula Inicial | F41: Matrícula Final | G41: Perdidos | H41: % Perdidos | I41: Retirados | J41: % Retirados | K41: % Repitencia
A42: IST7081 | B42: SOLUCIONES COMP. A PROB.EN ING | C42: =VLOOKUP(A42,$A$6:$C$36,3,FALSE) -> 2 | D42: 2 | E42: 59 | F42: 40 | G42: 6 | H42: =IFERROR(G42/F42,"-") -> 0.15 | I42: 19 | J42: =I42/E42 -> 0.3220338983 | K42: =(G42+I42)/E42 -> 0.4237288136
A43: IST4330 | B43: SISTEMAS OPERACIONALES | C43: =VLOOKUP(A43,$A$6:$C$36,3,FALSE) -> 2 | D43: 1 | E43: 13 | F43: 11 | G43: 3 | H43: =IFERROR(G43/F43,"-") -> 0.2727272727 | I43: 2 | J43: =I43/E43 -> 0.1538461538 | K43: =(G43+I43)/E43 -> 0.3846153846
A44: IST4360 | B44: ALGORITMIA Y PROGRAMACIÓN I | C44: =VLOOKUP(A44,$A$6:$C$36,3,FALSE) -> 7 | D44: 6 | E44: 237 | F44: 195 | G44: 49 | H44: =IFERROR(G44/F44,"-") -> 0.2512820513 | I44: 42 | J44: =I44/E44 -> 0.1772151899 | K44: =(G44+I44)/E44 -> 0.3839662447
A45: IST7410 | B45: ESTRUCTURAS DISCRETAS | C45: =VLOOKUP(A45,$A$6:$C$36,3,FALSE) -> 2 | D45: 1 | E45: 30 | F45: 24 | G45: 4 | H45: =IFERROR(G45/F45,"-") -> 0.1666666667 | I45: 6 | J45: =I45/E45 -> 0.2 | K45: =(G45+I45)/E45 -> 0.3333333333
A46: IST2088 | B46: COMPILADORES | C46: =VLOOKUP(A46,$A$6:$C$36,3,FALSE) -> 10 | D46: 1 | E46: 40 | F46: 38 | G46: 10 | H46: =IFERROR(G46/F46,"-") -> 0.2631578947 | I46: 2 | J46: =I46/E46 -> 0.05 | K46: =(G46+I46)/E46 -> 0.3
A47: Total | C47: =SUM(C42:C46) -> 23 | D47: =SUM(D42:D46) -> 11 | E47: =SUM(E42:E46) -> 379 | F47: =SUM(F42:F46) -> 308 | G47: =SUM(G42:G46) -> 72 | H47: =G47/F47 -> 0.2337662338 | I47: =SUM(I42:I46) -> 71 | J47: =I47/E47 -> 0.1873350923 | K47: =(G47+I47)/E47 -> 0.3773087071

Sheet Graf_Sis
A1: OFICINA DE PLANEACIÓN - INFORMACIÓN Y ESTADÍSTICA
O2: Volver

Sheet Rep_Ind
A1: OFICINA DE PLANEACIÓN - INFORMACIÓN Y ESTADÍSTICA
A3: Perdidos, Retirados y Repitencia de Asignaturas del Dpto. Ingeniería Industrial
A4: =Planeación!A1 -> 2023-2
A5: Codasg | B5: Asignaturas | C5: Total Cursos Abiertos | D5: Matrícula Inicial | E5: Matrícula Final | F5: Perdidos | G5: % Perdidos | H5: Retirados | I5: % Retirados | J5: % Repitencia
A6: IIN7050 | B6: CTRL Y GEST INT DE LA CALIDAD | C6: 8 | D6: 113 | E6: 86 | F6: 25 | G6: =IFERROR(F6/E6,"-") -> 0.2906976744 | H6: 27 | I6: =H6/D6 -> 0.2389380531 | J6: =(F6+H6)/D6 -> 0.4601769912 | L6: Volver al Índice
A7: IIN7105 | B7: SIMULACIÓN | C7: 4 | D7: 109 | E7: 99 | F7: 34 | G7: 0.3434343434 | H7: 10 | I7: 0.09174311927 | J7: 0.4036697248
A8: IIN7061 | B8: INVESTIGACION DE OPERACIONES I | C8: 4 | D8: 124 | E8: 110 | F8: 31 | G8: 0.2818181818 | H8: 14 | I8: 0.1129032258 | J8: 0.3629032258
A9: IIN7171 | B9: PLAN. PROG Y CTRL PRODUCCION | C9: 3 | D9: 85 | E9: 74 | F9: 19 | G9: 0.2567567568 | H9: 11 | I9: 0.1294117647 | J9: 0.3529411765
A10: EST7042 | B10: ANÁLISIS DE DATOS EN INGEN I | C10: 10 | D10: 299 | E10: 250 | F10: 41 | G10: 0.164 | H10: 49 | I10: 0.1638795987 | J10: 0.3010033445 | L10: Ir a Tabla de Repitencia >=30%
A11: ELP4085 | B11: GESTION DE INVENTARIOS | C11: 1 | D11: 17 | E11: 17 | F11: 5 | G11: 0.2941176471 | H11: 0 | I11: 0 | J11: 0.2941176471
A12: GPY1012 | B12: FORM Y EVAL DE PROYECTOS | C12: 5 | D12: 195 | E12: 170 | F12: 32 | G12: 0.1882352941 | H12: 25 | I12: 0.1282051282 | J12: 0.2923076923
A13: IIN9525 | B13: DISEÑO DE SIST DE INFORMACION | C13: 1 | D13: 14 | E13: 12 | F13: 2 | G13: 0.1666666667 | H13: 2 | I13: 0.1428571429 | J13: 0.2857142857
A14: IIN7071 | B14: INVESTIGACION DE OPERAC 2 | C14: 3 | D14: 83 | E14: 81 | F14: 20 | G14: 0.2469135802 | H14: 2 | I14: 0.02409638554 | J14: 0.265060241
A15: ELP8022 | B15: ANALISIS ESTADIST.MULTIVARIADO | C15: 1 | D15: 20 | E15: 16 | F15: 0 | G15: 0 | H15: 4 | I15: 0.2 | J15: 0.2
A16: IIN0008 | B16: SISTEMAS DE COSTOS DE PRODUCCI | C16: 2 | D16: 60 | E16: 54 | F16: 6 | G16: 0.1111111111 | H16: 6 | I16: 0.1 | J16: 0.2
A17: IIN7100 | B17: LOGISTICA Y DISTRIBUCION | C17: 3 | D17: 101 | E17: 99 | F17: 14 | G17: 0.1414141414 | H17: 2 | I17: 0.0198019802 | J17: 0.1584158416
A18: IIN4305 | B18: INGENIERIA ECONOMICA | C18: 3 | D18: 88 | E18: 84 | F18: 9 | G18: 0.1071428571 | H18: 4 | I18: 0.04545454545 | J18: 0.1477272727
A19: IIN4340 | B19: ESTRATEGIAS DE OPERACIONES | C19: 2 | D19: 70 | E19: 68 | F19: 8 | G19: 0.1176470588 | H19: 2 | I19: 0.02857142857 | J19: 0.1428571429
A20: IIN1226 | B20: FUNDAMENTOS DE ING. ECONÓMICA | C20: 2 | D20: 54 | E20: 49 | F20: 1 | G20: 0.02040816327 | H20: 5 | I20: 0.09259259259 | J20: 0.1111111111
A21: IIN8897 | B21: MODELO ISO 9000 GTION CALIDAD | C21: 1 | D21: 33 | E21: 31 | F21: 1 | G21: 0.03225806452 | H21: 2 | I21: 0.06060606061 | J21: 0.09090909091
A22: INV7366 | B22: PROYECTO FINAL | C22: 4 | D22: 68 | E22: 67 | F22: 4 | G22: 0.05970149254 | H22: 1 | I22: 0.01470588235 | J22: 0.07352941176
A23: EST1051 | B23: ANÁLISIS DE DATOS EN INGEN II | C23: 3 | D23: 104 | E23: 103 | F23: 4 | G23: 0.03883495146 | H23: 1 | I23: 0.009615384615 | J23: 0.04807692308
A24: IIN9321 | B24: ANALIS MODEL GTION TALEN HUMA | C24: 2 | D24: 75 | E24: 73 | F24: 1 | G24: 0.01369863014 | H24: 2 | I24: 0.02666666667 | J24: 0.04
A25: IIN8945 | B25: ANÁLIS Y EVAL DE PROY DE INVER | C25: 2 | D25: 55 | E25: 55 | F25: 2 | G25: 0.03636363636 | H25: 0 | I25: 0 | J25: 0.03636363636
A26: IIN7030 | B26: DIS. DE SISTEMAS PRODUCTIVOS | C26: 3 | D26: 101 | E26: 99 | F26: 1 | G26: 0.0101010101 | H26: 2 | I26: 0.0198019802 | J26: 0.0297029703
A27: IIN0018 | B27: ANALITICA DE DATOS APLICADA | C27: 1 | D27: 39 | E27: 38 | F27: 0 | G27: 0 | H27: 1 | I27: 0.02564102564 | J27: 0.02564102564
A28: IIN0010 | B28: INT A LA ING. INDUSTRIAL | C28: 1 | D28: 42 | E28: 41 | F28: 0 | G28: 0 | H28: 1 | I28: 0.02380952381 | J28: 0.02380952381
A29: AMB8607 | B29: SEGURIDAD GESTION AMBIENTAL | C29: 5 | D29: 75 | E29: 74 | F29: 0 | G29: 0 | H29: 1 | I29: 0.01333333333 | J29: 0.01333333333
A30: IDS0015 | B30: CREAC DE EMP DE BASE Y TECNOL | C30: 2 | D30: 76 | E30: 76 | F30: 1 | G30: 0.01315789474 | H30: 0 | I30: 0 | J30: 0.01315789474
A31: IIN4300 | B31: ESTUDIO DEL TRABAJO | C31: 3 | D31: 41 | E31: 41 | F31: 0 | G31: 0 | H31: 0 | I31: 0 | J31: 0
A32: ELP8032 | B32: CREACION DE EMPRESAS (I.I) | C32: 1 | D32: 40 | E32: 40 | F32: 0 | G32: 0 | H32: 0 | I32: 0 | J32: 0
A33: Total | C33: =SUM(C6:C32) -> 80 | D33: =SUM(D6:D32) -> 2181 | E33: =SUM(E6:E32) -> 2007 | F33: =SUM(F6:F32) -> 261 | G33: =F33/E33 -> 0.130044843 | H33: =SUM(H6:H32) -> 174 | I33: =H33/D33 -> 0.07977991747 | J33: =(F33+H33)/D33 -> 0.1994497937
A35: Repitencia de Asignaturas del Dpto. Ingeniería Industrial, Mayor o Igual al 30%
A36: =Planeación!A1 -> 2023-2 | L36: Ir a Inicio | M36: Ir a Gráfico
A37: Codasg | B37: Asignaturas | C37: Total Cursos Abiertos | D37: Número de Cursos con Repitencia >=30% | E37: Matricula Inicial | F37: Matrícula Final | G37: Perdidos | H37: % Perdidos | I37: Retirados | J37: % Retirados | K37: % Repitencia
A38: IIN7050 | B38: CTRL Y GEST INT DE LA CALIDAD | C38: =VLOOKUP(A38,$A$6:$C$32,3,FALSE) -> 8 | D38: 6 | E38: 84 | F38: 64 | G38: 24 | H38: =IFERROR(G38/F38,"-") -> 0.375 | I38: 20 | J38: =I38/E38 -> 0.2380952381 | K38: =(G38+I38)/E38 -> 0.5238095238
A39: IIN7105 | B39: SIMULACIÓN | C39: =VLOOKUP(A39,$A$7:$C$32,3,FALSE) -> 4 | D39: 3 | E39: 81 | F39: 72 | G39: 30 | H39: 0.4166666667 | I39: 9 | J39: 0.1111111111 | K39: 0.4814814815
A40: IIN7171 | B40: PLAN. PROG Y CTRL PRODUCCION | C40: =VLOOKUP(A40,$A$7:$C$32,3,FALSE) -> 3 | D40: 2 | E40: 57 | F40: 47 | G40: 17 | H40: 0.3617021277 | I40: 10 | J40: 0.1754385965 | K40: 0.4736842105
A41: EST7042 | B41: ANÁLISIS DE DATOS EN INGEN I | C41: =VLOOKUP(A41,$A$6:$C$32,3,FALSE) -> 10 | D41: 5 | E41: 132 | F41: 102 | G41: 23 | H41: 0.2254901961 | I41: 30 | J41: 0.2272727273 | K41: 0.4015151515
A42: IIN7061 | B42: INVESTIGACION DE OPERACIONES I | C42: =VLOOKUP(A42,$A$7:$C$32,3,FALSE) -> 4 | D42: 4 | E42: 124 | F42: 110 | G42: 31 | H42: 0.2818181818 | I42: 14 | J42: 0.1129032258 | K42: 0.3629032258
A43: GPY1012 | B43: FORM Y EVAL DE PROYECTOS | C43: =VLOOKUP(A43,$A$7:$C$32,3,FALSE) -> 5 | D43: 3 | E43: 115 | F43: 98 | G43: 22 | H43: 0.2244897959 | I43: 17 | J43: 0.147826087 | K43: 0.3391304348
A44: Total | C44: =SUM(C38:C43) -> 34 | D44: =SUM(D38:D43) -> 23 | E44: =SUM(E38:E43) -> 593 | F44: =SUM(F38:F43) -> 493 | G44: =SUM(G38:G43) -> 147 | H44: =G44/F44 -> 0.2981744422 | I44: =SUM(I38:I43) -> 100 | J44: =I44/E44 -> 0.1686340641 | K44: =(G44+I44)/E44 -> 0.4165261383

Sheet Graf_Ind
A1: OFICINA DE PLANEACIÓN - INFORMACIÓN Y ESTADÍSTICA
O2: Volver

Sheet Rep_Mec
A1: OFICINA DE PLANEACIÓN - INFORMACIÓN Y ESTADÍSTICA
A3: Perdidos, Retirados y Repitencia de Asignaturas del Dpto. Ingeniería Mecánica
A4: =Planeación!A1 -> 2023-2
A5: Codasg | B5: Asignaturas | C5: Total Cursos Abiertos | D5: Matrícula Inicial | E5: Matrícula Final | F5: Perdidos | G5: % Perdidos | H5: Retirados | I5: % Retirados | J5: % Repitencia
A6: IME7070 | B6: TERMODINAMICA II | C6: 2 | D6: 44 | E6: 28 | F6: 2 | G6: =IFERROR(F6/E6,"-") -> 0.07142857143 | H6: 16 | I6: =H6/D6 -> 0.3636363636 | J6: =(F6+H6)/D6 -> 0.4090909091 | L6: Volver al Índice
A7: IME1205 | B7: CIENCIA DE LOS MATERIALES | C7: 11 | D7: 157 | E7: 118 | F7: 20 | G7: 0.1694915254 | H7: 39 | I7: 0.2484076433 | J7: 0.3757961783
A8: IME7095 | B8: MODELOS DE SISTEMAS DINÁMICOS | C8: 2 | D8: 31 | E8: 24 | F8: 4 | G8: 0.1666666667 | H8: 7 | I8: 0.2258064516 | J8: 0.3548387097
A9: IME4200 | B9: MECÁNICA DE SOLIDOS | C9: 5 | D9: 168 | E9: 143 | F9: 32 | G9: 0.2237762238 | H9: 25 | I9: 0.1488095238 | J9: 0.3392857143
A10: IME4070 | B10: MECANICA DE FLUIDOS | C10: 2 | D10: 68 | E10: 54 | F10: 6 | G10: 0.1111111111 | H10: 14 | I10: 0.2058823529 | J10: 0.2941176471 | L10: Ir a Tabla de Repitencia >=30%
A11: IME4072 | B11: MECANICA DE FLUIDOS | C11: 3 | D11: 24 | E11: 22 | F11: 5 | G11: 0.2272727273 | H11: 2 | I11: 0.08333333333 | J11: 0.2916666667
A12: IBA4061 | B12: DINAMICA | C12: 3 | D12: 81 | E12: 66 | F12: 8 | G12: 0.1212121212 | H12: 15 | I12: 0.1851851852 | J12: 0.2839506173
A13: IME7061 | B13: TERMODINAMICA I | C13: 6 | D13: 198 | E13: 151 | F13: 6 | G13: 0.03973509934 | H13: 47 | I13: 0.2373737374 | J13: 0.2676767677
A14: IME1210 | B14: MECÁNICA DE MAQUINAS | C14: 1 | D14: 27 | E14: 25 | F14: 5 | G14: 0.2 | H14: 2 | I14: 0.07407407407 | J14: 0.2592592593
A15: IME7220 | B15: DISEÑO MECANICO | C15: 2 | D15: 67 | E15: 65 | F15: 11 | G15: 0.1692307692 | H15: 2 | I15: 0.02985074627 | J15: 0.1940298507
A16: IME7085 | B16: DISEÑOS DE SISTEMAS MECANICOS | C16: 2 | D16: 38 | E16: 36 | F16: 5 | G16: 0.1388888889 | H16: 2 | I16: 0.05263157895 | J16: 0.1842105263
A17: IME7101 | B17: TRANSFERENCIA DE CALOR | C17: 8 | D17: 74 | E17: 66 | F17: 5 | G17: 0.07575757576 | H17: 8 | I17: 0.1081081081 | J17: 0.1756756757
A18: IME4205 | B18: DIBUJO MECANICO II | C18: 1 | D18: 22 | E18: 21 | F18: 2 | G18: 0.09523809524 | H18: 1 | I18: 0.04545454545 | J18: 0.1363636364
A19: IBA1012 | B19: INGENIERÍA DE MATERIALES | C19: 1 | D19: 58 | E19: 55 | F19: 4 | G19: 0.07272727273 | H19: 3 | I19: 0.05172413793 | J19: 0.1206896552
A20: IME4030 | B20: PROCESOS DE FABRICACION | C20: 9 | D20: 113 | E20: 105 | F20: 5 | G20: 0.04761904762 | H20: 8 | I20: 0.07079646018 | J20: 0.1150442478
A21: IME7192 | B21: DISEÑO SISTEMAS TERMO FLUIDO | C21: 4 | D21: 37 | E21: 36 | F21: 2 | G21: 0.05555555556 | H21: 1 | I21: 0.02702702703 | J21: 0.08108108108
A22: IME4214 | B22: TURBOMAQUINAS | C22: 1 | D22: 30 | E22: 28 | F22: 0 | G22: 0 | H22: 2 | I22: 0.06666666667 | J22: 0.06666666667
A23: IME0010 | B23: INT A LA ING. MECANICA | C23: 1 | D23: 18 | E23: 18 | F23: 1 | G23: 0.05555555556 | H23: 0 | I23: 0 | J23: 0.05555555556
A24: IME7285 | B24: ENERGÍA ALTERNATIVAS | C24: 1 | D24: 28 | E24: 28 | F24: 1 | G24: 0.03571428571 | H24: 0 | I24: 0 | J24: 0.03571428571
A25: IME8310 | B25: INSTRUMENTACION Y CONTROL | C25: 7 | D25: 57 | E25: 55 | F25: 0 | G25: 0 | H25: 2 | I25: 0.0350877193 | J25: 0.0350877193
A26: INV4235 | B26: PROYECTO FINAL | C26: 3 | D26: 37 | E26: 37 | F26: 0 | G26: 0 | H26: 0 | I26: 0 | J26: 0
A27: IME7052 | B27: PROYECTOS DE INVESTIGACION | C27: 2 | D27: 49 | E27: 49 | F27: 0 | G27: 0 | H27: 0 | I27: 0 | J27: 0
A28: IME7042 | B28: GESTIÓN DE ACTIVOS | C28: 2 | D28: 68 | E28: 68 | F28: 0 | G28: 0 | H28: 0 | I28: 0 | J28: 0
A29: IME5650 | B29: INT A LA TECN COSTA AFUERA | C29: 1 | D29: 28 | E29: 28 | F29: 0 | G29: 0 | H29: 0 | I29: 0 | J29: 0
A30: IME4224 | B30: ANALISIS DE FALLA | C30: 1 | D30: 10 | E30: 10 | F30: 0 | G30: 0 | H30: 0 | I30: 0 | J30: 0
A31: Total | C31: =SUM(C6:C30) -> 81 | D31: =SUM(D6:D30) -> 1532 | E31: =SUM(E6:E30) -> 1336 | F31: =SUM(F6:F30) -> 124 | G31: =F31/E31 -> 0.09281437126 | H31: =SUM(H6:H30) -> 196 | I31: =H31/D31 -> 0.1279373368 | J31: =(F31+H31)/D31 -> 0.2088772846
A33: Repitencia de Asignaturas del Dpto. Ingeniería Mecánica, Mayor o Igual al 30%
A34: =Planeación!A1 -> 2023-2 | L34: Ir a Inicio | M34: Ir a Gráfico
A35: Codasg | B35: Asignaturas | C35: Total Cursos Abiertos | D35: Número de Cursos con Repitencia >=30% | E35: Matricula Inicial | F35: Matrícula Final | G35: Perdidos | H35: % Perdidos | I35: Retirados | J35: % Retirados | K35: % Repitencia
A36: IME4072 | B36: MECANICA DE FLUIDOS | C36: =VLOOKUP(A36,$A$6:$C$30,3,FALSE) -> 3 | D36: 1 | E36: 10 | F36: 8 | G36: 3 | H36: =IFERROR(G36/F36,"-") -> 0.375 | I36: 2 | J36: =I36/E36 -> 0.2 | K36: =(G36+I36)/E36 -> 0.5
A37: IME7101 | B37: TRANSFERENCIA DE CALOR | C37: 8 | D37: 2 | E37: 14 | F37: 9 | G37: 2 | H37: 0.2222222222 | I37: 5 | J37: 0.3571428571 | K37: 0.5
A38: IME4030 | B38: PROCESOS DE FABRICACION | C38: 9 | D38: 1 | E38: 11 | F38: 9 | G38: 3 | H38: 0.3333333333 | I38: 2 | J38: 0.1818181818 | K38: 0.4545454545
A39: IME1205 | B39: CIENCIA DE LOS MATERIALES | C39: 11 | D39: 9 | E39: 127 | F39: 88 | G39: 17 | H39: 0.1931818182 | I39: 39 | J39: 0.3070866142 | K39: 0.4409448819
A40: IME4200 | B40: MECÁNICA DE SOLIDOS | C40: 5 | D40: 3 | E40: 98 | F40: 78 | G40: 21 | H40: 0.2692307692 | I40: 20 | J40: 0.2040816327 | K40: 0.4183673469
A41: IME7070 | B41: TERMODINAMICA II | C41: 2 | D41: 2 | E41: 44 | F41: 28 | G41: 2 | H41: 0.07142857143 | I41: 16 | J41: 0.3636363636 | K41: 0.4090909091
A42: IME8310 | B42: INSTRUMENTACION Y CONTROL | C42: 7 | D42: 1 | E42: 5 | F42: 3 | G42: 0 | H42: 0 | I42: 2 | J42: 0.4 | K42: 0.4
A43: IME7095 | B43: MODELOS DE SISTEMAS DINÁMICOS | C43: 2 | D43: 2 | E43: 31 | F43: 24 | G43: 4 | H43: 0.1666666667 | I43: 7 | J43: 0.2258064516 | K43: 0.3548387097
A44: IBA4061 | B44: DINAMICA | C44: 3 | D44: 2 | E44: 51 | F44: 38 | G44: 5 | H44: 0.1315789474 | I44: 13 | J44: 0.2549019608 | K44: 0.3529411765
A45: IME4070 | B45: MECANICA DE FLUIDOS | C45: 2 | D45: 1 | E45: 33 | F45: 25 | G45: 3 | H45: 0.12 | I45: 8 | J45: 0.2424242424 | K45: 0.3333333333
A46: IME7061 | B46: TERMODINAMICA I | C46: 6 | D46: 2 | E46: 63 | F46: 46 | G46: 4 | H46: 0.08695652174 | I46: 17 | J46: 0.2698412698 | K46: 0.3333333333
A47: IME7085 | B47: DISEÑOS DE SISTEMAS MECANICOS | C47: 2 | D47: 1 | E47: 12 | F47: 11 | G47: 3 | H47: 0.2727272727 | I47: 1 | J47: 0.08333333333 | K47: 0.3333333333
A48: Total | C48: =SUM(C36:C47) -> 60 | D48: =SUM(D36:D47) -> 27 | E48: =SUM(E36:E47) -> 499 | F48: =SUM(F36:F47) -> 367 | G48: =SUM(G36:G47) -> 67 | H48: =G48/F48 -> 0.1825613079 | I48: =SUM(I36:I47) -> 132 | J48: =I48/E48 -> 0.2645290581 | K48: =(G48+I48)/E48 -> 0.3987975952

Sheet Graf_Mec
A1: OFICINA DE PLANEACIÓN - INFORMACIÓN Y ESTADÍSTICA
O2: Volver

Sheet Rep_LegE
A1: OFICINA DE PLANEACIÓN - INFORMACIÓN Y ESTADÍSTICA
A3: Perdidos, Retirados y Repitencia de Asignaturas del Dpto. Lenguas Extranjeras
A4: =Planeación!A1 -> 2023-2
A5: Codasg | B5: Asignaturas | C5: Total Cursos Abiertos | D5: Matrícula Inicial | E5: Matrícula Final | F5: Perdidos | G5: % Perdidos | H5: Retirados | I5: % Retirados | J5: % Repitencia
A6: IGL4890 | B6: EXIGENCIA INGLES I | C6: 7 | D6: 139 | E6: 128 | F6: 41 | G6: =IFERROR(F6/E6,"-") -> 0.3203125 | H6: 11 | I6: =H6/D6 -> 0.07913669065 | J6: =(F6+H6)/D6 -> 0.3741007194 | L6: Volver al Índice
A7: IGL1350 | B7: BUSINESS ENGLISH I | C7: 1 | D7: 18 | E7: 15 | F7: 3 | G7: 0.2 | H7: 3 | I7: 0.1666666667 | J7: 0.3333333333
A8: IGL4992 | B8: ENGLISH I | C8: 3 | D8: 22 | E8: 19 | F8: 4 | G8: 0.2105263158 | H8: 3 | I8: 0.1363636364 | J8: 0.3181818182
A9: ALE0027 | B9: DEUTSCHE SPRACHE UND KULT 8 | C9: 1 | D9: 17 | E9: 17 | F9: 5 | G9: 0.2941176471 | H9: 0 | I9: 0 | J9: 0.2941176471
A10: ALE1031 | B10: EXIGENCIA ALEMAN I | C10: 1 | D10: 14 | E10: 13 | F10: 3 | G10: 0.2307692308 | H10: 1 | I10: 0.07142857143 | J10: 0.2857142857 | L10: Ir a Tabla de Repitencia >=30%
A11: IGL4930 | B11: EXIGENCIA INGLES NIVELATORIO | C11: 1 | D11: 14 | E11: 12 | F11: 2 | G11: 0.1666666667 | H11: 2 | I11: 0.1428571429 | J11: 0.2857142857
A12: FRA0005 | B12: LANGUE FRANC ET CULT FRANC V | C12: 1 | D12: 14 | E12: 13 | F12: 3 | G12: 0.2307692308 | H12: 1 | I12: 0.07142857143 | J12: 0.2857142857
A13: ALE0018 | B13: DEUTSCHE SPRACHE UND KULT 5 | C13: 1 | D13: 11 | E13: 10 | F13: 2 | G13: 0.2 | H13: 1 | I13: 0.09090909091 | J13: 0.2727272727
A14: IGL0376 | B14: ENGLISH FOR NURSING 2 | C14: 2 | D14: 23 | E14: 20 | F14: 2 | G14: 0.1 | H14: 3 | I14: 0.1304347826 | J14: 0.2173913043
A15: IGL0011 | B15: BUSINESS ENGLISH I ADM | C15: 5 | D15: 79 | E15: 73 | F15: 11 | G15: 0.1506849315 | H15: 6 | I15: 0.07594936709 | J15: 0.2151898734
A16: IGL7750 | B16: BUSINESS ENGLISH V | C16: 4 | D16: 81 | E16: 74 | F16: 10 | G16: 0.1351351351 | H16: 7 | I16: 0.08641975309 | J16: 0.2098765432
A17: IGL4895 | B17: EXIGENCIA INGLES II | C17: 10 | D17: 201 | E17: 179 | F17: 20 | G17: 0.1117318436 | H17: 22 | I17: 0.1094527363 | J17: 0.2089552239
A18: IGL4990 | B18: EXIGENCIA INGLES NIVELATORIO | C18: 2 | D18: 5 | E18: 5 | F18: 1 | G18: 0.2 | H18: 0 | I18: 0 | J18: 0.2
A19: IGL1370 | B19: BUSINESS ENGLISH III | C19: 2 | D19: 27 | E19: 23 | F19: 1 | G19: 0.04347826087 | H19: 4 | I19: 0.1481481481 | J19: 0.1851851852
A20: ALE0022 | B20: DEUTSCHE SPRACHE UND KULT 1 | C20: 1 | D20: 11 | E20: 11 | F20: 2 | G20: 0.1818181818 | H20: 0 | I20: 0 | J20: 0.1818181818
A21: IGL0375 | B21: ENGLISH FOR NURSING 1 | C21: 1 | D21: 22 | E21: 22 | F21: 4 | G21: 0.1818181818 | H21: 0 | I21: 0 | J21: 0.1818181818
A22: IGL4915 | B22: EXIGENCIA INGLES VI | C22: 17 | D22: 377 | E22: 357 | F22: 47 | G22: 0.1316526611 | H22: 20 | I22: 0.05305039788 | J22: 0.1777188329
A23: IGL4900 | B23: EXIGENCIA INGLES III | C23: 12 | D23: 223 | E23: 207 | F23: 17 | G23: 0.08212560386 | H23: 16 | I23: 0.07174887892 | J23: 0.1479820628
A24: IGL5006 | B24: ENGLISH VIII | C24: 2 | D24: 35 | E24: 34 | F24: 4 | G24: 0.1176470588 | H24: 1 | I24: 0.02857142857 | J24: 0.1428571429
A25: IGL8520 | B25: EX. INGLES NIVELATORIO SALUD | C25: 2 | D25: 23 | E25: 23 | F25: 3 | G25: 0.1304347826 | H25: 0 | I25: 0 | J25: 0.1304347826
A26: ALE7061 | B26: EXIGENCIA ALEMAN V | C26: 2 | D26: 24 | E26: 24 | F26: 3 | G26: 0.125 | H26: 0 | I26: 0 | J26: 0.125
A27: IGL0012 | B27: BUSINESS ENGLISH II ADM | C27: 5 | D27: 75 | E27: 73 | F27: 7 | G27: 0.09589041096 | H27: 2 | I27: 0.02666666667 | J27: 0.12
A28: IGL4994 | B28: ENGLISH II | C28: 3 | D28: 34 | E28: 32 | F28: 2 | G28: 0.0625 | H28: 2 | I28: 0.05882352941 | J28: 0.1176470588
A29: IGL5004 | B29: ENGLISH VII | C29: 2 | D29: 27 | E29: 27 | F29: 3 | G29: 0.1111111111 | H29: 0 | I29: 0 | J29: 0.1111111111
A30: POR4080 | B30: EXIGENCIA PORTUGUES VII | C30: 1 | D30: 9 | E30: 9 | F30: 1 | G30: 0.1111111111 | H30: 0 | I30: 0 | J30: 0.1111111111
A31: POR4070 | B31: EXIGENCIA PORTUGUES V | C31: 2 | D31: 9 | E31: 8 | F31: 0 | G31: 0 | H31: 1 | I31: 0.1111111111 | J31: 0.1111111111
A32: IGL5002 | B32: ENGLISH VI | C32: 5 | D32: 75 | E32: 74 | F32: 7 | G32: 0.09459459459 | H32: 1 | I32: 0.01333333333 | J32: 0.1066666667
A33: IGL4905 | B33: EXIGENCIA INGLES IV | C33: 14 | D33: 303 | E33: 288 | F33: 15 | G33: 0.05208333333 | H33: 15 | I33: 0.0495049505 | J33: 0.09900990099
A34: IGL4925 | B34: EXIGENCIA INGLES VIII | C34: 17 | D34: 330 | E34: 310 | F34: 12 | G34: 0.03870967742 | H34: 20 | I34: 0.06060606061 | J34: 0.09696969697
A35: ALE4051 | B35: EXIGENCIA ALEMAN IV | C35: 2 | D35: 21 | E35: 20 | F35: 1 | G35: 0.05 | H35: 1 | I35: 0.04761904762 | J35: 0.09523809524
A36: FRA4010 | B36: EXIGENCIA DE FRANCES V | C36: 3 | D36: 53 | E36: 51 | F36: 3 | G36: 0.05882352941 | H36: 2 | I36: 0.03773584906 | J36: 0.09433962264
A37: TCH4000 | B37: FOREIGN LANG TEACHING I | C37: 2 | D37: 32 | E37: 32 | F37: 3 | G37: 0.09375 | H37: 0 | I37: 0 | J37: 0.09375
A38: IGL4998 | B38: ENGLISH IV | C38: 3 | D38: 54 | E38: 51 | F38: 2 | G38: =IFERROR(F38/E38,"-") -> 0.03921568627 | H38: 3 | I38: =H38/D38 -> 0.05555555556 | J38: =(F38+H38)/D38 -> 0.09259259259
A39: IGL5000 | B39: ENGLISH V | C39: 3 | D39: 65 | E39: 62 | F39: 3 | G39: 0.04838709677 | H39: 3 | I39: 0.04615384615 | J39: 0.09230769231
A40: CLT4003 | B40: CULT. ISSUES & INTER AFFAIRS | C40: 2 | D40: 22 | E40: 21 | F40: 1 | G40: 0.04761904762 | H40: 1 | I40: 0.04545454545 | J40: 0.09090909091
A41: IGL4910 | B41: EXIGENCIA INGLES V | C41: 15 | D41: 322 | E41: 305 | F41: 12 | G41: 0.0393442623 | H41: 17 | I41: 0.05279503106 | J41: 0.0900621118
A42: ALE4031 | B42: EXIGENCIA ALEMAN II | C42: 3 | D42: 34 | E42: 33 | F42: 2 | G42: 0.06060606061 | H42: 1 | I42: 0.02941176471 | J42: 0.08823529412
A43: FRA1030 | B43: EXIGENCIA DE FRANCES III | C43: 3 | D43: 70 | E43: 66 | F43: 2 | G43: 0.0303030303 | H43: 4 | I43: 0.05714285714 | J43: 0.08571428571
A44: IGL4920 | B44: EXIGENCIA INGLES VII | C44: 23 | D44: 473 | E44: 453 | F44: 20 | G44: 0.04415011038 | H44: 20 | I44: 0.0422832981 | J44: 0.08456659619
A45: IGL4940 | B45: INGLES CIENCIAS SALUD III | C45: 3 | D45: 48 | E45: 48 | F45: 4 | G45: 0.08333333333 | H45: 0 | I45: 0 | J45: 0.08333333333
A46: FRA1010 | B46: EXIGENCIA DE FRANCES I | C46: 5 | D46: 72 | E46: 67 | F46: 1 | G46: 0.01492537313 | H46: 5 | I46: 0.06944444444 | J46: 0.08333333333
A47: FRA1020 | B47: EXIGENCIA DE FRANCES II | C47: 4 | D47: 73 | E47: 71 | F47: 4 | G47: 0.05633802817 | H47: 2 | I47: 0.02739726027 | J47: 0.08219178082
A48: IGL4973 | B48: INTER RELATIONS ENGLISH VI | C48: 2 | D48: 25 | E48: 23 | F48: 0 | G48: 0 | H48: 2 | I48: 0.08 | J48: 0.08
A49: IGL8530 | B49: EX.INGLES VIII-SOCIAL AND SUST | C49: 11 | D49: 216 | E49: 210 | F49: 11 | G49: 0.05238095238 | H49: 6 | I49: 0.02777777778 | J49: 0.0787037037
A50: FRA4020 | B50: EXIGENCIA DE FRANCES VI | C50: 4 | D50: 79 | E50: 77 | F50: 4 | G50: 0.05194805195 | H50: 2 | I50: 0.0253164557 | J50: 0.07594936709
A51: IGL4100 | B51: INGLES CIENCIAS SALUD IV | C51: 3 | D51: 67 | E51: 65 | F51: 3 | G51: 0.04615384615 | H51: 2 | I51: 0.02985074627 | J51: 0.07462686567
A52: IGL4996 | B52: ENGLISH III | C52: 3 | D52: 41 | E52: 39 | F52: 1 | G52: 0.02564102564 | H52: 2 | I52: 0.0487804878 | J52: 0.07317073171
A53: FRA0003 | B53: LANGUE FRANC ET CULT FRANC III | C53: 1 | D53: 14 | E53: 13 | F53: 0 | G53: 0 | H53: 1 | I53: 0.07142857143 | J53: 0.07142857143
A54: ALE4041 | B54: EXIGENCIA ALEMAN III | C54: 2 | D54: 14 | E54: 14 | F54: 1 | G54: 0.07142857143 | H54: 0 | I54: 0 | J54: 0.07142857143
A55: ALE7071 | B55: EXIGENCIA ALEMAN VI | C55: 1 | D55: 14 | E55: 14 | F55: 1 | G55: 0.07142857143 | H55: 0 | I55: 0 | J55: 0.07142857143
A56: CLT5005 | B56: INTRO LENGUAS INDIGENA/CRIOLLA | C56: 1 | D56: 15 | E56: 14 | F56: 0 | G56: 0 | H56: 1 | I56: 0.06666666667 | J56: 0.06666666667
A57: ALE7081 | B57: EXIGENCIA ALEMAN VII | C57: 2 | D57: 16 | E57: 16 | F57: 1 | G57: 0.0625 | H57: 0 | I57: 0 | J57: 0.0625
A58: FRA0004 | B58: LANGUE FRANC ET CULT FRANC IV | C58: 2 | D58: 33 | E58: 32 | F58: 1 | G58: 0.03125 | H58: 1 | I58: 0.0303030303 | J58: 0.06060606061
A59: TCH4001 | B59: FOREIGN LANG TEACHING II | C59: 2 | D59: 51 | E59: 50 | F59: 2 | G59: 0.04 | H59: 1 | I59: 0.01960784314 | J59: 0.05882352941
A60: IGL1380 | B60: BUSINESS ENGLISH IV | C60: 2 | D60: 35 | E60: 33 | F60: 0 | G60: 0 | H60: 2 | I60: 0.05714285714 | J60: 0.05714285714
A61: IGL5014 | B61: TOPICS IN LITERATURE | C61: 2 | D61: 36 | E61: 34 | F61: 0 | G61: 0 | H61: 2 | I61: 0.05555555556 | J61: 0.05555555556
A62: ITA7080 | B62: LENGUA Y CULTURA ITALIANA A1.1 | C62: 2 | D62: 40 | E62: 38 | F62: 0 | G62: 0 | H62: 2 | I62: 0.05 | J62: 0.05
A63: FRA7011 | B63: EXIGENCIA DE FRANCES VII | C63: 2 | D63: 41 | E63: 39 | F63: 0 | G63: 0 | H63: 2 | I63: 0.0487804878 | J63: 0.0487804878
A64: CLT4001 | B64: CULTURE & PEACEBUILDING | C64: 2 | D64: 42 | E64: 40 | F64: 0 | G64: 0 | H64: 2 | I64: 0.04761904762 | J64: 0.04761904762
A65: IGL4941 | B65: INGLES CIENCIAS SALUD I | C65: 2 | D65: 45 | E65: 43 | F65: 0 | G65: 0 | H65: 2 | I65: 0.04444444444 | J65: 0.04444444444
A66: FRA0002 | B66: LANGUE FRANC ET CULT FRANC II | C66: 1 | D66: 23 | E66: 22 | F66: 0 | G66: 0 | H66: 1 | I66: 0.04347826087 | J66: 0.04347826087
A67: POR9055 | B67: PORTUGUES 1 | C67: 1 | D67: 23 | E67: 22 | F67: 0 | G67: 0 | H67: 1 | I67: 0.04347826087 | J67: 0.04347826087
A68: FRA1040 | B68: EXIGENCIA DE FRANCES IV | C68: 5 | D68: 94 | E68: 90 | F68: 0 | G68: 0 | H68: 4 | I68: 0.04255319149 | J68: 0.04255319149
A69: IGL7780 | B69: BUSINESS ENGLISH VIII | C69: 4 | D69: 77 | E69: 74 | F69: 0 | G69: 0 | H69: 3 | I69: 0.03896103896 | J69: 0.03896103896
A70: IGL0377 | B70: ENGLISH FOR NURSING 3 | C70: 2 | D70: 26 | E70: 25 | F70: 0 | G70: =IFERROR(F70/E70,"-") -> 0 | H70: 1 | I70: =H70/D70 -> 0.03846153846 | J70: =(F70+H70)/D70 -> 0.03846153846
A71: IGL7090 | B71: INGLES CIENCIAS SALUD V | C71: 3 | D71: 53 | E71: 51 | F71: 0 | G71: 0 | H71: 2 | I71: 0.03773584906 | J71: 0.03773584906
A72: IGL4975 | B72: INTER RELATIONS ENGLISH V | C72: 2 | D72: 31 | E72: 31 | F72: 1 | G72: 0.03225806452 | H72: 0 | I72: 0 | J72: 0.03225806452
A73: POR4050 | B73: EXIGENCIA PORTUGUES I | C73: 2 | D73: 33 | E73: 33 | F73: 1 | G73: 0.0303030303 | H73: 0 | I73: 0 | J73: 0.0303030303
A74: IGL5011 | B74: ENGLISH LANGUAGE IV | C74: 2 | D74: 34 | E74: 34 | F74: 1 | G74: 0.02941176471 | H74: 0 | I74: 0 | J74: 0.02941176471
A75: IGL7770 | B75: BUSINESS ENGLISH VII | C75: 4 | D75: 78 | E75: 76 | F75: 0 | G75: 0 | H75: 2 | I75: 0.02564102564 | J75: 0.02564102564
A76: IGL4979 | B76: INTER RELATIONS ENGLISH VIII | C76: 2 | D76: 44 | E76: 43 | F76: 0 | G76: 0 | H76: 1 | I76: 0.02272727273 | J76: 0.02272727273
A77: IGL4942 | B77: INGLES CIENCIAS SALUD II | C77: 2 | D77: 45 | E77: 44 | F77: 0 | G77: 0 | H77: 1 | I77: 0.02222222222 | J77: 0.02222222222
A78: IGL4969 | B78: INTER RELATIONS ENGLISH III | C78: 1 | D78: 8 | E78: 8 | F78: 0 | G78: 0 | H78: 0 | I78: 0 | J78: 0
A79: IGL4971 | B79: INTER RELATIONS ENGLISH IV | C79: 1 | D79: 5 | E79: 5 | F79: 0 | G79: 0 | H79: 0 | I79: 0 | J79: 0
A80: POR4065 | B80: EXIGENCIA PORTUGUES IV | C80: 1 | D80: 14 | E80: 14 | F80: 0 | G80: 0 | H80: 0 | I80: 0 | J80: 0
A81: POR4075 | B81: EXIGENCIA PORTUGUES VI | C81: 1 | D81: 11 | E81: 11 | F81: 0 | G81: 0 | H81: 0 | I81: 0 | J81: 0
A82: FRA0001 | B82: LANGUE FRANC ET CULT FRANC I | C82: 1 | D82: 16 | E82: 16 | F82: 0 | G82: 0 | H82: 0 | I82: 0 | J82: 0
A83: IGL7760 | B83: BUSINESS ENGLISH VI | C83: 4 | D83: 65 | E83: 65 | F83: 0 | G83: 0 | H83: 0 | I83: 0 | J83: 0
A84: POR4060 | B84: EXIGENCIA PORTUGUES III | C84: 1 | D84: 11 | E84: 11 | F84: 0 | G84: 0 | H84: 0 | I84: 0 | J84: 0
A85: POR4085 | B85: EXIGENCIA PORTUGUES VIII | C85: 1 | D85: 16 | E85: 16 | F85: 0 | G85: 0 | H85: 0 | I85: 0 | J85: 0
A86: CLT4002 | B86: DES. PROYECTOS CULT. Y SOC. | C86: 2 | D86: 50 | E86: 50 | F86: 0 | G86: 0 | H86: 0 | I86: 0 | J86: 0
A87: IGL1360 | B87: BUSINESS ENGLISH II | C87: 1 | D87: 18 | E87: 18 | F87: 0 | G87: 0 | H87: 0 | I87: 0 | J87: 0
A88: ALE7091 | B88: EXIGENCIA ALEMAN VIII | C88: 2 | D88: 35 | E88: 35 | F88: 0 | G88: 0 | H88: 0 | I88: 0 | J88: 0
A89: CLT4000 | B89: LENGUAJE CULT Y GLOBALIZACION | C89: 1 | D89: 26 | E89: 26 | F89: 0 | G89: 0 | H89: 0 | I89: 0 | J89: 0
A90: IGL5012 | B90: ENGLISH LANGUAGE V | C90: 2 | D90: 31 | E90: 31 | F90: 0 | G90: 0 | H90: 0 | I90: 0 | J90: 0
A91: ALE0023 | B91: DEUTSCHE SPRACHE UND KULT 2 | C91: 1 | D91: 6 | E91: 6 | F91: 0 | G91: 0 | H91: 0 | I91: 0 | J91: 0
A92: ALE0024 | B92: DEUTSCHE SPRACHE UND KULT 3 | C92: 1 | D92: 6 | E92: 6 | F92: 0 | G92: 0 | H92: 0 | I92: 0 | J92: 0
A93: IGL4967 | B93: INTER RELATIONS ENGLISH II | C93: 1 | D93: 2 | E93: 2 | F93: 0 | G93: 0 | H93: 0 | I93: 0 | J93: 0
A94: FRA7021 | B94: EXIGENCIA DE FRANCES VIII | C94: 5 | D94: 85 | E94: 85 | F94: 0 | G94: 0 | H94: 0 | I94: 0 | J94: 0
A95: IGL5010 | B95: ENGLISH LANGUAGE III | C95: 1 | D95: 17 | E95: 17 | F95: 0 | G95: 0 | H95: 0 | I95: 0 | J95: 0
A96: ALE0017 | B96: DEUTSCHE SPRACHE UND KULT 4 | C96: 1 | D96: 9 | E96: 9 | F96: 0 | G96: 0 | H96: 0 | I96: 0 | J96: 0
A97: IGL5009 | B97: ENGLISH LANGUAGE II | C97: 1 | D97: 11 | E97: 11 | F97: 0 | G97: 0 | H97: 0 | I97: 0 | J97: 0
A98: IGL4977 | B98: INTER RELATIONS ENGLISH VII | C98: 1 | D98: 18 | E98: 18 | F98: 0 | G98: 0 | H98: 0 | I98: 0 | J98: 0
A99: POR4055 | B99: EXIGENCIA PORTUGUES II | C99: 1 | D99: 15 | E99: 15 | F99: 0 | G99: 0 | H99: 0 | I99: 0 | J99: 0
A100: IGL5008 | B100: ENGLISH LANGUAGE I | C100: 1 | D100: 6 | E100: 6 | F100: 0 | G100: 0 | H100: 0 | I100: 0 | J100: 0
A101: TCH4002 | B101: FOREIGN LANG TEACHING III | C101: 2 | D101: 35 | E101: 35 | F101: 0 | G101: 0 | H101: 0 | I101: 0 | J101: 0
A102: IGL0251 | B102: INGLES NIVELATORIO ENFERMERIA | C102: 1 | D102: 4 | E102: 4 | F102: 0 | G102: =IFERROR(F102/E102,"-") -> 0 | H102: 0 | I102: =H102/D102 -> 0 | J102: =(F102+H102)/D102 -> 0
A103: ALE0019 | B103: DEUTSCHE SPRACHE UND KULT 6 | C103: 1 | D103: 12 | E103: 12 | F103: 0 | G103: 0 | H103: 0 | I103: 0 | J103: 0
A104: IGL5015 | B104: WRITING STUDIES SEMINAR | C104: 1 | D104: 23 | E104: 23 | F104: 0 | G104: 0 | H104: 0 | I104: 0 | J104: 0
A105: FRA0006 | B105: LANGUE FRANC ET CULT FRANC VI | C105: 2 | D105: 35 | E105: 35 | F105: 0 | G105: 0 | H105: 0 | I105: 0 | J105: 0
A106: FRA0007 | B106: LANGUE FRANC ET CULT FRANC VII | C106: 1 | D106: 16 | E106: 16 | F106: 0 | G106: 0 | H106: 0 | I106: 0 | J106: 0
A107: CLT5001 | B107: CINE LATINOAMERICANO | C107: 1 | D107: 28 | E107: 28 | F107: 0 | G107: 0 | H107: 0 | I107: 0 | J107: 0
A108: ALE0026 | B108: DEUTSCHE SPRACHE UND KULT 7 | C108: 1 | D108: 4 | E108: 4 | F108: 0 | G108: 0 | H108: 0 | I108: 0 | J108: 0
A109: IGL4965 | B109: INTER RELATIONS ENGLISH I | C109: 3 | D109: 5 | E109: 5 | F109: 0 | G109: 0 | H109: 0 | I109: 0 | J109: 0
A110: FRA0008 | B110: LANGUE FRANC ET CULT FRAN VIII | C110: 2 | D110: 29 | E110: 29 | F110: 0 | G110: 0 | H110: 0 | I110: 0 | J110: 0
A111: CLT5020 | B111: LENGUA Y CULTURA WAYUU | C111: 1 | D111: 5 | E111: 5 | F111: 0 | G111: 0 | H111: 0 | I111: 0 | J111: 0
A112: Total | C112: =SUM(C6:C111) -> 323 | D112: =SUM(D6:D111) -> 5643 | E112: =SUM(E6:E111) -> 5396 | F112: =SUM(F6:F111) -> 321 | G112: =F112/E112 -> 0.05948851001 | H112: =SUM(H6:H111) -> 247 | I112: =H112/D112 -> 0.04377104377 | J112: =(F112+H112)/D112 -> 0.1006556796
A114: Repitencia de Asignaturas del Dpto. Lenguas Extranjeras, Mayor o Igual al 30%
A115: =Planeación!A1 -> 2023-2 | L115: Ir a Inicio | M115: Ir a Gráfico
A116: Codasg | B116: Asignaturas | C116: Total Cursos Abiertos | D116: Número de Cursos con Repitencia >=30% | E116: Matricula Inicial | F116: Matrícula Final | G116: Perdidos | H116: % Perdidos | I116: Retirados | J116: % Retirados | K116: % Repitencia
A117: FRA1010 | B117: EXIGENCIA DE FRANCES I | C117: =VLOOKUP(A117,$A$6:$C$111,3,FALSE) -> 5 | D117: 1 | E117: 1 | F117: 0 | G117: 0 | H117: =IFERROR(G117/F117,"-") -> - | I117: 1 | J117: =I117/E117 -> 1 | K117: =(G117+I117)/E117 -> 1
A118: IGL4925 | B118: EXIGENCIA INGLES VIII | C118: 17 | D118: 1 | E118: 7 | F118: 4 | G118: 1 | H118: 0.25 | I118: 3 | J118: 0.4285714286 | K118: 0.5714285714
A119: IGL4992 | B119: ENGLISH I | C119: 3 | D119: 2 | E119: 6 | F119: 5 | G119: 2 | H119: 0.4 | I119: 1 | J119: 0.1666666667 | K119: 0.5
A120: IGL4990 | B120: EXIGENCIA INGLES NIVELATORIO | C120: 2 | D120: 1 | E120: 2 | F120: 2 | G120: 1 | H120: 0.5 | I120: 0 | J120: 0 | K120: 0.5
A121: IGL4890 | B121: EXIGENCIA INGLES I | C121: 7 | D121: 4 | E121: 87 | F121: 78 | G121: 34 | H121: 0.4358974359 | I121: 9 | J121: 0.1034482759 | K121: 0.4942528736
A122: IGL0011 | B122: BUSINESS ENGLISH I ADM | C122: 5 | D122: 1 | E122: 23 | F122: 19 | G122: 7 | H122: 0.3684210526 | I122: 4 | J122: 0.1739130435 | K122: 0.4782608696
A123: IGL7750 | B123: BUSINESS ENGLISH V | C123: 4 | D123: 1 | E123: 22 | F123: 16 | G123: 4 | H123: 0.25 | I123: 6 | J123: 0.2727272727 | K123: 0.4545454545
A124: IGL4998 | B124: ENGLISH IV | C124: 3 | D124: 1 | E124: 10 | F124: 8 | G124: 2 | H124: 0.25 | I124: 2 | J124: 0.2 | K124: 0.4
A125: IGL1370 | B125: BUSINESS ENGLISH III | C125: 2 | D125: 1 | E125: 8 | F125: 6 | G125: 1 | H125: 0.1666666667 | I125: 2 | J125: 0.25 | K125: 0.375
A126: IGL4915 | B126: EXIGENCIA INGLES VI | C126: 17 | D126: 3 | E126: 69 | F126: 60 | G126: 15 | H126: 0.25 | I126: 9 | J126: 0.1304347826 | K126: 0.347826087
A127: IGL4895 | B127: EXIGENCIA INGLES II | C127: 10 | D127: 2 | E127: 41 | F127: 34 | G127: 7 | H127: 0.2058823529 | I127: 7 | J127: 0.1707317073 | K127: 0.3414634146
A128: IGL1350 | B128: BUSINESS ENGLISH I | C128: 1 | D128: 1 | E128: 18 | F128: 15 | G128: 3 | H128: 0.2 | I128: 3 | J128: 0.1666666667 | K128: 0.3333333333
A129: IGL4905 | B129: EXIGENCIA INGLES IV | C129: 14 | D129: 1 | E129: 22 | F129: 16 | G129: 1 | H129: 0.0625 | I129: 6 | J129: 0.2727272727 | K129: 0.3181818182
A130: IGL4900 | B130: EXIGENCIA INGLES III | C130: 12 | D130: 1 | E130: 19 | F130: 15 | G130: 2 | H130: 0.1333333333 | I130: 4 | J130: 0.2105263158 | K130: 0.3157894737
A131: IGL0012 | B131: BUSINESS ENGLISH II ADM | C131: 5 | D131: 1 | E131: 16 | F131: 15 | G131: 4 | H131: 0.2666666667 | I131: 1 | J131: 0.0625 | K131: 0.3125
A132: IGL8530 | B132: EX.INGLES VIII-SOCIAL AND SUST | C132: 11 | D132: 1 | E132: 13 | F132: 11 | G132: 2 | H132: 0.1818181818 | I132: 2 | J132: 0.1538461538 | K132: 0.3076923077
A133: Total | C133: =SUM(C117:C132) -> 118 | D133: =SUM(D117:D132) -> 23 | E133: =SUM(E117:E132) -> 364 | F133: =SUM(F117:F132) -> 304 | G133: =SUM(G117:G132) -> 86 | H133: =G133/F133 -> 0.2828947368 | I133: =SUM(I117:I132) -> 60 | J133: =I133/E133 -> 0.1648351648 | K133: =(G133+I133)/E133 -> 0.4010989011

Sheet Graf_LegE
A1: OFICINA DE PLANEACIÓN - INFORMACIÓN Y ESTADÍSTICA
O2: Volver

Sheet Rep_Mat
A1: OFICINA DE PLANEACIÓN - INFORMACIÓN Y ESTADÍSTICA
A3: Perdidos, Retirados y Repitencia de Asignaturas del Dpto. Matemáticas y Estadística
A4: =Planeación!A1 -> 2023-2
A5: Codasg | B5: Asignaturas | C5: Total Cursos Abiertos | D5: Matrícula Inicial | E5: Matrícula Final | F5: Perdidos | G5: % Perdidos | H5: Retirados | I5: % Retirados | J5: % Repitencia
A6: MAT4160 | B6: ANALISIS MATEMATICO 1 | C6: 1 | D6: 27 | E6: 18 | F6: 3 | G6: =IFERROR(F6/E6,"-") -> 0.1666666667 | H6: 9 | I6: =H6/D6 -> 0.3333333333 | J6: =(F6+H6)/D6 -> 0.4444444444 | L6: Volver al Índice
A7: EST4071 | B7: ANALISIS ESTADISTICO | C7: 1 | D7: 16 | E7: 10 | F7: 0 | G7: 0 | H7: 6 | I7: 0.375 | J7: 0.375
A8: EST1062 | B8: ESTADISTICA MATEMATICAS | C8: 1 | D8: 11 | E8: 9 | F8: 2 | G8: 0.2222222222 | H8: 2 | I8: 0.1818181818 | J8: 0.3636363636
A9: MAT4260 | B9: CALCULO III (ANEC) | C9: 5 | D9: 189 | E9: 146 | F9: 20 | G9: 0.1369863014 | H9: 43 | I9: 0.2275132275 | J9: 0.3333333333
A10: MAT4051 | B10: ANALISIS NUMERICO | C10: 1 | D10: 9 | E10: 7 | F10: 1 | G10: 0.1428571429 | H10: 2 | I10: 0.2222222222 | J10: 0.3333333333
A11: MAT4264 | B11: TOPOLOGIA | C11: 1 | D11: 12 | E11: 9 | F11: 1 | G11: 0.1111111111 | H11: 3 | I11: 0.25 | J11: 0.3333333333 | L11: Ir a Tabla de Repitencia >=30%
A12: MAT1101 | B12: CALCULO I | C12: 8 | D12: 292 | E12: 236 | F12: 41 | G12: 0.1737288136 | H12: 56 | I12: 0.1917808219 | J12: 0.3321917808
A13: MAT4258 | B13: CALCULO II (ANEC) | C13: 6 | D13: 216 | E13: 177 | F13: 29 | G13: 0.1638418079 | H13: 39 | I13: 0.1805555556 | J13: 0.3148148148
A14: MAT8630 | B14: GEOMETRÍA 2D | C14: 2 | D14: 64 | E14: 50 | F14: 6 | G14: 0.12 | H14: 14 | I14: 0.21875 | J14: 0.3125
A15: EST1031 | B15: ESTADISTICA II (AD) | C15: 4 | D15: 134 | E15: 102 | F15: 6 | G15: 0.05882352941 | H15: 32 | I15: 0.2388059701 | J15: 0.2835820896
A16: MAT1111 | B16: CALCULO II | C16: 11 | D16: 420 | E16: 335 | F16: 34 | G16: 0.1014925373 | H16: 85 | I16: 0.2023809524 | J16: 0.2833333333
A17: MAT8570 | B17: ALGEBRA LINEAL II | C17: 1 | D17: 25 | E17: 19 | F17: 1 | G17: 0.05263157895 | H17: 6 | I17: 0.24 | J17: 0.28
A18: MAT4011 | B18: ECUACIONES DIFERENCIALES | C18: 8 | D18: 297 | E18: 248 | F18: 34 | G18: 0.1370967742 | H18: 49 | I18: 0.164983165 | J18: 0.2794612795
A19: MAT1100 | B19: CALCULO I (ANEC) | C19: 6 | D19: 215 | E19: 188 | F19: 31 | G19: 0.164893617 | H19: 27 | I19: 0.1255813953 | J19: 0.2697674419
A20: MAT4013 | B20: ECUACIONES DIFERENCIALES (MAT) | C20: 1 | D20: 29 | E20: 23 | F20: 1 | G20: 0.04347826087 | H20: 6 | I20: 0.2068965517 | J20: 0.2413793103
A21: EST1050 | B21: ESTADISTICA II (ING) | C21: 1 | D21: 25 | E21: 22 | F21: 3 | G21: 0.1363636364 | H21: 3 | I21: 0.12 | J21: 0.24
A22: MAT8550 | B22: VARIABLE COMPLEJA | C22: 1 | D22: 9 | E22: 8 | F22: 1 | G22: 0.125 | H22: 1 | I22: 0.1111111111 | J22: 0.2222222222
A23: MAT1031 | B23: ALGEBRA LINEAL | C23: 12 | D23: 471 | E23: 410 | F23: 43 | G23: 0.1048780488 | H23: 61 | I23: 0.1295116773 | J23: 0.2208067941
A24: MAT4140 | B24: TEORIA DE GRUPOS | C24: 1 | D24: 11 | E24: 10 | F24: 1 | G24: 0.1 | H24: 1 | I24: 0.09090909091 | J24: 0.1818181818
A25: MAT8540 | B25: TEORIA DE NUMEROS | C25: 1 | D25: 11 | E25: 11 | F25: 2 | G25: 0.1818181818 | H25: 0 | I25: 0 | J25: 0.1818181818
A26: MAT1121 | B26: CALCULO 3 | C26: 7 | D26: 250 | E26: 219 | F26: 14 | G26: 0.06392694064 | H26: 31 | I26: 0.124 | J26: 0.18
A27: MAT4215 | B27: TEORIA DE CODIGOS | C27: 1 | D27: 39 | E27: 33 | F27: 1 | G27: 0.0303030303 | H27: 6 | I27: 0.1538461538 | J27: 0.1794871795
A28: MAT4190 | B28: MATEMATICAS FUNDAMENTALES | C28: 1 | D28: 39 | E28: 34 | F28: 2 | G28: 0.05882352941 | H28: 5 | I28: 0.1282051282 | J28: 0.1794871795
A29: MAT1061 | B29: OPTIMIZACION MATEMATICA | C29: 1 | D29: 6 | E29: 5 | F29: 0 | G29: 0 | H29: 1 | I29: 0.1666666667 | J29: 0.1666666667
A30: MAT1011 | B30: ALGEBRA Y TRIGONOMETRIA | C30: 2 | D30: 62 | E30: 55 | F30: 3 | G30: 0.05454545455 | H30: 7 | I30: 0.1129032258 | J30: 0.1612903226
A31: MAT8635 | B31: GEOMETRIA 3D | C31: 3 | D31: 81 | E31: 72 | F31: 3 | G31: 0.04166666667 | H31: 9 | I31: 0.1111111111 | J31: 0.1481481481
A32: EST1022 | B32: ESTADISTICA I - AD | C32: 6 | D32: 236 | E32: 224 | F32: 21 | G32: 0.09375 | H32: 12 | I32: 0.05084745763 | J32: 0.1398305085
A33: MAT4021 | B33: MATEMATICAS DISCRETAS | C33: 4 | D33: 142 | E33: 129 | F33: 6 | G33: 0.04651162791 | H33: 13 | I33: 0.09154929577 | J33: 0.1338028169
A34: EST1063 | B34: METODOS ESTADISTICOS | C34: 1 | D34: 15 | E34: 13 | F34: 0 | G34: 0 | H34: 2 | I34: 0.1333333333 | J34: 0.1333333333
A35: INV4571 | B35: PROYECTO DE GRADO | C35: 1 | D35: 16 | E35: 16 | F35: 2 | G35: 0.125 | H35: 0 | I35: 0 | J35: 0.125
A36: EST1070 | B36: ESTADISTICA INFERENCIAL | C36: 4 | D36: 132 | E36: 123 | F36: 5 | G36: 0.0406504065 | H36: 9 | I36: 0.06818181818 | J36: 0.1060606061
A37: MAT0040 | B37: FUNDAMENTOS DE ESTADISTICA | C37: 9 | D37: 332 | E37: 319 | F37: 22 | G37: 0.06896551724 | H37: 13 | I37: 0.03915662651 | J37: 0.1054216867
A38: MAT0020 | B38: MATEMATICAS BASICAS | C38: 2 | D38: 80 | E38: 74 | F38: 0 | G38: 0 | H38: 6 | I38: 0.075 | J38: 0.075
A39: MAT4263 | B39: TEORIA DE LA PROBABILIDAD | C39: 1 | D39: 40 | E39: 38 | F39: 0 | G39: 0 | H39: 2 | I39: 0.05 | J39: 0.05
A40: MAT1190 | B40: MATEMA.Y EL MUNDO DE LA VIDA | C40: 1 | D40: 38 | E40: 37 | F40: 0 | G40: 0 | H40: 1 | I40: 0.02631578947 | J40: 0.02631578947
A41: EST4540 | B41: ESTADISTICA CPG | C41: 1 | D41: 20 | E41: 20 | F41: 0 | G41: 0 | H41: 0 | I41: 0 | J41: 0
A42: Total | C42: =SUM(C6:C41) -> 118 | D42: =SUM(D6:D41) -> 4011 | E42: =SUM(E6:E41) -> 3449 | F42: =SUM(F6:F41) -> 339 | G42: =F42/E42 -> 0.09828935923 | H42: =SUM(H6:H41) -> 562 | I42: =H42/D42 -> 0.1401146846 | J42: =(F42+H42)/D42 -> 0.2246322613
A44: Repitencia de Asignaturas del Dpto. Matemáticas y Estadística, Mayor o Igual al 30%
A45: =Planeación!A1 -> 2023-2 | L45: Ir a Inicio | M45: Ir a Gráfico
A46: Codasg | B46: Asignaturas | C46: Total Cursos Abiertos | D46: Número de Cursos con Repitencia >=30% | E46: Matricula Inicial | F46: Matrícula Final | G46: Perdidos | H46: % Perdidos | I46: Retirados | J46: % Retirados | K46: % Repitencia
A47: MAT4160 | B47: ANALISIS MATEMATICO 1 | C47: =VLOOKUP(A47,$A$6:$C$41,3,FALSE) -> 1 | D47: 1 | E47: 27 | F47: 18 | G47: 3 | H47: =IFERROR(G47/F47,"-") -> 0.1666666667 | I47: 9 | J47: =I47/E47 -> 0.3333333333 | K47: =(G47+I47)/E47 -> 0.4444444444
A48: MAT1101 | B48: CALCULO I | C48: 8 | D48: 5 | E48: 178 | F48: 137 | G48: 36 | H48: 0.2627737226 | I48: 41 | J48: 0.2303370787 | K48: 0.4325842697
A49: MAT1100 | B49: CALCULO I (ANEC) | C49: 6 | D49: 2 | E49: 71 | F49: 55 | G49: 14 | H49: 0.2545454545 | I49: 16 | J49: 0.2253521127 | K49: 0.4225352113
A50: MAT4258 | B50: CALCULO II (ANEC) | C50: 6 | D50: 3 | E50: 106 | F50: 84 | G50: 22 | H50: 0.2619047619 | I50: 22 | J50: 0.2075471698 | K50: 0.4150943396
A51: MAT1111 | B51: CALCULO II | C51: 11 | D51: 5 | E51: 189 | F51: 133 | G51: 20 | H51: 0.1503759398 | I51: 56 | J51: 0.2962962963 | K51: 0.4021164021
A52: MAT4011 | B52: ECUACIONES DIFERENCIALES | C52: 8 | D52: 3 | E52: 102 | F52: 81 | G52: 18 | H52: 0.2222222222 | I52: 21 | J52: 0.2058823529 | K52: 0.3823529412
A53: EST4071 | B53: ANALISIS ESTADISTICO | C53: 1 | D53: 1 | E53: 16 | F53: 10 | G53: 0 | H53: 0 | I53: 6 | J53: 0.375 | K53: 0.375
A54: MAT8630 | B54: GEOMETRÍA 2D | C54: 2 | D54: 1 | E54: 40 | F54: 28 | G54: 3 | H54: 0.1071428571 | I54: 12 | J54: 0.3 | K54: 0.375
A55: MAT4260 | B55: CALCULO III (ANEC) | C55: 5 | D55: 4 | E55: 150 | F55: 112 | G55: 18 | H55: 0.1607142857 | I55: 38 | J55: 0.2533333333 | K55: 0.3733333333
A56: EST1031 | B56: ESTADISTICA II (AD) | C56: 4 | D56: 2 | E56: 55 | F56: 39 | G56: 4 | H56: 0.1025641026 | I56: 16 | J56: 0.2909090909 | K56: 0.3636363636
A57: EST1062 | B57: ESTADISTICA MATEMATICAS | C57: 1 | D57: 1 | E57: 11 | F57: 9 | G57: 2 | H57: 0.2222222222 | I57: 2 | J57: 0.1818181818 | K57: 0.3636363636
A58: MAT1031 | B58: ALGEBRA LINEAL | C58: 12 | D58: 2 | E58: 80 | F58: 68 | G58: 15 | H58: 0.2205882353 | I58: 12 | J58: 0.15 | K58: 0.3375
A59: MAT4051 | B59: ANALISIS NUMERICO | C59: 1 | D59: 1 | E59: 9 | F59: 7 | G59: 1 | H59: 0.1428571429 | I59: 2 | J59: 0.2222222222 | K59: 0.3333333333
A60: MAT4264 | B60: TOPOLOGIA | C60: 1 | D60: 1 | E60: 12 | F60: 9 | G60: 1 | H60: 0.1111111111 | I60: 3 | J60: 0.25 | K60: 0.3333333333
A61: Total | C61: =SUM(C47:C60) -> 67 | D61: =SUM(D47:D60) -> 32 | E61: 1046 | F61: 790 | G61: 157 | H61: =G61/F61 -> 0.1987341772 | I61: =SUM(I47:I60) -> 256 | J61: 0.2447418738 | K61: 0.3948374761

Sheet Graf_Mat
A1: OFICINA DE PLANEACIÓN - INFORMACIÓN Y ESTADÍSTICA
O2: Volver

Sheet Rep_Med
A1: OFICINA DE PLANEACIÓN - INFORMACIÓN Y ESTADÍSTICA
A3: Perdidos, Retirados y Repitencia de Asignaturas del Dpto. Medicina
A4: =Planeación!A1 -> 2023-2
A5: Codasg | B5: Asignaturas | C5: Total Cursos Abiertos | D5: Matrícula Inicial | E5: Matrícula Final | F5: Perdidos | G5: % Perdidos | H5: Retirados | I5: % Retirados | J5: % Repitencia
A6: CBM4030 | B6: FUNDAMENTO CIENCIAS BASICAS MD | C6: 8 | D6: 187 | E6: 186 | F6: 33 | G6: =IFERROR(F6/E6,"-") -> 0.1774193548 | H6: 1 | I6: =H6/D6 -> 0.005347593583 | J6: =(F6+H6)/D6 -> 0.1818181818 | L6: Volver al Índice
A7: CBM6071 | B7: FUND BIOLOG DEL CUIDADO II | C7: 2 | D7: 32 | E7: 32 | F7: 5 | G7: 0.15625 | H7: 0 | I7: 0 | J7: 0.15625
A8: CLI0009 | B8: INTERNADO I | C8: 4 | D8: 130 | E8: 113 | F8: 0 | G8: 0 | H8: 17 | I8: 0.1307692308 | J8: 0.1307692308
A9: CBM4060 | B9: SISTEMA MUSCULOESQUELETICO | C9: 6 | D9: 154 | E9: 152 | F9: 18 | G9: 0.1184210526 | H9: 2 | I9: 0.01298701299 | J9: 0.1298701299
A10: CBM0007 | B10: SISTEMA DIGESTIVO | C10: 4 | D10: 96 | E10: 94 | F10: 9 | G10: 0.09574468085 | H10: 2 | I10: 0.02083333333 | J10: 0.1145833333 | L10: Ir a Tabla de Repitencia >=30%
A11: CBM6070 | B11: FUND BIOLOG DEL CUIDADO I | C11: 2 | D11: 34 | E11: 34 | F11: 3 | G11: 0.08823529412 | H11: 0 | I11: 0 | J11: 0.08823529412
A12: CBM4050 | B12: SISTEMA ENDOCRINO | C12: 6 | D12: 148 | E12: 146 | F12: 11 | G12: 0.07534246575 | H12: 2 | I12: 0.01351351351 | J12: 0.08783783784
A13: CBM6072 | B13: FUNDAMENTOS BIOLOG CUIDADO III | C13: 1 | D13: 23 | E13: 23 | F13: 2 | G13: 0.08695652174 | H13: 0 | I13: 0 | J13: 0.08695652174
A14: CLI0004 | B14: CLINICAS MEDICAS I | C14: 20 | D14: 79 | E14: 79 | F14: 6 | G14: 0.07594936709 | H14: 0 | I14: 0 | J14: 0.07594936709
A15: CBM0012 | B15: SISTEMA RESPIRATORIO | C15: 4 | D15: 97 | E15: 95 | F15: 5 | G15: 0.05263157895 | H15: 2 | I15: 0.0206185567 | J15: 0.07216494845
A16: CBM4040 | B16: SISTEMA NERVIOSO | C16: 6 | D16: 169 | E16: 167 | F16: 10 | G16: 0.05988023952 | H16: 2 | I16: 0.01183431953 | J16: 0.07100591716
A17: CBM0008 | B17: SISTEMA INMUNOLOGICO | C17: 4 | D17: 95 | E17: 93 | F17: 3 | G17: 0.03225806452 | H17: 2 | I17: 0.02105263158 | J17: 0.05263157895
A18: CBM0009 | B18: SISTEMA RENAL | C18: 5 | D18: 129 | E18: 128 | F18: 5 | G18: 0.0390625 | H18: 1 | I18: 0.007751937984 | J18: 0.04651162791
A19: CBM0011 | B19: SISTEMA REPRODUCTOR | C19: 5 | D19: 130 | E19: 129 | F19: 5 | G19: 0.03875968992 | H19: 1 | I19: 0.007692307692 | J19: 0.04615384615
A20: CBM0004 | B20: SISTEMA SANGUINEO | C20: 5 | D20: 129 | E20: 128 | F20: 4 | G20: 0.03125 | H20: 1 | I20: 0.007751937984 | J20: 0.03875968992
A21: CBM0006 | B21: SISTEMA CARDIOVASCULAR | C21: 5 | D21: 141 | E21: 140 | F21: 4 | G21: 0.02857142857 | H21: 1 | I21: 0.007092198582 | J21: 0.03546099291
A22: CLI0014 | B22: CLINICAS PEDIATRICAS | C22: 16 | D22: 113 | E22: 113 | F22: 3 | G22: 0.02654867257 | H22: 0 | I22: 0 | J22: 0.02654867257
A23: CLI7040 | B23: INT A LA SEMIOLOGIA Y LA PRACT | C23: 3 | D23: 151 | E23: 149 | F23: 2 | G23: 0.01342281879 | H23: 2 | I23: 0.01324503311 | J23: 0.02649006623
A24: CLI0012 | B24: SEMIOLOGIA | C24: 1 | D24: 95 | E24: 93 | F24: 0 | G24: 0 | H24: 2 | I24: 0.02105263158 | J24: 0.02105263158
A25: CLI7120 | B25: MEDICINA FORENSE | C25: 1 | D25: 103 | E25: 103 | F25: 0 | G25: 0 | H25: 0 | I25: 0 | J25: 0
A26: CLI0005 | B26: CLINICAS MEDICAS II Y PSIQ. | C26: 20 | D26: 121 | E26: 121 | F26: 0 | G26: 0 | H26: 0 | I26: 0 | J26: 0
A27: CLI0013 | B27: CLINICAS GINECOOBSTETRAS | C27: 16 | D27: 132 | E27: 132 | F27: 0 | G27: 0 | H27: 0 | I27: 0 | J27: 0
A28: CLI0008 | B28: GENETICA CLINICA | C28: 2 | D28: 132 | E28: 132 | F28: 0 | G28: 0 | H28: 0 | I28: 0 | J28: 0
A29: CLI0006 | B29: CLINICAS QUIRURGICAS | C29: 24 | D29: 103 | E29: 103 | F29: 0 | G29: 0 | H29: 0 | I29: 0 | J29: 0
A30: CLI6680 | B30: MEDICINA DEL DOLOR | C30: 1 | D30: 27 | E30: 27 | F30: 0 | G30: 0 | H30: 0 | I30: 0 | J30: 0
A31: CLI0011 | B31: INTERNADO II | C31: 4 | D31: 111 | E31: 111 | F31: 0 | G31: 0 | H31: 0 | I31: 0 | J31: 0
A32: CLI9970 | B32: DONACION Y TRASPLANTE | C32: 2 | D32: 57 | E32: 57 | F32: 0 | G32: 0 | H32: 0 | I32: 0 | J32: 0
A33: CLI7160 | B33: TERAPEUTICA ANTIMICROBIANA | C33: 2 | D33: 62 | E33: 62 | F33: 0 | G33: 0 | H33: 0 | I33: 0 | J33: 0
A34: CBM6073 | B34: FUND BIOLOG DEL CUIDADO IV | C34: 1 | D34: 21 | E34: 21 | F34: 0 | G34: 0 | H34: 0 | I34: 0 | J34: 0
A35: CBM4150 | B35: TOXICOLOGíA | C35: 2 | D35: 57 | E35: 57 | F35: 0 | G35: 0 | H35: 0 | I35: 0 | J35: 0
A36: CLI7150 | B36: NUTRICIÓN | C36: 1 | D36: 31 | E36: 31 | F36: 0 | G36: 0 | H36: 0 | I36: 0 | J36: 0
A37: Total | C37: =SUM(C6:C36) -> 183 | D37: =SUM(D6:D36) -> 3089 | E37: =SUM(E6:E36) -> 3051 | F37: =SUM(F6:F36) -> 128 | G37: =F37/E37 -> 0.04195345788 | H37: =SUM(H6:H36) -> 38 | I37: =H37/D37 -> 0.01230171577 | J37: =(F37+H37)/D37 -> 0.05373907413
A39: Repitencia de Asignaturas del Dpto. Medicina, Mayor o Igual al 30%
A40: =Planeación!A1 -> 2023-2 | L40: Ir a Inicio | M40: Ir a Gráfico
A41: Codasg | B41: Asignaturas | C41: Total Cursos Abiertos | D41: Número de Cursos con Repitencia >=30% | E41: Matricula Inicial | F41: Matrícula Final | G41: Perdidos | H41: % Perdidos | I41: Retirados | J41: % Retirados | K41: % Repitencia
A42: CLI0009 | B42: INTERNADO I | C42: =VLOOKUP(A42,$A$6:$C$36,3,FALSE) -> 4 | D42: 1 | E42: 25 | F42: 11 | G42: 0 | H42: =IFERROR(G42/F42,"-") -> 0 | I42: 14 | J42: =I42/E42 -> 0.56 | K42: =(G42+I42)/E42 -> 0.56
A43: CLI0004 | B43: CLINICAS MEDICAS I | C43: =VLOOKUP(A43,$A$6:$C$36,3,FALSE) -> 20 | D43: 1 | E43: 4 | F43: 4 | G43: 2 | H43: =IFERROR(G43/F43,"-") -> 0.5 | I43: 0 | J43: =I43/E43 -> 0 | K43: =(G43+I43)/E43 -> 0.5
A44: CBM4030 | B44: FUNDAMENTO CIENCIAS BASICAS MD | C44: =VLOOKUP(A44,$A$6:$C$36,3,FALSE) -> 8 | D44: 1 | E44: 25 | F44: 24 | G44: 7 | H44: =IFERROR(G44/F44,"-") -> 0.2916666667 | I44: 1 | J44: =I44/E44 -> 0.04 | K44: =(G44+I44)/E44 -> 0.32
A45: Total | C45: =SUM(C42:C44) -> 32 | D45: =SUM(D42:D44) -> 3 | E45: =SUM(E42:E44) -> 54 | F45: =SUM(F42:F44) -> 39 | G45: =SUM(G42:G44) -> 9 | H45: =G45/F45 -> 0.2307692308 | I45: =SUM(I42:I44) -> 15 | J45: =I45/E45 -> 0.2777777778 | K45: =(G45+I45)/E45 -> 0.4444444444

Sheet Graf_Med
A1: OFICINA DE PLANEACIÓN - INFORMACIÓN Y ESTADÍSTICA
O2: Volver

Sheet Rep_Mer
A1: OFICINA DE PLANEACIÓN - INFORMACIÓN Y ESTADÍSTICA
A3: Perdidos, Retirados y Repitencia de Asignaturas del Dpto. Mercadeo y Neg. Internacionales
A4: =Planeación!A1 -> 2023-2
A5: Codasg | B5: Asignaturas | C5: Total Cursos Abiertos | D5: Matrícula Inicial | E5: Matrícula Final | F5: Perdidos | G5: % Perdidos | H5: Retirados | I5: % Retirados | J5: % Repitencia
A6: MDO0011 | B6: MARKETING MANAGEMENT | C6: 3 | D6: 64 | E6: 59 | F6: 0 | G6: 1 | H6: 5 | I6: =H6/D6 -> 0.078125 | J6: =(F6+H6)/D6 -> 0.078125 | L6: Volver al Índice
A7: ADM7510 | B7: NEG INTERNALES/COMPETITIVIDAD | C7: 3 | D7: 79 | E7: 77 | F7: 3 | G7: 2 | H7: 2 | I7: 0.0253164557 | J7: 0.06329113924
A8: ADM0017 | B8: LOGISTICS AND DISTRIBUTION | C8: 3 | D8: 67 | E8: 63 | F8: 0 | G8: 0 | H8: 4 | I8: 0.05970149254 | J8: 0.05970149254
A9: MDO4090 | B9: FUNDAMENTOS DE MERCADEO | C9: 4 | D9: 119 | E9: 117 | F9: 5 | G9: 0 | H9: 2 | I9: 0.01680672269 | J9: 0.05882352941
A10: ADM0061 | B10: INT. STRATEGIC NEGOTIATION | C10: 2 | D10: 35 | E10: 34 | F10: 0 | G10: 1 | H10: 1 | I10: 0.02857142857 | J10: 0.02857142857 | L10: Ir a Tabla de Repitencia >=30%
A11: ADM0056 | B11: INTERNATIONAL INTEGRATION | C11: 2 | D11: 37 | E11: 36 | F11: 0 | G11: 0 | H11: 1 | I11: 0.02702702703 | J11: 0.02702702703
A12: ADM0054 | B12: DISTRIBUCION FISICA INTER. | C12: 2 | D12: 43 | E12: 42 | F12: 0 | G12: 0 | H12: 1 | I12: 0.02325581395 | J12: 0.02325581395
A13: ADM7490 | B13: NEGOCIOS Y CULTURAS GLOBALES | C13: 3 | D13: 87 | E13: 85 | F13: 0 | G13: 1 | H13: 2 | I13: 0.02298850575 | J13: 0.02298850575
A14: ADM8800 | B14: INTERNATIONAL TRADE MANAGEMENT | C14: 3 | D14: 92 | E14: 90 | F14: 0 | G14: 0 | H14: 2 | I14: 0.02173913043 | J14: 0.02173913043
A15: ADM7420 | B15: INTELIGENCIA MERCAD INTERNALES | C15: 2 | D15: 47 | E15: 46 | F15: 0 | G15: 0 | H15: 1 | I15: 0.02127659574 | J15: 0.02127659574
A16: ADM0059 | B16: INTERNATIONAL EXPORT PLAN | C16: 3 | D16: 98 | E16: 96 | F16: 0 | G16: 0 | H16: 2 | I16: 0.02040816327 | J16: 0.02040816327
A17: MDO0031 | B17: NEGOCIOS INTERNACIONALES | C17: 2 | D17: 83 | E17: 83 | F17: 1 | G17: 0 | H17: 0 | I17: 0 | J17: 0.01204819277
A18: ADM0057 | B18: GLOBAL BUSINESS PROTOCOL | C18: 3 | D18: 89 | E18: 88 | F18: 0 | G18: 0 | H18: 1 | I18: 0.01123595506 | J18: 0.01123595506
A19: ADM0058 | B19: PORT MANAGEMENT | C19: 3 | D19: 90 | E19: 89 | F19: 0 | G19: 1 | H19: 1 | I19: 0.01111111111 | J19: 0.01111111111
A20: ADM0052 | B20: LOGISTICA Y DISTRIBUCION | C20: 3 | D20: 84 | E20: 84 | F20: 0 | G20: 0 | H20: 0 | I20: 0 | J20: 0
A21: ADM0053 | B21: INT. CONTEMPORARY ANALYSIS | C21: 2 | D21: 39 | E21: 39 | F21: 0 | G21: 0 | H21: 0 | I21: 0 | J21: 0
A22: MDO0012 | B22: DISTRIBUTION CHANNELS | C22: 1 | D22: 25 | E22: 25 | F22: 0 | G22: 1 | H22: 0 | I22: 0 | J22: 0
A23: MDO0022 | B23: COMSUMPTION CULTURE | C23: 1 | D23: 24 | E23: 24 | F23: 0 | G23: 2 | H23: 0 | I23: 0 | J23: 0
A24: MDO0021 | B24: BRANDING | C24: 1 | D24: 24 | E24: 24 | F24: 0 | G24: 3 | H24: 0 | I24: 0 | J24: 0
A25: MDO0023 | B25: INTERNATIONAL BRAND MANAGEMENT | C25: 1 | D25: 22 | E25: 22 | F25: 0 | G25: 1 | H25: 0 | I25: 0 | J25: 0
A26: MDO0024 | B26: MANAGEMENT OF INT. SERVICES | C26: 1 | D26: 23 | E26: 23 | F26: 0 | G26: 1 | H26: 0 | I26: 0 | J26: 0
A27: MDO4015 | B27: INTER BUSINESS SEMINAR | C27: 1 | D27: 37 | E27: 37 | F27: 0 | G27: 1 | H27: 0 | I27: 0 | J27: 0
A28: ADM8795 | B28: INTERNATIONAL SALES MANAGEMENT | C28: 1 | D28: 22 | E28: 22 | F28: 0 | G28: 2 | H28: 0 | I28: 0 | J28: 0
A29: MDO8340 | B29: INTERNATIONAL MARKETING | C29: 3 | D29: 72 | E29: 72 | F29: 0 | G29: 0 | H29: 0 | I29: 0 | J29: 0
A30: MDO4010 | B30: INVESTIGACION DE MERCADOS | C30: 3 | D30: 67 | E30: 67 | F30: 0 | G30: 1 | H30: 0 | I30: 0 | J30: 0
A31: Total | C31: =SUM(C6:C30) -> 56 | D31: =SUM(D6:D30) -> 1469 | E31: =SUM(E6:E30) -> 1444 | F31: =SUM(F6:F30) -> 9 | G31: =F31/E31 -> 0.006232686981 | H31: =SUM(H6:H30) -> 25 | I31: 0.01701837985 | J31: 0.0231449966
A33: Repitencia de Asignaturas del Dpto. Mercadeo y Neg. Internacionales, Mayor o Igual al 30%
A34: =Planeación!A1 -> 2023-2 | L34: Ir a Inicio
A35: Codasg | B35: Asignaturas | C35: Total Cursos Abiertos | D35: Número de Cursos con Repitencia >=30% | E35: Matricula Inicial | F35: Matrícula Final | G35: Perdidos | H35: % Perdidos | I35: Retirados | J35: % Retirados | K35: % Repitencia
C36: =IFERROR(VLOOKUP(A36,$A$6:$C$30,3,FALSE),"-") -> - | H36: =IFERROR(G36/F36,"-") -> - | J36: =IFERROR(I36/E36,"-") -> - | K36: =IFERROR((G36+I36)/E36,"-") -> -
A37: Total | C37: =SUM(C36:C36) -> 0 | D37: =SUM(D36:D36) -> 0 | E37: =SUM(E36:E36) -> 0 | F37: =SUM(F36:F36) -> 0 | G37: =SUM(G36:G36) -> 0 | H37: =IFERROR(G37/F37,"-") -> - | I37: =SUM(I36:I36) -> 0 | J37: =IFERROR(I37/E37,"-") -> - | K37: =IFERROR((G37+I37)/E37,"-") -> -

Sheet Rep_Mus
A1: OFICINA DE PLANEACIÓN - INFORMACIÓN Y ESTADÍSTICA
A3: Perdidos, Retirados y Repitencia de Asignaturas del Dpto. Música
A4: =Planeación!A1 -> 2023-2
A5: Codasg | B5: Asignaturas | C5: Total Cursos Abiertos | D5: Matrícula Inicial | E5: Matrícula Final | F5: Perdidos | G5: % Perdidos | H5: Retirados | I5: % Retirados | J5: % Repitencia
A6: MUS7045 | B6: GUITARRA II | C6: 1 | D6: 1 | E6: 0 | F6: 0 | G6: =IFERROR(F6/E6,"-") -> - | H6: 1 | I6: =H6/D6 -> 1 | J6: =(F6+H6)/D6 -> 1 | L6: Volver al Índice
A7: MUS7538 | B7: RECITAL CLARINETE II | C7: 1 | D7: 1 | E7: 0 | F7: 0 | G7: - | H7: 1 | I7: 1 | J7: 1
A8: MUS4025 | B8: DEL CLASICISMO AL IMPRESIONISM | C8: 1 | D8: 3 | E8: 2 | F8: 1 | G8: 0.5 | H8: 1 | I8: 0.3333333333 | J8: 0.6666666667
A9: MUS4060 | B9: FUNDAMENTOS DE TEORIA | C9: 1 | D9: 11 | E9: 9 | F9: 4 | G9: 0.4444444444 | H9: 2 | I9: 0.1818181818 | J9: 0.5454545455
A10: ECA0065 | B10: MUSICA DE COLOMBIA Y DEL CAR | C10: 1 | D10: 26 | E10: 18 | F10: 4 | G10: 0.2222222222 | H10: 8 | I10: 0.3076923077 | J10: 0.4615384615 | L10: Ir a Tabla de Repitencia >=30%
A11: MUS4030 | B11: ENTRENAMIENTO AUDITIVO I | C11: 1 | D11: 9 | E11: 7 | F11: 1 | G11: 0.1428571429 | H11: 2 | I11: 0.2222222222 | J11: 0.3333333333
A12: MUS4155 | B12: SOLFEO I | C12: 1 | D12: 10 | E12: 8 | F12: 1 | G12: 0.125 | H12: 2 | I12: 0.2 | J12: 0.3
A13: MUS4065 | B13: GESTION DE PROYECTOS MUSICALES | C13: 1 | D13: 10 | E13: 9 | F13: 2 | G13: 0.2222222222 | H13: 1 | I13: 0.1 | J13: 0.3
A14: MUS4035 | B14: ENTRENAMIENTO AUDITIVO II | C14: 1 | D14: 14 | E14: 14 | F14: 4 | G14: 0.2857142857 | H14: 0 | I14: 0 | J14: 0.2857142857
A15: MUS4150 | B15: PRINCIPIOS DE ARMONIA Y FORMA | C15: 1 | D15: 19 | E15: 19 | F15: 5 | G15: 0.2631578947 | H15: 0 | I15: 0 | J15: 0.2631578947
A16: MUS4090 | B16: PIANO / GUITARRA FUNCIONAL I | C16: 1 | D16: 8 | E16: 7 | F16: 1 | G16: 0.1428571429 | H16: 1 | I16: 0.125 | J16: 0.25
A17: MUS7450 | B17: JAZZ Y MUSICA POPULAR II | C17: 4 | D17: 4 | E17: 4 | F17: 1 | G17: 0.25 | H17: 0 | I17: 0 | J17: 0.25
A18: MUS4050 | B18: FORMA Y ANALISIS I | C18: 1 | D18: 14 | E18: 14 | F18: 3 | G18: 0.2142857143 | H18: 0 | I18: 0 | J18: 0.2142857143
A19: MUS7311 | B19: HISTORIA DE LA MUSICA II | C19: 1 | D19: 5 | E19: 4 | F19: 0 | G19: 0 | H19: 1 | I19: 0.2 | J19: 0.2
A20: MUS4175 | B20: CONTRAPUNTO Y ARMONIA I | C20: 1 | D20: 8 | E20: 7 | F20: 0 | G20: 0 | H20: 1 | I20: 0.125 | J20: 0.125
A21: MUS4170 | B21: SOLFEO IV | C21: 1 | D21: 8 | E21: 7 | F21: 0 | G21: 0 | H21: 1 | I21: 0.125 | J21: 0.125
A22: MUS4100 | B22: PIANO / GUITARRA FUNCIONAL III | C22: 2 | D22: 11 | E22: 10 | F22: 0 | G22: 0 | H22: 1 | I22: 0.09090909091 | J22: 0.09090909091
A23: MUS4045 | B23: ENTRENAMIENTO AUDITIVO IV | C23: 1 | D23: 14 | E23: 13 | F23: 0 | G23: 0 | H23: 1 | I23: 0.07142857143 | J23: 0.07142857143
A24: MUS4000 | B24: CONCEP MUSICA SIGLO XX Y XXI I | C24: 1 | D24: 7 | E24: 7 | F24: 0 | G24: 0 | H24: 0 | I24: 0 | J24: 0
A25: MUS4040 | B25: ENTRENAMIENTO AUDITIVO III | C25: 1 | D25: 8 | E25: 8 | F25: 0 | G25: 0 | H25: 0 | I25: 0 | J25: 0
A26: MUS4135 | B26: PRACTICA EN CONJUNTO VI | C26: 5 | D26: 9 | E26: 9 | F26: 0 | G26: 0 | H26: 0 | I26: 0 | J26: 0
A27: MUS4140 | B27: PRACTICA EN CONJUNTO VII | C27: 6 | D27: 12 | E27: 12 | F27: 0 | G27: 0 | H27: 0 | I27: 0 | J27: 0
A28: MUS7446 | B28: NIVELAT JAZZ Y MUSICA POPULAR | C28: 6 | D28: 6 | E28: 6 | F28: 0 | G28: 0 | H28: 0 | I28: 0 | J28: 0
A29: MUS7448 | B29: JAZZ Y MUSICA POPULAR I | C29: 8 | D29: 8 | E29: 8 | F29: 0 | G29: 0 | H29: 0 | I29: 0 | J29: 0
A30: MUS7454 | B30: JAZZ Y MUSICA POPULAR IV | C30: 8 | D30: 8 | E30: 8 | F30: 0 | G30: 0 | H30: 0 | I30: 0 | J30: 0
A31: MUS4145 | B31: PRACTICA EN CONJUNTO VIII | C31: 7 | D31: 11 | E31: 11 | F31: 0 | G31: 0 | H31: 0 | I31: 0 | J31: 0
A32: MUS7456 | B32: JAZZ Y MUSICA POPULAR V | C32: 9 | D32: 9 | E32: 9 | F32: 0 | G32: 0 | H32: 0 | I32: 0 | J32: 0
A33: MUS7458 | B33: JAZZ Y MUSICA POPULAR VI | C33: 10 | D33: 10 | E33: 10 | F33: 0 | G33: 0 | H33: 0 | I33: 0 | J33: 0
A34: MUS7460 | B34: JAZZ Y MUSICA POPULAR VII | C34: 8 | D34: 8 | E34: 8 | F34: 0 | G34: 0 | H34: 0 | I34: 0 | J34: 0
A35: MUS7462 | B35: JAZZ Y MUSICA POPULAR VIII | C35: 1 | D35: 1 | E35: 1 | F35: 0 | G35: 0 | H35: 0 | I35: 0 | J35: 0
A36: MUS7532 | B36: VIOLIN VII | C36: 1 | D36: 1 | E36: 1 | F36: 0 | G36: 0 | H36: 0 | I36: 0 | J36: 0
A37: MUS7452 | B37: JAZZ Y MUSICA POPULAR III | C37: 3 | D37: 3 | E37: 3 | F37: 0 | G37: 0 | H37: 0 | I37: 0 | J37: 0
A38: MUS4130 | B38: PRACTICA EN CONJUNTO V | C38: 6 | D38: 11 | E38: 11 | F38: 0 | G38: =IFERROR(F38/E38,"-") -> 0 | H38: 0 | I38: =H38/D38 -> 0 | J38: =(F38+H38)/D38 -> 0
A39: MUS4180 | B39: CONTRAPUNTO Y ARMONIA II | C39: 1 | D39: 8 | E39: 8 | F39: 0 | G39: 0 | H39: 0 | I39: 0 | J39: 0
A40: MUS4070 | B40: MUSICA DE CAMARA I | C40: 2 | D40: 10 | E40: 10 | F40: 0 | G40: 0 | H40: 0 | I40: 0 | J40: 0
A41: MUS4160 | B41: SOLFEO II | C41: 1 | D41: 17 | E41: 17 | F41: 0 | G41: 0 | H41: 0 | I41: 0 | J41: 0
A42: HIS0050 | B42: DE LA ANTIGUEDAD AL BARROCO | C42: 1 | D42: 15 | E42: 15 | F42: 0 | G42: 0 | H42: 0 | I42: 0 | J42: 0
A43: MUS4115 | B43: PRACTICA EN CONJUNTO II | C43: 1 | D43: 16 | E43: 16 | F43: 0 | G43: 0 | H43: 0 | I43: 0 | J43: 0
A44: MUS4110 | B44: PRACTICA DE CONJUNTO I | C44: 1 | D44: 7 | E44: 7 | F44: 0 | G44: 0 | H44: 0 | I44: 0 | J44: 0
A45: MUS4120 | B45: PRACTICA EN CONJUNTO III | C45: 2 | D45: 10 | E45: 10 | F45: 0 | G45: 0 | H45: 0 | I45: 0 | J45: 0
A46: MUS4105 | B46: PIANO / GUITARRA FUNCIONAL IV | C46: 1 | D46: 5 | E46: 5 | F46: 0 | G46: 0 | H46: 0 | I46: 0 | J46: 0
A47: MUS4095 | B47: PIANO / GUITARRA FUNCIONAL II | C47: 3 | D47: 17 | E47: 17 | F47: 0 | G47: 0 | H47: 0 | I47: 0 | J47: 0
A48: MUS4125 | B48: PRACTICA EN CONJUNTO IV | C48: 5 | D48: 6 | E48: 6 | F48: 0 | G48: 0 | H48: 0 | I48: 0 | J48: 0
A49: MUS4165 | B49: SOLFEO III | C49: 1 | D49: 7 | E49: 7 | F49: 0 | G49: 0 | H49: 0 | I49: 0 | J49: 0
A50: MUS4055 | B50: FORMA Y ANALISIS II | C50: 1 | D50: 12 | E50: 12 | F50: 0 | G50: 0 | H50: 0 | I50: 0 | J50: 0
A51: MUS4005 | B51: CONCEP MUSICA SIGL XX Y XXI II | C51: 1 | D51: 10 | E51: 10 | F51: 0 | G51: 0 | H51: 0 | I51: 0 | J51: 0
A52: MUS4075 | B52: MUSICA DE CAMARA II | C52: 2 | D52: 11 | E52: 11 | F52: 0 | G52: 0 | H52: 0 | I52: 0 | J52: 0
A53: MUS4085 | B53: MUSICA DEL SIGLO XX Y XXI | C53: 1 | D53: 12 | E53: 12 | F53: 0 | G53: 0 | H53: 0 | I53: 0 | J53: 0
A54: MUS7005 | B54: CANTO II | C54: 1 | D54: 1 | E54: 1 | F54: 0 | G54: 0 | H54: 0 | I54: 0 | J54: 0
A55: MUS7015 | B55: CANTO IV | C55: 1 | D55: 1 | E55: 1 | F55: 0 | G55: 0 | H55: 0 | I55: 0 | J55: 0
A56: MUS7025 | B56: CANTO VI | C56: 1 | D56: 1 | E56: 1 | F56: 0 | G56: 0 | H56: 0 | I56: 0 | J56: 0
A57: MUS7035 | B57: CANTO VIII | C57: 1 | D57: 1 | E57: 1 | F57: 0 | G57: 0 | H57: 0 | I57: 0 | J57: 0
A58: MUS7010 | B58: CANTO III | C58: 1 | D58: 1 | E58: 1 | F58: 0 | G58: 0 | H58: 0 | I58: 0 | J58: 0
A59: MUS7020 | B59: CANTO V | C59: 1 | D59: 1 | E59: 1 | F59: 0 | G59: 0 | H59: 0 | I59: 0 | J59: 0
A60: MUS7000 | B60: CANTO I | C60: 1 | D60: 1 | E60: 1 | F60: 0 | G60: 0 | H60: 0 | I60: 0 | J60: 0
A61: MUS7312 | B61: HISTORIA DE LA MUSICA III | C61: 1 | D61: 3 | E61: 3 | F61: 0 | G61: 0 | H61: 0 | I61: 0 | J61: 0
A62: HIS7095 | B62: HISTORIA DE LA MUSICA I | C62: 1 | D62: 15 | E62: 15 | F62: 0 | G62: 0 | H62: 0 | I62: 0 | J62: 0
A63: MUS7373 | B63: TECNOLOGIA MUSICAL | C63: 1 | D63: 9 | E63: 9 | F63: 0 | G63: 0 | H63: 0 | I63: 0 | J63: 0
A64: MUS7070 | B64: GUITARRA VII | C64: 1 | D64: 1 | E64: 1 | F64: 0 | G64: 0 | H64: 0 | I64: 0 | J64: 0
A65: MUS7353 | B65: TECNICAS DE COMPOSICION I | C65: 1 | D65: 8 | E65: 8 | F65: 0 | G65: 0 | H65: 0 | I65: 0 | J65: 0
A66: MUS7534 | B66: VIOLIN VIII | C66: 1 | D66: 1 | E66: 1 | F66: 0 | G66: 0 | H66: 0 | I66: 0 | J66: 0
A67: MUS7418 | B67: CLARINETE IV | C67: 1 | D67: 1 | E67: 1 | F67: 0 | G67: 0 | H67: 0 | I67: 0 | J67: 0
A68: MUS7075 | B68: GUITARRA VIII | C68: 1 | D68: 1 | E68: 1 | F68: 0 | G68: 0 | H68: 0 | I68: 0 | J68: 0
A69: MUS7080 | B69: PIANO I | C69: 1 | D69: 1 | E69: 1 | F69: 0 | G69: 0 | H69: 0 | I69: 0 | J69: 0
A70: MUS7110 | B70: PIANO VII | C70: 1 | D70: 1 | E70: 1 | F70: 0 | G70: =IFERROR(F70/E70,"-") -> 0 | H70: 0 | I70: =H70/D70 -> 0 | J70: =(F70+H70)/D70 -> 0
A71: MUS7354 | B71: TECNICAS DE COMPOSICION II | C71: 1 | D71: 7 | E71: 7 | F71: 0 | G71: 0 | H71: 0 | I71: 0 | J71: 0
A72: MUS7361 | B72: TECNICAS DE GRABACION I | C72: 1 | D72: 6 | E72: 6 | F72: 0 | G72: 0 | H72: 0 | I72: 0 | J72: 0
A73: MUS7496 | B73: VIOLA VII | C73: 1 | D73: 1 | E73: 1 | F73: 0 | G73: 0 | H73: 0 | I73: 0 | J73: 0
A74: MUS7520 | B74: VIOLIN I | C74: 1 | D74: 1 | E74: 1 | F74: 0 | G74: 0 | H74: 0 | I74: 0 | J74: 0
A75: MUS7514 | B75: VIOLONCHELO VII | C75: 1 | D75: 1 | E75: 1 | F75: 0 | G75: 0 | H75: 0 | I75: 0 | J75: 0
A76: MUS7155 | B76: RECITAL CANTO IV | C76: 1 | D76: 1 | E76: 1 | F76: 0 | G76: 0 | H76: 0 | I76: 0 | J76: 0
A77: MUS7558 | B77: RECITAL JAZZ Y MUSICA POPUL IV | C77: 3 | D77: 3 | E77: 3 | F77: 0 | G77: 0 | H77: 0 | I77: 0 | J77: 0
A78: MUS7590 | B78: RECITAL VIOLIN IV | C78: 1 | D78: 1 | E78: 1 | F78: 0 | G78: 0 | H78: 0 | I78: 0 | J78: 0
A79: MUS7175 | B79: RECITAL GUITARRA IV | C79: 1 | D79: 1 | E79: 1 | F79: 0 | G79: 0 | H79: 0 | I79: 0 | J79: 0
A80: Total | C80: =SUM(C6:C79) -> 154 | D80: =SUM(D6:D79) -> 521 | E80: =SUM(E6:E79) -> 497 | F80: =SUM(F6:F79) -> 27 | G80: =F80/E80 -> 0.05432595573 | H80: =SUM(H6:H79) -> 24 | I80: =H80/D80 -> 0.04606525912 | J80: =(F80+H80)/D80 -> 0.09788867562
A82: Repitencia de Asignaturas del Dpto. Música, Mayor o Igual al 30%
A83: =Planeación!A1 -> 2023-2 | L83: Ir a Inicio | M83: Ir a Gráfico
A84: Codasg | B84: Asignaturas | C84: Total Cursos Abiertos | D84: Número de Cursos con Repitencia >=30% | E84: Matricula Inicial | F84: Matrícula Final | G84: Perdidos | H84: % Perdidos | I84: Retirados | J84: % Retirados | K84: % Repitencia
A85: MUS7450 | B85: JAZZ Y MUSICA POPULAR II | C85: =IFERROR(VLOOKUP(A85,$A$6:$C$79,3,FALSE),"-") -> 4 | D85: 1 | E85: 1 | F85: 1 | G85: 1 | H85: =IFERROR(G85/F85,"-") -> 1 | I85: 0 | J85: =I85/E85 -> 0 | K85: =(G85+I85)/E85 -> 1
A86: MUS7045 | B86: GUITARRA II | C86: 1 | D86: 1 | E86: 1 | F86: 0 | G86: 0 | H86: - | I86: 1 | J86: 1 | K86: 1
A87: MUS7538 | B87: RECITAL CLARINETE II | C87: 1 | D87: 1 | E87: 1 | F87: 0 | G87: 0 | H87: - | I87: 1 | J87: 1 | K87: 1
A88: MUS4025 | B88: DEL CLASICISMO AL IMPRESIONISM | C88: 1 | D88: 1 | E88: 3 | F88: 2 | G88: 1 | H88: 0.5 | I88: 1 | J88: 0.3333333333 | K88: 0.6666666667
A89: MUS4060 | B89: FUNDAMENTOS DE TEORIA | C89: 1 | D89: 1 | E89: 11 | F89: 9 | G89: 4 | H89: 0.4444444444 | I89: 2 | J89: 0.1818181818 | K89: 0.5454545455
A90: ECA0065 | B90: MUSICA DE COLOMBIA Y DEL CAR | C90: 1 | D90: 1 | E90: 26 | F90: 18 | G90: 4 | H90: 0.2222222222 | I90: 8 | J90: 0.3076923077 | K90: 0.4615384615
A91: MUS4030 | B91: ENTRENAMIENTO AUDITIVO I | C91: 1 | D91: 1 | E91: 9 | F91: 7 | G91: 1 | H91: 0.1428571429 | I91: 2 | J91: 0.2222222222 | K91: 0.3333333333
A92: MUS4065 | B92: GESTION DE PROYECTOS MUSICALES | C92: 1 | D92: 1 | E92: 10 | F92: 9 | G92: 2 | H92: 0.2222222222 | I92: 1 | J92: 0.1 | K92: 0.3
A93: MUS4155 | B93: SOLFEO I | C93: 1 | D93: 1 | E93: 10 | F93: 8 | G93: 1 | H93: 0.125 | I93: 2 | J93: 0.2 | K93: 0.3
A94: Total | C94: =SUM(C85:C91) -> 10 | D94: =SUM(D85:D91) -> 7 | E94: =SUM(E85:E91) -> 52 | F94: =SUM(F85:F91) -> 37 | G94: =SUM(G85:G91) -> 11 | H94: =G94/F94 -> 0.2972972973 | I94: =SUM(I85:I91) -> 15 | J94: =I94/E94 -> 0.2884615385 | K94: =(G94+I94)/E94 -> 0.5

Sheet Graf_Mus
A1: OFICINA DE PLANEACIÓN - INFORMACIÓN Y ESTADÍSTICA
O2: Volver

Sheet Rep_Odo
A1: OFICINA DE PLANEACIÓN - INFORMACIÓN Y ESTADÍSTICA
A3: Perdidos, Retirados y Repitencia de Asignaturas del Dpto. Odontología
A4: =Planeación!A1 -> 2023-2
A5: Codasg | B5: Asignaturas | C5: Total Cursos Abiertos | D5: Matrícula Inicial | E5: Matrícula Final | F5: Perdidos | G5: % Perdidos | H5: Retirados | I5: % Retirados | J5: % Repitencia
A6: ODO4145 | B6: PATOLOGIA ORAL | C6: 1 | D6: 26 | E6: 26 | F6: 7 | G6: =IFERROR(F6/E6,"-") -> 0.2692307692 | H6: 0 | I6: =H6/D6 -> 0 | J6: =(F6+H6)/D6 -> 0.2692307692 | L6: Volver al Índice
A7: ODO4010 | B7: BIOESTRUCTURA DENTAL OCLUS II | C7: 1 | D7: 17 | E7: 17 | F7: 4 | G7: 0.2352941176 | H7: 0 | I7: 0 | J7: 0.2352941176
A8: ODO4100 | B8: ENDODONCIA | C8: 2 | D8: 27 | E8: 27 | F8: 6 | G8: 0.2222222222 | H8: 0 | I8: 0 | J8: 0.2222222222
A9: ODO4165 | B9: REHABILITACION ORAL | C9: 2 | D9: 27 | E9: 27 | F9: 6 | G9: 0.2222222222 | H9: 0 | I9: 0 | J9: 0.2222222222
A10: ODO4170 | B10: SEMIOLOGIA CABEZA Y CUELLO | C10: 1 | D10: 23 | E10: 23 | F10: 5 | G10: 0.2173913043 | H10: 0 | I10: 0 | J10: 0.2173913043 | L10: Ir a Tabla de Repitencia >=30%
A11: ODO4150 | B11: PERIODONCIA Y CLINICA DE PERIO | C11: 1 | D11: 24 | E11: 23 | F11: 4 | G11: 0.1739130435 | H11: 1 | I11: 0.04166666667 | J11: 0.2083333333
A12: ODO4090 | B12: CLINICA OPERATORIA DENTAL | C12: 2 | D12: 24 | E12: 24 | F12: 5 | G12: 0.2083333333 | H12: 0 | I12: 0 | J12: 0.2083333333
A13: ODO4070 | B13: CLI DE REHABILITACION ORAL II | C13: 6 | D13: 21 | E13: 21 | F13: 4 | G13: 0.1904761905 | H13: 0 | I13: 0 | J13: 0.1904761905
A14: ODO4065 | B14: CLI DE REHABILITACION ORAL I | C14: 6 | D14: 11 | E14: 11 | F14: 2 | G14: 0.1818181818 | H14: 0 | I14: 0 | J14: 0.1818181818
A15: ODO4035 | B15: CLINICA CIRUGIA ORAL I | C15: 1 | D15: 23 | E15: 23 | F15: 4 | G15: 0.1739130435 | H15: 0 | I15: 0 | J15: 0.1739130435
A16: ODO4155 | B16: PREVENCION Y CLINICA DEL SANO | C16: 1 | D16: 23 | E16: 23 | F16: 3 | G16: 0.1304347826 | H16: 0 | I16: 0 | J16: 0.1304347826
A17: ODO4075 | B17: CLINICA INTEGRAL DEL ADULTO I | C17: 1 | D17: 8 | E17: 8 | F17: 1 | G17: 0.125 | H17: 0 | I17: 0 | J17: 0.125
A18: ODO4050 | B18: CLINICA DE ENDODONCIA II | C18: 6 | D18: 21 | E18: 21 | F18: 2 | G18: 0.09523809524 | H18: 0 | I18: 0 | J18: 0.09523809524
A19: ODO4160 | B19: RADIOLOGIA ORAL E IMAGENOLOGIA | C19: 1 | D19: 13 | E19: 13 | F19: 1 | G19: 0.07692307692 | H19: 0 | I19: 0 | J19: 0.07692307692
A20: ODO4180 | B20: SISTEMA ESTOMATOGNATICO II | C20: 1 | D20: 15 | E20: 15 | F20: 1 | G20: 0.06666666667 | H20: 0 | I20: 0 | J20: 0.06666666667
A21: ODO4055 | B21: CLINICA DE ODONTOPEDIATRIA | C21: 2 | D21: 20 | E21: 20 | F21: 1 | G21: 0.05 | H21: 0 | I21: 0 | J21: 0.05
A22: ODO4175 | B22: SISTEMA ESTOMATOGNATICO I | C22: 1 | D22: 21 | E22: 21 | F22: 1 | G22: 0.04761904762 | H22: 0 | I22: 0 | J22: 0.04761904762
A23: ODO4130 | B23: OPERATORIA DENTAL | C23: 2 | D23: 22 | E23: 22 | F23: 1 | G23: 0.04545454545 | H23: 0 | I23: 0 | J23: 0.04545454545
A24: ODO4060 | B24: CLINICA DE PERIODONCIA II | C24: 6 | D24: 22 | E24: 22 | F24: 1 | G24: 0.04545454545 | H24: 0 | I24: 0 | J24: 0.04545454545
A25: ODO4030 | B25: CLINICA CIRUGIA ORAL III | C25: 1 | D25: 25 | E25: 25 | F25: 1 | G25: 0.04 | H25: 0 | I25: 0 | J25: 0.04
A26: ODO4080 | B26: CLINICA INTEGRAL DEL ADULTO II | C26: 2 | D26: 26 | E26: 26 | F26: 1 | G26: 0.03846153846 | H26: 0 | I26: 0 | J26: 0.03846153846
